Workbook

Sheet PI vs x
A1: Measurement | B1: Hall
A2: Type | B2: Off-axis
A4: Project | B4: ='10 y=-0.2'!B5 -> 504314
A5: PS serial no | B5: ='10 y=-0.2'!B7 -> 2410084
A7: Measurement date | B7: =LEFT('10 y=-0.2'!B4,10) -> 24-07-2024
C11: Nominal gap [mm] | D11: Encoder [counts] | E11: Encoder [mm] | F11: PI [T^2mm^3] | G11: y [mm] | H11: Encoder value at 10 mm gap:
B12: ='PI vs x'!$C$12 & "mm gap" -> 10mm gap | C12: ='10 y=-0.2'!B48 -> 10 | D12: ='10 y=-0.2'!$B$50 -> 19.434 | E12: =D12-$H$12+10 -> 9.9998 | F12: ='10 y=-0.2'!$K$3 -> 10670.25206 | G12: -0.2 | H12: 19.4342
C13: =C12 -> 10 | D13: ='10 y=-0.1'!$B$50 -> 19.434 | E13: =D13-$H$12+10 -> 9.9998 | F13: ='10 y=-0.1'!$K$3 -> 10667.91173 | G13: -0.1
C14: =C13 -> 10 | D14: ='10 y=0'!$B$50 -> 19.434 | E14: 9.9998 | F14: ='10 y=0'!$K$3 -> 10666.40006 | G14: 0
C15: 10 | D15: ='10 y=0.1'!$B$50 -> 19.434 | E15: 9.9998 | F15: ='10 y=0.1'!$K$3 -> 10668.33442 | G15: 0.1
C16: 10 | D16: ='10 y=0.2'!$B$50 -> 19.434 | E16: 9.9998 | F16: ='10 y=0.2'!$K$3 -> 10667.97912 | G16: 0.2
B17: ='PI vs x'!$C$17 & "mm gap" -> mm gap

Sheet 10 y=-0.2
A1: =IF('DF raw data'!A1="","",'DF raw data'!A1) -> Number of header lines | B1: =IF('DF raw data'!B1="","",'DF raw data'!B1) -> 54 | C1: =IF('DF raw data'!C1="","",'DF raw data'!C1) ->  | D1: =IF('DF raw data'!D1="","",'DF raw data'!D1) ->  | F1: T_coeff | G1: -0.00073 | H1: /degC | J1: IBy total | K1: =J1262*1000 -> -6.130521986 | L1: muTm | M1: =L1262*1000 -> -22.21665489 | R1: DF ref | S1: 1
A2: =IF('DF raw data'!A2="","",'DF raw data'!A2) -> Measured by | B2: =IF('DF raw data'!B2="","",'DF raw data'!B2) -> Danfysik | C2: =IF('DF raw data'!C2="","",'DF raw data'!C2) ->  | D2: =IF('DF raw data'!D2="","",'DF raw data'!D2) ->  | F2: Tcorr | G2: 20 | H2: degC | J2: JBy total | K2: =K1262 -> -9.995789878 | L2: muTm^2 | M2: =M1262 -> -6.814298441
A3: =IF('DF raw data'!A3="","",'DF raw data'!A3) -> Operator | B3: =IF('DF raw data'!B3="","",'DF raw data'!B3) -> PMHA | C3: =IF('DF raw data'!C3="","",'DF raw data'!C3) ->  | D3: =IF('DF raw data'!D3="","",'DF raw data'!D3) ->  | F3: Step | G3: =A63-A62 -> 0.5 | H3: mm | J3: PI total | K3: =N1262 -> 10670.25206 | L3: T^2mm^3
A4: =IF('DF raw data'!A4="","",'DF raw data'!A4) -> Data-time | B4: =IF('DF raw data'!B4="","",'DF raw data'!B4) -> 24-07-2024, 12:58:33 | C4: =IF('DF raw data'!C4="","",'DF raw data'!C4) ->  | D4: =IF('DF raw data'!D4="","",'DF raw data'!D4) -> 
A5: =IF('DF raw data'!A5="","",'DF raw data'!A5) -> Project | B5: =IF('DF raw data'!B5="","",'DF raw data'!B5) -> 504314 | C5: =IF('DF raw data'!C5="","",'DF raw data'!C5) ->  | D5: =IF('DF raw data'!D5="","",'DF raw data'!D5) -> 
A6: =IF('DF raw data'!A6="","",'DF raw data'!A6) -> Magnet type | B6: =IF('DF raw data'!B6="","",'DF raw data'!B6) -> Dipole | C6: =IF('DF raw data'!C6="","",'DF raw data'!C6) ->  | D6: =IF('DF raw data'!D6="","",'DF raw data'!D6) -> 
A7: =IF('DF raw data'!A7="","",'DF raw data'!A7) -> Magnet nr. | B7: =IF('DF raw data'!B7="","",'DF raw data'!B7) -> 2410084 | C7: =IF('DF raw data'!C7="","",'DF raw data'!C7) ->  | D7: =IF('DF raw data'!D7="","",'DF raw data'!D7) -> 
A8: =IF('DF raw data'!A8="","",'DF raw data'!A8) -> Meas. number | B8: =IF('DF raw data'!B8="","",'DF raw data'!B8) -> 111 | C8: =IF('DF raw data'!C8="","",'DF raw data'!C8) ->  | D8: =IF('DF raw data'!D8="","",'DF raw data'!D8) -> 
A9: =IF('DF raw data'!A9="","",'DF raw data'!A9) -> Add. info | B9: =IF('DF raw data'!B9="","",'DF raw data'!B9) -> Y-alignment scan 1) | C9: =IF('DF raw data'!C9="","",'DF raw data'!C9) ->  | D9: =IF('DF raw data'!D9="","",'DF raw data'!D9) -> 
A10: =IF('DF raw data'!A10="","",'DF raw data'!A10) -> Device | B10: =IF('DF raw data'!B10="","",'DF raw data'!B10) -> (HAL) HALL-PROBE | C10: =IF('DF raw data'!C10="","",'DF raw data'!C10) ->  | D10: =IF('DF raw data'!D10="","",'DF raw data'!D10) -> 
A11: =IF('DF raw data'!A11="","",'DF raw data'!A11) -> Goal | B11: =IF('DF raw data'!B11="","",'DF raw data'!B11) -> (AXI) AXis Integral (Line, EFB) | C11: =IF('DF raw data'!C11="","",'DF raw data'!C11) ->  | D11: =IF('DF raw data'!D11="","",'DF raw data'!D11) -> 
A12: =IF('DF raw data'!A12="","",'DF raw data'!A12) -> Power supply mode | B12: =IF('DF raw data'!B12="","",'DF raw data'!B12) -> (PM) Permanent Magnet (no MPS in use) | C12: =IF('DF raw data'!C12="","",'DF raw data'!C12) ->  | D12: =IF('DF raw data'!D12="","",'DF raw data'!D12) -> 
A13: =IF('DF raw data'!A13="","",'DF raw data'!A13) -> Data format | B13: =IF('DF raw data'!B13="","",'DF raw data'!B13) -> Raw data text file | C13: =IF('DF raw data'!C13="","",'DF raw data'!C13) ->  | D13: =IF('DF raw data'!D13="","",'DF raw data'!D13) -> 
A14: =IF('DF raw data'!A14="","",'DF raw data'!A14) -> Direction of the pos. x-axis | B14: =IF('DF raw data'!B14="","",'DF raw data'!B14) -> See test program | C14: =IF('DF raw data'!C14="","",'DF raw data'!C14) ->  | D14: =IF('DF raw data'!D14="","",'DF raw data'!D14) -> 
A15: =IF('DF raw data'!A15="","",'DF raw data'!A15) -> Direction of the pos. y-axis | B15: =IF('DF raw data'!B15="","",'DF raw data'!B15) -> Vertical up | C15: =IF('DF raw data'!C15="","",'DF raw data'!C15) ->  | D15: =IF('DF raw data'!D15="","",'DF raw data'!D15) -> 
A16: =IF('DF raw data'!A16="","",'DF raw data'!A16) -> Direction of the pos. z-axis | B16: =IF('DF raw data'!B16="","",'DF raw data'!B16) -> See test program | C16: =IF('DF raw data'!C16="","",'DF raw data'!C16) ->  | D16: =IF('DF raw data'!D16="","",'DF raw data'!D16) -> 
A17: =IF('DF raw data'!A17="","",'DF raw data'!A17) -> Mapper type | B17: =IF('DF raw data'!B17="","",'DF raw data'!B17) -> Precision Hall Mapper | C17: =IF('DF raw data'!C17="","",'DF raw data'!C17) ->  | D17: =IF('DF raw data'!D17="","",'DF raw data'!D17) -> 
A18: =IF('DF raw data'!A18="","",'DF raw data'!A18) -> Mapper Danfysik Reg. Number | B18: =IF('DF raw data'!B18="","",'DF raw data'!B18) -> 2033-D (mapper 1) | C18: =IF('DF raw data'!C18="","",'DF raw data'!C18) ->  | D18: =IF('DF raw data'!D18="","",'DF raw data'!D18) -> 
A19: =IF('DF raw data'!A19="","",'DF raw data'!A19) -> Measurement consept | B19: =IF('DF raw data'!B19="","",'DF raw data'!B19) -> Square line grid | C19: =IF('DF raw data'!C19="","",'DF raw data'!C19) ->  | D19: =IF('DF raw data'!D19="","",'DF raw data'!D19) -> 
A20: =IF('DF raw data'!A20="","",'DF raw data'!A20) -> Mode | B20: =IF('DF raw data'!B20="","",'DF raw data'!B20) -> On-the-fly measurement | C20: =IF('DF raw data'!C20="","",'DF raw data'!C20) ->  | D20: =IF('DF raw data'!D20="","",'DF raw data'!D20) -> 
A21: =IF('DF raw data'!A21="","",'DF raw data'!A21) ->  | B21: =IF('DF raw data'!B21="","",'DF raw data'!B21) ->  | C21: =IF('DF raw data'!C21="","",'DF raw data'!C21) ->  | D21: =IF('DF raw data'!D21="","",'DF raw data'!D21) -> 
A22: =IF('DF raw data'!A22="","",'DF raw data'!A22) -> Probe Name | B22: =IF('DF raw data'!B22="","",'DF raw data'!B22) -> ID12_By | C22: =IF('DF raw data'!C22="","",'DF raw data'!C22) ->  | D22: =IF('DF raw data'!D22="","",'DF raw data'!D22) -> 
A23: =IF('DF raw data'!A23="","",'DF raw data'!A23) -> Probe Type | B23: =IF('DF raw data'!B23="","",'DF raw data'!B23) -> DF_ID_3D_Bxyz | C23: =IF('DF raw data'!C23="","",'DF raw data'!C23) ->  | D23: =IF('DF raw data'!D23="","",'DF raw data'!D23) -> 
A24: =IF('DF raw data'!A24="","",'DF raw data'!A24) -> Probe Danfysik Reg. Number | B24: =IF('DF raw data'!B24="","",'DF raw data'!B24) -> 2277 | C24: =IF('DF raw data'!C24="","",'DF raw data'!C24) ->  | D24: =IF('DF raw data'!D24="","",'DF raw data'!D24) -> 
A25: =IF('DF raw data'!A25="","",'DF raw data'!A25) -> Probe Axis | B25: =IF('DF raw data'!B25="","",'DF raw data'!B25) -> By | C25: =IF('DF raw data'!C25="","",'DF raw data'!C25) ->  | D25: =IF('DF raw data'!D25="","",'DF raw data'!D25) -> 
A26: =IF('DF raw data'!A26="","",'DF raw data'!A26) -> Probe Current Supply | B26: =IF('DF raw data'!B26="","",'DF raw data'!B26) -> 1825-D | C26: =IF('DF raw data'!C26="","",'DF raw data'!C26) ->  | D26: =IF('DF raw data'!D26="","",'DF raw data'!D26) -> 
A27: =IF('DF raw data'!A27="","",'DF raw data'!A27) -> Probe Gain Correction | B27: =IF('DF raw data'!B27="","",'DF raw data'!B27) -> 0.99612 | C27: =IF('DF raw data'!C27="","",'DF raw data'!C27) ->  | D27: =IF('DF raw data'!D27="","",'DF raw data'!D27) -> 
A28: =IF('DF raw data'!A28="","",'DF raw data'!A28) -> Probe Offset Correction | B28: =IF('DF raw data'!B28="","",'DF raw data'!B28) -> 0.0027559 | C28: =IF('DF raw data'!C28="","",'DF raw data'!C28) ->  | D28: =IF('DF raw data'!D28="","",'DF raw data'!D28) -> 
A29: =IF('DF raw data'!A29="","",'DF raw data'!A29) -> DVM Number | B29: =IF('DF raw data'!B29="","",'DF raw data'!B29) -> 2 | C29: =IF('DF raw data'!C29="","",'DF raw data'!C29) ->  | D29: =IF('DF raw data'!D29="","",'DF raw data'!D29) -> 
A30: =IF('DF raw data'!A30="","",'DF raw data'!A30) -> DVM Type | B30: =IF('DF raw data'!B30="","",'DF raw data'!B30) -> K2701 | C30: =IF('DF raw data'!C30="","",'DF raw data'!C30) ->  | D30: =IF('DF raw data'!D30="","",'DF raw data'!D30) -> 
A31: =IF('DF raw data'!A31="","",'DF raw data'!A31) -> DVM Danfysik Reg. Number | B31: =IF('DF raw data'!B31="","",'DF raw data'!B31) -> 1743-D | C31: =IF('DF raw data'!C31="","",'DF raw data'!C31) ->  | D31: =IF('DF raw data'!D31="","",'DF raw data'!D31) -> 
A32: =IF('DF raw data'!A32="","",'DF raw data'!A32) -> Probe Name | B32: =IF('DF raw data'!B32="","",'DF raw data'!B32) -> ID12_Bx | C32: =IF('DF raw data'!C32="","",'DF raw data'!C32) ->  | D32: =IF('DF raw data'!D32="","",'DF raw data'!D32) -> 
A33: =IF('DF raw data'!A33="","",'DF raw data'!A33) -> Probe Type | B33: =IF('DF raw data'!B33="","",'DF raw data'!B33) -> DF_ID_3D_Bxyz | C33: =IF('DF raw data'!C33="","",'DF raw data'!C33) ->  | D33: =IF('DF raw data'!D33="","",'DF raw data'!D33) -> 
A34: =IF('DF raw data'!A34="","",'DF raw data'!A34) -> Probe Danfysik Reg. Number | B34: =IF('DF raw data'!B34="","",'DF raw data'!B34) -> 2277 | C34: =IF('DF raw data'!C34="","",'DF raw data'!C34) ->  | D34: =IF('DF raw data'!D34="","",'DF raw data'!D34) -> 
A35: =IF('DF raw data'!A35="","",'DF raw data'!A35) -> Probe Axis | B35: =IF('DF raw data'!B35="","",'DF raw data'!B35) -> Bx | C35: =IF('DF raw data'!C35="","",'DF raw data'!C35) ->  | D35: =IF('DF raw data'!D35="","",'DF raw data'!D35) -> 
A36: =IF('DF raw data'!A36="","",'DF raw data'!A36) -> Probe Current Supply | B36: =IF('DF raw data'!B36="","",'DF raw data'!B36) -> 1825-D | C36: =IF('DF raw data'!C36="","",'DF raw data'!C36) ->  | D36: =IF('DF raw data'!D36="","",'DF raw data'!D36) -> 
A37: =IF('DF raw data'!A37="","",'DF raw data'!A37) -> Probe Gain Correction | B37: =IF('DF raw data'!B37="","",'DF raw data'!B37) -> 1 | C37: =IF('DF raw data'!C37="","",'DF raw data'!C37) ->  | D37: =IF('DF raw data'!D37="","",'DF raw data'!D37) -> 
A38: =IF('DF raw data'!A38="","",'DF raw data'!A38) -> Probe Offset Correction | B38: =IF('DF raw data'!B38="","",'DF raw data'!B38) -> -0.17567 | C38: =IF('DF raw data'!C38="","",'DF raw data'!C38) ->  | D38: =IF('DF raw data'!D38="","",'DF raw data'!D38) -> 
A39: =IF('DF raw data'!A39="","",'DF raw data'!A39) -> DVM Number | B39: =IF('DF raw data'!B39="","",'DF raw data'!B39) -> 3 | C39: =IF('DF raw data'!C39="","",'DF raw data'!C39) ->  | D39: =IF('DF raw data'!D39="","",'DF raw data'!D39) -> 
A40: =IF('DF raw data'!A40="","",'DF raw data'!A40) -> DVM Type | B40: =IF('DF raw data'!B40="","",'DF raw data'!B40) -> K2701 | C40: =IF('DF raw data'!C40="","",'DF raw data'!C40) ->  | D40: =IF('DF raw data'!D40="","",'DF raw data'!D40) -> 
A41: =IF('DF raw data'!A41="","",'DF raw data'!A41) -> DVM Danfysik Reg. Number | B41: =IF('DF raw data'!B41="","",'DF raw data'!B41) -> 1744-D | C41: =IF('DF raw data'!C41="","",'DF raw data'!C41) ->  | D41: =IF('DF raw data'!D41="","",'DF raw data'!D41) -> 
A42: =IF('DF raw data'!A42="","",'DF raw data'!A42) -> Probe Name | B42: =IF('DF raw data'!B42="","",'DF raw data'!B42) -> ID12_Bz | C42: =IF('DF raw data'!C42="","",'DF raw data'!C42) ->  | D42: =IF('DF raw data'!D42="","",'DF raw data'!D42) -> 
A43: =IF('DF raw data'!A43="","",'DF raw data'!A43) -> Probe Type | B43: =IF('DF raw data'!B43="","",'DF raw data'!B43) -> DF_ID_3D_Bxyz | C43: =IF('DF raw data'!C43="","",'DF raw data'!C43) ->  | D43: =IF('DF raw data'!D43="","",'DF raw data'!D43) -> 
A44: =IF('DF raw data'!A44="","",'DF raw data'!A44) -> Probe Danfysik Reg. Number | B44: =IF('DF raw data'!B44="","",'DF raw data'!B44) -> 2277 | C44: =IF('DF raw data'!C44="","",'DF raw data'!C44) ->  | D44: =IF('DF raw data'!D44="","",'DF raw data'!D44) -> 
A45: =IF('DF raw data'!A45="","",'DF raw data'!A45) -> Probe Axis | B45: =IF('DF raw data'!B45="","",'DF raw data'!B45) -> Bz | C45: =IF('DF raw data'!C45="","",'DF raw data'!C45) ->  | D45: =IF('DF raw data'!D45="","",'DF raw data'!D45) -> 
A46: =IF('DF raw data'!A46="","",'DF raw data'!A46) -> Probe Current Supply | B46: =IF('DF raw data'!B46="","",'DF raw data'!B46) -> 1825-D | C46: =IF('DF raw data'!C46="","",'DF raw data'!C46) ->  | D46: =IF('DF raw data'!D46="","",'DF raw data'!D46) -> 
A47: =IF('DF raw data'!A47="","",'DF raw data'!A47) -> Probe Gain Correction | B47: =IF('DF raw data'!B47="","",'DF raw data'!B47) -> 1 | C47: =IF('DF raw data'!C47="","",'DF raw data'!C47) ->  | D47: =IF('DF raw data'!D47="","",'DF raw data'!D47) -> 
A48: =IF('DF raw data'!A53="","",'DF raw data'!A53) -> PS-Gap: | B48: =IF('DF raw data'!B53="","",'DF raw data'!B53) -> 10 | C48: =IF('DF raw data'!C53="","",'DF raw data'!C53) ->  | D48: =IF('DF raw data'!D53="","",'DF raw data'!D53) -> 
A49: =IF('DF raw data'!A54="","",'DF raw data'!A54) -> PS-Temperature: | B49: =IF('DF raw data'!B54="","",'DF raw data'!B54) -> 25.5 | C49: =IF('DF raw data'!C54="","",'DF raw data'!C54) ->  | D49: =IF('DF raw data'!D54="","",'DF raw data'!D54) -> 
A50: =IF('DF raw data'!A55="","",'DF raw data'!A55) -> PS-Encoder: | B50: =IF('DF raw data'!B55="","",'DF raw data'!B55) -> 19.434 | C50: =IF('DF raw data'!C55="","",'DF raw data'!C55) ->  | D50: =IF('DF raw data'!D55="","",'DF raw data'!D55) -> 
A51: =IF('DF raw data'!A56="","",'DF raw data'!A56) ->  | B51: =IF('DF raw data'!B56="","",'DF raw data'!B56) ->  | C51: =IF('DF raw data'!C56="","",'DF raw data'!C56) ->  | D51: =IF('DF raw data'!D56="","",'DF raw data'!D56) -> 
A52: =IF('DF raw data'!A57="","",'DF raw data'!A57) -> Monitor-Index | B52: =IF('DF raw data'!B57="","",'DF raw data'!B57) -> [1,1,4] | C52: =IF('DF raw data'!C57="","",'DF raw data'!C57) ->  | D52: =IF('DF raw data'!D57="","",'DF raw data'!D57) -> 
A53: =IF('DF raw data'!A58="","",'DF raw data'!A58) ->  | B53: =IF('DF raw data'!B58="","",'DF raw data'!B58) ->  | C53: =IF('DF raw data'!C58="","",'DF raw data'!C58) ->  | D53: =IF('DF raw data'!D58="","",'DF raw data'!D58) -> 
A54: =IF('DF raw data'!A59="","",'DF raw data'!A59) -> Time [s] | B54: =IF('DF raw data'!B59="","",'DF raw data'!B59) -> Y [mm] | C54: =IF('DF raw data'!C59="","",'DF raw data'!C59) -> X [mm] | D54: =IF('DF raw data'!D59="","",'DF raw data'!D59) -> Nominal current [A]
A55: =IF('DF raw data'!A60="","",'DF raw data'!A60) ->  | B55: =IF('DF raw data'!B60="","",'DF raw data'!B60) ->  | C55: =IF('DF raw data'!C60="","",'DF raw data'!C60) ->  | D55: =IF('DF raw data'!D60="","",'DF raw data'!D60) -> 
A56: =IF('DF raw data'!A61="","",'DF raw data'!A61) -> 209.6 | B56: =IF('DF raw data'!B61="","",'DF raw data'!B61) -> 31.16 | C56: =IF('DF raw data'!C61="","",'DF raw data'!C61) -> 301.8 | D56: =IF('DF raw data'!D61="","",'DF raw data'!D61) -> 0
A57: =IF('DF raw data'!A62="","",'DF raw data'!A62) ->  | B57: =IF('DF raw data'!B62="","",'DF raw data'!B62) ->  | C57: =IF('DF raw data'!C62="","",'DF raw data'!C62) ->  | D57: =IF('DF raw data'!D62="","",'DF raw data'!D62) -> 
A58: =IF('DF raw data'!A63="","",'DF raw data'!A63) -> Measurement-Index | B58: =IF('DF raw data'!B63="","",'DF raw data'!B63) -> [1,1,1201,2] | C58: =IF('DF raw data'!C63="","",'DF raw data'!C63) ->  | D58: =IF('DF raw data'!D63="","",'DF raw data'!D63) -> 
A59: =IF('DF raw data'!A64="","",'DF raw data'!A64) ->  | B59: =IF('DF raw data'!B64="","",'DF raw data'!B64) ->  | C59: =IF('DF raw data'!C64="","",'DF raw data'!C64) ->  | D59: =IF('DF raw data'!D64="","",'DF raw data'!D64) -> 
A60: =IF('DF raw data'!A65="","",'DF raw data'!A65) -> Z [mm] | B60: =IF('DF raw data'!B65="","",'DF raw data'!B65) -> By [T] | C60: =IF('DF raw data'!C65="","",'DF raw data'!C65) -> Bx [T] | D60: =IF('DF raw data'!D65="","",'DF raw data'!D65) -> Bz [T] | F60: By_corr | G60: Bx_corr | H60: Bz_corr | J60: Iy | K60: Jy | L60: Ix | M60: Jx | N60: PI
A62: =IF('DF raw data'!A67="","",'DF raw data'!A67) -> -300 | B62: =IF('DF raw data'!B67="","",'DF raw data'!B67) -> -2.59697e-05 | C62: =IF('DF raw data'!C67="","",'DF raw data'!C67) -> 6.5739e-06 | D62: =IF('DF raw data'!D67="","",'DF raw data'!D67) -> -3.67335e-05 | F62: =(1-$G$1*($B$49))*B62 -> -2.645312597e-05 | G62: =(1-$G$1*($B$49-$G$2))*C62 -> 6.600294209e-06 | H62: =(1-$G$1*($B$49-$G$2))*D62 -> -3.6880985e-05 | J62: =F62*$G$3 -> -1.322656298e-05 | K62: =J62*$G$3 -> -6.613281491e-06 | L62: =G62*$G$3 -> 3.300147104e-06 | M62: =L62*$G$3 -> 1.650073552e-06 | N62: =(J62^2+L62^2)*$G$3 -> 9.291646962e-11
A63: =IF('DF raw data'!A68="","",'DF raw data'!A68) -> -299.5 | B63: =IF('DF raw data'!B68="","",'DF raw data'!B68) -> -1.64152e-05 | C63: =IF('DF raw data'!C68="","",'DF raw data'!C68) -> 8.05573e-06 | D63: =IF('DF raw data'!D68="","",'DF raw data'!D68) -> -3.72291e-05 | F63: =(1-$G$1*($B$49-$G$2))*B63 -> -1.648110703e-05 | G63: =(1-$G$1*($B$49-$G$2))*C63 -> 8.088073756e-06 | H63: -3.737857484e-05 | J63: =F63*$G$3+J62 -> -2.14671165e-05 | K63: =J63*$G$3+K62 -> -1.734683974e-05 | L63: =G63*$G$3+L62 -> 7.344183982e-06 | M63: =L63*$G$3+M62 -> 5.322165543e-06 | N63: =(J63^2+L63^2)*$G$3+N62 -> 3.503035341e-10
A64: =IF('DF raw data'!A69="","",'DF raw data'!A69) -> -299 | B64: =IF('DF raw data'!B69="","",'DF raw data'!B69) -> -1.59016e-05 | C64: =IF('DF raw data'!C69="","",'DF raw data'!C69) -> 1.01158e-05 | D64: =IF('DF raw data'!D69="","",'DF raw data'!D69) -> -3.82074e-05 | F64: =(1-$G$1*($B$49-$G$2))*B64 -> -1.596544492e-05 | G64: 1.015641494e-05 | H64: -3.836080271e-05 | J64: =F64*$G$3+J63 -> -2.944983896e-05 | K64: =J64*$G$3+K63 -> -3.207175922e-05 | L64: =G64*$G$3+L63 -> 1.242239145e-05 | M64: =L64*$G$3+M63 -> 1.153336127e-05 | N64: =(J64^2+L64^2)*$G$3+N63 -> 8.611079462e-10
A65: =IF('DF raw data'!A70="","",'DF raw data'!A70) -> -298.5 | B65: =IF('DF raw data'!B70="","",'DF raw data'!B70) -> -1.30798e-05 | C65: =IF('DF raw data'!C70="","",'DF raw data'!C70) -> 1.17356e-05 | D65: =IF('DF raw data'!D70="","",'DF raw data'!D70) -> -3.88922e-05 | F65: -1.31323154e-05 | G65: 1.178271843e-05 | H65: -3.904835218e-05 | J65: -3.601599666e-05 | K65: -5.007975755e-05 | L65: 1.831375067e-05 | M65: 2.06902366e-05 | N65: 1.677380686e-09
A66: =IF('DF raw data'!A71="","",'DF raw data'!A71) -> -298 | B66: =IF('DF raw data'!B71="","",'DF raw data'!B71) -> -2.05821e-05 | C66: =IF('DF raw data'!C71="","",'DF raw data'!C71) -> 1.55934e-05 | D66: =IF('DF raw data'!D71="","",'DF raw data'!D71) -> -3.89088e-05 | F66: -2.066473713e-05 | G66: 1.56560075e-05 | H66: -3.906501883e-05 | J66: -4.634836522e-05 | K66: -7.325394016e-05 | L66: 2.614175442e-05 | M66: 3.376111381e-05 | N66: 3.093161827e-09
A67: =IF('DF raw data'!A72="","",'DF raw data'!A72) -> -297.5 | B67: =IF('DF raw data'!B72="","",'DF raw data'!B72) -> -1.526e-05 | C67: =IF('DF raw data'!C72="","",'DF raw data'!C72) -> 1.45674e-05 | D67: =IF('DF raw data'!D72="","",'DF raw data'!D72) -> -3.87035e-05 | F67: -1.53212689e-05 | G67: 1.462588811e-05 | H67: -3.885889455e-05 | J67: -5.400899967e-05 | K67: -0.00010025844 | L67: 3.345469847e-05 | M67: 5.048846305e-05 | N67: 5.111256275e-09
A68: =IF('DF raw data'!A73="","",'DF raw data'!A73) -> -297 | B68: =IF('DF raw data'!B73="","",'DF raw data'!B73) -> -1.59014e-05 | C68: =IF('DF raw data'!C73="","",'DF raw data'!C73) -> 1.428e-05 | D68: =IF('DF raw data'!D73="","",'DF raw data'!D73) -> -3.84054e-05 | F68: -1.596524412e-05 | G68: 1.43373342e-05 | H68: -3.855959768e-05 | J68: -6.199162173e-05 | K68: -0.0001312542509 | L68: 4.062336557e-05 | M68: 7.080014584e-05 | N68: 7.857865773e-09
A69: =IF('DF raw data'!A74="","",'DF raw data'!A74) -> -296.5 | B69: =IF('DF raw data'!B74="","",'DF raw data'!B74) -> -1.821e-05 | C69: =IF('DF raw data'!C74="","",'DF raw data'!C74) -> 1.40483e-05 | D69: =IF('DF raw data'!D74="","",'DF raw data'!D74) -> -3.80118e-05 | F69: -1.828311315e-05 | G69: 1.410470392e-05 | H69: -3.816441738e-05 | J69: -7.113317831e-05 | K69: -0.00016682084 | L69: 4.767571754e-05 | M69: 9.46380046e-05 | N69: 1.152431732e-08
A70: =IF('DF raw data'!A75="","",'DF raw data'!A75) -> -296 | B70: =IF('DF raw data'!B75="","",'DF raw data'!B75) -> -9.42517e-06 | C70: =IF('DF raw data'!C75="","",'DF raw data'!C75) -> 9.51049e-06 | D70: =IF('DF raw data'!D75="","",'DF raw data'!D75) -> -3.8254e-05 | F70: -9.463012058e-06 | G70: 9.548674617e-06 | H70: -3.840758981e-05 | J70: -7.586468434e-05 | K70: -0.0002047531822 | L70: 5.245005484e-05 | M70: 0.000120863032 | N70: 1.577754661e-08
A71: =IF('DF raw data'!A76="","",'DF raw data'!A76) -> -295.5 | B71: =IF('DF raw data'!B76="","",'DF raw data'!B76) -> -4.16663e-06 | C71: =IF('DF raw data'!C76="","",'DF raw data'!C76) -> 7.15853e-06 | D71: =IF('DF raw data'!D76="","",'DF raw data'!D76) -> -3.92084e-05 | F71: -4.183359019e-06 | G71: 7.187271498e-06 | H71: -3.936582173e-05 | J71: -7.795636385e-05 | K71: -0.0002437313641 | L71: 5.604369059e-05 | M71: 0.0001488848773 | N71: 2.038659157e-08
A72: =IF('DF raw data'!A77="","",'DF raw data'!A77) -> -295 | B72: =IF('DF raw data'!B77="","",'DF raw data'!B77) -> -2.01328e-05 | C72: =IF('DF raw data'!C77="","",'DF raw data'!C77) -> 5.48587e-06 | D72: =IF('DF raw data'!D77="","",'DF raw data'!D77) -> -3.97166e-05 | F72: -2.021363319e-05 | G72: 5.507895768e-06 | H72: -3.987606215e-05 | J72: -8.806318044e-05 | K72: -0.0002877629543 | L72: 5.879763848e-05 | M72: 0.0001782836966 | N72: 2.599273459e-08
A73: =IF('DF raw data'!A78="","",'DF raw data'!A78) -> -294.5 | B73: =IF('DF raw data'!B78="","",'DF raw data'!B78) -> -1.26947e-05 | C73: =IF('DF raw data'!C78="","",'DF raw data'!C78) -> 4.57969e-06 | D73: =IF('DF raw data'!D78="","",'DF raw data'!D78) -> -3.95288e-05 | F73: -1.274566922e-05 | G73: 4.598077455e-06 | H73: -3.968750813e-05 | J73: -9.443601505e-05 | K73: -0.0003349809619 | L73: 6.109667721e-05 | M73: 0.0002088320352 | N73: 3.231821705e-08
A74: =IF('DF raw data'!A79="","",'DF raw data'!A79) -> -294 | B74: =IF('DF raw data'!B79="","",'DF raw data'!B79) -> -2.18005e-05 | C74: =IF('DF raw data'!C79="","",'DF raw data'!C79) -> 2.03367e-06 | D74: =IF('DF raw data'!D79="","",'DF raw data'!D79) -> -3.89676e-05 | F74: -2.188802901e-05 | G74: 2.041835185e-06 | H74: -3.912405491e-05 | J74: -0.0001053800296 | K74: -0.0003876709766 | L74: 6.21175948e-05 | M74: 0.0002398908326 | N74: 3.979999015e-08
A75: =IF('DF raw data'!A80="","",'DF raw data'!A80) -> -293.5 | B75: =IF('DF raw data'!B80="","",'DF raw data'!B80) -> -1.89152e-05 | C75: =IF('DF raw data'!C80="","",'DF raw data'!C80) -> 1.71265e-05 | D75: =IF('DF raw data'!D80="","",'DF raw data'!D80) -> -3.85399e-05 | F75: -1.899114453e-05 | G75: 1.71952629e-05 | H75: -3.86946377e-05 | J75: -0.0001148756018 | K75: -0.0004451087775 | L75: 7.071522625e-05 | M75: 0.0002752484457 | N75: 4.889851371e-08
A76: =IF('DF raw data'!A81="","",'DF raw data'!A81) -> -293 | B76: =IF('DF raw data'!B81="","",'DF raw data'!B81) -> -1.39776e-05 | C76: =IF('DF raw data'!C81="","",'DF raw data'!C81) -> 2.04277e-05 | D76: =IF('DF raw data'!D81="","",'DF raw data'!D81) -> -3.86565e-05 | F76: -1.403372006e-05 | G76: 2.050971722e-05 | H76: -3.881170585e-05 | J76: -0.0001218924619 | K76: -0.0005060550085 | L76: 8.097008485e-05 | M76: 0.0003157334881 | N76: 5.960547716e-08
A77: =IF('DF raw data'!A82="","",'DF raw data'!A82) -> -292.5 | B77: =IF('DF raw data'!B82="","",'DF raw data'!B82) -> -1.66064e-05 | C77: =IF('DF raw data'!C82="","",'DF raw data'!C82) -> 9.52408e-06 | D77: =IF('DF raw data'!D82="","",'DF raw data'!D82) -> -3.91109e-05 | F77: -1.66730747e-05 | G77: 9.562319181e-06 | H77: -3.926793026e-05 | J77: -0.0001302289992 | K77: -0.0005711695081 | L77: 8.575124444e-05 | M77: 0.0003586091103 | N77: 7.176191124e-08
A78: =IF('DF raw data'!A83="","",'DF raw data'!A83) -> -292 | B78: =IF('DF raw data'!B83="","",'DF raw data'!B83) -> -1.9107e-05 | C78: =IF('DF raw data'!C83="","",'DF raw data'!C83) -> 5.51423e-07 | D78: =IF('DF raw data'!D83="","",'DF raw data'!D83) -> -3.91998e-05 | F78: -1.918371461e-05 | G78: 5.536369633e-07 | H78: -3.93571872e-05 | J78: -0.0001398208565 | K78: -0.0006410799363 | L78: 8.602806293e-05 | M78: 0.0004016231418 | N78: 8.5237261e-08
A79: =IF('DF raw data'!A84="","",'DF raw data'!A84) -> -291.5 | B79: =IF('DF raw data'!B84="","",'DF raw data'!B84) -> -2.05846e-05 | C79: =IF('DF raw data'!C84="","",'DF raw data'!C84) -> -1.67543e-06 | D79: =IF('DF raw data'!D84="","",'DF raw data'!D84) -> -3.49998e-05 | F79: -2.066724717e-05 | G79: -1.682156851e-06 | H79: -3.51403242e-05 | J79: -0.0001501544801 | K79: -0.0007161571764 | L79: 8.51869845e-05 | M79: 0.000444216634 | N79: 1.001388561e-07
A80: =IF('DF raw data'!A85="","",'DF raw data'!A85) -> -291 | B80: =IF('DF raw data'!B85="","",'DF raw data'!B85) -> -2.10375e-05 | C80: =IF('DF raw data'!C85="","",'DF raw data'!C85) -> -2.72061e-06 | D80: =IF('DF raw data'!D85="","",'DF raw data'!D85) -> -2.89602e-05 | F80: -2.112196556e-05 | G80: -2.731533249e-06 | H80: -2.90764752e-05 | J80: -0.0001607154629 | K80: -0.0007965149078 | L80: 8.382121788e-05 | M80: 0.000486127243 | N80: 1.165665844e-07
A81: =IF('DF raw data'!A86="","",'DF raw data'!A86) -> -290.5 | B81: =IF('DF raw data'!B86="","",'DF raw data'!B86) -> -1.19883e-05 | C81: =IF('DF raw data'!C86="","",'DF raw data'!C86) -> 1.96652e-06 | D81: =IF('DF raw data'!D86="","",'DF raw data'!D86) -> -4.09511e-05 | F81: -1.203643302e-05 | G81: 1.974415578e-06 | H81: -4.111551867e-05 | J81: -0.0001667336794 | K81: -0.0008798817475 | L81: 8.480842567e-05 | M81: 0.0005285314558 | N81: 1.340628788e-07
A82: =IF('DF raw data'!A87="","",'DF raw data'!A87) -> -290 | B82: =IF('DF raw data'!B87="","",'DF raw data'!B87) -> -7.17954e-06 | C82: =IF('DF raw data'!C87="","",'DF raw data'!C87) -> 8.61383e-06 | D82: =IF('DF raw data'!D87="","",'DF raw data'!D87) -> -4.06109e-05 | F82: -7.208365853e-06 | G82: 8.648414527e-06 | H82: -4.077395276e-05 | J82: -0.0001703378623 | K82: -0.0009650506786 | L82: 8.913263293e-05 | M82: 0.0005730977723 | N82: 1.525426856e-07
A83: =IF('DF raw data'!A88="","",'DF raw data'!A88) -> -289.5 | B83: =IF('DF raw data'!B88="","",'DF raw data'!B88) -> -9.88112e-06 | C83: =IF('DF raw data'!C88="","",'DF raw data'!C88) -> 2.66368e-06 | D83: =IF('DF raw data'!D88="","",'DF raw data'!D88) -> -2.75152e-05 | F83: -9.920792697e-06 | G83: 2.674374675e-06 | H83: -2.762567353e-05 | J83: -0.0001752982587 | K83: -0.001052699808 | L83: 9.046982027e-05 | M83: 0.0006183326824 | N83: 1.719998196e-07
A84: =IF('DF raw data'!A89="","",'DF raw data'!A89) -> -289 | B84: =IF('DF raw data'!B89="","",'DF raw data'!B89) -> -3.08444e-05 | C84: =IF('DF raw data'!C89="","",'DF raw data'!C89) -> -4.07775e-06 | D84: =IF('DF raw data'!D89="","",'DF raw data'!D89) -> -3.47831e-05 | F84: -3.096824027e-05 | G84: -4.094122166e-06 | H84: -3.492275415e-05 | J84: -0.0001907823788 | K84: -0.001148090997 | L84: 8.842275918e-05 | M84: 0.000662544062 | N84: 1.941080698e-07
A85: =IF('DF raw data'!A90="","",'DF raw data'!A90) -> -288.5 | B85: =IF('DF raw data'!B90="","",'DF raw data'!B90) -> -2.2246e-05 | C85: =IF('DF raw data'!C90="","",'DF raw data'!C90) -> -6.83989e-07 | D85: =IF('DF raw data'!D90="","",'DF raw data'!D90) -> -4.3916e-05 | F85: -2.233531769e-05 | G85: -6.867352158e-07 | H85: -4.409232274e-05 | J85: -0.0002019500376 | K85: -0.001249066016 | L85: 8.807939158e-05 | M85: 0.0007065837578 | N85: 2.183789682e-07
A86: =IF('DF raw data'!A91="","",'DF raw data'!A91) -> -288 | B86: =IF('DF raw data'!B91="","",'DF raw data'!B91) -> -8.3319e-06 | C86: =IF('DF raw data'!C91="","",'DF raw data'!C91) -> -1.50833e-06 | D86: =IF('DF raw data'!D91="","",'DF raw data'!D91) -> -4.34197e-05 | F86: -8.365352579e-06 | G86: -1.514385945e-06 | H86: -4.35940301e-05 | J86: -0.0002061327139 | K86: -0.001352132373 | L86: 8.73221986e-05 | M86: 0.0007502448571 | N86: 2.434368993e-07
A87: =IF('DF raw data'!A92="","",'DF raw data'!A92) -> -287.5 | B87: =IF('DF raw data'!B92="","",'DF raw data'!B92) -> -2.21246e-05 | C87: =IF('DF raw data'!C92="","",'DF raw data'!C92) -> 3.28728e-06 | D87: =IF('DF raw data'!D92="","",'DF raw data'!D92) -> -3.33226e-05 | F87: -2.221343027e-05 | G87: 3.300478429e-06 | H87: -3.345639024e-05 | J87: -0.0002172394291 | K87: -0.001460752088 | L87: 8.897243782e-05 | M87: 0.000794731076 | N87: 2.709914314e-07
A88: =IF('DF raw data'!A93="","",'DF raw data'!A93) -> -287 | B88: =IF('DF raw data'!B93="","",'DF raw data'!B93) -> -1.53192e-05 | C88: =IF('DF raw data'!C93="","",'DF raw data'!C93) -> 1.924e-06 | D88: =IF('DF raw data'!D93="","",'DF raw data'!D93) -> -4.65389e-05 | F88: -1.538070659e-05 | G88: 1.93172486e-06 | H88: -4.672575368e-05 | J88: -0.0002249297824 | K88: -0.001573216979 | L88: 8.993830025e-05 | M88: 0.0008397002261 | N88: 3.003325838e-07
A89: =IF('DF raw data'!A94="","",'DF raw data'!A94) -> -286.5 | B89: =IF('DF raw data'!B94="","",'DF raw data'!B94) -> -1.30187e-05 | C89: =IF('DF raw data'!C94="","",'DF raw data'!C94) -> -3.09416e-07 | D89: =IF('DF raw data'!D94="","",'DF raw data'!D94) -> -3.4471e-05 | F89: -1.307097008e-05 | G89: -3.106583052e-07 | H89: -3.460940107e-05 | J89: -0.0002314652674 | K89: -0.001688949613 | L89: 8.97829711e-05 | M89: 0.0008845917117 | N89: 3.311511598e-07
A90: =IF('DF raw data'!A95="","",'DF raw data'!A95) -> -286 | B90: =IF('DF raw data'!B95="","",'DF raw data'!B95) -> -4.29456e-06 | C90: =IF('DF raw data'!C95="","",'DF raw data'!C95) -> -1.26118e-06 | D90: =IF('DF raw data'!D95="","",'DF raw data'!D95) -> -3.96959e-05 | F90: -4.311802658e-06 | G90: -1.266243638e-06 | H90: -3.985527904e-05 | J90: -0.0002336211687 | K90: -0.001805760197 | L90: 8.914984928e-05 | M90: 0.0009291666363 | N90: 3.624144328e-07
A91: =IF('DF raw data'!A96="","",'DF raw data'!A96) -> -285.5 | B91: =IF('DF raw data'!B96="","",'DF raw data'!B96) -> -7.75062e-06 | C91: =IF('DF raw data'!C96="","",'DF raw data'!C96) -> 6.73231e-06 | D91: =IF('DF raw data'!D96="","",'DF raw data'!D96) -> -4.96824e-05 | F91: -7.781738739e-06 | G91: 6.759340225e-06 | H91: -4.988187484e-05 | J91: -0.0002375120381 | K91: -0.001924516216 | L91: 9.252951939e-05 | M91: 0.000975431396 | N91: 3.949012729e-07
A92: =IF('DF raw data'!A97="","",'DF raw data'!A97) -> -285 | B92: =IF('DF raw data'!B97="","",'DF raw data'!B97) -> -1.90376e-05 | C92: =IF('DF raw data'!C97="","",'DF raw data'!C97) -> 2.9339e-06 | D92: =IF('DF raw data'!D97="","",'DF raw data'!D97) -> -4.752e-05 | F92: -1.911403596e-05 | G92: 2.945679609e-06 | H92: -4.77107928e-05 | J92: -0.0002470690561 | K92: -0.002048050744 | L92: 9.400235919e-05 | M92: 0.001022432576 | N92: 4.298410539e-07
A93: =IF('DF raw data'!A98="","",'DF raw data'!A98) -> -284.5 | B93: =IF('DF raw data'!B98="","",'DF raw data'!B98) -> -1.24376e-05 | C93: =IF('DF raw data'!C98="","",'DF raw data'!C98) -> 1.74562e-06 | D93: =IF('DF raw data'!D98="","",'DF raw data'!D98) -> -4.0351e-05 | F93: -1.248753696e-05 | G93: 1.752628664e-06 | H93: -4.051300927e-05 | J93: -0.0002533128246 | K93: -0.002174707156 | L93: 9.487867352e-05 | M93: 0.001069871912 | N93: 4.664257288e-07
A94: =IF('DF raw data'!A99="","",'DF raw data'!A99) -> -284 | B94: =IF('DF raw data'!B99="","",'DF raw data'!B99) -> -1.51351e-05 | C94: =IF('DF raw data'!C99="","",'DF raw data'!C99) -> 3.14906e-06 | D94: =IF('DF raw data'!D99="","",'DF raw data'!D99) -> -3.36504e-05 | F94: -1.519586743e-05 | G94: 3.161703476e-06 | H94: -3.378550636e-05 | J94: -0.0002609107583 | K94: -0.002305162535 | L94: 9.645952526e-05 | M94: 0.001118101675 | N94: 5.051151607e-07
A95: =IF('DF raw data'!A100="","",'DF raw data'!A100) -> -283.5 | B95: =IF('DF raw data'!B100="","",'DF raw data'!B100) -> -1.41021e-05 | C95: =IF('DF raw data'!C100="","",'DF raw data'!C100) -> 1.11594e-05 | D95: =IF('DF raw data'!D100="","",'DF raw data'!D100) -> -4.45321e-05 | F95: -1.415871993e-05 | G95: 1.120420499e-05 | H95: -4.471089638e-05 | J95: -0.0002679901182 | K95: -0.002439157595 | L95: 0.0001020616278 | M95: 0.001169132489 | N95: 5.462328004e-07
A96: =IF('DF raw data'!A101="","",'DF raw data'!A101) -> -283 | B96: =IF('DF raw data'!B101="","",'DF raw data'!B101) -> -1.48123e-05 | C96: =IF('DF raw data'!C101="","",'DF raw data'!C101) -> 8.07858e-06 | D96: =IF('DF raw data'!D101="","",'DF raw data'!D101) -> -3.71768e-05 | F96: -1.487177138e-05 | G96: 8.111015499e-06 | H96: -3.732606485e-05 | J96: -0.0002754260039 | K96: -0.002576870596 | L96: 0.0001061171355 | M96: 0.001222191057 | N96: 5.897929654e-07
A97: =IF('DF raw data'!A102="","",'DF raw data'!A102) -> -282.5 | B97: =IF('DF raw data'!B102="","",'DF raw data'!B102) -> -2.16077e-05 | C97: =IF('DF raw data'!C102="","",'DF raw data'!C102) -> 9.68632e-06 | D97: =IF('DF raw data'!D102="","",'DF raw data'!D102) -> -3.94126e-05 | F97: -2.169445492e-05 | G97: 9.725210575e-06 | H97: -3.957084159e-05 | J97: -0.0002862732314 | K97: -0.002720007212 | L97: 0.0001109797408 | M97: 0.001277680927 | N97: 6.369273984e-07
A98: =IF('DF raw data'!A103="","",'DF raw data'!A103) -> -282 | B98: =IF('DF raw data'!B103="","",'DF raw data'!B103) -> -1.42331e-05 | C98: =IF('DF raw data'!C103="","",'DF raw data'!C103) -> -3.74318e-07 | D98: =IF('DF raw data'!D103="","",'DF raw data'!D103) -> -4.02012e-05 | F98: -1.42902459e-05 | G98: -3.758208868e-07 | H98: -4.036260782e-05 | J98: -0.0002934183543 | K98: -0.002866716389 | L98: 0.0001107918304 | M98: 0.001333076842 | N98: 6.861119785e-07
A99: =IF('DF raw data'!A104="","",'DF raw data'!A104) -> -281.5 | B99: =IF('DF raw data'!B104="","",'DF raw data'!B104) -> -1.03228e-05 | C99: =IF('DF raw data'!C104="","",'DF raw data'!C104) -> -4.62189e-06 | D99: =IF('DF raw data'!D104="","",'DF raw data'!D104) -> -3.84432e-05 | F99: -1.036424604e-05 | G99: -4.640446888e-06 | H99: -3.859754945e-05 | J99: -0.0002986004774 | K99: -0.003016016628 | L99: 0.0001084716069 | M99: 0.001387312646 | N99: 7.365761458e-07
A100: =IF('DF raw data'!A105="","",'DF raw data'!A105) -> -281 | B100: =IF('DF raw data'!B105="","",'DF raw data'!B105) -> -2.50077e-05 | C100: =IF('DF raw data'!C105="","",'DF raw data'!C105) -> 4.16011e-06 | D100: =IF('DF raw data'!D105="","",'DF raw data'!D105) -> -3.72101e-05 | F100: -2.510810592e-05 | G100: 4.176812842e-06 | H100: -3.735949855e-05 | J100: -0.0003111545303 | K100: -0.003171593893 | L100: 0.0001105600133 | M100: 0.001442592652 | N100: 7.91096475e-07
A101: =IF('DF raw data'!A106="","",'DF raw data'!A106) -> -280.5 | B101: =IF('DF raw data'!B106="","",'DF raw data'!B106) -> -6.15544e-06 | C101: =IF('DF raw data'!C106="","",'DF raw data'!C106) -> 1.40358e-05 | D101: =IF('DF raw data'!D106="","",'DF raw data'!D106) -> -3.77809e-05 | F101: -6.180154092e-06 | G101: 1.409215374e-05 | H101: -3.793259031e-05 | J101: -0.0003142446074 | K101: -0.003328716197 | L101: 0.0001176060902 | M101: 0.001501395697 | N101: 8.473869078e-07
A102: =IF('DF raw data'!A107="","",'DF raw data'!A107) -> -280 | B102: =IF('DF raw data'!B107="","",'DF raw data'!B107) -> -4.36388e-06 | C102: =IF('DF raw data'!C107="","",'DF raw data'!C107) -> 1.14635e-05 | D102: =IF('DF raw data'!D107="","",'DF raw data'!D107) -> -3.14736e-05 | F102: -4.381400978e-06 | G102: 1.150952595e-05 | H102: -3.15999665e-05 | J102: -0.0003164353078 | K102: -0.003486933851 | L102: 0.0001233608532 | M102: 0.001563076124 | N102: 9.050615099e-07
A103: =IF('DF raw data'!A108="","",'DF raw data'!A108) -> -279.5 | B103: =IF('DF raw data'!B108="","",'DF raw data'!B108) -> -1.05164e-05 | C103: =IF('DF raw data'!C108="","",'DF raw data'!C108) -> 6.56895e-06 | D103: =IF('DF raw data'!D108="","",'DF raw data'!D108) -> -3.67164e-05 | F103: -1.055862335e-05 | G103: 6.595324334e-06 | H103: -3.686381635e-05 | J103: -0.0003217146195 | K103: -0.003647791161 | L103: 0.0001266585153 | M103: 0.001626405382 | N103: 9.648328478e-07
A104: =IF('DF raw data'!A109="","",'DF raw data'!A109) -> -279 | B104: =IF('DF raw data'!B109="","",'DF raw data'!B109) -> -1.25714e-05 | C104: =IF('DF raw data'!C109="","",'DF raw data'!C109) -> 3.4494e-06 | D104: =IF('DF raw data'!D109="","",'DF raw data'!D109) -> -3.19065e-05 | F104: -1.262187417e-05 | G104: 3.463249341e-06 | H104: -3.20346046e-05 | J104: -0.0003280255566 | K104: -0.003811803939 | L104: 0.00012839014 | M104: 0.001690600452 | N104: 1.026875245e-06
A105: =IF('DF raw data'!A110="","",'DF raw data'!A110) -> -278.5 | B105: =IF('DF raw data'!B110="","",'DF raw data'!B110) -> -1.52641e-05 | C105: =IF('DF raw data'!C110="","",'DF raw data'!C110) -> 5.77599e-06 | D105: =IF('DF raw data'!D110="","",'DF raw data'!D110) -> -3.24036e-05 | F105: -1.532538536e-05 | G105: 5.7991806e-06 | H105: -3.253370045e-05 | J105: -0.0003356882493 | K105: -0.003979648063 | L105: 0.0001312897303 | M105: 0.001756245317 | N105: 1.091837042e-06
A106: =IF('DF raw data'!A111="","",'DF raw data'!A111) -> -278 | B106: =IF('DF raw data'!B111="","",'DF raw data'!B111) -> -1.42474e-05 | C106: =IF('DF raw data'!C111="","",'DF raw data'!C111) -> 4.14106e-06 | D106: =IF('DF raw data'!D111="","",'DF raw data'!D111) -> -1.82545e-05 | F106: -1.430460331e-05 | G106: 4.157686356e-06 | H106: -1.832779182e-05 | J106: -0.0003428405509 | K106: -0.004151068339 | L106: 0.0001333685735 | M106: 0.001822929604 | N106: 1.159500452e-06
A107: =IF('DF raw data'!A112="","",'DF raw data'!A112) -> -277.5 | B107: =IF('DF raw data'!B112="","",'DF raw data'!B112) -> -1.62326e-05 | C107: =IF('DF raw data'!C112="","",'DF raw data'!C112) -> 5.55402e-06 | D107: =IF('DF raw data'!D112="","",'DF raw data'!D112) -> -2.23316e-05 | F107: -1.629777389e-05 | G107: 5.57631939e-06 | H107: -2.242126137e-05 | J107: -0.0003509894379 | K107: -0.004326563058 | L107: 0.0001361567332 | M107: 0.00189100797 | N107: 1.230366572e-06
A108: =IF('DF raw data'!A113="","",'DF raw data'!A113) -> -277 | B108: =IF('DF raw data'!B113="","",'DF raw data'!B113) -> -3.33523e-05 | C108: =IF('DF raw data'!C113="","",'DF raw data'!C113) -> -4.32257e-06 | D108: =IF('DF raw data'!D113="","",'DF raw data'!D113) -> -2.40033e-05 | F108: -3.348620948e-05 | G108: -4.339925119e-06 | H108: -2.409967325e-05 | J108: -0.0003677325426 | K108: -0.004510429329 | L108: 0.0001339867706 | M108: 0.001958001355 | N108: 1.306956411e-06
A109: =IF('DF raw data'!A114="","",'DF raw data'!A114) -> -276.5 | B109: =IF('DF raw data'!B114="","",'DF raw data'!B114) -> -1.58367e-05 | C109: =IF('DF raw data'!C114="","",'DF raw data'!C114) -> -1.77915e-06 | D109: =IF('DF raw data'!D114="","",'DF raw data'!D114) -> -3.95855e-05 | F109: -1.590028435e-05 | G109: -1.786293287e-06 | H109: -3.974443578e-05 | J109: -0.0003756826848 | K109: -0.004698270672 | L109: 0.000133093624 | M109: 0.002024548167 | N109: 1.386382107e-06
A110: =IF('DF raw data'!A115="","",'DF raw data'!A115) -> -276 | B110: =IF('DF raw data'!B115="","",'DF raw data'!B115) -> -3.63606e-05 | C110: =IF('DF raw data'!C115="","",'DF raw data'!C115) -> 2.35487e-06 | D110: =IF('DF raw data'!D115="","",'DF raw data'!D115) -> -3.2028e-05 | F110: -3.650658781e-05 | G110: 2.364324803e-06 | H110: -3.215659242e-05 | J110: -0.0003939359787 | K110: -0.004895238661 | L110: 0.0001342757864 | M110: 0.002091686061 | N110: 1.472989878e-06
A111: =IF('DF raw data'!A116="","",'DF raw data'!A116) -> -275.5 | B111: =IF('DF raw data'!B116="","",'DF raw data'!B116) -> -1.49476e-05 | C111: =IF('DF raw data'!C116="","",'DF raw data'!C116) -> 1.14234e-06 | D111: =IF('DF raw data'!D116="","",'DF raw data'!D116) -> -2.63202e-05 | F111: -1.500761461e-05 | G111: 1.146926495e-06 | H111: -2.64258756e-05 | J111: -0.000401439786 | K111: -0.005095958554 | L111: 0.0001348492496 | M111: 0.002159110685 | N111: 1.562658989e-06
A112: =IF('DF raw data'!A117="","",'DF raw data'!A117) -> -275 | B112: =IF('DF raw data'!B117="","",'DF raw data'!B117) -> -1.86658e-05 | C112: =IF('DF raw data'!C117="","",'DF raw data'!C117) -> -5.28274e-06 | D112: =IF('DF raw data'!D117="","",'DF raw data'!D117) -> -2.76089e-05 | F112: -1.874074319e-05 | G112: -5.303950201e-06 | H112: -2.771974973e-05 | J112: -0.0004108101576 | K112: -0.005301363633 | L112: 0.0001321972745 | M112: 0.002225209323 | N112: 1.655779542e-06
A113: =IF('DF raw data'!A118="","",'DF raw data'!A118) -> -274.5 | B113: =IF('DF raw data'!B118="","",'DF raw data'!B118) -> -2.3599e-05 | C113: =IF('DF raw data'!C118="","",'DF raw data'!C118) -> 1.16065e-06 | D113: =IF('DF raw data'!D118="","",'DF raw data'!D118) -> -3.42205e-05 | F113: -2.369374999e-05 | G113: 1.16531001e-06 | H113: -3.435789531e-05 | J113: -0.0004226570326 | K113: -0.005512692149 | L113: 0.0001327799295 | M113: 0.002291599288 | N113: 1.75391428e-06
A114: =IF('DF raw data'!A119="","",'DF raw data'!A119) -> -274 | B114: =IF('DF raw data'!B119="","",'DF raw data'!B119) -> -2.00006e-05 | C114: =IF('DF raw data'!C119="","",'DF raw data'!C119) -> 2.71891e-06 | D114: =IF('DF raw data'!D119="","",'DF raw data'!D119) -> -4.59351e-05 | F114: -2.008090241e-05 | G114: 2.729826424e-06 | H114: -4.611952943e-05 | J114: -0.0004326974838 | K114: -0.005729040891 | L114: 0.0001341448427 | M114: 0.002358671709 | N114: 1.856525256e-06
A115: =IF('DF raw data'!A120="","",'DF raw data'!A120) -> -273.5 | B115: =IF('DF raw data'!B120="","",'DF raw data'!B120) -> -1.48092e-05 | C115: =IF('DF raw data'!C120="","",'DF raw data'!C120) -> 7.14183e-06 | D115: =IF('DF raw data'!D120="","",'DF raw data'!D120) -> -4.19331e-05 | F115: -1.486865894e-05 | G115: 7.170504447e-06 | H115: -4.21014614e-05 | J115: -0.0004401318133 | K115: -0.005949106798 | L115: 0.000137730095 | M115: 0.002427536756 | N115: 1.962868052e-06
A116: =IF('DF raw data'!A121="","",'DF raw data'!A121) -> -273 | B116: =IF('DF raw data'!B121="","",'DF raw data'!B121) -> -1.28933e-05 | C116: =IF('DF raw data'!C121="","",'DF raw data'!C121) -> 5.18323e-08 | D116: =IF('DF raw data'!D121="","",'DF raw data'!D121) -> -3.00297e-05 | F116: -1.29450666e-05 | G116: 5.204040668e-08 | H116: -3.015026925e-05 | J116: -0.0004466043466 | K116: -0.006172408971 | L116: 0.0001377561152 | M116: 0.002496414814 | N116: 2.072084147e-06
A117: =IF('DF raw data'!A122="","",'DF raw data'!A122) -> -272.5 | B117: =IF('DF raw data'!B122="","",'DF raw data'!B122) -> -1.03886e-05 | C117: =IF('DF raw data'!C122="","",'DF raw data'!C122) -> -5.29035e-06 | D117: =IF('DF raw data'!D122="","",'DF raw data'!D122) -> -3.60245e-05 | F117: -1.043031023e-05 | G117: -5.311590755e-06 | H117: -3.616913837e-05 | J117: -0.0004518195017 | K117: -0.006398318722 | L117: 0.0001351003198 | M117: 0.002563964974 | N117: 2.183280626e-06
A118: =IF('DF raw data'!A123="","",'DF raw data'!A123) -> -272 | B118: =IF('DF raw data'!B123="","",'DF raw data'!B123) -> -2.06466e-05 | C118: =IF('DF raw data'!C123="","",'DF raw data'!C123) -> -8.09843e-06 | D118: =IF('DF raw data'!D123="","",'DF raw data'!D123) -> -3.85057e-05 | F118: -2.07294961e-05 | G118: -8.130945196e-06 | H118: -3.866030039e-05 | J118: -0.0004621842497 | K118: -0.006629410847 | L118: 0.0001310348472 | M118: 0.002629482397 | N118: 2.298672832e-06
A119: =IF('DF raw data'!A124="","",'DF raw data'!A124) -> -271.5 | B119: =IF('DF raw data'!B124="","",'DF raw data'!B124) -> -1.30761e-05 | C119: =IF('DF raw data'!C124="","",'DF raw data'!C124) -> 3.13492e-06 | D119: =IF('DF raw data'!D124="","",'DF raw data'!D124) -> -4.4591e-05 | F119: -1.312860054e-05 | G119: 3.147506704e-06 | H119: -4.477003287e-05 | J119: -0.00046874855 | K119: -0.006863785122 | L119: 0.0001326086005 | M119: 0.002695786698 | N119: 2.417327954e-06
A120: =IF('DF raw data'!A125="","",'DF raw data'!A125) -> -271 | B120: =IF('DF raw data'!B125="","",'DF raw data'!B125) -> -2.57912e-05 | C120: =IF('DF raw data'!C125="","",'DF raw data'!C125) -> 1.75896e-06 | D120: =IF('DF raw data'!D125="","",'DF raw data'!D125) -> -1.56189e-05 | F120: -2.589475167e-05 | G120: 1.766022224e-06 | H120: -1.568160988e-05 | J120: -0.0004816959258 | K120: -0.007104633085 | L120: 0.0001334916117 | M120: 0.002762532504 | N120: 2.542253442e-06
A121: =IF('DF raw data'!A126="","",'DF raw data'!A126) -> -270.5 | B121: =IF('DF raw data'!B126="","",'DF raw data'!B126) -> -3.84793e-06 | C121: =IF('DF raw data'!C126="","",'DF raw data'!C126) -> 6.49989e-06 | D121: =IF('DF raw data'!D126="","",'DF raw data'!D126) -> -3.60682e-05 | F121: -3.863379439e-06 | G121: 6.525987058e-06 | H121: -3.621301382e-05 | J121: -0.0004836276156 | K121: -0.007346446892 | L121: 0.0001367546052 | M121: 0.002830909806 | N121: 2.668552188e-06
A122: =IF('DF raw data'!A127="","",'DF raw data'!A127) -> -270 | B122: =IF('DF raw data'!B127="","",'DF raw data'!B127) -> -1.78272e-05 | C122: =IF('DF raw data'!C127="","",'DF raw data'!C127) -> 7.51337e-06 | D122: =IF('DF raw data'!D127="","",'DF raw data'!D127) -> -3.52133e-05 | F122: -1.789877621e-05 | G122: 7.543536181e-06 | H122: -3.53546814e-05 | J122: -0.0004925770037 | K122: -0.007592735394 | L122: 0.0001405263733 | M122: 0.002901172993 | N122: 2.799742071e-06
A123: =IF('DF raw data'!A128="","",'DF raw data'!A128) -> -269.5 | B123: =IF('DF raw data'!B128="","",'DF raw data'!B128) -> -2.84042e-05 | C123: =IF('DF raw data'!C128="","",'DF raw data'!C128) -> 1.26854e-05 | D123: =IF('DF raw data'!D128="","",'DF raw data'!D128) -> -4.03804e-05 | F123: -2.851824286e-05 | G123: 1.273633188e-05 | H123: -4.054252731e-05 | J123: -0.0005068361251 | K123: -0.007846153457 | L123: 0.0001468945392 | M123: 0.002974620262 | N123: 2.938972503e-06
A124: =IF('DF raw data'!A129="","",'DF raw data'!A129) -> -269 | B124: =IF('DF raw data'!B129="","",'DF raw data'!B129) -> -1.51949e-05 | C124: =IF('DF raw data'!C129="","",'DF raw data'!C129) -> 3.75531e-06 | D124: =IF('DF raw data'!D129="","",'DF raw data'!D129) -> -4.0582e-05 | F124: -1.525590752e-05 | G124: 3.77038757e-06 | H124: -4.074493673e-05 | J124: -0.0005144640789 | K124: -0.008103385496 | L124: 0.000148779733 | M124: 0.003049010129 | N124: 3.082376852e-06
A125: =IF('DF raw data'!A130="","",'DF raw data'!A130) -> -268.5 | B125: =IF('DF raw data'!B130="","",'DF raw data'!B130) -> -1.61545e-05 | C125: =IF('DF raw data'!C130="","",'DF raw data'!C130) -> 2.37193e-06 | D125: =IF('DF raw data'!D130="","",'DF raw data'!D130) -> -4.36847e-05 | F125: -1.621936032e-05 | G125: 2.381453299e-06 | H125: -4.386009407e-05 | J125: -0.000522573759 | K125: -0.008364672376 | L125: 0.0001499704597 | M125: 0.003123995359 | N125: 3.230164088e-06
A126: =IF('DF raw data'!A131="","",'DF raw data'!A131) -> -268 | B126: =IF('DF raw data'!B131="","",'DF raw data'!B131) -> -1.78246e-05 | C126: =IF('DF raw data'!C131="","",'DF raw data'!C131) -> 8.91481e-07 | D126: =IF('DF raw data'!D131="","",'DF raw data'!D131) -> -3.92887e-05 | F126: -1.789616577e-05 | G126: 8.950602962e-07 | H126: -3.944644413e-05 | J126: -0.0005315218419 | K126: -0.008630433297 | L126: 0.0001504179898 | M126: 0.003199204354 | N126: 3.382734608e-06
A127: =IF('DF raw data'!A132="","",'DF raw data'!A132) -> -267.5 | B127: =IF('DF raw data'!B132="","",'DF raw data'!B132) -> -1.05716e-05 | C127: =IF('DF raw data'!C132="","",'DF raw data'!C132) -> -7.99605e-06 | D127: =IF('DF raw data'!D132="","",'DF raw data'!D132) -> -5.02256e-05 | F127: -1.061404497e-05 | G127: -8.028154141e-06 | H127: -5.042725578e-05 | J127: -0.0005368288644 | K127: -0.008898847729 | L127: 0.0001464039127 | M127: 0.00327240631 | N127: 3.537544275e-06
A128: =IF('DF raw data'!A133="","",'DF raw data'!A133) -> -267 | B128: =IF('DF raw data'!B133="","",'DF raw data'!B133) -> -1.82748e-05 | C128: =IF('DF raw data'!C133="","",'DF raw data'!C133) -> -1.60157e-05 | D128: =IF('DF raw data'!D133="","",'DF raw data'!D133) -> -3.73416e-05 | F128: =(1-$G$1*($B$49-$G$2))*B128 -> -1.834817332e-05 | G128: -1.608000304e-05 | H128: -3.749152652e-05 | J128: =F128*$G$3+J127 -> -0.0005460029511 | K128: =J128*$G$3+K127 -> -0.009171849204 | L128: =G128*$G$3+L127 -> 0.0001383639112 | M128: =L128*$G$3+M127 -> 0.003341588266 | N128: =(J128^2+L128^2)*$G$3+N127 -> 3.696176173e-06
A129: =IF('DF raw data'!A134="","",'DF raw data'!A134) -> -266.5 | B129: =IF('DF raw data'!B134="","",'DF raw data'!B134) -> -1.09636e-05 | C129: =IF('DF raw data'!C134="","",'DF raw data'!C134) -> -1.27016e-05 | D129: =IF('DF raw data'!D134="","",'DF raw data'!D134) -> -3.91008e-05 | F129: -1.100761885e-05 | G129: -1.275259692e-05 | H129: -3.925778971e-05 | J129: -0.0005515067605 | K129: -0.009447602585 | L129: 0.0001319876128 | M129: 0.003407582072 | N129: 3.856966391e-06
A130: =IF('DF raw data'!A135="","",'DF raw data'!A135) -> -266 | B130: =IF('DF raw data'!B135="","",'DF raw data'!B135) -> -2.05891e-05 | C130: =IF('DF raw data'!C135="","",'DF raw data'!C135) -> -1.6554e-05 | D130: =IF('DF raw data'!D135="","",'DF raw data'!D135) -> -2.81481e-05 | F130: -2.067176524e-05 | G130: -1.662046431e-05 | H130: -2.826111462e-05 | J130: -0.0005618426431 | K130: -0.009728523906 | L130: 0.0001236773806 | M130: 0.003469420762 | N130: 4.022448016e-06
A131: =IF('DF raw data'!A136="","",'DF raw data'!A136) -> -265.5 | B131: =IF('DF raw data'!B136="","",'DF raw data'!B136) -> -1.35325e-05 | C131: =IF('DF raw data'!C136="","",'DF raw data'!C136) -> -1.30176e-05 | D131: =IF('DF raw data'!D136="","",'DF raw data'!D136) -> -3.31399e-05 | F131: -1.358683299e-05 | G131: -1.306986566e-05 | H131: -3.32729567e-05 | J131: -0.0005686360596 | K131: -0.01001284194 | L131: 0.0001171424478 | M131: 0.003527991986 | N131: 4.190982677e-06
A132: =IF('DF raw data'!A137="","",'DF raw data'!A137) -> -265 | B132: =IF('DF raw data'!B137="","",'DF raw data'!B137) -> -2.17391e-05 | C132: =IF('DF raw data'!C137="","",'DF raw data'!C137) -> -1.67214e-07 | D132: =IF('DF raw data'!D137="","",'DF raw data'!D137) -> -3.46385e-05 | F132: -2.182638249e-05 | G132: -1.678853642e-07 | H132: -3.477757358e-05 | J132: -0.0005795492508 | K132: -0.01030261656 | L132: 0.0001170585051 | M132: 0.003586521239 | N132: 4.365772691e-06
A133: =IF('DF raw data'!A138="","",'DF raw data'!A138) -> -264.5 | B133: =IF('DF raw data'!B138="","",'DF raw data'!B138) -> -2.96193e-05 | C133: =IF('DF raw data'!C138="","",'DF raw data'!C138) -> 1.54725e-06 | D133: =IF('DF raw data'!D138="","",'DF raw data'!D138) -> -4.5172e-05 | F133: -2.973822149e-05 | G133: 1.553462209e-06 | H133: -4.535336558e-05 | J133: -0.0005944183616 | K133: -0.01059982574 | L133: 0.0001178352362 | M133: 0.003645438857 | N133: 4.549381856e-06
A134: =IF('DF raw data'!A139="","",'DF raw data'!A139) -> -264 | B134: =IF('DF raw data'!B139="","",'DF raw data'!B139) -> -2.55909e-05 | C134: =IF('DF raw data'!C139="","",'DF raw data'!C139) -> -6.27629e-06 | D134: =IF('DF raw data'!D139="","",'DF raw data'!D139) -> -2.76906e-05 | F134: -2.569364746e-05 | G134: -6.301489304e-06 | H134: -2.780177776e-05 | J134: -0.0006072651853 | K134: -0.01090345833 | L134: 0.0001146844915 | M134: 0.003702781103 | N134: 4.740343625e-06
A135: =IF('DF raw data'!A140="","",'DF raw data'!A140) -> -263.5 | B135: =IF('DF raw data'!B140="","",'DF raw data'!B140) -> -2.05888e-05 | C135: =IF('DF raw data'!C140="","",'DF raw data'!C140) -> 4.75548e-06 | D135: =IF('DF raw data'!D140="","",'DF raw data'!D140) -> -2.86828e-05 | F135: -2.067146403e-05 | G135: 4.774573252e-06 | H135: -2.879796144e-05 | J135: -0.0006176009173 | K135: -0.01121225879 | L135: 0.0001170717782 | M135: 0.003761316992 | N135: 4.937911972e-06
A136: =IF('DF raw data'!A141="","",'DF raw data'!A141) -> -263 | B136: =IF('DF raw data'!B141="","",'DF raw data'!B141) -> -5.12944e-06 | C136: =IF('DF raw data'!C141="","",'DF raw data'!C141) -> 1.36893e-06 | D136: =IF('DF raw data'!D141="","",'DF raw data'!D141) -> -3.7497e-05 | F136: -5.150034702e-06 | G136: 1.374426254e-06 | H136: -3.764755046e-05 | J136: -0.0006201759347 | K136: -0.01152234676 | L136: 0.0001177589913 | M136: 0.003820196487 | N136: 5.137154657e-06
A137: =IF('DF raw data'!A142="","",'DF raw data'!A142) -> -262.5 | B137: =IF('DF raw data'!B142="","",'DF raw data'!B142) -> -3.13464e-06 | C137: =IF('DF raw data'!C142="","",'DF raw data'!C142) -> -7.44373e-06 | D137: =IF('DF raw data'!D142="","",'DF raw data'!D142) -> -4.85518e-05 | F137: -3.14722558e-06 | G137: -7.473616576e-06 | H137: -4.874673548e-05 | J137: -0.0006217495475 | K137: -0.01183322153 | L137: 0.000114022183 | M137: 0.003877207579 | N137: 5.336941436e-06
A138: =IF('DF raw data'!A143="","",'DF raw data'!A143) -> -262 | B138: =IF('DF raw data'!B143="","",'DF raw data'!B143) -> -2.80896e-05 | C138: =IF('DF raw data'!C143="","",'DF raw data'!C143) -> -1.18918e-05 | D138: =IF('DF raw data'!D143="","",'DF raw data'!D143) -> -3.10735e-05 | F138: -2.820237974e-05 | G138: -1.193954558e-05 | H138: -3.11982601e-05 | J138: -0.0006358507373 | K138: -0.0121511469 | L138: 0.0001080524102 | M138: 0.003931233784 | N138: 5.544932178e-06
A139: =IF('DF raw data'!A144="","",'DF raw data'!A144) -> -261.5 | B139: =IF('DF raw data'!B144="","",'DF raw data'!B144) -> -1.28234e-05 | C139: =IF('DF raw data'!C144="","",'DF raw data'!C144) -> -1.73132e-05 | D139: =IF('DF raw data'!D144="","",'DF raw data'!D144) -> -3.88434e-05 | F139: -1.287488595e-05 | G139: -1.73827125e-05 | H139: -3.899935625e-05 | J139: -0.0006422881803 | K139: -0.01247229099 | L139: 9.936105396e-05 | M139: 0.003980914311 | N139: 5.756135541e-06
A140: =IF('DF raw data'!A145="","",'DF raw data'!A145) -> -261 | B140: =IF('DF raw data'!B145="","",'DF raw data'!B145) -> -2.96201e-05 | C140: =IF('DF raw data'!C145="","",'DF raw data'!C145) -> -5.4862e-06 | D140: =IF('DF raw data'!D145="","",'DF raw data'!D145) -> -4.40211e-05 | F140: -2.97390247e-05 | G140: -5.508227093e-06 | H140: -4.419784472e-05 | J140: -0.0006571576927 | K140: -0.01280086984 | L140: 9.660694042e-05 | M140: 0.004029217781 | N140: 5.976730108e-06
A141: =IF('DF raw data'!A146="","",'DF raw data'!A146) -> -260.5 | B141: =IF('DF raw data'!B146="","",'DF raw data'!B146) -> -2.058e-05 | C141: =IF('DF raw data'!C146="","",'DF raw data'!C146) -> -5.28093e-07 | D141: =IF('DF raw data'!D146="","",'DF raw data'!D146) -> -4.22473e-05 | F141: -2.06626287e-05 | G141: -5.302132934e-07 | H141: -4.241692291e-05 | J141: -0.000667489007 | K141: -0.01313461434 | L141: 9.634183377e-05 | M141: 0.004077388698 | N141: 6.20414177e-06
A142: =IF('DF raw data'!A147="","",'DF raw data'!A147) -> -260 | B142: =IF('DF raw data'!B147="","",'DF raw data'!B147) -> -1.52644e-05 | C142: =IF('DF raw data'!C147="","",'DF raw data'!C147) -> -1.37557e-06 | D142: =IF('DF raw data'!D147="","",'DF raw data'!D147) -> -3.21308e-05 | F142: -1.532568657e-05 | G142: -1.381092914e-06 | H142: -3.225980516e-05 | J142: -0.0006751518503 | K142: -0.01347219027 | L142: 9.565128731e-05 | M142: 0.004125214342 | N142: 6.436631365e-06
A143: =IF('DF raw data'!A148="","",'DF raw data'!A148) -> -259.5 | B143: =IF('DF raw data'!B148="","",'DF raw data'!B148) -> -1.76339e-05 | C143: =IF('DF raw data'!C148="","",'DF raw data'!C148) -> -3.85169e-06 | D143: =IF('DF raw data'!D148="","",'DF raw data'!D148) -> -3.68364e-05 | F143: -1.770470011e-05 | G143: -3.867154535e-06 | H143: -3.698429815e-05 | J143: -0.0006840042004 | K143: -0.01381419237 | L143: 9.371771005e-05 | M143: 0.004172073197 | N143: 6.674953742e-06
A144: =IF('DF raw data'!A149="","",'DF raw data'!A149) -> -259 | B144: =IF('DF raw data'!B149="","",'DF raw data'!B149) -> -2.34686e-05 | C144: =IF('DF raw data'!C149="","",'DF raw data'!C149) -> -2.34509e-06 | D144: =IF('DF raw data'!D149="","",'DF raw data'!D149) -> -3.75657e-05 | F144: -2.356282643e-05 | G144: -2.354505536e-06 | H144: -3.771652629e-05 | J144: -0.0006957856136 | K144: -0.01416208518 | L144: 9.254045728e-05 | M144: 0.004218343425 | N144: 6.92129442e-06
A145: =IF('DF raw data'!A150="","",'DF raw data'!A150) -> -258.5 | B145: =IF('DF raw data'!B150="","",'DF raw data'!B150) -> -2.09633e-05 | C145: =IF('DF raw data'!C150="","",'DF raw data'!C150) -> -7.9156e-06 | D145: =IF('DF raw data'!D150="","",'DF raw data'!D150) -> -4.44859e-05 | F145: -2.104746765e-05 | G145: -7.947381134e-06 | H145: -4.466451089e-05 | J145: -0.0007063093474 | K145: -0.01451523985 | L145: 8.856676671e-05 | M145: 0.004262626809 | N145: 7.174652904e-06
A146: =IF('DF raw data'!A151="","",'DF raw data'!A151) -> -258 | B146: =IF('DF raw data'!B151="","",'DF raw data'!B151) -> -2.94276e-05 | C146: =IF('DF raw data'!C151="","",'DF raw data'!C151) -> -5.3487e-06 | D146: =IF('DF raw data'!D151="","",'DF raw data'!D151) -> -4.44068e-05 | F146: -2.954575181e-05 | G146: -5.370175031e-06 | H146: -4.45850933e-05 | J146: -0.0007210822233 | K146: -0.01487578096 | L146: 8.58816792e-05 | M146: 0.004305567648 | N146: 7.438320521e-06
A147: =IF('DF raw data'!A152="","",'DF raw data'!A152) -> -257.5 | B147: =IF('DF raw data'!B152="","",'DF raw data'!B152) -> -2.05238e-05 | C147: =IF('DF raw data'!C152="","",'DF raw data'!C152) -> -7.26085e-06 | D147: =IF('DF raw data'!D152="","",'DF raw data'!D152) -> -3.03211e-05 | F147: -2.060620306e-05 | G147: -7.290002313e-06 | H147: -3.044283922e-05 | J147: -0.0007313853248 | K147: -0.01524147362 | L147: 8.223667804e-05 | M147: 0.004346685987 | N147: 7.709164204e-06
A148: =IF('DF raw data'!A153="","",'DF raw data'!A153) -> -257 | B148: =IF('DF raw data'!B153="","",'DF raw data'!B153) -> -1.89207e-05 | C148: =IF('DF raw data'!C153="","",'DF raw data'!C153) -> -6.08328e-06 | D148: =IF('DF raw data'!D153="","",'DF raw data'!D153) -> -3.02163e-05 | F148: -1.899666661e-05 | G148: -6.107704369e-06 | H148: -3.033761844e-05 | J148: -0.0007408836581 | K148: -0.01561191545 | L148: 7.918282586e-05 | M148: 0.0043862774 | N148: 7.986753461e-06
A149: =IF('DF raw data'!A154="","",'DF raw data'!A154) -> -256.5 | B149: =IF('DF raw data'!B154="","",'DF raw data'!B154) -> -1.73775e-05 | C149: =IF('DF raw data'!C154="","",'DF raw data'!C154) -> -7.4926e-06 | D149: =IF('DF raw data'!D154="","",'DF raw data'!D154) -> -3.67627e-05 | F149: -1.744727066e-05 | G149: -7.522682789e-06 | H149: -3.691030224e-05 | J149: -0.0007496072935 | K149: -0.0159867191 | L149: 7.542148446e-05 | M149: 0.004423988142 | N149: 8.270553208e-06
A150: =IF('DF raw data'!A155="","",'DF raw data'!A155) -> -256 | B150: =IF('DF raw data'!B155="","",'DF raw data'!B155) -> -1.96884e-05 | C150: =IF('DF raw data'!C155="","",'DF raw data'!C155) -> -1.46708e-05 | D150: =IF('DF raw data'!D155="","",'DF raw data'!D155) -> -3.29438e-05 | F150: -1.976744893e-05 | G150: -1.472970326e-05 | H150: -3.307606936e-05 | J150: -0.0007594910179 | K150: -0.01636646461 | L150: 6.805663283e-05 | M150: 0.004458016459 | N150: 8.561282364e-06
A151: =IF('DF raw data'!A156="","",'DF raw data'!A156) -> -255.5 | B151: =IF('DF raw data'!B156="","",'DF raw data'!B156) -> -2.263e-05 | C151: =IF('DF raw data'!C156="","",'DF raw data'!C156) -> -7.17199e-06 | D151: =IF('DF raw data'!D156="","",'DF raw data'!D156) -> -4.51612e-05 | F151: -2.272085945e-05 | G151: -7.20078554e-06 | H151: -4.534252222e-05 | J151: -0.0007708514477 | K151: -0.01675189033 | L151: 6.445624006e-05 | M151: 0.004490244579 | N151: 8.860465645e-06
A152: =IF('DF raw data'!A157="","",'DF raw data'!A157) -> -255 | B152: =IF('DF raw data'!B157="","",'DF raw data'!B157) -> -2.32173e-05 | C152: =IF('DF raw data'!C157="","",'DF raw data'!C157) -> -4.18078e-06 | D152: =IF('DF raw data'!D157="","",'DF raw data'!D157) -> -2.9737e-05 | F152: -2.331051746e-05 | G152: -4.197565832e-06 | H152: -2.985639406e-05 | J152: -0.0007825067064 | K152: -0.01714314368 | L152: 6.235745714e-05 | M152: 0.004521423307 | N152: 9.168568244e-06
A153: =IF('DF raw data'!A158="","",'DF raw data'!A158) -> -254.5 | B153: =IF('DF raw data'!B158="","",'DF raw data'!B158) -> -2.30867e-05 | C153: =IF('DF raw data'!C158="","",'DF raw data'!C158) -> 3.25637e-06 | D153: =IF('DF raw data'!D158="","",'DF raw data'!D158) -> -3.33188e-05 | F153: -2.31793931e-05 | G153: 3.269444326e-06 | H153: -3.345257498e-05 | J153: -0.0007940964029 | K153: -0.01754019189 | L153: 6.399217931e-05 | M153: 0.004553419397 | N153: 9.485910292e-06
A154: =IF('DF raw data'!A159="","",'DF raw data'!A159) -> -254 | B154: =IF('DF raw data'!B159="","",'DF raw data'!B159) -> -1.63538e-05 | C154: =IF('DF raw data'!C159="","",'DF raw data'!C159) -> 3.69228e-06 | D154: =IF('DF raw data'!D159="","",'DF raw data'!D159) -> -3.33476e-05 | F154: -1.641946051e-05 | G154: 3.707104504e-06 | H154: -3.348149061e-05 | J154: -0.0008023061332 | K154: -0.01794134495 | L154: 6.584573156e-05 | M154: 0.004586342263 | N154: 9.809925688e-06
A155: =IF('DF raw data'!A160="","",'DF raw data'!A160) -> -253.5 | B155: =IF('DF raw data'!B160="","",'DF raw data'!B160) -> -1.03255e-05 | C155: =IF('DF raw data'!C160="","",'DF raw data'!C160) -> -3.77226e-07 | D155: =IF('DF raw data'!D160="","",'DF raw data'!D160) -> -3.42374e-05 | F155: -1.036695688e-05 | G155: -3.787405624e-07 | H155: -3.437486316e-05 | J155: -0.0008074896116 | K155: -0.01834508976 | L155: 6.565636128e-05 | M155: 0.004619170444 | N155: 1.01381008e-05
A156: =IF('DF raw data'!A161="","",'DF raw data'!A161) -> -253 | B156: =IF('DF raw data'!B161="","",'DF raw data'!B161) -> -1.34721e-05 | C156: =IF('DF raw data'!C161="","",'DF raw data'!C161) -> -6.39106e-06 | D156: =IF('DF raw data'!D161="","",'DF raw data'!D161) -> -2.73953e-05 | F156: -1.352619048e-05 | G156: -6.416720106e-06 | H156: -2.750529213e-05 | J156: -0.0008142527069 | K156: -0.01875221611 | L156: 6.244800122e-05 | M156: 0.004650394444 | N156: 1.047155441e-05
A157: =IF('DF raw data'!A162="","",'DF raw data'!A162) -> -252.5 | B157: =IF('DF raw data'!B162="","",'DF raw data'!B162) -> -1.73099e-05 | C157: =IF('DF raw data'!C162="","",'DF raw data'!C162) -> -6.58394e-06 | D157: =IF('DF raw data'!D162="","",'DF raw data'!D162) -> -4.19078e-05 | F157: -1.737939925e-05 | G157: -6.610374519e-06 | H157: -4.207605982e-05 | J157: -0.0008229424065 | K157: -0.01916368732 | L157: 5.914281397e-05 | M157: 0.004679965851 | N157: 1.081192045e-05
A158: =IF('DF raw data'!A163="","",'DF raw data'!A163) -> -252 | B158: =IF('DF raw data'!B163="","",'DF raw data'!B163) -> -2.29542e-05 | C158: =IF('DF raw data'!C163="","",'DF raw data'!C163) -> 3.89416e-06 | D158: =IF('DF raw data'!D163="","",'DF raw data'!D163) -> -3.9893e-05 | F158: -2.304636111e-05 | G158: 3.909795052e-06 | H158: -4.00531704e-05 | J158: -0.000834465587 | K158: -0.01958092011 | L158: 6.109771149e-05 | M158: 0.004710514707 | N158: 1.116195333e-05
A159: =IF('DF raw data'!A164="","",'DF raw data'!A164) -> -251.5 | B159: =IF('DF raw data'!B164="","",'DF raw data'!B164) -> -1.6284e-05 | C159: =IF('DF raw data'!C164="","",'DF raw data'!C164) -> 1.42066e-05 | D159: =IF('DF raw data'!D164="","",'DF raw data'!D164) -> -4.19448e-05 | F159: -1.634938026e-05 | G159: 1.42636395e-05 | H159: -4.211320837e-05 | J159: -0.0008426402772 | K159: -0.02000224025 | L159: 6.822953124e-05 | M159: 0.004744629472 | N159: 1.151930228e-05
A160: =IF('DF raw data'!A165="","",'DF raw data'!A165) -> -251 | B160: =IF('DF raw data'!B165="","",'DF raw data'!B165) -> -1.47491e-05 | C160: =IF('DF raw data'!C165="","",'DF raw data'!C165) -> 1.27923e-05 | D160: =IF('DF raw data'!D165="","",'DF raw data'!D165) -> -3.56719e-05 | F160: -1.480831764e-05 | G160: 1.284366108e-05 | H160: -3.581512268e-05 | J160: -0.000850044436 | K160: -0.02042726247 | L160: 7.465136178e-05 | M160: 0.004781955153 | N160: 1.188337646e-05
A161: =IF('DF raw data'!A166="","",'DF raw data'!A166) -> -250.5 | B161: =IF('DF raw data'!B166="","",'DF raw data'!B166) -> -1.8403e-05 | C161: =IF('DF raw data'!C166="","",'DF raw data'!C166) -> 8.00747e-06 | D161: =IF('DF raw data'!D166="","",'DF raw data'!D166) -> -3.74559e-05 | F161: -1.847688805e-05 | G161: 8.039619992e-06 | H161: -3.760628544e-05 | J161: -0.00085928288 | K161: -0.02085690391 | L161: 7.867117178e-05 | M161: 0.004821290739 | N161: 1.225565457e-05
A162: =IF('DF raw data'!A167="","",'DF raw data'!A167) -> -250 | B162: =IF('DF raw data'!B167="","",'DF raw data'!B167) -> -2.07751e-05 | C162: =IF('DF raw data'!C167="","",'DF raw data'!C167) -> 5.34786e-06 | D162: =IF('DF raw data'!D167="","",'DF raw data'!D167) -> -3.82963e-05 | F162: -2.085851203e-05 | G162: 5.369331658e-06 | H162: -3.845005964e-05 | J162: -0.000869712136 | K162: -0.02129175997 | L162: 8.135583761e-05 | M162: 0.004861968658 | N162: 1.263716356e-05
A163: =IF('DF raw data'!A168="","",'DF raw data'!A168) -> -249.5 | B163: =IF('DF raw data'!B168="","",'DF raw data'!B168) -> -3.0137e-05 | C163: =IF('DF raw data'!C168="","",'DF raw data'!C168) -> 4.36947e-06 | D163: =IF('DF raw data'!D168="","",'DF raw data'!D168) -> -3.79428e-05 | F163: -3.025800006e-05 | G163: 4.387013422e-06 | H163: -3.809514034e-05 | J163: -0.0008848411361 | K163: -0.02173418054 | L163: 8.354934432e-05 | M163: 0.00490374333 | N163: 1.303212572e-05
A164: =IF('DF raw data'!A169="","",'DF raw data'!A169) -> -249 | B164: =IF('DF raw data'!B169="","",'DF raw data'!B169) -> -1.47533e-05 | C164: =IF('DF raw data'!C169="","",'DF raw data'!C169) -> 3.40529e-06 | D164: =IF('DF raw data'!D169="","",'DF raw data'!D169) -> -2.91935e-05 | F164: -1.48125345e-05 | G164: 3.418962239e-06 | H164: -2.93107119e-05 | J164: -0.0008922474033 | K164: -0.02218030424 | L164: 8.525882544e-05 | M164: 0.004946372743 | N164: 1.343381297e-05
A165: =IF('DF raw data'!A170="","",'DF raw data'!A170) -> -248.5 | B165: =IF('DF raw data'!B170="","",'DF raw data'!B170) -> -2.09687e-05 | C165: =IF('DF raw data'!C170="","",'DF raw data'!C170) -> -3.28415e-06 | D165: =IF('DF raw data'!D170="","",'DF raw data'!D170) -> -3.6158e-05 | F165: -2.105288933e-05 | G165: -3.297335862e-06 | H165: -3.630317437e-05 | J165: -0.000902773848 | K165: -0.02263169117 | L165: 8.361015751e-05 | M165: 0.004988177822 | N165: 1.384480861e-05
A166: =IF('DF raw data'!A171="","",'DF raw data'!A171) -> -248 | B166: =IF('DF raw data'!B171="","",'DF raw data'!B171) -> -2.49518e-05 | C166: =IF('DF raw data'!C171="","",'DF raw data'!C171) -> -1.51358e-07 | D166: =IF('DF raw data'!D171="","",'DF raw data'!D171) -> -2.45054e-05 | F166: -2.505198148e-05 | G166: -1.519657024e-07 | H166: -2.460378918e-05 | J166: -0.0009152998387 | K166: -0.02308934109 | L166: 8.353417466e-05 | M166: 0.005029944909 | N166: 1.426718449e-05
A167: =IF('DF raw data'!A172="","",'DF raw data'!A172) -> -247.5 | B167: =IF('DF raw data'!B172="","",'DF raw data'!B172) -> -9.22887e-06 | C167: =IF('DF raw data'!C172="","",'DF raw data'!C172) -> -4.36576e-06 | D167: =IF('DF raw data'!D172="","",'DF raw data'!D172) -> -4.46161e-05 | F167: -9.265923913e-06 | G167: -4.383288526e-06 | H167: -4.479523364e-05 | J167: -0.0009199328007 | K167: -0.02354930749 | L167: 8.134253039e-05 | M167: 0.005070616174 | N167: 1.469363097e-05
A168: =IF('DF raw data'!A173="","",'DF raw data'!A173) -> -247 | B168: =IF('DF raw data'!B173="","",'DF raw data'!B173) -> -1.78232e-05 | C168: =IF('DF raw data'!C173="","",'DF raw data'!C173) -> -1.20901e-05 | D168: =IF('DF raw data'!D173="","",'DF raw data'!D173) -> -4.14045e-05 | F168: -1.789476015e-05 | G168: -1.213864175e-05 | H168: -4.157073907e-05 | J168: -0.0009288801807 | K168: -0.02401374758 | L168: 7.527320952e-05 | M168: 0.005108252779 | N168: 1.512787319e-05
A169: =IF('DF raw data'!A174="","",'DF raw data'!A174) -> -246.5 | B169: =IF('DF raw data'!B174="","",'DF raw data'!B174) -> -2.35942e-05 | C169: =IF('DF raw data'!C174="","",'DF raw data'!C174) -> -3.40214e-06 | D169: =IF('DF raw data'!D174="","",'DF raw data'!D174) -> -4.16979e-05 | F169: -2.368893071e-05 | G169: -3.415799592e-06 | H169: -4.186531707e-05 | J169: -0.0009407246461 | K169: -0.0244841099 | L169: 7.356530972e-05 | M169: 0.005145035434 | N169: 1.557306055e-05
A170: =IF('DF raw data'!A175="","",'DF raw data'!A175) -> -246 | B170: =IF('DF raw data'!B175="","",'DF raw data'!B175) -> -1.1732e-05 | C170: =IF('DF raw data'!C175="","",'DF raw data'!C175) -> -5.46609e-06 | D170: =IF('DF raw data'!D175="","",'DF raw data'!D175) -> -4.07165e-05 | F170: -1.177910398e-05 | G170: -5.488036351e-06 | H170: -4.087997675e-05 | J170: -0.0009466141981 | K170: -0.024957417 | L170: 7.082129155e-05 | M170: 0.00518044608 | N170: 1.60236076e-05
A171: =IF('DF raw data'!A176="","",'DF raw data'!A176) -> -245.5 | B171: =IF('DF raw data'!B176="","",'DF raw data'!B176) -> -2.83409e-05 | C171: =IF('DF raw data'!C176="","",'DF raw data'!C176) -> -6.17444e-06 | D171: =IF('DF raw data'!D176="","",'DF raw data'!D176) -> -3.91165e-05 | F171: -2.845468871e-05 | G171: -6.199230377e-06 | H171: -3.927355275e-05 | J171: -0.0009608415424 | K171: -0.02543783777 | L171: 6.772167636e-05 | M171: 0.005214306918 | N171: 1.648750895e-05
A172: =IF('DF raw data'!A177="","",'DF raw data'!A177) -> -245 | B172: =IF('DF raw data'!B177="","",'DF raw data'!B177) -> -1.8918e-05 | C172: =IF('DF raw data'!C177="","",'DF raw data'!C177) -> -7.58788e-06 | D172: =IF('DF raw data'!D177="","",'DF raw data'!D177) -> -3.42721e-05 | F172: -1.899395577e-05 | G172: -7.618345338e-06 | H172: -3.440970248e-05 | J172: -0.0009703385203 | K172: -0.02592300703 | L172: 6.391250369e-05 | M172: 0.00524626317 | N172: 1.696032977e-05
A173: =IF('DF raw data'!A178="","",'DF raw data'!A178) -> -244.5 | B173: =IF('DF raw data'!B178="","",'DF raw data'!B178) -> -1.50685e-05 | C173: =IF('DF raw data'!C178="","",'DF raw data'!C178) -> -6.34508e-06 | D173: =IF('DF raw data'!D178="","",'DF raw data'!D178) -> -3.77374e-05 | F173: -1.512900003e-05 | G173: -6.370555496e-06 | H173: -3.788891566e-05 | J173: -0.0009779030203 | K173: -0.02641195854 | L173: 6.072722594e-05 | M173: 0.005276626783 | N173: 1.744032083e-05
A174: =IF('DF raw data'!A179="","",'DF raw data'!A179) -> -244 | B174: =IF('DF raw data'!B179="","",'DF raw data'!B179) -> -7.37153e-06 | C174: =IF('DF raw data'!C179="","",'DF raw data'!C179) -> -1.03543e-06 | D174: =IF('DF raw data'!D179="","",'DF raw data'!D179) -> -4.10417e-05 | F174: -7.401126693e-06 | G174: -1.039587251e-06 | H174: -4.120648243e-05 | J174: -0.0009816035837 | K174: -0.02690276033 | L174: 6.020743231e-05 | M174: 0.005306730499 | N174: 1.792390609e-05
A175: =IF('DF raw data'!A180="","",'DF raw data'!A180) -> -243.5 | B175: =IF('DF raw data'!B180="","",'DF raw data'!B180) -> -2.23089e-05 | C175: =IF('DF raw data'!C180="","",'DF raw data'!C180) -> -1.95363e-06 | D175: =IF('DF raw data'!D180="","",'DF raw data'!D180) -> -4.61533e-05 | F175: -2.239847023e-05 | G175: -1.961473824e-06 | H175: -4.63386055e-05 | J175: -0.0009928028188 | K175: -0.02739916174 | L175: 5.92266954e-05 | M175: 0.005336343846 | N175: 1.841848871e-05
A176: =IF('DF raw data'!A181="","",'DF raw data'!A181) -> -243 | B176: =IF('DF raw data'!B181="","",'DF raw data'!B181) -> -1.89197e-05 | C176: =IF('DF raw data'!C181="","",'DF raw data'!C181) -> -3.95108e-06 | D176: =IF('DF raw data'!D181="","",'DF raw data'!D181) -> -3.16934e-05 | F176: -1.89956626e-05 | G176: -3.966943586e-06 | H176: -3.1820649e-05 | J176: -0.00100230065 | K176: -0.02790031207 | L176: 5.724322361e-05 | M176: 0.005364965458 | N176: 1.89224304e-05
A177: =IF('DF raw data'!A182="","",'DF raw data'!A182) -> -242.5 | B177: =IF('DF raw data'!B182="","",'DF raw data'!B182) -> -2.142e-05 | C177: =IF('DF raw data'!C182="","",'DF raw data'!C182) -> -1.24752e-05 | D177: =IF('DF raw data'!D182="","",'DF raw data'!D182) -> -3.25561e-05 | F177: -2.15060013e-05 | G177: -1.252528793e-05 | H177: -3.268681274e-05 | J177: -0.001013053651 | K177: -0.02840683889 | L177: 5.098057965e-05 | M177: 0.005390455748 | N177: 1.943686876e-05
A178: =IF('DF raw data'!A183="","",'DF raw data'!A183) -> -242 | B178: =IF('DF raw data'!B183="","",'DF raw data'!B183) -> -1.69984e-05 | C178: =IF('DF raw data'!C183="","",'DF raw data'!C183) -> -7.23705e-06 | D178: =IF('DF raw data'!D183="","",'DF raw data'!D183) -> -2.80564e-05 | F178: -1.706664858e-05 | G178: -7.266106756e-06 | H178: -2.816904645e-05 | J178: -0.001021586975 | K178: -0.02891763238 | L178: 4.734752627e-05 | M178: 0.005414129511 | N178: 1.995980963e-05
A179: =IF('DF raw data'!A184="","",'DF raw data'!A184) -> -241.5 | B179: =IF('DF raw data'!B184="","",'DF raw data'!B184) -> -2.82758e-05 | C179: =IF('DF raw data'!C184="","",'DF raw data'!C184) -> -3.27642e-06 | D179: =IF('DF raw data'!D184="","",'DF raw data'!D184) -> -4.07756e-05 | F179: -2.838932734e-05 | G179: -3.289574826e-06 | H179: -4.093931403e-05 | J179: -0.001035781639 | K179: -0.0294355232 | L179: 4.570273885e-05 | M179: 0.005436980881 | N179: 2.04972758e-05
A180: =IF('DF raw data'!A185="","",'DF raw data'!A185) -> -241 | B180: =IF('DF raw data'!B185="","",'DF raw data'!B185) -> -2.74395e-05 | C180: =IF('DF raw data'!C185="","",'DF raw data'!C185) -> -3.63651e-06 | D180: =IF('DF raw data'!D185="","",'DF raw data'!D185) -> -4.47134e-05 | F180: -2.754966959e-05 | G180: -3.651110588e-06 | H180: -4.48929243e-05 | J180: -0.001049556474 | K180: -0.02996030144 | L180: 4.387718356e-05 | M180: 0.005458919472 | N180: 2.10490228e-05
A181: =IF('DF raw data'!A186="","",'DF raw data'!A186) -> -240.5 | B181: =IF('DF raw data'!B186="","",'DF raw data'!B186) -> -3.14813e-05 | C181: =IF('DF raw data'!C186="","",'DF raw data'!C186) -> -9.80637e-06 | D181: =IF('DF raw data'!D186="","",'DF raw data'!D186) -> -4.16591e-05 | F181: -3.160769742e-05 | G181: -9.845742576e-06 | H181: -4.182636129e-05 | J181: -0.001065360322 | K181: -0.0304929816 | L181: 3.895431227e-05 | M181: 0.005478396629 | N181: 2.161727783e-05
A182: =IF('DF raw data'!A187="","",'DF raw data'!A187) -> -240 | B182: =IF('DF raw data'!B187="","",'DF raw data'!B187) -> -1.66178e-05 | C182: =IF('DF raw data'!C187="","",'DF raw data'!C187) -> -2.17938e-06 | D182: =IF('DF raw data'!D187="","",'DF raw data'!D187) -> -2.16517e-05 | F182: -1.668452047e-05 | G182: -2.188130211e-06 | H182: -2.173863158e-05 | J182: -0.001073702582 | K182: -0.03102983289 | L182: 3.786024717e-05 | M182: 0.005497326752 | N182: 2.219441315e-05
A183: =IF('DF raw data'!A188="","",'DF raw data'!A188) -> -239.5 | B183: =IF('DF raw data'!B188="","",'DF raw data'!B188) -> -1.66798e-05 | C183: =IF('DF raw data'!C188="","",'DF raw data'!C188) -> 4.47322e-06 | D183: =IF('DF raw data'!D188="","",'DF raw data'!D188) -> -2.48286e-05 | F183: -1.67467694e-05 | G183: 4.491179978e-06 | H183: -2.492828683e-05 | J183: -0.001082075967 | K183: -0.03157087087 | L183: 4.010583716e-05 | M183: 0.005517379671 | N183: 2.278066158e-05
A184: =IF('DF raw data'!A189="","",'DF raw data'!A189) -> -239 | B184: =IF('DF raw data'!B189="","",'DF raw data'!B189) -> -1.95545e-05 | C184: =IF('DF raw data'!C189="","",'DF raw data'!C189) -> -2.9767e-06 | D184: =IF('DF raw data'!D189="","",'DF raw data'!D189) -> -4.16485e-05 | F184: -1.963301132e-05 | G184: -2.988651451e-06 | H184: -4.181571873e-05 | J184: -0.001091892473 | K184: -0.03211681711 | L184: 3.861151143e-05 | M184: 0.005536685426 | N184: 2.33775216e-05
A185: =IF('DF raw data'!A190="","",'DF raw data'!A190) -> -238.5 | B185: =IF('DF raw data'!B190="","",'DF raw data'!B190) -> -2.12204e-05 | C185: =IF('DF raw data'!C190="","",'DF raw data'!C190) -> -4.74174e-06 | D185: =IF('DF raw data'!D190="","",'DF raw data'!D190) -> -4.34764e-05 | F185: -2.130559991e-05 | G185: -4.760778086e-06 | H185: -4.365095775e-05 | J185: -0.001102545273 | K185: -0.03266808974 | L185: 3.623112239e-05 | M185: 0.005554800988 | N185: 2.398598098e-05
A186: =IF('DF raw data'!A191="","",'DF raw data'!A191) -> -238 | B186: =IF('DF raw data'!B191="","",'DF raw data'!B191) -> -1.93079e-05 | C186: =IF('DF raw data'!C191="","",'DF raw data'!C191) -> -8.7873e-06 | D186: =IF('DF raw data'!D191="","",'DF raw data'!D191) -> -2.63554e-05 | F186: -1.938542122e-05 | G186: -8.82258101e-06 | H186: -2.646121693e-05 | J186: -0.001112237983 | K186: -0.03322420874 | L186: 3.181983188e-05 | M186: 0.005570710904 | N186: 2.46050239e-05
A187: =IF('DF raw data'!A192="","",'DF raw data'!A192) -> -237.5 | B187: =IF('DF raw data'!B192="","",'DF raw data'!B192) -> -1.32747e-05 | C187: =IF('DF raw data'!C192="","",'DF raw data'!C192) -> -5.83457e-06 | D187: =IF('DF raw data'!D192="","",'DF raw data'!D192) -> -3.52126e-05 | F187: -1.332799792e-05 | G187: -5.857995799e-06 | H187: -3.535397859e-05 | J187: -0.001118901982 | K187: -0.03378365973 | L187: 2.889083398e-05 | M187: 0.005585156321 | N187: 2.523141206e-05
A188: =IF('DF raw data'!A193="","",'DF raw data'!A193) -> -237 | B188: =IF('DF raw data'!B193="","",'DF raw data'!B193) -> -9.42849e-06 | C188: =IF('DF raw data'!C193="","",'DF raw data'!C193) -> -3.46318e-06 | D188: =IF('DF raw data'!D193="","",'DF raw data'!D193) -> -3.32099e-05 | F188: -9.466345387e-06 | G188: -3.477084668e-06 | H188: -3.334323775e-05 | J188: -0.001123635155 | K188: -0.03434547731 | L188: 2.715229165e-05 | M188: 0.005598732466 | N188: 2.586305867e-05
A189: =IF('DF raw data'!A194="","",'DF raw data'!A194) -> -236.5 | B189: =IF('DF raw data'!B194="","",'DF raw data'!B194) -> -2.64281e-05 | C189: =IF('DF raw data'!C194="","",'DF raw data'!C194) -> -3.76959e-06 | D189: =IF('DF raw data'!D194="","",'DF raw data'!D194) -> -2.23559e-05 | F189: -2.653420882e-05 | G189: -3.784724904e-06 | H189: -2.244565894e-05 | J189: -0.001136902259 | K189: -0.03491392843 | L189: 2.52599292e-05 | M189: 0.005611362431 | N189: 2.650965107e-05
A190: =IF('DF raw data'!A195="","",'DF raw data'!A195) -> -236 | B190: =IF('DF raw data'!B195="","",'DF raw data'!B195) -> -1.69915e-05 | C190: =IF('DF raw data'!C195="","",'DF raw data'!C195) -> -8.07877e-06 | D190: =IF('DF raw data'!D195="","",'DF raw data'!D195) -> -3.87813e-05 | F190: -1.705972087e-05 | G190: -8.111206262e-06 | H190: -3.893700692e-05 | J190: -0.00114543212 | K190: -0.03548664449 | L190: 2.120432607e-05 | M190: 0.005621964594 | N190: 2.716588325e-05
A191: =IF('DF raw data'!A196="","",'DF raw data'!A196) -> -235.5 | B191: =IF('DF raw data'!B196="","",'DF raw data'!B196) -> -2.25695e-05 | C191: =IF('DF raw data'!C196="","",'DF raw data'!C196) -> -4.85609e-06 | D191: =IF('DF raw data'!D196="","",'DF raw data'!D196) -> -3.98277e-05 | F191: -2.266011654e-05 | G191: -4.875587201e-06 | H191: -3.998760822e-05 | J191: -0.001156762178 | K191: -0.03606502558 | L191: 1.876653247e-05 | M191: 0.00563134786 | N191: 2.783510871e-05
A192: =IF('DF raw data'!A197="","",'DF raw data'!A197) -> -235 | B192: =IF('DF raw data'!B197="","",'DF raw data'!B197) -> -2.16747e-05 | C192: =IF('DF raw data'!C197="","",'DF raw data'!C197) -> -1.54251e-06 | D192: =IF('DF raw data'!D197="","",'DF raw data'!D197) -> -3.53153e-05 | F192: =(1-$G$1*($B$49-$G$2))*B192 -> -2.176172392e-05 | G192: -1.548703178e-06 | H192: -3.545709093e-05 | J192: =F192*$G$3+J191 -> -0.00116764304 | K192: =J192*$G$3+K191 -> -0.0366488471 | L192: =G192*$G$3+L191 -> 1.799218088e-05 | M192: =L192*$G$3+M191 -> 0.005640343951 | N192: =(J192^2+L192^2)*$G$3+N191 -> 2.851696571e-05
A193: =IF('DF raw data'!A198="","",'DF raw data'!A198) -> -234.5 | B193: =IF('DF raw data'!B198="","",'DF raw data'!B198) -> -2.09101e-05 | C193: =IF('DF raw data'!C198="","",'DF raw data'!C198) -> -3.50265e-06 | D193: =IF('DF raw data'!D198="","",'DF raw data'!D198) -> -2.77961e-05 | F193: -2.099405405e-05 | G193: -3.51671314e-06 | H193: -2.790770134e-05 | J193: -0.001178140067 | K193: -0.03723791714 | L193: 1.623382431e-05 | M193: 0.005648460863 | N193: 2.921110448e-05
A194: =IF('DF raw data'!A199="","",'DF raw data'!A199) -> -234 | B194: =IF('DF raw data'!B199="","",'DF raw data'!B199) -> -2.62282e-05 | C194: =IF('DF raw data'!C199="","",'DF raw data'!C199) -> 8.76411e-06 | D194: =IF('DF raw data'!D199="","",'DF raw data'!D199) -> -3.41087e-05 | F194: -2.633350622e-05 | G194: 8.799297902e-06 | H194: -3.424564643e-05 | J194: -0.00119130682 | K194: -0.03783357055 | L194: 2.063347326e-05 | M194: 0.0056587776 | N194: 2.992092333e-05
A195: =IF('DF raw data'!A200="","",'DF raw data'!A200) -> -233.5 | B195: =IF('DF raw data'!B200="","",'DF raw data'!B200) -> -1.41115e-05 | C195: =IF('DF raw data'!C200="","",'DF raw data'!C200) -> 4.16528e-06 | D195: =IF('DF raw data'!D200="","",'DF raw data'!D200) -> -3.01166e-05 | F195: -1.416815767e-05 | G195: 4.182003599e-06 | H195: -3.023751815e-05 | J195: -0.001198390899 | K195: -0.038432766 | L195: 2.272447506e-05 | M195: 0.005670139837 | N195: 3.06392519e-05
A196: =IF('DF raw data'!A201="","",'DF raw data'!A201) -> -233 | B196: =IF('DF raw data'!B201="","",'DF raw data'!B201) -> -1.86621e-05 | C196: =IF('DF raw data'!C201="","",'DF raw data'!C201) -> -5.91099e-06 | D196: =IF('DF raw data'!D201="","",'DF raw data'!D201) -> -3.33742e-05 | F196: -1.873702833e-05 | G196: -5.934722625e-06 | H196: -3.350819741e-05 | J196: -0.001207759413 | K196: -0.0390366457 | L196: 1.975711375e-05 | M196: 0.005680018394 | N196: 3.136878847e-05
A197: =IF('DF raw data'!A202="","",'DF raw data'!A202) -> -232.5 | B197: =IF('DF raw data'!B202="","",'DF raw data'!B202) -> -2.68128e-05 | C197: =IF('DF raw data'!C202="","",'DF raw data'!C202) -> -1.05297e-06 | D197: =IF('DF raw data'!D202="","",'DF raw data'!D202) -> -2.24515e-05 | F197: -2.692045339e-05 | G197: -1.057197675e-06 | H197: -2.254164277e-05 | J197: -0.00122121964 | K197: -0.03964725552 | L197: 1.922851491e-05 | M197: 0.005689632651 | N197: 3.211466204e-05
A198: =IF('DF raw data'!A203="","",'DF raw data'!A203) -> -232 | B198: =IF('DF raw data'!B203="","",'DF raw data'!B203) -> -1.56473e-05 | C198: =IF('DF raw data'!C203="","",'DF raw data'!C203) -> -7.42073e-06 | D198: =IF('DF raw data'!D203="","",'DF raw data'!D203) -> -3.49682e-05 | F198: -1.571012391e-05 | G198: -7.450524231e-06 | H198: -3.510859732e-05 | J198: -0.001229074702 | K198: -0.04026179287 | L198: 1.550325279e-05 | M198: 0.005697384278 | N198: 3.287009453e-05
A199: =IF('DF raw data'!A204="","",'DF raw data'!A204) -> -231.5 | B199: =IF('DF raw data'!B204="","",'DF raw data'!B204) -> -1.73165e-05 | C199: =IF('DF raw data'!C204="","",'DF raw data'!C204) -> -1.16623e-05 | D199: =IF('DF raw data'!D204="","",'DF raw data'!D204) -> -3.17678e-05 | F199: -1.738602575e-05 | G199: -1.170912413e-05 | H199: -3.189534772e-05 | J199: -0.001237767715 | K199: -0.04088067673 | L199: 9.648690726e-06 | M199: 0.005702208623 | N199: 3.363617554e-05
A200: =IF('DF raw data'!A205="","",'DF raw data'!A205) -> -231 | B200: =IF('DF raw data'!B205="","",'DF raw data'!B205) -> -2.16199e-05 | C200: =IF('DF raw data'!C205="","",'DF raw data'!C205) -> -4.31313e-06 | D200: =IF('DF raw data'!D205="","",'DF raw data'!D205) -> -2.06537e-05 | F200: -2.17067039e-05 | G200: -4.330447217e-06 | H200: -2.073662461e-05 | J200: -0.001248621067 | K200: -0.04150498727 | L200: 7.483467118e-06 | M200: 0.005705950357 | N200: 3.441573082e-05
A201: =IF('DF raw data'!A206="","",'DF raw data'!A206) -> -230.5 | B201: =IF('DF raw data'!B206="","",'DF raw data'!B206) -> -1.54596e-05 | C201: =IF('DF raw data'!C206="","",'DF raw data'!C206) -> 5.35907e-08 | D201: =IF('DF raw data'!D206="","",'DF raw data'!D206) -> -2.78299e-05 | F201: -1.552167029e-05 | G201: 5.380586666e-08 | H201: -2.794163705e-05 | J201: -0.001256381902 | K201: -0.04213317822 | L201: 7.510370051e-06 | M201: 0.005709705542 | N201: 3.520500677e-05
... 1061 more rows

Sheet 10 y=-0.1
A1: =IF('DF raw data'!E1="","",'DF raw data'!E1) -> Number of header lines | B1: =IF('DF raw data'!F1="","",'DF raw data'!F1) -> 54 | C1: =IF('DF raw data'!G1="","",'DF raw data'!G1) ->  | D1: =IF('DF raw data'!H1="","",'DF raw data'!H1) ->  | F1: T_coeff | G1: -0.00073 | H1: /degC | J1: IBy total | K1: =J1262*1000 -> -7.079607866 | L1: muTm | M1: =L1262*1000 -> -23.88729905 | R1: DF ref | S1: ='10 y=-0.2'!S1 -> 1
A2: =IF('DF raw data'!E2="","",'DF raw data'!E2) -> Measured by | B2: =IF('DF raw data'!F2="","",'DF raw data'!F2) -> Danfysik | C2: =IF('DF raw data'!G2="","",'DF raw data'!G2) ->  | D2: =IF('DF raw data'!H2="","",'DF raw data'!H2) ->  | F2: Tcorr | G2: 20 | H2: degC | J2: JBy total | K2: =K1262 -> -10.25087315 | L2: muTm^2 | M2: =M1262 -> -6.973276675
A3: =IF('DF raw data'!E3="","",'DF raw data'!E3) -> Operator | B3: =IF('DF raw data'!F3="","",'DF raw data'!F3) -> PMHA | C3: =IF('DF raw data'!G3="","",'DF raw data'!G3) ->  | D3: =IF('DF raw data'!H3="","",'DF raw data'!H3) ->  | F3: Step | G3: =A63-A62 -> 0.5 | H3: mm | J3: PI total | K3: =N1262 -> 10667.91173 | L3: T^2mm^3
A4: =IF('DF raw data'!E4="","",'DF raw data'!E4) -> Data-time | B4: =IF('DF raw data'!F4="","",'DF raw data'!F4) -> 24-07-2024, 13:02:00 | C4: =IF('DF raw data'!G4="","",'DF raw data'!G4) ->  | D4: =IF('DF raw data'!H4="","",'DF raw data'!H4) -> 
A5: =IF('DF raw data'!E5="","",'DF raw data'!E5) -> Project | B5: =IF('DF raw data'!F5="","",'DF raw data'!F5) -> 504314 | C5: =IF('DF raw data'!G5="","",'DF raw data'!G5) ->  | D5: =IF('DF raw data'!H5="","",'DF raw data'!H5) -> 
A6: =IF('DF raw data'!E6="","",'DF raw data'!E6) -> Magnet type | B6: =IF('DF raw data'!F6="","",'DF raw data'!F6) -> Dipole | C6: =IF('DF raw data'!G6="","",'DF raw data'!G6) ->  | D6: =IF('DF raw data'!H6="","",'DF raw data'!H6) -> 
A7: =IF('DF raw data'!E7="","",'DF raw data'!E7) -> Magnet nr. | B7: =IF('DF raw data'!F7="","",'DF raw data'!F7) -> 2410084 | C7: =IF('DF raw data'!G7="","",'DF raw data'!G7) ->  | D7: =IF('DF raw data'!H7="","",'DF raw data'!H7) -> 
A8: =IF('DF raw data'!E8="","",'DF raw data'!E8) -> Meas. number | B8: =IF('DF raw data'!F8="","",'DF raw data'!F8) -> 112 | C8: =IF('DF raw data'!G8="","",'DF raw data'!G8) ->  | D8: =IF('DF raw data'!H8="","",'DF raw data'!H8) -> 
A9: =IF('DF raw data'!E9="","",'DF raw data'!E9) -> Add. info | B9: =IF('DF raw data'!F9="","",'DF raw data'!F9) -> Y-alignment scan 2) | C9: =IF('DF raw data'!G9="","",'DF raw data'!G9) ->  | D9: =IF('DF raw data'!H9="","",'DF raw data'!H9) -> 
A10: =IF('DF raw data'!E10="","",'DF raw data'!E10) -> Device | B10: =IF('DF raw data'!F10="","",'DF raw data'!F10) -> (HAL) HALL-PROBE | C10: =IF('DF raw data'!G10="","",'DF raw data'!G10) ->  | D10: =IF('DF raw data'!H10="","",'DF raw data'!H10) -> 
A11: =IF('DF raw data'!E11="","",'DF raw data'!E11) -> Goal | B11: =IF('DF raw data'!F11="","",'DF raw data'!F11) -> (AXI) AXis Integral (Line, EFB) | C11: =IF('DF raw data'!G11="","",'DF raw data'!G11) ->  | D11: =IF('DF raw data'!H11="","",'DF raw data'!H11) -> 
A12: =IF('DF raw data'!E12="","",'DF raw data'!E12) -> Power supply mode | B12: =IF('DF raw data'!F12="","",'DF raw data'!F12) -> (PM) Permanent Magnet (no MPS in use) | C12: =IF('DF raw data'!G12="","",'DF raw data'!G12) ->  | D12: =IF('DF raw data'!H12="","",'DF raw data'!H12) -> 
A13: =IF('DF raw data'!E13="","",'DF raw data'!E13) -> Data format | B13: =IF('DF raw data'!F13="","",'DF raw data'!F13) -> Raw data text file | C13: =IF('DF raw data'!G13="","",'DF raw data'!G13) ->  | D13: =IF('DF raw data'!H13="","",'DF raw data'!H13) -> 
A14: =IF('DF raw data'!E14="","",'DF raw data'!E14) -> Direction of the pos. x-axis | B14: =IF('DF raw data'!F14="","",'DF raw data'!F14) -> See test program | C14: =IF('DF raw data'!G14="","",'DF raw data'!G14) ->  | D14: =IF('DF raw data'!H14="","",'DF raw data'!H14) -> 
A15: =IF('DF raw data'!E15="","",'DF raw data'!E15) -> Direction of the pos. y-axis | B15: =IF('DF raw data'!F15="","",'DF raw data'!F15) -> Vertical up | C15: =IF('DF raw data'!G15="","",'DF raw data'!G15) ->  | D15: =IF('DF raw data'!H15="","",'DF raw data'!H15) -> 
A16: =IF('DF raw data'!E16="","",'DF raw data'!E16) -> Direction of the pos. z-axis | B16: =IF('DF raw data'!F16="","",'DF raw data'!F16) -> See test program | C16: =IF('DF raw data'!G16="","",'DF raw data'!G16) ->  | D16: =IF('DF raw data'!H16="","",'DF raw data'!H16) -> 
A17: =IF('DF raw data'!E17="","",'DF raw data'!E17) -> Mapper type | B17: =IF('DF raw data'!F17="","",'DF raw data'!F17) -> Precision Hall Mapper | C17: =IF('DF raw data'!G17="","",'DF raw data'!G17) ->  | D17: =IF('DF raw data'!H17="","",'DF raw data'!H17) -> 
A18: =IF('DF raw data'!E18="","",'DF raw data'!E18) -> Mapper Danfysik Reg. Number | B18: =IF('DF raw data'!F18="","",'DF raw data'!F18) -> 2033-D (mapper 1) | C18: =IF('DF raw data'!G18="","",'DF raw data'!G18) ->  | D18: =IF('DF raw data'!H18="","",'DF raw data'!H18) -> 
A19: =IF('DF raw data'!E19="","",'DF raw data'!E19) -> Measurement consept | B19: =IF('DF raw data'!F19="","",'DF raw data'!F19) -> Square line grid | C19: =IF('DF raw data'!G19="","",'DF raw data'!G19) ->  | D19: =IF('DF raw data'!H19="","",'DF raw data'!H19) -> 
A20: =IF('DF raw data'!E20="","",'DF raw data'!E20) -> Mode | B20: =IF('DF raw data'!F20="","",'DF raw data'!F20) -> On-the-fly measurement | C20: =IF('DF raw data'!G20="","",'DF raw data'!G20) ->  | D20: =IF('DF raw data'!H20="","",'DF raw data'!H20) -> 
A21: =IF('DF raw data'!E21="","",'DF raw data'!E21) ->  | B21: =IF('DF raw data'!F21="","",'DF raw data'!F21) ->  | C21: =IF('DF raw data'!G21="","",'DF raw data'!G21) ->  | D21: =IF('DF raw data'!H21="","",'DF raw data'!H21) -> 
A22: =IF('DF raw data'!E22="","",'DF raw data'!E22) -> Probe Name | B22: =IF('DF raw data'!F22="","",'DF raw data'!F22) -> ID12_By | C22: =IF('DF raw data'!G22="","",'DF raw data'!G22) ->  | D22: =IF('DF raw data'!H22="","",'DF raw data'!H22) -> 
A23: =IF('DF raw data'!E23="","",'DF raw data'!E23) -> Probe Type | B23: =IF('DF raw data'!F23="","",'DF raw data'!F23) -> DF_ID_3D_Bxyz | C23: =IF('DF raw data'!G23="","",'DF raw data'!G23) ->  | D23: =IF('DF raw data'!H23="","",'DF raw data'!H23) -> 
A24: =IF('DF raw data'!E24="","",'DF raw data'!E24) -> Probe Danfysik Reg. Number | B24: =IF('DF raw data'!F24="","",'DF raw data'!F24) -> 2277 | C24: =IF('DF raw data'!G24="","",'DF raw data'!G24) ->  | D24: =IF('DF raw data'!H24="","",'DF raw data'!H24) -> 
A25: =IF('DF raw data'!E25="","",'DF raw data'!E25) -> Probe Axis | B25: =IF('DF raw data'!F25="","",'DF raw data'!F25) -> By | C25: =IF('DF raw data'!G25="","",'DF raw data'!G25) ->  | D25: =IF('DF raw data'!H25="","",'DF raw data'!H25) -> 
A26: =IF('DF raw data'!E26="","",'DF raw data'!E26) -> Probe Current Supply | B26: =IF('DF raw data'!F26="","",'DF raw data'!F26) -> 1825-D | C26: =IF('DF raw data'!G26="","",'DF raw data'!G26) ->  | D26: =IF('DF raw data'!H26="","",'DF raw data'!H26) -> 
A27: =IF('DF raw data'!E27="","",'DF raw data'!E27) -> Probe Gain Correction | B27: =IF('DF raw data'!F27="","",'DF raw data'!F27) -> 0.99612 | C27: =IF('DF raw data'!G27="","",'DF raw data'!G27) ->  | D27: =IF('DF raw data'!H27="","",'DF raw data'!H27) -> 
A28: =IF('DF raw data'!E28="","",'DF raw data'!E28) -> Probe Offset Correction | B28: =IF('DF raw data'!F28="","",'DF raw data'!F28) -> 0.0027559 | C28: =IF('DF raw data'!G28="","",'DF raw data'!G28) ->  | D28: =IF('DF raw data'!H28="","",'DF raw data'!H28) -> 
A29: =IF('DF raw data'!E29="","",'DF raw data'!E29) -> DVM Number | B29: =IF('DF raw data'!F29="","",'DF raw data'!F29) -> 2 | C29: =IF('DF raw data'!G29="","",'DF raw data'!G29) ->  | D29: =IF('DF raw data'!H29="","",'DF raw data'!H29) -> 
A30: =IF('DF raw data'!E30="","",'DF raw data'!E30) -> DVM Type | B30: =IF('DF raw data'!F30="","",'DF raw data'!F30) -> K2701 | C30: =IF('DF raw data'!G30="","",'DF raw data'!G30) ->  | D30: =IF('DF raw data'!H30="","",'DF raw data'!H30) -> 
A31: =IF('DF raw data'!E31="","",'DF raw data'!E31) -> DVM Danfysik Reg. Number | B31: =IF('DF raw data'!F31="","",'DF raw data'!F31) -> 1743-D | C31: =IF('DF raw data'!G31="","",'DF raw data'!G31) ->  | D31: =IF('DF raw data'!H31="","",'DF raw data'!H31) -> 
A32: =IF('DF raw data'!E32="","",'DF raw data'!E32) -> Probe Name | B32: =IF('DF raw data'!F32="","",'DF raw data'!F32) -> ID12_Bx | C32: =IF('DF raw data'!G32="","",'DF raw data'!G32) ->  | D32: =IF('DF raw data'!H32="","",'DF raw data'!H32) -> 
A33: =IF('DF raw data'!E33="","",'DF raw data'!E33) -> Probe Type | B33: =IF('DF raw data'!F33="","",'DF raw data'!F33) -> DF_ID_3D_Bxyz | C33: =IF('DF raw data'!G33="","",'DF raw data'!G33) ->  | D33: =IF('DF raw data'!H33="","",'DF raw data'!H33) -> 
A34: =IF('DF raw data'!E34="","",'DF raw data'!E34) -> Probe Danfysik Reg. Number | B34: =IF('DF raw data'!F34="","",'DF raw data'!F34) -> 2277 | C34: =IF('DF raw data'!G34="","",'DF raw data'!G34) ->  | D34: =IF('DF raw data'!H34="","",'DF raw data'!H34) -> 
A35: =IF('DF raw data'!E35="","",'DF raw data'!E35) -> Probe Axis | B35: =IF('DF raw data'!F35="","",'DF raw data'!F35) -> Bx | C35: =IF('DF raw data'!G35="","",'DF raw data'!G35) ->  | D35: =IF('DF raw data'!H35="","",'DF raw data'!H35) -> 
A36: =IF('DF raw data'!E36="","",'DF raw data'!E36) -> Probe Current Supply | B36: =IF('DF raw data'!F36="","",'DF raw data'!F36) -> 1825-D | C36: =IF('DF raw data'!G36="","",'DF raw data'!G36) ->  | D36: =IF('DF raw data'!H36="","",'DF raw data'!H36) -> 
A37: =IF('DF raw data'!E37="","",'DF raw data'!E37) -> Probe Gain Correction | B37: =IF('DF raw data'!F37="","",'DF raw data'!F37) -> 1 | C37: =IF('DF raw data'!G37="","",'DF raw data'!G37) ->  | D37: =IF('DF raw data'!H37="","",'DF raw data'!H37) -> 
A38: =IF('DF raw data'!E38="","",'DF raw data'!E38) -> Probe Offset Correction | B38: =IF('DF raw data'!F38="","",'DF raw data'!F38) -> -0.17567 | C38: =IF('DF raw data'!G38="","",'DF raw data'!G38) ->  | D38: =IF('DF raw data'!H38="","",'DF raw data'!H38) -> 
A39: =IF('DF raw data'!E39="","",'DF raw data'!E39) -> DVM Number | B39: =IF('DF raw data'!F39="","",'DF raw data'!F39) -> 3 | C39: =IF('DF raw data'!G39="","",'DF raw data'!G39) ->  | D39: =IF('DF raw data'!H39="","",'DF raw data'!H39) -> 
A40: =IF('DF raw data'!E40="","",'DF raw data'!E40) -> DVM Type | B40: =IF('DF raw data'!F40="","",'DF raw data'!F40) -> K2701 | C40: =IF('DF raw data'!G40="","",'DF raw data'!G40) ->  | D40: =IF('DF raw data'!H40="","",'DF raw data'!H40) -> 
A41: =IF('DF raw data'!E41="","",'DF raw data'!E41) -> DVM Danfysik Reg. Number | B41: =IF('DF raw data'!F41="","",'DF raw data'!F41) -> 1744-D | C41: =IF('DF raw data'!G41="","",'DF raw data'!G41) ->  | D41: =IF('DF raw data'!H41="","",'DF raw data'!H41) -> 
A42: =IF('DF raw data'!E42="","",'DF raw data'!E42) -> Probe Name | B42: =IF('DF raw data'!F42="","",'DF raw data'!F42) -> ID12_Bz | C42: =IF('DF raw data'!G42="","",'DF raw data'!G42) ->  | D42: =IF('DF raw data'!H42="","",'DF raw data'!H42) -> 
A43: =IF('DF raw data'!E43="","",'DF raw data'!E43) -> Probe Type | B43: =IF('DF raw data'!F43="","",'DF raw data'!F43) -> DF_ID_3D_Bxyz | C43: =IF('DF raw data'!G43="","",'DF raw data'!G43) ->  | D43: =IF('DF raw data'!H43="","",'DF raw data'!H43) -> 
A44: =IF('DF raw data'!E44="","",'DF raw data'!E44) -> Probe Danfysik Reg. Number | B44: =IF('DF raw data'!F44="","",'DF raw data'!F44) -> 2277 | C44: =IF('DF raw data'!G44="","",'DF raw data'!G44) ->  | D44: =IF('DF raw data'!H44="","",'DF raw data'!H44) -> 
A45: =IF('DF raw data'!E45="","",'DF raw data'!E45) -> Probe Axis | B45: =IF('DF raw data'!F45="","",'DF raw data'!F45) -> Bz | C45: =IF('DF raw data'!G45="","",'DF raw data'!G45) ->  | D45: =IF('DF raw data'!H45="","",'DF raw data'!H45) -> 
A46: =IF('DF raw data'!E46="","",'DF raw data'!E46) -> Probe Current Supply | B46: =IF('DF raw data'!F46="","",'DF raw data'!F46) -> 1825-D | C46: =IF('DF raw data'!G46="","",'DF raw data'!G46) ->  | D46: =IF('DF raw data'!H46="","",'DF raw data'!H46) -> 
A47: =IF('DF raw data'!E47="","",'DF raw data'!E47) -> Probe Gain Correction | B47: =IF('DF raw data'!F47="","",'DF raw data'!F47) -> 1 | C47: =IF('DF raw data'!G47="","",'DF raw data'!G47) ->  | D47: =IF('DF raw data'!H47="","",'DF raw data'!H47) -> 
A48: =IF('DF raw data'!E53="","",'DF raw data'!E53) -> PS-Gap: | B48: =IF('DF raw data'!F53="","",'DF raw data'!F53) -> 10 | C48: =IF('DF raw data'!G53="","",'DF raw data'!G53) ->  | D48: =IF('DF raw data'!H53="","",'DF raw data'!H53) -> 
A49: =IF('DF raw data'!E54="","",'DF raw data'!E54) -> PS-Temperature: | B49: =IF('DF raw data'!F54="","",'DF raw data'!F54) -> 25.5 | C49: =IF('DF raw data'!G54="","",'DF raw data'!G54) ->  | D49: =IF('DF raw data'!H54="","",'DF raw data'!H54) -> 
A50: =IF('DF raw data'!E55="","",'DF raw data'!E55) -> PS-Encoder: | B50: =IF('DF raw data'!F55="","",'DF raw data'!F55) -> 19.434 | C50: =IF('DF raw data'!G55="","",'DF raw data'!G55) ->  | D50: =IF('DF raw data'!H55="","",'DF raw data'!H55) -> 
A51: =IF('DF raw data'!E56="","",'DF raw data'!E56) ->  | B51: =IF('DF raw data'!F56="","",'DF raw data'!F56) ->  | C51: =IF('DF raw data'!G56="","",'DF raw data'!G56) ->  | D51: =IF('DF raw data'!H56="","",'DF raw data'!H56) -> 
A52: =IF('DF raw data'!E57="","",'DF raw data'!E57) -> Monitor-Index | B52: =IF('DF raw data'!F57="","",'DF raw data'!F57) -> [1,1,4] | C52: =IF('DF raw data'!G57="","",'DF raw data'!G57) ->  | D52: =IF('DF raw data'!H57="","",'DF raw data'!H57) -> 
A53: =IF('DF raw data'!E58="","",'DF raw data'!E58) ->  | B53: =IF('DF raw data'!F58="","",'DF raw data'!F58) ->  | C53: =IF('DF raw data'!G58="","",'DF raw data'!G58) ->  | D53: =IF('DF raw data'!H58="","",'DF raw data'!H58) -> 
A54: =IF('DF raw data'!E59="","",'DF raw data'!E59) -> Time [s] | B54: =IF('DF raw data'!F59="","",'DF raw data'!F59) -> Y [mm] | C54: =IF('DF raw data'!G59="","",'DF raw data'!G59) -> X [mm] | D54: =IF('DF raw data'!H59="","",'DF raw data'!H59) -> Nominal current [A]
A55: =IF('DF raw data'!E60="","",'DF raw data'!E60) ->  | B55: =IF('DF raw data'!F60="","",'DF raw data'!F60) ->  | C55: =IF('DF raw data'!G60="","",'DF raw data'!G60) ->  | D55: =IF('DF raw data'!H60="","",'DF raw data'!H60) -> 
A56: =IF('DF raw data'!E61="","",'DF raw data'!E61) -> 207.2 | B56: =IF('DF raw data'!F61="","",'DF raw data'!F61) -> 31.26 | C56: =IF('DF raw data'!G61="","",'DF raw data'!G61) -> 301.8 | D56: =IF('DF raw data'!H61="","",'DF raw data'!H61) -> 0
A57: =IF('DF raw data'!E62="","",'DF raw data'!E62) ->  | B57: =IF('DF raw data'!F62="","",'DF raw data'!F62) ->  | C57: =IF('DF raw data'!G62="","",'DF raw data'!G62) ->  | D57: =IF('DF raw data'!H62="","",'DF raw data'!H62) -> 
A58: =IF('DF raw data'!E63="","",'DF raw data'!E63) -> Measurement-Index | B58: =IF('DF raw data'!F63="","",'DF raw data'!F63) -> [1,1,1201,2] | C58: =IF('DF raw data'!G63="","",'DF raw data'!G63) ->  | D58: =IF('DF raw data'!H63="","",'DF raw data'!H63) -> 
A59: =IF('DF raw data'!E64="","",'DF raw data'!E64) ->  | B59: =IF('DF raw data'!F64="","",'DF raw data'!F64) ->  | C59: =IF('DF raw data'!G64="","",'DF raw data'!G64) ->  | D59: =IF('DF raw data'!H64="","",'DF raw data'!H64) -> 
A60: =IF('DF raw data'!E65="","",'DF raw data'!E65) -> Z [mm] | B60: By [T] | C60: Bx [T] | D60: Bz [T] | F60: By_corr | G60: Bx_corr | H60: Bz_corr | J60: Iy | K60: Jy | L60: Ix | M60: Jx | N60: PI
A62: =IF('DF raw data'!E67="","",'DF raw data'!E67) -> -300 | B62: =IF('DF raw data'!F67="","",'DF raw data'!F67) -> -7.30292e-06 | C62: =IF('DF raw data'!G67="","",'DF raw data'!G67) -> -6.82535e-07 | D62: =IF('DF raw data'!H67="","",'DF raw data'!H67) -> -4.12108e-05 | F62: =(1-$G$1*($B$49))*B62 -> -7.438863856e-06 | G62: =(1-$G$1*($B$49-$G$2))*C62 -> -6.85275378e-07 | H62: =(1-$G$1*($B$49-$G$2))*D62 -> -4.137626136e-05 | J62: =F62*$G$3 -> -3.719431928e-06 | K62: =J62*$G$3 -> -1.859715964e-06 | L62: =G62*$G$3 -> -3.42637689e-07 | M62: =L62*$G$3 -> -1.713188445e-07 | N62: =(J62^2+L62^2)*$G$3 -> 6.975787226e-12
A63: =IF('DF raw data'!E68="","",'DF raw data'!E68) -> -299.5 | B63: =IF('DF raw data'!F68="","",'DF raw data'!F68) -> -2.21158e-05 | C63: =IF('DF raw data'!G68="","",'DF raw data'!G68) -> 8.90993e-06 | D63: =IF('DF raw data'!H68="","",'DF raw data'!H68) -> -4.05085e-05 | F63: =(1-$G$1*($B$49-$G$2))*B63 -> -2.220459494e-05 | G63: =(1-$G$1*($B$49-$G$2))*C63 -> 8.945703369e-06 | H63: -4.067114163e-05 | J63: =F63*$G$3+J62 -> -1.48217294e-05 | K63: =J63*$G$3+K62 -> -9.270580662e-06 | L63: =G63*$G$3+L62 -> 4.130213995e-06 | M63: =L63*$G$3+M62 -> 1.893788153e-06 | N63: =(J63^2+L63^2)*$G$3+N62 -> 1.253469522e-10
A64: =IF('DF raw data'!E69="","",'DF raw data'!E69) -> -299 | B64: =IF('DF raw data'!F69="","",'DF raw data'!F69) -> -1.69225e-05 | C64: =IF('DF raw data'!G69="","",'DF raw data'!G69) -> 1.41146e-05 | D64: =IF('DF raw data'!H69="","",'DF raw data'!H69) -> -3.94513e-05 | F64: =(1-$G$1*($B$49-$G$2))*B64 -> -1.699044384e-05 | G64: 1.417127012e-05 | H64: -3.960969697e-05 | J64: =F64*$G$3+J63 -> -2.331695132e-05 | K64: =J64*$G$3+K63 -> -2.092905632e-05 | L64: =G64*$G$3+L63 -> 1.121584905e-05 | M64: =L64*$G$3+M63 -> 7.501712681e-06 | N64: =(J64^2+L64^2)*$G$3+N63 -> 4.600846965e-10
A65: =IF('DF raw data'!E70="","",'DF raw data'!E70) -> -298.5 | B65: =IF('DF raw data'!F70="","",'DF raw data'!F70) -> -2.33349e-05 | C65: =IF('DF raw data'!G70="","",'DF raw data'!G70) -> 7.05887e-06 | D65: =IF('DF raw data'!H70="","",'DF raw data'!H70) -> -3.90294e-05 | F65: -2.342858962e-05 | G65: 7.087211363e-06 | H65: -3.918610304e-05 | J65: -3.503124613e-05 | K65: -3.844467938e-05 | L65: 1.475945474e-05 | M65: 1.488144005e-05 | N65: 1.182599551e-09
A66: =IF('DF raw data'!E71="","",'DF raw data'!E71) -> -298 | B66: =IF('DF raw data'!F71="","",'DF raw data'!F71) -> -1.8141e-05 | C66: =IF('DF raw data'!G71="","",'DF raw data'!G71) -> 5.43546e-08 | D66: =IF('DF raw data'!H71="","",'DF raw data'!H71) -> -3.90314e-05 | F66: -1.821383612e-05 | G66: 5.457283372e-08 | H66: -3.918811107e-05 | J66: -4.413816418e-05 | K66: -6.051376148e-05 | L66: 1.478674115e-05 | M66: 2.227481063e-05 | N66: 2.266012177e-09
A67: =IF('DF raw data'!E72="","",'DF raw data'!E72) -> -297.5 | B67: =IF('DF raw data'!F72="","",'DF raw data'!F72) -> -2.82726e-05 | C67: =IF('DF raw data'!G72="","",'DF raw data'!G72) -> -2.27496e-06 | D67: =IF('DF raw data'!H72="","",'DF raw data'!H72) -> -3.86973e-05 | F67: -2.838611449e-05 | G67: -2.284093964e-06 | H67: -3.885266966e-05 | J67: -5.833122143e-05 | K67: -8.967937219e-05 | L67: 1.364469417e-05 | M67: 2.909715771e-05 | N67: 4.060366713e-09
A68: =IF('DF raw data'!E73="","",'DF raw data'!E73) -> -297 | B68: =IF('DF raw data'!F73="","",'DF raw data'!F73) -> -2.18607e-05 | C68: =IF('DF raw data'!G73="","",'DF raw data'!G73) -> 1.61292e-06 | D68: =IF('DF raw data'!H73="","",'DF raw data'!H73) -> -3.83399e-05 | F68: -2.194847071e-05 | G68: 1.619395874e-06 | H68: -3.84938347e-05 | J68: -6.930545678e-05 | K68: -0.0001243321006 | L68: 1.445439211e-05 | M68: 3.632435377e-05 | N68: 6.566454609e-09
A69: =IF('DF raw data'!E74="","",'DF raw data'!E74) -> -296.5 | B69: =IF('DF raw data'!F74="","",'DF raw data'!F74) -> -2.15399e-05 | C69: =IF('DF raw data'!G74="","",'DF raw data'!G74) -> 6.00979e-07 | D69: =IF('DF raw data'!H74="","",'DF raw data'!H74) -> -3.84144e-05 | F69: -2.16263827e-05 | G69: 6.033919307e-07 | H69: -3.856863382e-05 | J69: -8.011864813e-05 | K69: -0.0001643914246 | L69: 1.475608807e-05 | M69: 4.37023978e-05 | N69: 9.884824566e-09
A70: =IF('DF raw data'!E75="","",'DF raw data'!E75) -> -296 | B70: =IF('DF raw data'!F75="","",'DF raw data'!F75) -> -1.92955e-05 | C70: =IF('DF raw data'!G75="","",'DF raw data'!G75) -> 6.71192e-06 | D70: =IF('DF raw data'!H75="","",'DF raw data'!H75) -> -3.84498e-05 | F70: -1.937297143e-05 | G70: 6.738868359e-06 | H70: -3.860417595e-05 | J70: -8.980513385e-05 | K70: -0.0002092939916 | L70: 1.812552225e-05 | M70: 5.276515893e-05 | N70: 1.408157288e-08
A71: =IF('DF raw data'!E76="","",'DF raw data'!E76) -> -295.5 | B71: =IF('DF raw data'!F76="","",'DF raw data'!F76) -> -2.86579e-05 | C71: =IF('DF raw data'!G76="","",'DF raw data'!G76) -> 8.11084e-07 | D71: =IF('DF raw data'!H76="","",'DF raw data'!H76) -> -3.78381e-05 | F71: -2.877296147e-05 | G71: 8.143405023e-07 | H71: -3.799001997e-05 | J71: -0.0001041916146 | K71: -0.0002613897989 | L71: 1.85326925e-05 | M71: 6.203150518e-05 | N71: 1.96812495e-08
A72: =IF('DF raw data'!E77="","",'DF raw data'!E77) -> -295 | B72: =IF('DF raw data'!F77="","",'DF raw data'!F77) -> -1.30122e-05 | C72: =IF('DF raw data'!G77="","",'DF raw data'!G77) -> -2.72368e-06 | D72: =IF('DF raw data'!H77="","",'DF raw data'!H77) -> -3.7543e-05 | F72: -1.306444398e-05 | G72: -2.734615575e-06 | H72: -3.769373515e-05 | J72: -0.0001107238366 | K72: -0.0003167517172 | L72: 1.716538472e-05 | M72: 7.061419754e-05 | N72: 2.595845871e-08
A73: =IF('DF raw data'!E78="","",'DF raw data'!E78) -> -294.5 | B73: =IF('DF raw data'!F78="","",'DF raw data'!F78) -> -1.44868e-05 | C73: =IF('DF raw data'!G78="","",'DF raw data'!G78) -> 4.74805e-06 | D73: =IF('DF raw data'!H78="","",'DF raw data'!H78) -> -3.80868e-05 | F73: -1.45449645e-05 | G73: 4.767113421e-06 | H73: -3.82397185e-05 | J73: -0.0001179963188 | K73: -0.0003757498766 | L73: 1.954894143e-05 | M73: 8.038866825e-05 | N73: 3.311110489e-08
A74: =IF('DF raw data'!E79="","",'DF raw data'!E79) -> -294 | B74: =IF('DF raw data'!F79="","",'DF raw data'!F79) -> -9.99777e-06 | C74: =IF('DF raw data'!G79="","",'DF raw data'!G79) -> 3.61991e-06 | D74: =IF('DF raw data'!H79="","",'DF raw data'!H79) -> -3.8522e-05 | F74: -1.003791105e-05 | G74: 3.634443939e-06 | H74: -3.867666583e-05 | J74: -0.0001230152743 | K74: -0.0004372575137 | L74: 2.13661634e-05 | M74: 9.107174995e-05 | N74: 4.090574022e-08
A75: =IF('DF raw data'!E80="","",'DF raw data'!E80) -> -293.5 | B75: =IF('DF raw data'!F80="","",'DF raw data'!F80) -> -2.39127e-05 | C75: =IF('DF raw data'!G80="","",'DF raw data'!G80) -> 5.37329e-06 | D75: =IF('DF raw data'!H80="","",'DF raw data'!H80) -> -3.8229e-05 | F75: -2.400870949e-05 | G75: 5.394863759e-06 | H75: -3.838248944e-05 | J75: -0.0001350196291 | K75: -0.0005047673283 | L75: 2.406359528e-05 | M75: 0.0001031035476 | N75: 5.031041865e-08
A76: =IF('DF raw data'!E81="","",'DF raw data'!E81) -> -293 | B76: =IF('DF raw data'!F81="","",'DF raw data'!F81) -> -2.17509e-06 | C76: =IF('DF raw data'!G81="","",'DF raw data'!G81) -> 5.31117e-06 | D76: =IF('DF raw data'!H81="","",'DF raw data'!H81) -> -3.83406e-05 | F76: -2.183822986e-06 | G76: 5.332494348e-06 | H76: -3.849453751e-05 | J76: -0.0001361115406 | K76: -0.0005728230986 | L76: 2.672984245e-05 | M76: 0.0001164684688 | N76: 5.993083663e-08
A77: =IF('DF raw data'!E82="","",'DF raw data'!E82) -> -292.5 | B77: =IF('DF raw data'!F82="","",'DF raw data'!F82) -> -1.55763e-05 | C77: =IF('DF raw data'!G82="","",'DF raw data'!G82) -> 4.62456e-06 | D77: =IF('DF raw data'!H82="","",'DF raw data'!H82) -> -3.87252e-05 | F77: -1.563883884e-05 | G77: 4.643127608e-06 | H77: -3.888068168e-05 | J77: -0.00014393096 | K77: -0.0006447885786 | L77: 2.905140625e-05 | M77: 0.0001309941719 | N77: 7.071088936e-08
A78: =IF('DF raw data'!E83="","",'DF raw data'!E83) -> -292 | B78: =IF('DF raw data'!F83="","",'DF raw data'!F83) -> -1.36526e-05 | C78: =IF('DF raw data'!G83="","",'DF raw data'!G83) -> 3.22765e-06 | D78: =IF('DF raw data'!H83="","",'DF raw data'!H83) -> -3.87944e-05 | F78: -1.370741519e-05 | G78: 3.240609015e-06 | H78: -3.895015952e-05 | J78: -0.0001507846676 | K78: -0.0007201809124 | L78: 3.067171076e-05 | M78: 0.0001463300273 | N78: 8.254927427e-08
A79: =IF('DF raw data'!E84="","",'DF raw data'!E84) -> -291.5 | B79: =IF('DF raw data'!F84="","",'DF raw data'!F84) -> -1.17933e-05 | C79: =IF('DF raw data'!G84="","",'DF raw data'!G84) -> 4.69538e-06 | D79: =IF('DF raw data'!H84="","",'DF raw data'!H84) -> -3.83612e-05 | F79: -1.18406501e-05 | G79: 4.714231951e-06 | H79: -3.851522022e-05 | J79: -0.0001567049927 | K79: -0.0007985334087 | L79: 3.302882674e-05 | M79: 0.0001628444407 | N79: 9.537295333e-08
A80: =IF('DF raw data'!E85="","",'DF raw data'!E85) -> -291 | B80: =IF('DF raw data'!F85="","",'DF raw data'!F85) -> -1.372e-05 | C80: =IF('DF raw data'!G85="","",'DF raw data'!G85) -> 6.7915e-07 | D80: =IF('DF raw data'!H85="","",'DF raw data'!H85) -> -3.367e-05 | F80: -1.37750858e-05 | G80: 6.818767873e-07 | H80: -3.380518505e-05 | J80: -0.0001635925356 | K80: -0.0008803296765 | L80: 3.336976513e-05 | M80: 0.0001795293233 | N80: 1.093109828e-07
A81: =IF('DF raw data'!E86="","",'DF raw data'!E86) -> -290.5 | B81: =IF('DF raw data'!F86="","",'DF raw data'!F86) -> -1.55688e-05 | C81: =IF('DF raw data'!G86="","",'DF raw data'!G86) -> -9.19953e-06 | D81: =IF('DF raw data'!H86="","",'DF raw data'!H86) -> -5.03644e-05 | F81: -1.563130873e-05 | G81: -9.236466113e-06 | H81: -5.056661307e-05 | J81: -0.0001714081899 | K81: -0.0009660337715 | L81: 2.875153207e-05 | M81: 0.0001939050893 | N81: 1.244146919e-07
A82: =IF('DF raw data'!E87="","",'DF raw data'!E87) -> -290 | B82: =IF('DF raw data'!F87="","",'DF raw data'!F87) -> -2.35856e-05 | C82: =IF('DF raw data'!G87="","",'DF raw data'!G87) -> -4.13654e-06 | D82: =IF('DF raw data'!H87="","",'DF raw data'!H87) -> -4.80378e-05 | F82: -2.368029618e-05 | G82: -4.153148208e-06 | H82: -4.823067177e-05 | J82: -0.000183248338 | K82: -0.00105765794 | L82: 2.667495797e-05 | M82: 0.0002072425683 | N82: 1.415604453e-07
A83: =IF('DF raw data'!E88="","",'DF raw data'!E88) -> -289.5 | B83: =IF('DF raw data'!F88="","",'DF raw data'!F88) -> -2.15421e-05 | C83: =IF('DF raw data'!G88="","",'DF raw data'!G88) -> 8.82315e-07 | D83: =IF('DF raw data'!H88="","",'DF raw data'!H88) -> -3.51679e-05 | F83: -2.162859153e-05 | G83: 8.858574947e-07 | H83: -3.530909912e-05 | J83: -0.0001940626338 | K83: -0.001154689257 | L83: 2.711788672e-05 | M83: 0.0002208015116 | N83: 1.607582881e-07
A84: =IF('DF raw data'!E89="","",'DF raw data'!E89) -> -289 | B84: =IF('DF raw data'!F89="","",'DF raw data'!F89) -> -5.50254e-06 | C84: =IF('DF raw data'!G89="","",'DF raw data'!G89) -> 6.3571e-06 | D84: =IF('DF raw data'!H89="","",'DF raw data'!H89) -> -4.89233e-05 | F84: -5.524632698e-06 | G84: 6.382623757e-06 | H84: -4.911972705e-05 | J84: -0.0001968249501 | K84: -0.001253101732 | L84: 3.03091986e-05 | M84: 0.0002359561109 | N84: 1.805876423e-07
A85: =IF('DF raw data'!E90="","",'DF raw data'!E90) -> -288.5 | B85: =IF('DF raw data'!F90="","",'DF raw data'!F90) -> -2.44842e-05 | C85: =IF('DF raw data'!G90="","",'DF raw data'!G90) -> 2.64643e-06 | D85: =IF('DF raw data'!H90="","",'DF raw data'!H90) -> -4.66263e-05 | F85: -2.458250406e-05 | G85: 2.657055416e-06 | H85: -4.681350459e-05 | J85: -0.0002091162022 | K85: -0.001357659833 | L85: 3.16377263e-05 | M85: 0.0002517749741 | N85: 2.029529082e-07
A86: =IF('DF raw data'!E91="","",'DF raw data'!E91) -> -288 | B86: =IF('DF raw data'!F91="","",'DF raw data'!F91) -> -2.53275e-05 | C86: =IF('DF raw data'!G91="","",'DF raw data'!G91) -> -2.99475e-06 | D86: =IF('DF raw data'!H91="","",'DF raw data'!H91) -> -3.19414e-05 | F86: -2.542918991e-05 | G86: -3.006773921e-06 | H86: -3.206964472e-05 | J86: -0.0002218307971 | K86: -0.001468575232 | L86: 3.013433934e-05 | M86: 0.0002668421438 | N86: 2.280113987e-07
A87: =IF('DF raw data'!E92="","",'DF raw data'!E92) -> -287.5 | B87: =IF('DF raw data'!F92="","",'DF raw data'!F92) -> -2.46229e-05 | C87: =IF('DF raw data'!G92="","",'DF raw data'!G92) -> 1.48785e-06 | D87: =IF('DF raw data'!H92="","",'DF raw data'!H92) -> -3.06474e-05 | F87: -2.472176094e-05 | G87: 1.493823718e-06 | H87: -3.077044931e-05 | J87: -0.0002341916776 | K87: -0.001585671071 | L87: 3.08812512e-05 | M87: 0.0002822827694 | N87: 2.559110954e-07
A88: =IF('DF raw data'!E93="","",'DF raw data'!E93) -> -287 | B88: =IF('DF raw data'!F93="","",'DF raw data'!F93) -> -2.17931e-05 | C88: =IF('DF raw data'!G93="","",'DF raw data'!G93) -> 9.10885e-06 | D88: =IF('DF raw data'!H93="","",'DF raw data'!H93) -> -4.35248e-05 | F88: -2.18805993e-05 | G88: 9.145422033e-06 | H88: -4.369955207e-05 | J88: -0.0002451319772 | K88: -0.001708237059 | L88: 3.545396222e-05 | M88: 0.0003000097505 | N88: 2.865844303e-07
A89: =IF('DF raw data'!E94="","",'DF raw data'!E94) -> -286.5 | B89: =IF('DF raw data'!F94="","",'DF raw data'!F94) -> -2.72453e-05 | C89: =IF('DF raw data'!G94="","",'DF raw data'!G94) -> 5.08286e-06 | D89: =IF('DF raw data'!H94="","",'DF raw data'!H94) -> -4.08694e-05 | F89: -2.735468988e-05 | G89: 5.103267683e-06 | H89: -4.103349064e-05 | J89: -0.0002588093222 | K89: -0.001837641721 | L89: 3.800559606e-05 | M89: 0.0003190125485 | N89: 3.207977756e-07
A90: =IF('DF raw data'!E95="","",'DF raw data'!E95) -> -286 | B90: =IF('DF raw data'!F95="","",'DF raw data'!F95) -> -2.68572e-05 | C90: =IF('DF raw data'!G95="","",'DF raw data'!G95) -> 1.76335e-06 | D90: =IF('DF raw data'!H95="","",'DF raw data'!H95) -> -4.61067e-05 | F90: -2.696503166e-05 | G90: 1.77042985e-06 | H90: -4.62918184e-05 | J90: -0.000272291838 | K90: -0.00197378764 | L90: 3.889081098e-05 | M90: 0.000338457954 | N90: 3.586254457e-07
A91: =IF('DF raw data'!E96="","",'DF raw data'!E96) -> -285.5 | B91: =IF('DF raw data'!F96="","",'DF raw data'!F96) -> -3.09604e-05 | C91: =IF('DF raw data'!G96="","",'DF raw data'!G96) -> 3.31455e-06 | D91: =IF('DF raw data'!H96="","",'DF raw data'!H96) -> -4.70459e-05 | F91: -3.108470601e-05 | G91: 3.327857918e-06 | H91: -4.723478929e-05 | J91: -0.000287834191 | K91: -0.002117704735 | L91: 4.055473994e-05 | M91: 0.000358735324 | N91: 4.008720499e-07
A92: =IF('DF raw data'!E97="","",'DF raw data'!E97) -> -285 | B92: =IF('DF raw data'!F97="","",'DF raw data'!F97) -> -2.91664e-05 | C92: =IF('DF raw data'!G97="","",'DF raw data'!G97) -> 8.97803e-06 | D92: =IF('DF raw data'!H97="","",'DF raw data'!H97) -> -4.48083e-05 | F92: -2.92835031e-05 | G92: 9.01407679e-06 | H92: -4.498820532e-05 | J92: -0.0003024759426 | K92: -0.002268942706 | L92: 4.506177834e-05 | M92: 0.0003812662131 | N92: 4.476331797e-07
A93: =IF('DF raw data'!E98="","",'DF raw data'!E98) -> -284.5 | B93: =IF('DF raw data'!F98="","",'DF raw data'!F98) -> -1.9674e-05 | C93: =IF('DF raw data'!G98="","",'DF raw data'!G98) -> 6.44394e-06 | D93: =IF('DF raw data'!H98="","",'DF raw data'!H98) -> -4.8207e-05 | F93: -1.975299111e-05 | G93: 6.469812419e-06 | H93: -4.840055111e-05 | J93: -0.0003123524381 | K93: -0.002425118925 | L93: 4.829668455e-05 | M93: 0.0004054145554 | N93: 4.975814874e-07
A94: =IF('DF raw data'!E99="","",'DF raw data'!E99) -> -284 | B94: =IF('DF raw data'!F99="","",'DF raw data'!F99) -> -1.81392e-05 | C94: =IF('DF raw data'!G99="","",'DF raw data'!G99) -> 1.67351e-05 | D94: =IF('DF raw data'!H99="","",'DF raw data'!H99) -> -4.18839e-05 | F94: -1.821202889e-05 | G94: 1.680229143e-05 | H94: -4.205206386e-05 | J94: -0.0003214584526 | K94: -0.002585848152 | L94: 5.669783026e-05 | M94: 0.0004337634705 | N94: 5.508565777e-07
A95: =IF('DF raw data'!E100="","",'DF raw data'!E100) -> -283.5 | B95: =IF('DF raw data'!F100="","",'DF raw data'!F100) -> -2.17357e-05 | C95: =IF('DF raw data'!G100="","",'DF raw data'!G100) -> 1.98837e-05 | D95: =IF('DF raw data'!H100="","",'DF raw data'!H100) -> -3.34445e-05 | F95: -2.182296884e-05 | G95: 1.996353306e-05 | H95: -3.357877967e-05 | J95: -0.000332369937 | K95: -0.00275203312 | L95: 6.667959679e-05 | M95: 0.0004671032689 | N95: 6.083145496e-07
A96: =IF('DF raw data'!E101="","",'DF raw data'!E101) -> -283 | B96: =IF('DF raw data'!F101="","",'DF raw data'!F101) -> -2.49317e-05 | C96: =IF('DF raw data'!G101="","",'DF raw data'!G101) -> 9.14977e-06 | D96: =IF('DF raw data'!H101="","",'DF raw data'!H101) -> -4.90098e-05 | F96: -2.503180078e-05 | G96: 9.186506327e-06 | H96: -4.920657435e-05 | J96: -0.0003448858374 | K96: -0.002924476039 | L96: 7.127284995e-05 | M96: 0.0005027396939 | N96: 6.703275795e-07
A97: =IF('DF raw data'!E102="","",'DF raw data'!E102) -> -282.5 | B97: =IF('DF raw data'!F102="","",'DF raw data'!F102) -> -2.32069e-05 | C97: =IF('DF raw data'!G102="","",'DF raw data'!G102) -> 4.81001e-06 | D97: =IF('DF raw data'!H102="","",'DF raw data'!H102) -> -3.88327e-05 | F97: -2.33000757e-05 | G97: 4.82932219e-06 | H97: -3.898861329e-05 | J97: -0.0003565358752 | K97: -0.003102743976 | L97: 7.368751105e-05 | M97: 0.0005395834494 | N97: 7.366014193e-07
A98: =IF('DF raw data'!E103="","",'DF raw data'!E103) -> -282 | B98: =IF('DF raw data'!F103="","",'DF raw data'!F103) -> -2.13482e-05 | C98: =IF('DF raw data'!G103="","",'DF raw data'!G103) -> 1.22722e-05 | D98: =IF('DF raw data'!H103="","",'DF raw data'!H103) -> -3.77439e-05 | F98: -2.143391302e-05 | G98: 1.232147288e-05 | H98: -3.789544176e-05 | J98: -0.0003672528317 | K98: -0.003286370392 | L98: 7.984824749e-05 | M98: 0.0005795075732 | N98: 8.072266118e-07
A99: =IF('DF raw data'!E104="","",'DF raw data'!E104) -> -281.5 | B99: =IF('DF raw data'!F104="","",'DF raw data'!F104) -> -1.88466e-05 | C99: =IF('DF raw data'!G104="","",'DF raw data'!G104) -> 8.51621e-06 | D99: =IF('DF raw data'!H104="","",'DF raw data'!H104) -> -3.89091e-05 | F99: -1.89222691e-05 | G99: 8.550402583e-06 | H99: -3.906532004e-05 | J99: -0.0003767139663 | K99: -0.003474727375 | L99: 8.412344878e-05 | M99: 0.0006215692976 | N99: 8.817216954e-07
A100: =IF('DF raw data'!E105="","",'DF raw data'!E105) -> -281 | B100: =IF('DF raw data'!F105="","",'DF raw data'!F105) -> -1.26262e-05 | C100: =IF('DF raw data'!G105="","",'DF raw data'!G105) -> 8.86783e-06 | D100: =IF('DF raw data'!H105="","",'DF raw data'!H105) -> -3.95897e-05 | F100: -1.267689419e-05 | G100: 8.903434337e-06 | H100: -3.974865265e-05 | J100: -0.0003830524134 | K100: -0.003666253582 | L100: 8.857516595e-05 | M100: 0.0006658568805 | N100: 9.590090511e-07
A101: =IF('DF raw data'!E106="","",'DF raw data'!E106) -> -280.5 | B101: =IF('DF raw data'!F106="","",'DF raw data'!F106) -> -2.20566e-05 | C101: =IF('DF raw data'!G106="","",'DF raw data'!G106) -> 9.01349e-06 | D101: =IF('DF raw data'!H106="","",'DF raw data'!H106) -> -3.27988e-05 | F101: -2.214515725e-05 | G101: 9.049679162e-06 | H101: -3.293048718e-05 | J101: -0.000394124992 | K101: -0.003863316078 | L101: 9.310000553e-05 | M101: 0.0007124068833 | N101: 1.041010111e-06
A102: =IF('DF raw data'!E107="","",'DF raw data'!E107) -> -280 | B102: =IF('DF raw data'!F107="","",'DF raw data'!F107) -> -1.28761e-05 | C102: =IF('DF raw data'!G107="","",'DF raw data'!G107) -> 2.97183e-06 | D102: =IF('DF raw data'!H107="","",'DF raw data'!H107) -> -4.983e-05 | F102: -1.292779754e-05 | G102: 2.983761897e-06 | H102: -5.003006745e-05 | J102: -0.0004005888908 | K102: -0.004063610523 | L102: 9.459188648e-05 | M102: 0.0007597028265 | N102: 1.125719653e-06
A103: =IF('DF raw data'!E108="","",'DF raw data'!E108) -> -279.5 | B103: =IF('DF raw data'!F108="","",'DF raw data'!F108) -> -1.60869e-05 | C103: =IF('DF raw data'!G108="","",'DF raw data'!G108) -> 8.9518e-06 | D103: =IF('DF raw data'!H108="","",'DF raw data'!H108) -> -4.24754e-05 | F103: -1.61514889e-05 | G103: 8.987741477e-06 | H103: -4.264593873e-05 | J103: -0.0004086646352 | K103: -0.004267942841 | L103: 9.908575722e-05 | M103: 0.0008092457052 | N103: 1.214132039e-06
A104: =IF('DF raw data'!E109="","",'DF raw data'!E109) -> -279 | B104: =IF('DF raw data'!F109="","",'DF raw data'!F109) -> -1.801e-05 | C104: =IF('DF raw data'!G109="","",'DF raw data'!G109) -> 1.04404e-05 | D104: =IF('DF raw data'!H109="","",'DF raw data'!H109) -> -4.33029e-05 | F104: -1.808231015e-05 | G104: 1.048231821e-05 | H104: -4.347676114e-05 | J104: -0.0004177057903 | K104: -0.004476795736 | L104: 0.0001043269163 | M104: 0.0008614091633 | N104: 1.306813155e-06
A105: =IF('DF raw data'!E110="","",'DF raw data'!E110) -> -278.5 | B105: =IF('DF raw data'!F110="","",'DF raw data'!F110) -> -1.39117e-05 | C105: =IF('DF raw data'!G110="","",'DF raw data'!G110) -> 5.829e-07 | D105: =IF('DF raw data'!H110="","",'DF raw data'!H110) -> -3.49609e-05 | F105: -1.396755548e-05 | G105: 5.852403435e-07 | H105: -3.510126801e-05 | J105: -0.000424689568 | K105: -0.00468914052 | L105: 0.0001046195365 | M105: 0.0009137189316 | N105: 1.402466394e-06
A106: =IF('DF raw data'!E111="","",'DF raw data'!E111) -> -278 | B106: =IF('DF raw data'!F111="","",'DF raw data'!F111) -> -1.73112e-05 | C106: =IF('DF raw data'!G111="","",'DF raw data'!G111) -> -1.16451e-06 | D106: =IF('DF raw data'!H111="","",'DF raw data'!H111) -> -3.3446e-05 | F106: -1.738070447e-05 | G106: -1.169185508e-06 | H106: -3.358028569e-05 | J106: -0.0004333799203 | K106: -0.00490583048 | L106: 0.0001040349437 | M106: 0.0009657364034 | N106: 1.501787106e-06
A107: =IF('DF raw data'!E112="","",'DF raw data'!E112) -> -277.5 | B107: =IF('DF raw data'!F112="","",'DF raw data'!F112) -> -2.68698e-05 | C107: =IF('DF raw data'!G112="","",'DF raw data'!G112) -> -9.53946e-06 | D107: =IF('DF raw data'!H112="","",'DF raw data'!H112) -> -2.67169e-05 | F107: -2.697768225e-05 | G107: -9.577760932e-06 | H107: -2.682416835e-05 | J107: -0.0004468687614 | K107: -0.005129264861 | L107: 9.924606327e-05 | M107: 0.001015359435 | N107: 1.606557842e-06
A108: =IF('DF raw data'!E113="","",'DF raw data'!E113) -> -277 | B108: =IF('DF raw data'!F113="","",'DF raw data'!F113) -> -5.5075e-06 | C108: =IF('DF raw data'!G113="","",'DF raw data'!G113) -> -8.53155e-07 | D108: =IF('DF raw data'!H113="","",'DF raw data'!H113) -> -4.12846e-05 | F108: -5.529612613e-06 | G108: -8.565804173e-07 | H108: -4.145035767e-05 | J108: -0.0004496335677 | K108: -0.005354081645 | L108: 9.881777306e-05 | M108: 0.001064768322 | N108: 1.71252549e-06
A109: =IF('DF raw data'!E114="","",'DF raw data'!E114) -> -276.5 | B109: =IF('DF raw data'!F114="","",'DF raw data'!F114) -> -2.4173e-05 | C109: =IF('DF raw data'!G114="","",'DF raw data'!G114) -> 2.58685e-06 | D109: =IF('DF raw data'!H114="","",'DF raw data'!H114) -> -3.24323e-05 | F109: -2.42700546e-05 | G109: 2.597236203e-06 | H109: -3.256251568e-05 | J109: -0.000461768595 | K109: -0.005584965942 | L109: 0.0001001163912 | M109: 0.001114826517 | N109: 1.824152254e-06
A110: =IF('DF raw data'!E115="","",'DF raw data'!E115) -> -276 | B110: =IF('DF raw data'!F115="","",'DF raw data'!F115) -> -1.42351e-05 | C110: =IF('DF raw data'!G115="","",'DF raw data'!G115) -> -7.1912e-07 | D110: =IF('DF raw data'!H115="","",'DF raw data'!H115) -> -3.07435e-05 | F110: -1.429225393e-05 | G110: -7.220072668e-07 | H110: -3.086693515e-05 | J110: -0.000468914722 | K110: -0.005819423303 | L110: 9.975538753e-05 | M110: 0.001164704211 | N110: 1.939068331e-06
A111: =IF('DF raw data'!E116="","",'DF raw data'!E116) -> -275.5 | B111: =IF('DF raw data'!F116="","",'DF raw data'!F116) -> -2.58375e-05 | C111: =IF('DF raw data'!G116="","",'DF raw data'!G116) -> -2.66613e-06 | D111: =IF('DF raw data'!H116="","",'DF raw data'!H116) -> -3.66277e-05 | F111: -2.594123756e-05 | G111: -2.676834512e-06 | H111: -3.677476022e-05 | J111: -0.0004818853407 | K111: -0.006060365974 | L111: 9.841697028e-05 | M111: 0.001213912696 | N111: 2.060018022e-06
A112: =IF('DF raw data'!E117="","",'DF raw data'!E117) -> -275 | B112: =IF('DF raw data'!F117="","",'DF raw data'!F117) -> -2.30209e-05 | C112: =IF('DF raw data'!G117="","",'DF raw data'!G117) -> 5.9506e-06 | D112: =IF('DF raw data'!H117="","",'DF raw data'!H117) -> -2.92133e-05 | F112: -2.311332891e-05 | G112: 5.974491659e-06 | H112: -2.93305914e-05 | J112: -0.0004934420052 | K112: -0.006307086976 | L112: 0.0001014042161 | M112: 0.001264614804 | N112: 2.186901935e-06
A113: =IF('DF raw data'!E118="","",'DF raw data'!E118) -> -274.5 | B113: =IF('DF raw data'!F118="","",'DF raw data'!F118) -> -2.71188e-05 | C113: =IF('DF raw data'!G118="","",'DF raw data'!G118) -> -9.69761e-07 | D113: =IF('DF raw data'!H118="","",'DF raw data'!H118) -> -3.8313e-05 | F113: -2.722768198e-05 | G113: -9.736545904e-07 | H113: -3.846682669e-05 | J113: -0.0005070558462 | K113: -0.006560614899 | L113: 0.0001009173888 | M113: 0.001315073499 | N113: 2.320546911e-06
A114: =IF('DF raw data'!E119="","",'DF raw data'!E119) -> -274 | B114: =IF('DF raw data'!F119="","",'DF raw data'!F119) -> -1.01866e-05 | C114: =IF('DF raw data'!G119="","",'DF raw data'!G119) -> -1.12256e-05 | D114: =IF('DF raw data'!H119="","",'DF raw data'!H119) -> -4.41647e-05 | F114: -1.02274992e-05 | G114: -1.127067078e-05 | H114: -4.434202127e-05 | J114: -0.0005121695958 | K114: -0.006816699697 | L114: 9.528205342e-05 | M114: 0.001362714525 | N114: 2.456245093e-06
A115: =IF('DF raw data'!E120="","",'DF raw data'!E120) -> -273.5 | B115: =IF('DF raw data'!F120="","",'DF raw data'!F120) -> -1.73102e-05 | C115: =IF('DF raw data'!G120="","",'DF raw data'!G120) -> -1.43484e-05 | D115: =IF('DF raw data'!H120="","",'DF raw data'!H120) -> -3.49841e-05 | F115: -1.737970045e-05 | G115: -1.440600883e-05 | H115: -3.512456116e-05 | J115: -0.000520859446 | K115: -0.00707712942 | L115: 8.807904901e-05 | M115: 0.00140675405 | N115: 2.595771334e-06
A116: =IF('DF raw data'!E121="","",'DF raw data'!E121) -> -273 | B116: =IF('DF raw data'!F121="","",'DF raw data'!F121) -> -9.80532e-06 | C116: =IF('DF raw data'!G121="","",'DF raw data'!G121) -> 2.69948e-07 | D116: =IF('DF raw data'!H121="","",'DF raw data'!H121) -> -3.89175e-05 | F116: -9.84468836e-06 | G116: 2.710318412e-07 | H116: -3.907375376e-05 | J116: -0.0005257817902 | K116: -0.007340020315 | L116: 8.821456493e-05 | M116: 0.001450861332 | N116: 2.737885484e-06
A117: =IF('DF raw data'!E122="","",'DF raw data'!E122) -> -272.5 | B117: =IF('DF raw data'!F122="","",'DF raw data'!F122) -> -2.49447e-05 | C117: =IF('DF raw data'!G122="","",'DF raw data'!G122) -> -1.78626e-06 | D117: =IF('DF raw data'!H122="","",'DF raw data'!H122) -> -2.90593e-05 | F117: -2.504485297e-05 | G117: -1.793431834e-06 | H117: -2.917597309e-05 | J117: -0.0005383042167 | K117: -0.007609172424 | L117: 8.731784901e-05 | M117: 0.001494520257 | N117: 2.886583402e-06
A118: =IF('DF raw data'!E123="","",'DF raw data'!E123) -> -272 | B118: =IF('DF raw data'!F123="","",'DF raw data'!F123) -> -2.00636e-05 | C118: =IF('DF raw data'!G123="","",'DF raw data'!G123) -> 8.72492e-07 | D118: =IF('DF raw data'!H123="","",'DF raw data'!H123) -> -4.07737e-05 | F118: -2.014415535e-05 | G118: 8.759950554e-07 | H118: -4.093740641e-05 | J118: -0.0005483762944 | K118: -0.007883360571 | L118: 8.775584654e-05 | M118: 0.00153839818 | N118: 3.040792226e-06
A119: =IF('DF raw data'!E124="","",'DF raw data'!E124) -> -271.5 | B119: =IF('DF raw data'!F124="","",'DF raw data'!F124) -> -1.76309e-05 | C119: =IF('DF raw data'!G124="","",'DF raw data'!G124) -> -5.13306e-06 | D119: =IF('DF raw data'!H124="","",'DF raw data'!H124) -> -3.46532e-05 | F119: -1.770168806e-05 | G119: -5.153669236e-06 | H119: -3.47923326e-05 | J119: -0.0005572271384 | K119: -0.00816197414 | L119: 8.517901192e-05 | M119: 0.001580987686 | N119: 3.199671e-06
A120: =IF('DF raw data'!E125="","",'DF raw data'!E125) -> -271 | B120: =IF('DF raw data'!F125="","",'DF raw data'!F125) -> -1.23795e-05 | C120: =IF('DF raw data'!G125="","",'DF raw data'!G125) -> -6.14337e-06 | D120: =IF('DF raw data'!H125="","",'DF raw data'!H125) -> -2.44838e-05 | F120: -1.242920369e-05 | G120: -6.168035631e-06 | H120: -2.458210246e-05 | J120: -0.0005634417402 | K120: -0.00844369501 | L120: 8.20949941e-05 | M120: 0.001622035183 | N120: 3.361774092e-06
A121: =IF('DF raw data'!E126="","",'DF raw data'!E126) -> -270.5 | B121: =IF('DF raw data'!F126="","",'DF raw data'!F126) -> -2.16039e-05 | C121: =IF('DF raw data'!G126="","",'DF raw data'!G126) -> -7.61575e-06 | D121: =IF('DF raw data'!H126="","",'DF raw data'!H126) -> -3.89879e-05 | F121: -2.169063966e-05 | G121: -7.646327236e-06 | H121: -3.914443642e-05 | J121: -0.0005742870601 | K121: -0.00873083854 | L121: 7.827183049e-05 | M121: 0.001661171098 | N121: 3.529740145e-06
A122: =IF('DF raw data'!E127="","",'DF raw data'!E127) -> -270 | B122: =IF('DF raw data'!F127="","",'DF raw data'!F127) -> -2.08302e-05 | C122: =IF('DF raw data'!G127="","",'DF raw data'!G127) -> -1.14317e-05 | D122: =IF('DF raw data'!H127="","",'DF raw data'!H127) -> -4.55687e-05 | F122: -2.091383325e-05 | G122: -1.147759828e-05 | H122: -4.575165833e-05 | J122: -0.0005847439767 | K122: -0.009023210529 | L122: 7.253303135e-05 | M122: 0.001697437614 | N122: 3.703333425e-06
A123: =IF('DF raw data'!E128="","",'DF raw data'!E128) -> -269.5 | B123: =IF('DF raw data'!F128="","",'DF raw data'!F128) -> -1.77003e-05 | C123: =IF('DF raw data'!G128="","",'DF raw data'!G128) -> -6.49357e-06 | D123: =IF('DF raw data'!H128="","",'DF raw data'!H128) -> -2.67794e-05 | F123: -1.77713667e-05 | G123: -6.519641684e-06 | H123: -2.688691929e-05 | J123: -0.00059362966 | K123: -0.009320025359 | L123: 6.927321051e-05 | M123: 0.001732074219 | N123: 3.8819309e-06
A124: =IF('DF raw data'!E129="","",'DF raw data'!E129) -> -269 | B124: =IF('DF raw data'!F129="","",'DF raw data'!F129) -> -1.46117e-05 | C124: =IF('DF raw data'!G129="","",'DF raw data'!G129) -> -2.84051e-06 | D124: =IF('DF raw data'!H129="","",'DF raw data'!H129) -> -4.33584e-05 | F124: -1.467036598e-05 | G124: -2.851914648e-06 | H124: -4.353248398e-05 | J124: -0.000600964843 | K124: -0.00962050778 | L124: 6.784725318e-05 | M124: 0.001765997846 | N124: 4.064811896e-06
A125: =IF('DF raw data'!E130="","",'DF raw data'!E130) -> -268.5 | B125: =IF('DF raw data'!F130="","",'DF raw data'!F130) -> -1.87823e-05 | C125: =IF('DF raw data'!G130="","",'DF raw data'!G130) -> 4.13713e-06 | D125: =IF('DF raw data'!H130="","",'DF raw data'!H130) -> -3.90359e-05 | F125: -1.885771093e-05 | G125: 4.153740577e-06 | H125: -3.919262914e-05 | J125: -0.0006103936985 | K125: -0.009925704629 | L125: 6.992412347e-05 | M125: 0.001800959907 | N125: 4.253546821e-06
A126: =IF('DF raw data'!E131="","",'DF raw data'!E131) -> -268 | B126: =IF('DF raw data'!F131="","",'DF raw data'!F131) -> -1.22415e-05 | C126: =IF('DF raw data'!G131="","",'DF raw data'!G131) -> 1.35209e-06 | D126: =IF('DF raw data'!H131="","",'DF raw data'!H131) -> -3.96455e-05 | F126: -1.229064962e-05 | G126: 1.357518641e-06 | H126: -3.980467668e-05 | J126: -0.0006165390233 | K126: -0.01023397414 | L126: 7.060288279e-05 | M126: 0.001836261349 | N126: 4.446099388e-06
A127: =IF('DF raw data'!E132="","",'DF raw data'!E132) -> -267.5 | B127: =IF('DF raw data'!F132="","",'DF raw data'!F132) -> -1.14133e-05 | C127: =IF('DF raw data'!G132="","",'DF raw data'!G132) -> 4.82076e-06 | D127: =IF('DF raw data'!H132="","",'DF raw data'!H132) -> -3.11615e-05 | F127: -1.14591244e-05 | G127: 4.840115351e-06 | H127: -3.128661342e-05 | J127: -0.0006222685855 | K127: -0.01054510843 | L127: 7.302294047e-05 | M127: 0.001872772819 | N127: 4.64237466e-06
A128: =IF('DF raw data'!E133="","",'DF raw data'!E133) -> -267 | B128: =IF('DF raw data'!F133="","",'DF raw data'!F133) -> -2.1087e-05 | C128: =IF('DF raw data'!G133="","",'DF raw data'!G133) -> -3.53502e-06 | D128: =IF('DF raw data'!H133="","",'DF raw data'!H133) -> -4.50125e-05 | F128: =(1-$G$1*($B$49-$G$2))*B128 -> -2.117166431e-05 | G128: -3.549213105e-06 | H128: -4.519322519e-05 | J128: =F128*$G$3+J127 -> -0.0006328544177 | K128: =J128*$G$3+K127 -> -0.01086153564 | L128: =G128*$G$3+L127 -> 7.124833391e-05 | M128: =L128*$G$3+M127 -> 0.001908396986 | N128: =(J128^2+L128^2)*$G$3+N127 -> 4.845165179e-06
A129: =IF('DF raw data'!E134="","",'DF raw data'!E134) -> -266.5 | B129: =IF('DF raw data'!F134="","",'DF raw data'!F134) -> -3.01296e-05 | C129: =IF('DF raw data'!G134="","",'DF raw data'!G134) -> -9.03313e-06 | D129: =IF('DF raw data'!H134="","",'DF raw data'!H134) -> -4.30147e-05 | F129: -3.025057034e-05 | G129: -9.069398017e-06 | H129: -4.318740402e-05 | J129: -0.0006479797028 | K129: -0.01118552549 | L129: 6.671363491e-05 | M129: 0.001941753804 | N129: 5.057329381e-06
A130: =IF('DF raw data'!E135="","",'DF raw data'!E135) -> -266 | B130: =IF('DF raw data'!F135="","",'DF raw data'!F135) -> -2.00629e-05 | C130: =IF('DF raw data'!G135="","",'DF raw data'!G135) -> -1.75688e-06 | D130: =IF('DF raw data'!H135="","",'DF raw data'!H135) -> -4.17851e-05 | F130: -2.014345254e-05 | G130: -1.763933873e-06 | H130: -4.195286718e-05 | J130: -0.0006580514291 | K130: -0.01151455121 | L130: 6.583166797e-05 | M130: 0.001974669638 | N130: 5.276012127e-06
A131: =IF('DF raw data'!E136="","",'DF raw data'!E136) -> -265.5 | B131: =IF('DF raw data'!F136="","",'DF raw data'!F136) -> -2.71785e-05 | C131: =IF('DF raw data'!G136="","",'DF raw data'!G136) -> 3.34542e-06 | D131: =IF('DF raw data'!H136="","",'DF raw data'!H136) -> -4.53318e-05 | F131: -2.728762168e-05 | G131: 3.358851861e-06 | H131: -4.551380718e-05 | J131: -0.0006716952399 | K131: -0.01185039883 | L131: 6.75110939e-05 | M131: 0.002008425184 | N131: 5.503878249e-06
A132: =IF('DF raw data'!E137="","",'DF raw data'!E137) -> -265 | B132: =IF('DF raw data'!F137="","",'DF raw data'!F137) -> -2.22373e-05 | C132: =IF('DF raw data'!G137="","",'DF raw data'!G137) -> 8.67767e-06 | D132: =IF('DF raw data'!H137="","",'DF raw data'!H137) -> -5.10703e-05 | F132: -2.232658276e-05 | G132: 8.712510845e-06 | H132: -5.127534725e-05 | J132: -0.0006828585313 | K132: -0.01219182809 | L132: 7.186734932e-05 | M132: 0.002044358859 | N132: 5.739608594e-06
A133: =IF('DF raw data'!E138="","",'DF raw data'!E138) -> -264.5 | B133: =IF('DF raw data'!F138="","",'DF raw data'!F138) -> -2.03235e-05 | C133: =IF('DF raw data'!G138="","",'DF raw data'!G138) -> 2.75752e-06 | D133: =IF('DF raw data'!H138="","",'DF raw data'!H138) -> -3.595e-05 | F133: -2.040509885e-05 | G133: 2.768591443e-06 | H133: -3.609433925e-05 | J133: -0.0006930610807 | K133: -0.01253835863 | L133: 7.325164504e-05 | M133: 0.002080984682 | N133: 5.982458326e-06
A134: =IF('DF raw data'!E139="","",'DF raw data'!E139) -> -264 | B134: =IF('DF raw data'!F139="","",'DF raw data'!F139) -> -2.81468e-05 | C134: =IF('DF raw data'!G139="","",'DF raw data'!G139) -> 7.17251e-07 | D134: =IF('DF raw data'!H139="","",'DF raw data'!H139) -> -3.51724e-05 | F134: -2.82598094e-05 | G134: 7.201307628e-07 | H134: -3.531361719e-05 | J134: -0.0007071909854 | K134: -0.01289195413 | L134: 7.361171043e-05 | M134: 0.002117790537 | N134: 6.235227213e-06
A135: =IF('DF raw data'!E140="","",'DF raw data'!E140) -> -263.5 | B135: =IF('DF raw data'!F140="","",'DF raw data'!F140) -> -1.94327e-05 | C135: =IF('DF raw data'!G140="","",'DF raw data'!G140) -> 4.37299e-06 | D135: =IF('DF raw data'!H140="","",'DF raw data'!H140) -> -2.48412e-05 | F135: -1.951072229e-05 | G135: 4.390547555e-06 | H135: -2.494093742e-05 | J135: -0.0007169463466 | K135: -0.0132504273 | L135: 7.58069842e-05 | M135: 0.002155694029 | N135: 6.495106595e-06
A136: =IF('DF raw data'!E141="","",'DF raw data'!E141) -> -263 | B136: =IF('DF raw data'!F141="","",'DF raw data'!F141) -> -8.33665e-06 | C136: =IF('DF raw data'!G141="","",'DF raw data'!G141) -> 1.60759e-06 | D136: =IF('DF raw data'!H141="","",'DF raw data'!H141) -> -2.92858e-05 | F136: -8.37012165e-06 | G136: 1.614044474e-06 | H136: -2.940338249e-05 | J136: -0.0007211314074 | K136: -0.013610993 | L136: 7.661400644e-05 | M136: 0.002194001032 | N136: 6.758056701e-06
A137: =IF('DF raw data'!E142="","",'DF raw data'!E142) -> -262.5 | B137: =IF('DF raw data'!F142="","",'DF raw data'!F142) -> -2.31441e-05 | C137: =IF('DF raw data'!G142="","",'DF raw data'!G142) -> 8.20309e-07 | D137: =IF('DF raw data'!H142="","",'DF raw data'!H142) -> -3.7094e-05 | F137: -2.323702356e-05 | G137: 8.236025406e-07 | H137: -3.724293241e-05 | J137: -0.0007327499192 | K137: -0.01397736796 | L137: 7.702580771e-05 | M137: 0.002232513936 | N137: 7.02948441e-06
A138: =IF('DF raw data'!E143="","",'DF raw data'!E143) -> -262 | B138: =IF('DF raw data'!F143="","",'DF raw data'!F143) -> -1.57062e-05 | C138: =IF('DF raw data'!G143="","",'DF raw data'!G143) -> 1.04533e-07 | D138: =IF('DF raw data'!H143="","",'DF raw data'!H143) -> -3.62881e-05 | F138: -1.576926039e-05 | G138: 1.049527e-07 | H138: -3.643379672e-05 | J138: -0.0007406345494 | K138: -0.01434768524 | L138: 7.707828406e-05 | M138: 0.002271053078 | N138: 7.306724709e-06
A139: =IF('DF raw data'!E144="","",'DF raw data'!E144) -> -261.5 | B139: =IF('DF raw data'!F144="","",'DF raw data'!F144) -> -2.26998e-05 | C139: =IF('DF raw data'!G144="","",'DF raw data'!G144) -> -8.3233e-06 | D139: =IF('DF raw data'!H144="","",'DF raw data'!H144) -> -2.99176e-05 | F139: -2.27909397e-05 | G139: -8.35671805e-06 | H139: -3.003771916e-05 | J139: -0.0007520300192 | K139: -0.01472370025 | L139: 7.289992504e-05 | M139: 0.002307503041 | N139: 7.592156484e-06
A140: =IF('DF raw data'!E145="","",'DF raw data'!E145) -> -261 | B140: =IF('DF raw data'!F145="","",'DF raw data'!F145) -> -8.5889e-06 | C140: =IF('DF raw data'!G145="","",'DF raw data'!G145) -> 5.36648e-07 | D140: =IF('DF raw data'!H145="","",'DF raw data'!H145) -> -3.58124e-05 | F140: -8.623384434e-06 | G140: 5.388026417e-07 | H140: -3.595618679e-05 | J140: -0.0007563417115 | K140: -0.0151018711 | L140: 7.316932636e-05 | M140: 0.002344087704 | N140: 7.880859751e-06
A141: =IF('DF raw data'!E146="","",'DF raw data'!E146) -> -260.5 | B141: =IF('DF raw data'!F146="","",'DF raw data'!F146) -> -1.42976e-05 | C141: =IF('DF raw data'!G146="","",'DF raw data'!G146) -> 3.85181e-06 | D141: =IF('DF raw data'!H146="","",'DF raw data'!H146) -> -3.30792e-05 | F141: -1.435500486e-05 | G141: 3.867275017e-06 | H141: -3.321201299e-05 | J141: -0.0007635192139 | K141: -0.01548363071 | L141: 7.510296386e-05 | M141: 0.002381639186 | N141: 8.175160774e-06
A142: =IF('DF raw data'!E147="","",'DF raw data'!E147) -> -260 | B142: =IF('DF raw data'!F147="","",'DF raw data'!F147) -> -1.76307e-05 | C142: =IF('DF raw data'!G147="","",'DF raw data'!G147) -> -3.87517e-06 | D142: =IF('DF raw data'!H147="","",'DF raw data'!H147) -> -3.50575e-05 | F142: -1.770148726e-05 | G142: -3.890728808e-06 | H142: -3.519825586e-05 | J142: -0.0007723699575 | K142: -0.01586981569 | L142: 7.315759946e-05 | M142: 0.002418217985 | N142: 8.476114467e-06
A143: =IF('DF raw data'!E148="","",'DF raw data'!E148) -> -259.5 | B143: =IF('DF raw data'!F148="","",'DF raw data'!F148) -> -2.36643e-05 | C143: =IF('DF raw data'!G148="","",'DF raw data'!G148) -> -6.52594e-06 | D143: =IF('DF raw data'!H148="","",'DF raw data'!H148) -> -2.60063e-05 | F143: -2.375931216e-05 | G143: -6.552141649e-06 | H143: -2.611071529e-05 | J143: -0.0007842496136 | K143: -0.0162619405 | L143: 6.988152864e-05 | M143: 0.00245315875 | N143: 8.786079909e-06
A144: =IF('DF raw data'!E149="","",'DF raw data'!E149) -> -259 | B144: =IF('DF raw data'!F149="","",'DF raw data'!F149) -> -1.7501e-05 | C144: =IF('DF raw data'!G149="","",'DF raw data'!G149) -> -3.90678e-06 | D144: =IF('DF raw data'!H149="","",'DF raw data'!H149) -> -3.72742e-05 | F144: -1.757126652e-05 | G144: -3.922465722e-06 | H144: -3.742385591e-05 | J144: -0.0007930352469 | K144: -0.01665845812 | L144: 6.792029578e-05 | M144: 0.002487118898 | N144: 9.102838943e-06
A145: =IF('DF raw data'!E150="","",'DF raw data'!E150) -> -258.5 | B145: =IF('DF raw data'!F150="","",'DF raw data'!F150) -> -2.40447e-05 | C145: =IF('DF raw data'!G150="","",'DF raw data'!G150) -> 1.9069e-06 | D145: =IF('DF raw data'!H150="","",'DF raw data'!H150) -> -3.25667e-05 | F145: -2.414123947e-05 | G145: 1.914556204e-06 | H145: -3.26974553e-05 | J145: -0.0008051058666 | K145: -0.01706101105 | L145: 6.887757388e-05 | M145: 0.002521557685 | N145: 9.429308732e-06
A146: =IF('DF raw data'!E151="","",'DF raw data'!E151) -> -258 | B146: =IF('DF raw data'!F151="","",'DF raw data'!F151) -> -8.77351e-06 | C146: =IF('DF raw data'!G151="","",'DF raw data'!G151) -> 9.09332e-06 | D146: =IF('DF raw data'!H151="","",'DF raw data'!H151) -> -4.79825e-05 | F146: -8.808735643e-06 | G146: 9.12982968e-06 | H146: -4.817514974e-05 | J146: -0.0008095102344 | K146: -0.01746576617 | L146: 7.344248872e-05 | M146: 0.002558278929 | N146: 9.759659041e-06
A147: =IF('DF raw data'!E152="","",'DF raw data'!E152) -> -257.5 | B147: =IF('DF raw data'!F152="","",'DF raw data'!F152) -> -1.45528e-05 | C147: =IF('DF raw data'!G152="","",'DF raw data'!G152) -> 6.89575e-06 | D147: =IF('DF raw data'!H152="","",'DF raw data'!H152) -> -3.50876e-05 | F147: -1.461122949e-05 | G147: 6.923436436e-06 | H147: -3.522847671e-05 | J147: -0.0008168158492 | K147: -0.01787417409 | L147: 7.690420694e-05 | M147: 0.002596731032 | N147: 1.009621024e-05
A148: =IF('DF raw data'!E153="","",'DF raw data'!E153) -> -257 | B148: =IF('DF raw data'!F153="","",'DF raw data'!F153) -> -1.27619e-05 | C148: =IF('DF raw data'!G153="","",'DF raw data'!G153) -> 2.64426e-06 | D148: =IF('DF raw data'!H153="","",'DF raw data'!H153) -> -2.82443e-05 | F148: -1.281313903e-05 | G148: 2.654876704e-06 | H148: -2.835770086e-05 | J148: -0.0008232224187 | K148: -0.0182857853 | L148: 7.823164529e-05 | M148: 0.002635846855 | N148: 1.043811791e-05
A149: =IF('DF raw data'!E154="","",'DF raw data'!E154) -> -256.5 | B149: =IF('DF raw data'!F154="","",'DF raw data'!F154) -> -1.57779e-05 | C149: =IF('DF raw data'!G154="","",'DF raw data'!G154) -> -8.09455e-06 | D149: =IF('DF raw data'!H154="","",'DF raw data'!H154) -> -2.48499e-05 | F149: -1.584124827e-05 | G149: -8.127049618e-06 | H149: -2.494967235e-05 | J149: -0.0008311430428 | K149: -0.01870135683 | L149: 7.416812048e-05 | M149: 0.002672930915 | N149: 1.078626774e-05
A150: =IF('DF raw data'!E155="","",'DF raw data'!E155) -> -256 | B150: =IF('DF raw data'!F155="","",'DF raw data'!F155) -> -2.2767e-05 | C150: =IF('DF raw data'!G155="","",'DF raw data'!G155) -> -8.34672e-06 | D150: =IF('DF raw data'!H155="","",'DF raw data'!H155) -> -2.53654e-05 | F150: -2.285840951e-05 | G150: -8.380232081e-06 | H150: -2.546724208e-05 | J150: -0.0008425722476 | K150: -0.01912264295 | L150: 6.997800444e-05 | M150: 0.002707919918 | N150: 1.11436802e-05
A151: =IF('DF raw data'!E156="","",'DF raw data'!E156) -> -255.5 | B151: =IF('DF raw data'!F156="","",'DF raw data'!F156) -> -2.91141e-05 | C151: =IF('DF raw data'!G156="","",'DF raw data'!G156) -> 9.08267e-06 | D151: =IF('DF raw data'!H156="","",'DF raw data'!H156) -> -2.70053e-05 | F151: -2.923099311e-05 | G151: 9.11913692e-06 | H151: -2.711372628e-05 | J151: -0.0008571877441 | K151: -0.01955123682 | L151: 7.45375729e-05 | M151: 0.002745188704 | N151: 1.151384354e-05
A152: =IF('DF raw data'!E157="","",'DF raw data'!E157) -> -255 | B152: =IF('DF raw data'!F157="","",'DF raw data'!F157) -> -1.87849e-05 | C152: =IF('DF raw data'!G157="","",'DF raw data'!G157) -> 4.46557e-06 | D152: =IF('DF raw data'!H157="","",'DF raw data'!H157) -> -3.49777e-05 | F152: -1.886032137e-05 | G152: 4.483499264e-06 | H152: -3.511813547e-05 | J152: -0.0008666179048 | K152: -0.01998454577 | L152: 7.677932253e-05 | M152: 0.002783578365 | N152: 1.189230436e-05
A153: =IF('DF raw data'!E158="","",'DF raw data'!E158) -> -254.5 | B153: =IF('DF raw data'!F158="","",'DF raw data'!F158) -> -2.59024e-05 | C153: =IF('DF raw data'!G158="","",'DF raw data'!G158) -> 6.62009e-06 | D153: =IF('DF raw data'!H158="","",'DF raw data'!H158) -> -3.52509e-05 | F153: -2.600639814e-05 | G153: 6.646669661e-06 | H153: -3.539243236e-05 | J153: -0.0008796211039 | K153: -0.02042435633 | L153: 8.010265736e-05 | M153: 0.002823629694 | N153: 1.228237923e-05
A154: =IF('DF raw data'!E159="","",'DF raw data'!E159) -> -254 | B154: =IF('DF raw data'!F159="","",'DF raw data'!F159) -> -1.46783e-05 | C154: =IF('DF raw data'!G159="","",'DF raw data'!G159) -> 6.42492e-06 | D154: =IF('DF raw data'!H159="","",'DF raw data'!H159) -> -3.93393e-05 | F154: -1.473723337e-05 | G154: 6.450716054e-06 | H154: -3.949724729e-05 | J154: -0.0008869897206 | K154: -0.02086785119 | L154: 8.332801539e-05 | M154: 0.002865293702 | N154: 1.267922639e-05
A155: =IF('DF raw data'!E160="","",'DF raw data'!E160) -> -253.5 | B155: =IF('DF raw data'!F160="","",'DF raw data'!F160) -> -1.72446e-05 | C155: =IF('DF raw data'!G160="","",'DF raw data'!G160) -> 2.75429e-06 | D155: =IF('DF raw data'!H160="","",'DF raw data'!H160) -> -3.71633e-05 | F155: -1.731383707e-05 | G155: 2.765348474e-06 | H155: -3.731251065e-05 | J155: -0.0008956466391 | K155: -0.02131567451 | L155: 8.471068962e-05 | M155: 0.002907649046 | N155: 1.308390579e-05
A156: =IF('DF raw data'!E161="","",'DF raw data'!E161) -> -253 | B156: =IF('DF raw data'!F161="","",'DF raw data'!F161) -> -9.81122e-06 | C156: =IF('DF raw data'!G161="","",'DF raw data'!G161) -> 6.70708e-06 | D156: =IF('DF raw data'!H161="","",'DF raw data'!H161) -> -2.98697e-05 | F156: -9.850612048e-06 | G156: 6.734008926e-06 | H156: -2.998962685e-05 | J156: -0.0009005719451 | K156: -0.02176596048 | L156: 8.807769409e-05 | M156: 0.002951687893 | N156: 1.349329954e-05
A157: =IF('DF raw data'!E162="","",'DF raw data'!E162) -> -252.5 | B157: =IF('DF raw data'!F162="","",'DF raw data'!F162) -> -1.74371e-05 | C157: =IF('DF raw data'!G162="","",'DF raw data'!G162) -> 5.3316e-06 | D157: =IF('DF raw data'!H162="","",'DF raw data'!H162) -> -3.71199e-05 | F157: -1.750710996e-05 | G157: 5.353006374e-06 | H157: -3.72689364e-05 | J157: -0.0009093255001 | K157: -0.02222062323 | L157: 9.075419727e-05 | M157: 0.002997064992 | N157: 1.391085414e-05
A158: =IF('DF raw data'!E163="","",'DF raw data'!E163) -> -252 | B158: =IF('DF raw data'!F163="","",'DF raw data'!F163) -> -9.67045e-06 | C158: =IF('DF raw data'!G163="","",'DF raw data'!G163) -> 2.87527e-06 | D158: =IF('DF raw data'!H163="","",'DF raw data'!H163) -> -4.91837e-05 | F158: -9.709276857e-06 | G158: 2.886814209e-06 | H158: -4.938117256e-05 | J158: -0.0009141801385 | K158: -0.0226777133 | L158: 9.219760438e-05 | M158: 0.003043163794 | N158: 1.4332967e-05
A159: =IF('DF raw data'!E164="","",'DF raw data'!E164) -> -251.5 | B159: =IF('DF raw data'!F164="","",'DF raw data'!F164) -> -2.38445e-05 | C159: =IF('DF raw data'!G164="","",'DF raw data'!G164) -> 2.05675e-06 | D159: =IF('DF raw data'!H164="","",'DF raw data'!H164) -> -4.44827e-05 | F159: -2.394023567e-05 | G159: 2.065007851e-06 | H159: -4.466129804e-05 | J159: -0.0009261502564 | K159: -0.02314078843 | L159: 9.32301083e-05 | M159: 0.003089778848 | N159: 1.476619007e-05
A160: =IF('DF raw data'!E165="","",'DF raw data'!E165) -> -251 | B160: =IF('DF raw data'!F165="","",'DF raw data'!F165) -> -1.62863e-05 | C160: =IF('DF raw data'!G165="","",'DF raw data'!G165) -> 1.88752e-06 | D160: =IF('DF raw data'!H165="","",'DF raw data'!H165) -> -3.18956e-05 | F160: -1.635168949e-05 | G160: 1.895098393e-06 | H160: -3.202366083e-05 | J160: -0.0009343261011 | K160: -0.02360795148 | L160: 9.41776575e-05 | M160: 0.003136867677 | N160: 1.520710742e-05
A161: =IF('DF raw data'!E166="","",'DF raw data'!E166) -> -250.5 | B161: =IF('DF raw data'!F166="","",'DF raw data'!F166) -> -1.82697e-05 | C161: =IF('DF raw data'!G166="","",'DF raw data'!G166) -> -1.41707e-07 | D161: =IF('DF raw data'!H166="","",'DF raw data'!H166) -> -3.84447e-05 | F161: -1.834305285e-05 | G161: -1.422759536e-07 | H161: -3.859905547e-05 | J161: -0.0009434976275 | K161: -0.02407970029 | L161: 9.410651952e-05 | M161: 0.003183920937 | N161: 1.565662933e-05
A162: =IF('DF raw data'!E167="","",'DF raw data'!E167) -> -250 | B162: =IF('DF raw data'!F167="","",'DF raw data'!F167) -> -1.03864e-05 | C162: =IF('DF raw data'!G167="","",'DF raw data'!G167) -> 4.12873e-06 | D162: =IF('DF raw data'!H167="","",'DF raw data'!H167) -> -3.25989e-05 | F162: -1.04281014e-05 | G162: 4.145306851e-06 | H162: -3.272978458e-05 | J162: -0.0009487116782 | K162: -0.02455405613 | L162: 9.617917295e-05 | M162: 0.003232010523 | N162: 1.611128147e-05
A163: =IF('DF raw data'!E168="","",'DF raw data'!E168) -> -249.5 | B163: =IF('DF raw data'!F168="","",'DF raw data'!F168) -> -1.73715e-05 | C163: =IF('DF raw data'!G168="","",'DF raw data'!G168) -> 8.12003e-06 | D163: =IF('DF raw data'!H168="","",'DF raw data'!H168) -> -3.92575e-05 | F163: -1.744124657e-05 | G163: 8.15263192e-06 | H163: -3.941511886e-05 | J163: -0.0009574323015 | K163: -0.02503277228 | L163: 0.0001002554889 | M163: 0.003282138268 | N163: 1.657464535e-05
A164: =IF('DF raw data'!E169="","",'DF raw data'!E169) -> -249 | B164: =IF('DF raw data'!F169="","",'DF raw data'!F169) -> -2.11519e-05 | C164: =IF('DF raw data'!G169="","",'DF raw data'!G169) -> 8.64636e-06 | D164: =IF('DF raw data'!H169="","",'DF raw data'!H169) -> -4.38302e-05 | F164: -2.123682488e-05 | G164: 8.681075135e-06 | H164: -4.400617825e-05 | J164: -0.000968050714 | K164: -0.02551679764 | L164: 0.0001045960265 | M164: 0.003334436281 | N164: 1.704867661e-05
A165: =IF('DF raw data'!E170="","",'DF raw data'!E170) -> -248.5 | B165: =IF('DF raw data'!F170="","",'DF raw data'!F170) -> -2.73168e-05 | C165: =IF('DF raw data'!G170="","",'DF raw data'!G170) -> -9.65246e-07 | D165: =IF('DF raw data'!H170="","",'DF raw data'!H170) -> -3.00175e-05 | F165: -2.742647695e-05 | G165: -9.691214627e-07 | H165: -3.013802026e-05 | J165: -0.0009817639524 | K165: -0.02600767961 | L165: 0.0001041114657 | M165: 0.003386492014 | N165: 1.753602644e-05
A166: =IF('DF raw data'!E171="","",'DF raw data'!E171) -> -248 | B166: =IF('DF raw data'!F171="","",'DF raw data'!F171) -> -1.15387e-05 | C166: =IF('DF raw data'!G171="","",'DF raw data'!G171) -> -5.9752e-06 | D166: =IF('DF raw data'!H171="","",'DF raw data'!H171) -> -3.55264e-05 | F166: -1.158502788e-05 | G166: -5.999190428e-06 | H166: -3.56690385e-05 | J166: -0.0009875564664 | K166: -0.02650145785 | L166: 0.0001011118705 | M166: 0.003437047949 | N166: 1.802877213e-05
A167: =IF('DF raw data'!E172="","",'DF raw data'!E172) -> -247.5 | B167: =IF('DF raw data'!F172="","",'DF raw data'!F172) -> -1.93577e-05 | C167: =IF('DF raw data'!G172="","",'DF raw data'!G172) -> -1.23274e-06 | D167: =IF('DF raw data'!H172="","",'DF raw data'!H172) -> -4.18834e-05 | F167: -1.943542117e-05 | G167: -1.237689451e-06 | H167: -4.205156185e-05 | J167: -0.000997274177 | K167: -0.02700009493 | L167: 0.0001004930258 | M167: 0.003487294462 | N167: 1.853109945e-05
A168: =IF('DF raw data'!E173="","",'DF raw data'!E173) -> -247 | B168: =IF('DF raw data'!F173="","",'DF raw data'!F173) -> -2.92394e-05 | C168: =IF('DF raw data'!G173="","",'DF raw data'!G173) -> 1.3537e-07 | D168: =IF('DF raw data'!H173="","",'DF raw data'!H173) -> -3.15933e-05 | F168: -2.935679619e-05 | G168: 1.359135106e-07 | H168: -3.17201471e-05 | J168: -0.001011952575 | K168: -0.02750607122 | L168: 0.0001005609826 | M168: 0.003537574953 | N168: 1.904817971e-05
A169: =IF('DF raw data'!E174="","",'DF raw data'!E174) -> -246.5 | B169: =IF('DF raw data'!F174="","",'DF raw data'!F174) -> -2.6798e-05 | C169: =IF('DF raw data'!G174="","",'DF raw data'!G174) -> -3.45364e-06 | D169: =IF('DF raw data'!H174="","",'DF raw data'!H174) -> -3.90259e-05 | F169: -2.690559397e-05 | G169: -3.467506365e-06 | H169: -3.918258899e-05 | J169: -0.001025405372 | K169: -0.02801877391 | L169: 9.882722938e-05 | M169: 0.003586988568 | N169: 1.957879121e-05
A170: =IF('DF raw data'!E175="","",'DF raw data'!E175) -> -246 | B170: =IF('DF raw data'!F175="","",'DF raw data'!F175) -> -1.80123e-05 | C170: =IF('DF raw data'!G175="","",'DF raw data'!G175) -> -2.78464e-06 | D170: =IF('DF raw data'!H175="","",'DF raw data'!H175) -> -3.99063e-05 | F170: -1.808461938e-05 | G170: -2.79582033e-06 | H170: -4.006652379e-05 | J170: -0.001034447682 | K170: -0.02853599775 | L170: 9.742931921e-05 | M170: 0.003635703228 | N170: 2.011857845e-05
A171: =IF('DF raw data'!E176="","",'DF raw data'!E176) -> -245.5 | B171: =IF('DF raw data'!F176="","",'DF raw data'!F176) -> -2.69228e-05 | C171: =IF('DF raw data'!G176="","",'DF raw data'!G176) -> -2.08093e-06 | D171: =IF('DF raw data'!H176="","",'DF raw data'!H176) -> -4.42604e-05 | F171: -2.703089504e-05 | G171: -2.089284934e-06 | H171: -4.443810551e-05 | J171: -0.001047963129 | K171: -0.02905997931 | L171: 9.638467675e-05 | M171: 0.003683895566 | N171: 2.067233681e-05
A172: =IF('DF raw data'!E177="","",'DF raw data'!E177) -> -245 | B172: =IF('DF raw data'!F177="","",'DF raw data'!F177) -> -2.57708e-05 | C172: =IF('DF raw data'!G177="","",'DF raw data'!G177) -> -3.57865e-06 | D172: =IF('DF raw data'!H177="","",'DF raw data'!H177) -> -4.05839e-05 | F172: -2.587426976e-05 | G172: -3.59301828e-06 | H172: -4.074684436e-05 | J172: -0.001060900264 | K172: -0.02959042945 | L172: 9.458816761e-05 | M172: 0.00373118965 | N172: 2.123956496e-05
A173: =IF('DF raw data'!E178="","",'DF raw data'!E178) -> -244.5 | B173: =IF('DF raw data'!F178="","",'DF raw data'!F178) -> -3.95541e-05 | C173: =IF('DF raw data'!G178="","",'DF raw data'!G178) -> -3.92153e-06 | D173: =IF('DF raw data'!H178="","",'DF raw data'!H178) -> -4.55333e-05 | F173: -3.971290971e-05 | G173: -3.937274943e-06 | H173: -4.57161162e-05 | J173: -0.001080756719 | K173: -0.03013080781 | L173: 9.261953014e-05 | M173: 0.003777499415 | N173: 2.182787169e-05
A174: =IF('DF raw data'!E179="","",'DF raw data'!E179) -> -244 | B174: =IF('DF raw data'!F179="","",'DF raw data'!F179) -> -2.71868e-05 | C174: =IF('DF raw data'!G179="","",'DF raw data'!G179) -> -1.13401e-06 | D174: =IF('DF raw data'!H179="","",'DF raw data'!H179) -> -3.26422e-05 | F174: -2.7295955e-05 | G174: -1.13856305e-06 | H174: -3.277325843e-05 | J174: -0.001094404696 | K174: -0.03067801015 | L174: 9.205024861e-05 | M174: 0.003823524539 | N174: 2.243096913e-05
A175: =IF('DF raw data'!E180="","",'DF raw data'!E180) -> -243.5 | B175: =IF('DF raw data'!F180="","",'DF raw data'!F180) -> -3.13547e-05 | C175: =IF('DF raw data'!G180="","",'DF raw data'!G180) -> -4.05475e-06 | D175: =IF('DF raw data'!H180="","",'DF raw data'!H180) -> -3.25273e-05 | F175: -3.148058912e-05 | G175: -4.071029821e-06 | H175: -3.265789711e-05 | J175: -0.001110144991 | K175: -0.03123308265 | L175: 9.00147337e-05 | M175: 0.003868531906 | N175: 2.305123141e-05
A176: =IF('DF raw data'!E181="","",'DF raw data'!E181) -> -243 | B176: =IF('DF raw data'!F181="","",'DF raw data'!F181) -> -2.3335e-05 | C176: =IF('DF raw data'!G181="","",'DF raw data'!G181) -> -9.69262e-06 | D176: =IF('DF raw data'!H181="","",'DF raw data'!H181) -> -3.93033e-05 | F176: -2.342869003e-05 | G176: -9.731535869e-06 | H176: -3.946110275e-05 | J176: -0.001121859336 | K176: -0.03179401232 | L176: 8.514896577e-05 | M176: 0.003911106389 | N176: 2.368414077e-05
A177: =IF('DF raw data'!E182="","",'DF raw data'!E182) -> -242.5 | B177: =IF('DF raw data'!F182="","",'DF raw data'!F182) -> -1.91049e-05 | C177: =IF('DF raw data'!G182="","",'DF raw data'!G182) -> -1.34754e-05 | D177: =IF('DF raw data'!H182="","",'DF raw data'!H182) -> -3.63178e-05 | F177: -1.918160617e-05 | G177: -1.352950373e-05 | H177: -3.646361597e-05 | J177: -0.001131450139 | K177: -0.03235973739 | L177: 7.83842139e-05 | M177: 0.003950298496 | N177: 2.432730252e-05
A178: =IF('DF raw data'!E183="","",'DF raw data'!E183) -> -242 | B178: =IF('DF raw data'!F183="","",'DF raw data'!F183) -> -1.48681e-05 | C178: =IF('DF raw data'!G183="","",'DF raw data'!G183) -> 1.85456e-06 | D178: =IF('DF raw data'!H183="","",'DF raw data'!H183) -> -4.35958e-05 | F178: -1.492779542e-05 | G178: 1.862006058e-06 | H178: -4.377083714e-05 | J178: -0.001138914037 | K178: -0.03292919441 | L178: 7.931521693e-05 | M178: 0.003989956104 | N178: 2.497901056e-05
A179: =IF('DF raw data'!E184="","",'DF raw data'!E184) -> -241.5 | B179: =IF('DF raw data'!F184="","",'DF raw data'!F184) -> -2.07026e-05 | C179: =IF('DF raw data'!G184="","",'DF raw data'!G184) -> 2.86839e-06 | D179: =IF('DF raw data'!H184="","",'DF raw data'!H184) -> -4.46283e-05 | F179: -2.078572094e-05 | G179: 2.879906586e-06 | H179: -4.480748262e-05 | J179: -0.001149306897 | K179: -0.03350384785 | L179: 8.075517022e-05 | M179: 0.00403033369 | N179: 2.564272443e-05
A180: =IF('DF raw data'!E185="","",'DF raw data'!E185) -> -241 | B180: =IF('DF raw data'!F185="","",'DF raw data'!F185) -> -2.16058e-05 | C180: =IF('DF raw data'!G185="","",'DF raw data'!G185) -> -4.70429e-07 | D180: =IF('DF raw data'!H185="","",'DF raw data'!H185) -> -3.62772e-05 | F180: -2.169254729e-05 | G180: -4.723177724e-07 | H180: -3.642285296e-05 | J180: -0.001160153171 | K180: -0.03408392444 | L180: 8.051901134e-05 | M180: 0.004070593195 | N180: 2.631894378e-05
A181: =IF('DF raw data'!E186="","",'DF raw data'!E186) -> -240.5 | B181: =IF('DF raw data'!F186="","",'DF raw data'!F186) -> -2.00068e-05 | C181: =IF('DF raw data'!G186="","",'DF raw data'!G186) -> 3.61521e-06 | D181: =IF('DF raw data'!H186="","",'DF raw data'!H186) -> -2.98699e-05 | F181: -2.00871273e-05 | G181: 3.629725068e-06 | H181: -2.998982765e-05 | J181: -0.001170196735 | K181: -0.03466902281 | L181: 8.233387387e-05 | M181: 0.004111760132 | N181: 2.700701341e-05
A182: =IF('DF raw data'!E187="","",'DF raw data'!E187) -> -240 | B182: =IF('DF raw data'!F187="","",'DF raw data'!F187) -> -1.13471e-05 | C182: =IF('DF raw data'!G187="","",'DF raw data'!G187) -> 1.70094e-06 | D182: =IF('DF raw data'!H187="","",'DF raw data'!H187) -> -3.45727e-05 | F182: -1.139265861e-05 | G182: 1.707769274e-06 | H182: -3.471150939e-05 | J182: -0.001175893064 | K182: -0.03525696934 | L182: 8.318775851e-05 | M182: 0.004153354011 | N182: 2.770183576e-05
A183: =IF('DF raw data'!E188="","",'DF raw data'!E188) -> -239.5 | B183: =IF('DF raw data'!F188="","",'DF raw data'!F188) -> -2.65453e-05 | C183: =IF('DF raw data'!G188="","",'DF raw data'!G188) -> -2.62955e-06 | D183: =IF('DF raw data'!H188="","",'DF raw data'!H188) -> -3.31172e-05 | F183: -2.665187938e-05 | G183: -2.640107643e-06 | H183: -3.325016556e-05 | J183: -0.001189219004 | K183: -0.03585157884 | L183: 8.186770469e-05 | M183: 0.004194287864 | N183: 2.841230784e-05
A184: =IF('DF raw data'!E189="","",'DF raw data'!E189) -> -239 | B184: =IF('DF raw data'!F189="","",'DF raw data'!F189) -> -2.48037e-05 | C184: =IF('DF raw data'!G189="","",'DF raw data'!G189) -> -3.04822e-06 | D184: =IF('DF raw data'!H189="","",'DF raw data'!H189) -> -4.8923e-05 | F184: -2.490328686e-05 | G184: -3.060458603e-06 | H184: -4.911942585e-05 | J184: -0.001201670647 | K184: -0.03645241416 | L184: 8.033747538e-05 | M184: 0.004234456601 | N184: 2.913754107e-05
A185: =IF('DF raw data'!E190="","",'DF raw data'!E190) -> -238.5 | B185: =IF('DF raw data'!F190="","",'DF raw data'!F190) -> -1.39097e-05 | C185: =IF('DF raw data'!G190="","",'DF raw data'!G190) -> -4.70509e-06 | D185: =IF('DF raw data'!H190="","",'DF raw data'!H190) -> -3.81829e-05 | F185: -1.396554745e-05 | G185: -4.723980936e-06 | H185: -3.833620434e-05 | J185: -0.001208653421 | K185: -0.03705674087 | L185: 7.797548492e-05 | M185: 0.004273444344 | N185: 2.98710027e-05
A186: =IF('DF raw data'!E191="","",'DF raw data'!E191) -> -238 | B186: =IF('DF raw data'!F191="","",'DF raw data'!F191) -> -1.53173e-05 | C186: =IF('DF raw data'!G191="","",'DF raw data'!G191) -> -8.35209e-06 | D186: =IF('DF raw data'!H191="","",'DF raw data'!H191) -> -4.29075e-05 | F186: -1.537879896e-05 | G186: -8.385623641e-06 | H186: -4.307977361e-05 | J186: -0.00121634282 | K186: -0.03766491228 | L186: 7.37826731e-05 | M186: 0.00431033568 | N186: 3.061346957e-05
A187: =IF('DF raw data'!E192="","",'DF raw data'!E192) -> -237.5 | B187: =IF('DF raw data'!F192="","",'DF raw data'!F192) -> -1.86578e-05 | C187: =IF('DF raw data'!G192="","",'DF raw data'!G192) -> -3.54324e-06 | D187: =IF('DF raw data'!H192="","",'DF raw data'!H192) -> -3.33088e-05 | F187: -1.873271107e-05 | G187: -3.557466109e-06 | H187: -3.344253483e-05 | J187: -0.001225709176 | K187: -0.03827776687 | L187: 7.200394004e-05 | M187: 0.00434633765 | N187: 3.136724335e-05
A188: =IF('DF raw data'!E193="","",'DF raw data'!E193) -> -237 | B188: =IF('DF raw data'!F193="","",'DF raw data'!F193) -> -1.87172e-05 | C188: =IF('DF raw data'!G193="","",'DF raw data'!G193) -> -1.07082e-05 | D188: =IF('DF raw data'!H193="","",'DF raw data'!H193) -> -4.09122e-05 | F188: -1.879234956e-05 | G188: -1.075119342e-05 | H188: -4.107646248e-05 | J188: -0.001235105351 | K188: -0.03889531955 | L188: 6.662834333e-05 | M188: 0.004379651822 | N188: 3.213220563e-05
A189: =IF('DF raw data'!E194="","",'DF raw data'!E194) -> -236.5 | B189: =IF('DF raw data'!F194="","",'DF raw data'!F194) -> -1.70548e-05 | C189: =IF('DF raw data'!G194="","",'DF raw data'!G194) -> -9.66697e-06 | D189: =IF('DF raw data'!H194="","",'DF raw data'!H194) -> -3.3443e-05 | F189: -1.712327502e-05 | G189: -9.705782885e-06 | H189: -3.357727365e-05 | J189: -0.001243666988 | K189: -0.03951715304 | L189: 6.177545189e-05 | M189: 0.004410539548 | N189: 3.290746752e-05
A190: =IF('DF raw data'!E195="","",'DF raw data'!E195) -> -236 | B190: =IF('DF raw data'!F195="","",'DF raw data'!F195) -> -2.11615e-05 | C190: =IF('DF raw data'!G195="","",'DF raw data'!G195) -> -3.87958e-06 | D190: =IF('DF raw data'!H195="","",'DF raw data'!H195) -> -2.90505e-05 | F190: -2.124646342e-05 | G190: -3.895156514e-06 | H190: -2.916713776e-05 | J190: -0.00125429022 | K190: -0.04014429815 | L190: 5.982787363e-05 | M190: 0.004440453485 | N190: 3.369587919e-05
A191: =IF('DF raw data'!E196="","",'DF raw data'!E196) -> -235.5 | B191: =IF('DF raw data'!F196="","",'DF raw data'!F196) -> -2.5262e-05 | C191: =IF('DF raw data'!G196="","",'DF raw data'!G196) -> -3.43984e-06 | D191: =IF('DF raw data'!H196="","",'DF raw data'!H196) -> -3.4222e-05 | F191: -2.536342693e-05 | G191: -3.453650958e-06 | H191: -3.435940133e-05 | J191: -0.001266971933 | K191: -0.04077778412 | L191: 5.810104815e-05 | M191: 0.004469504009 | N191: 3.450017599e-05
A192: =IF('DF raw data'!E197="","",'DF raw data'!E197) -> -235 | B192: =IF('DF raw data'!F197="","",'DF raw data'!F197) -> -2.89806e-05 | C192: =IF('DF raw data'!G197="","",'DF raw data'!G197) -> -1.78572e-06 | D192: =IF('DF raw data'!H197="","",'DF raw data'!H197) -> -3.52823e-05 | F192: =(1-$G$1*($B$49-$G$2))*B192 -> -2.909695711e-05 | G192: -1.792889666e-06 | H192: -3.542395843e-05 | J192: =F192*$G$3+J191 -> -0.001281520412 | K192: =J192*$G$3+K191 -> -0.04141854432 | L192: =G192*$G$3+L191 -> 5.720460332e-05 | M192: =L192*$G$3+M191 -> 0.004498106311 | N192: =(J192^2+L192^2)*$G$3+N191 -> 3.532295946e-05
A193: =IF('DF raw data'!E198="","",'DF raw data'!E198) -> -234.5 | B193: =IF('DF raw data'!F198="","",'DF raw data'!F198) -> -1.65368e-05 | C193: =IF('DF raw data'!G198="","",'DF raw data'!G198) -> -8.18745e-06 | D193: =IF('DF raw data'!H198="","",'DF raw data'!H198) -> -4.12126e-05 | F193: -1.660319525e-05 | G193: -8.220322612e-06 | H193: -4.137806859e-05 | J193: -0.001289822009 | K193: -0.04206345533 | L193: 5.309444201e-05 | M193: 0.004524653532 | N193: 3.615618938e-05
A194: =IF('DF raw data'!E199="","",'DF raw data'!E199) -> -234 | B194: =IF('DF raw data'!F199="","",'DF raw data'!F199) -> -1.21756e-05 | C194: =IF('DF raw data'!G199="","",'DF raw data'!G199) -> -5.4365e-06 | D194: =IF('DF raw data'!H199="","",'DF raw data'!H199) -> -4.23159e-05 | F194: -1.222448503e-05 | G194: -5.458327548e-06 | H194: -4.248579834e-05 | J194: -0.001295934252 | K194: -0.04271142245 | L194: 5.036527824e-05 | M194: 0.004549836171 | N194: 3.69971805e-05
A195: =IF('DF raw data'!E200="","",'DF raw data'!E200) -> -233.5 | B195: =IF('DF raw data'!F200="","",'DF raw data'!F200) -> -1.30181e-05 | C195: =IF('DF raw data'!G200="","",'DF raw data'!G200) -> 3.79054e-06 | D195: =IF('DF raw data'!H200="","",'DF raw data'!H200) -> -2.86954e-05 | F195: -1.307036767e-05 | G195: 3.805759018e-06 | H195: -2.881061203e-05 | J195: -0.001302469436 | K195: -0.04336265717 | L195: 5.226815775e-05 | M195: 0.00457597025 | N195: 3.78467598e-05
A196: =IF('DF raw data'!E201="","",'DF raw data'!E201) -> -233 | B196: =IF('DF raw data'!F201="","",'DF raw data'!F201) -> -4.87414e-06 | C196: =IF('DF raw data'!G201="","",'DF raw data'!G201) -> -2.63805e-06 | D196: =IF('DF raw data'!H201="","",'DF raw data'!H201) -> -2.92264e-05 | F196: -4.893709672e-06 | G196: -2.648641771e-06 | H196: -2.9343744e-05 | J196: -0.001304916291 | K196: -0.04401511532 | L196: 5.094383686e-05 | M196: 0.004601442168 | N196: 3.86994607e-05
A197: =IF('DF raw data'!E202="","",'DF raw data'!E202) -> -232.5 | B197: =IF('DF raw data'!F202="","",'DF raw data'!F202) -> -8.20688e-06 | C197: =IF('DF raw data'!G202="","",'DF raw data'!G202) -> -6.18197e-06 | D197: =IF('DF raw data'!H202="","",'DF raw data'!H202) -> -3.17102e-05 | F197: -8.239830623e-06 | G197: -6.20679061e-06 | H197: -3.183751645e-05 | J197: -0.001309036206 | K197: -0.04466963342 | L197: 4.784044156e-05 | M197: 0.004625362389 | N197: 3.955739294e-05
A198: =IF('DF raw data'!E203="","",'DF raw data'!E203) -> -232 | B198: =IF('DF raw data'!F203="","",'DF raw data'!F203) -> -1.10303e-05 | C198: =IF('DF raw data'!G203="","",'DF raw data'!G203) -> -5.51362e-06 | D198: =IF('DF raw data'!H203="","",'DF raw data'!H203) -> -2.84685e-05 | F198: -1.107458665e-05 | G198: -5.535757184e-06 | H198: -2.858280103e-05 | J198: -0.001314573499 | K198: -0.04532692017 | L198: 4.507256297e-05 | M198: 0.00464789867 | N198: 4.042246045e-05
A199: =IF('DF raw data'!E204="","",'DF raw data'!E204) -> -231.5 | B199: =IF('DF raw data'!F204="","",'DF raw data'!F204) -> -1.6219e-05 | C199: =IF('DF raw data'!G204="","",'DF raw data'!G204) -> -4.3972e-06 | D199: =IF('DF raw data'!H204="","",'DF raw data'!H204) -> -3.67343e-05 | F199: -1.628411929e-05 | G199: -4.414854758e-06 | H199: -3.688178821e-05 | J199: -0.001322715559 | K199: -0.04598827795 | L199: 4.286513559e-05 | M199: 0.004669331238 | N199: 4.129816739e-05
A200: =IF('DF raw data'!E205="","",'DF raw data'!E205) -> -231 | B200: =IF('DF raw data'!F205="","",'DF raw data'!F205) -> -2.46864e-05 | C200: =IF('DF raw data'!G205="","",'DF raw data'!G205) -> -2.89041e-06 | D200: =IF('DF raw data'!H205="","",'DF raw data'!H205) -> -3.20053e-05 | F200: -2.47855159e-05 | G200: -2.902014996e-06 | H200: -3.213380128e-05 | J200: -0.001335108317 | K200: -0.04665583211 | L200: 4.141412809e-05 | M200: 0.004690038302 | N200: 4.219028206e-05
A201: =IF('DF raw data'!E206="","",'DF raw data'!E206) -> -230.5 | B201: =IF('DF raw data'!F206="","",'DF raw data'!F206) -> -1.85907e-05 | C201: =IF('DF raw data'!G206="","",'DF raw data'!G206) -> 2.23789e-06 | D201: =IF('DF raw data'!H206="","",'DF raw data'!H206) -> -3.81634e-05 | F201: -1.866534166e-05 | G201: 2.246875128e-06 | H201: -3.831662605e-05 | J201: -0.001344440988 | K201: -0.0473280526 | L201: 4.253756565e-05 | M201: 0.004711307085 | N201: 4.309494757e-05
... 1061 more rows

Sheet 10 y=0
A1: =IF('DF raw data'!I1="","",'DF raw data'!I1) -> Number of header lines | B1: =IF('DF raw data'!J1="","",'DF raw data'!J1) -> 54 | C1: =IF('DF raw data'!K1="","",'DF raw data'!K1) ->  | D1: =IF('DF raw data'!L1="","",'DF raw data'!L1) ->  | F1: T_coeff | G1: -0.00073 | H1: /degC | J1: IBy total | K1: =J1262*1000 -> -8.340352937 | L1: muTm | M1: =L1262*1000 -> -11.12239942 | R1: DF ref | S1: ='10 y=-0.2'!S1 -> 1
A2: =IF('DF raw data'!I2="","",'DF raw data'!I2) -> Measured by | B2: =IF('DF raw data'!J2="","",'DF raw data'!J2) -> Danfysik | C2: =IF('DF raw data'!K2="","",'DF raw data'!K2) ->  | D2: =IF('DF raw data'!L2="","",'DF raw data'!L2) ->  | F2: Tcorr | G2: 20 | H2: degC | J2: JBy total | K2: =K1262 -> -10.65191588 | L2: muTm^2 | M2: =M1262 -> -3.274940478
A3: =IF('DF raw data'!I3="","",'DF raw data'!I3) -> Operator | B3: =IF('DF raw data'!J3="","",'DF raw data'!J3) -> PMHA | C3: =IF('DF raw data'!K3="","",'DF raw data'!K3) ->  | D3: =IF('DF raw data'!L3="","",'DF raw data'!L3) ->  | F3: Step | G3: =A63-A62 -> 0.5 | H3: mm | J3: PI total | K3: =N1262 -> 10666.40006 | L3: T^2mm^3
A4: =IF('DF raw data'!I4="","",'DF raw data'!I4) -> Data-time | B4: =IF('DF raw data'!J4="","",'DF raw data'!J4) -> 24-07-2024, 13:05:28 | C4: =IF('DF raw data'!K4="","",'DF raw data'!K4) ->  | D4: =IF('DF raw data'!L4="","",'DF raw data'!L4) -> 
A5: =IF('DF raw data'!I5="","",'DF raw data'!I5) -> Project | B5: =IF('DF raw data'!J5="","",'DF raw data'!J5) -> 504314 | C5: =IF('DF raw data'!K5="","",'DF raw data'!K5) ->  | D5: =IF('DF raw data'!L5="","",'DF raw data'!L5) -> 
A6: =IF('DF raw data'!I6="","",'DF raw data'!I6) -> Magnet type | B6: =IF('DF raw data'!J6="","",'DF raw data'!J6) -> Dipole | C6: =IF('DF raw data'!K6="","",'DF raw data'!K6) ->  | D6: =IF('DF raw data'!L6="","",'DF raw data'!L6) -> 
A7: =IF('DF raw data'!I7="","",'DF raw data'!I7) -> Magnet nr. | B7: =IF('DF raw data'!J7="","",'DF raw data'!J7) -> 2410084 | C7: =IF('DF raw data'!K7="","",'DF raw data'!K7) ->  | D7: =IF('DF raw data'!L7="","",'DF raw data'!L7) -> 
A8: =IF('DF raw data'!I8="","",'DF raw data'!I8) -> Meas. number | B8: =IF('DF raw data'!J8="","",'DF raw data'!J8) -> 113 | C8: =IF('DF raw data'!K8="","",'DF raw data'!K8) ->  | D8: =IF('DF raw data'!L8="","",'DF raw data'!L8) -> 
A9: =IF('DF raw data'!I9="","",'DF raw data'!I9) -> Add. info | B9: =IF('DF raw data'!J9="","",'DF raw data'!J9) -> Y-alignment scan 3) | C9: =IF('DF raw data'!K9="","",'DF raw data'!K9) ->  | D9: =IF('DF raw data'!L9="","",'DF raw data'!L9) -> 
A10: =IF('DF raw data'!I10="","",'DF raw data'!I10) -> Device | B10: =IF('DF raw data'!J10="","",'DF raw data'!J10) -> (HAL) HALL-PROBE | C10: =IF('DF raw data'!K10="","",'DF raw data'!K10) ->  | D10: =IF('DF raw data'!L10="","",'DF raw data'!L10) -> 
A11: =IF('DF raw data'!I11="","",'DF raw data'!I11) -> Goal | B11: =IF('DF raw data'!J11="","",'DF raw data'!J11) -> (AXI) AXis Integral (Line, EFB) | C11: =IF('DF raw data'!K11="","",'DF raw data'!K11) ->  | D11: =IF('DF raw data'!L11="","",'DF raw data'!L11) -> 
A12: =IF('DF raw data'!I12="","",'DF raw data'!I12) -> Power supply mode | B12: =IF('DF raw data'!J12="","",'DF raw data'!J12) -> (PM) Permanent Magnet (no MPS in use) | C12: =IF('DF raw data'!K12="","",'DF raw data'!K12) ->  | D12: =IF('DF raw data'!L12="","",'DF raw data'!L12) -> 
A13: =IF('DF raw data'!I13="","",'DF raw data'!I13) -> Data format | B13: =IF('DF raw data'!J13="","",'DF raw data'!J13) -> Raw data text file | C13: =IF('DF raw data'!K13="","",'DF raw data'!K13) ->  | D13: =IF('DF raw data'!L13="","",'DF raw data'!L13) -> 
A14: =IF('DF raw data'!I14="","",'DF raw data'!I14) -> Direction of the pos. x-axis | B14: =IF('DF raw data'!J14="","",'DF raw data'!J14) -> See test program | C14: =IF('DF raw data'!K14="","",'DF raw data'!K14) ->  | D14: =IF('DF raw data'!L14="","",'DF raw data'!L14) -> 
A15: =IF('DF raw data'!I15="","",'DF raw data'!I15) -> Direction of the pos. y-axis | B15: =IF('DF raw data'!J15="","",'DF raw data'!J15) -> Vertical up | C15: =IF('DF raw data'!K15="","",'DF raw data'!K15) ->  | D15: =IF('DF raw data'!L15="","",'DF raw data'!L15) -> 
A16: =IF('DF raw data'!I16="","",'DF raw data'!I16) -> Direction of the pos. z-axis | B16: =IF('DF raw data'!J16="","",'DF raw data'!J16) -> See test program | C16: =IF('DF raw data'!K16="","",'DF raw data'!K16) ->  | D16: =IF('DF raw data'!L16="","",'DF raw data'!L16) -> 
A17: =IF('DF raw data'!I17="","",'DF raw data'!I17) -> Mapper type | B17: =IF('DF raw data'!J17="","",'DF raw data'!J17) -> Precision Hall Mapper | C17: =IF('DF raw data'!K17="","",'DF raw data'!K17) ->  | D17: =IF('DF raw data'!L17="","",'DF raw data'!L17) -> 
A18: =IF('DF raw data'!I18="","",'DF raw data'!I18) -> Mapper Danfysik Reg. Number | B18: =IF('DF raw data'!J18="","",'DF raw data'!J18) -> 2033-D (mapper 1) | C18: =IF('DF raw data'!K18="","",'DF raw data'!K18) ->  | D18: =IF('DF raw data'!L18="","",'DF raw data'!L18) -> 
A19: =IF('DF raw data'!I19="","",'DF raw data'!I19) -> Measurement consept | B19: =IF('DF raw data'!J19="","",'DF raw data'!J19) -> Square line grid | C19: =IF('DF raw data'!K19="","",'DF raw data'!K19) ->  | D19: =IF('DF raw data'!L19="","",'DF raw data'!L19) -> 
A20: =IF('DF raw data'!I20="","",'DF raw data'!I20) -> Mode | B20: =IF('DF raw data'!J20="","",'DF raw data'!J20) -> On-the-fly measurement | C20: =IF('DF raw data'!K20="","",'DF raw data'!K20) ->  | D20: =IF('DF raw data'!L20="","",'DF raw data'!L20) -> 
A21: =IF('DF raw data'!I21="","",'DF raw data'!I21) ->  | B21: =IF('DF raw data'!J21="","",'DF raw data'!J21) ->  | C21: =IF('DF raw data'!K21="","",'DF raw data'!K21) ->  | D21: =IF('DF raw data'!L21="","",'DF raw data'!L21) -> 
A22: =IF('DF raw data'!I22="","",'DF raw data'!I22) -> Probe Name | B22: =IF('DF raw data'!J22="","",'DF raw data'!J22) -> ID12_By | C22: =IF('DF raw data'!K22="","",'DF raw data'!K22) ->  | D22: =IF('DF raw data'!L22="","",'DF raw data'!L22) -> 
A23: =IF('DF raw data'!I23="","",'DF raw data'!I23) -> Probe Type | B23: =IF('DF raw data'!J23="","",'DF raw data'!J23) -> DF_ID_3D_Bxyz | C23: =IF('DF raw data'!K23="","",'DF raw data'!K23) ->  | D23: =IF('DF raw data'!L23="","",'DF raw data'!L23) -> 
A24: =IF('DF raw data'!I24="","",'DF raw data'!I24) -> Probe Danfysik Reg. Number | B24: =IF('DF raw data'!J24="","",'DF raw data'!J24) -> 2277 | C24: =IF('DF raw data'!K24="","",'DF raw data'!K24) ->  | D24: =IF('DF raw data'!L24="","",'DF raw data'!L24) -> 
A25: =IF('DF raw data'!I25="","",'DF raw data'!I25) -> Probe Axis | B25: =IF('DF raw data'!J25="","",'DF raw data'!J25) -> By | C25: =IF('DF raw data'!K25="","",'DF raw data'!K25) ->  | D25: =IF('DF raw data'!L25="","",'DF raw data'!L25) -> 
A26: =IF('DF raw data'!I26="","",'DF raw data'!I26) -> Probe Current Supply | B26: =IF('DF raw data'!J26="","",'DF raw data'!J26) -> 1825-D | C26: =IF('DF raw data'!K26="","",'DF raw data'!K26) ->  | D26: =IF('DF raw data'!L26="","",'DF raw data'!L26) -> 
A27: =IF('DF raw data'!I27="","",'DF raw data'!I27) -> Probe Gain Correction | B27: =IF('DF raw data'!J27="","",'DF raw data'!J27) -> 0.99612 | C27: =IF('DF raw data'!K27="","",'DF raw data'!K27) ->  | D27: =IF('DF raw data'!L27="","",'DF raw data'!L27) -> 
A28: =IF('DF raw data'!I28="","",'DF raw data'!I28) -> Probe Offset Correction | B28: =IF('DF raw data'!J28="","",'DF raw data'!J28) -> 0.0027559 | C28: =IF('DF raw data'!K28="","",'DF raw data'!K28) ->  | D28: =IF('DF raw data'!L28="","",'DF raw data'!L28) -> 
A29: =IF('DF raw data'!I29="","",'DF raw data'!I29) -> DVM Number | B29: =IF('DF raw data'!J29="","",'DF raw data'!J29) -> 2 | C29: =IF('DF raw data'!K29="","",'DF raw data'!K29) ->  | D29: =IF('DF raw data'!L29="","",'DF raw data'!L29) -> 
A30: =IF('DF raw data'!I30="","",'DF raw data'!I30) -> DVM Type | B30: =IF('DF raw data'!J30="","",'DF raw data'!J30) -> K2701 | C30: =IF('DF raw data'!K30="","",'DF raw data'!K30) ->  | D30: =IF('DF raw data'!L30="","",'DF raw data'!L30) -> 
A31: =IF('DF raw data'!I31="","",'DF raw data'!I31) -> DVM Danfysik Reg. Number | B31: =IF('DF raw data'!J31="","",'DF raw data'!J31) -> 1743-D | C31: =IF('DF raw data'!K31="","",'DF raw data'!K31) ->  | D31: =IF('DF raw data'!L31="","",'DF raw data'!L31) -> 
A32: =IF('DF raw data'!I32="","",'DF raw data'!I32) -> Probe Name | B32: =IF('DF raw data'!J32="","",'DF raw data'!J32) -> ID12_Bx | C32: =IF('DF raw data'!K32="","",'DF raw data'!K32) ->  | D32: =IF('DF raw data'!L32="","",'DF raw data'!L32) -> 
A33: =IF('DF raw data'!I33="","",'DF raw data'!I33) -> Probe Type | B33: =IF('DF raw data'!J33="","",'DF raw data'!J33) -> DF_ID_3D_Bxyz | C33: =IF('DF raw data'!K33="","",'DF raw data'!K33) ->  | D33: =IF('DF raw data'!L33="","",'DF raw data'!L33) -> 
A34: =IF('DF raw data'!I34="","",'DF raw data'!I34) -> Probe Danfysik Reg. Number | B34: =IF('DF raw data'!J34="","",'DF raw data'!J34) -> 2277 | C34: =IF('DF raw data'!K34="","",'DF raw data'!K34) ->  | D34: =IF('DF raw data'!L34="","",'DF raw data'!L34) -> 
A35: =IF('DF raw data'!I35="","",'DF raw data'!I35) -> Probe Axis | B35: =IF('DF raw data'!J35="","",'DF raw data'!J35) -> Bx | C35: =IF('DF raw data'!K35="","",'DF raw data'!K35) ->  | D35: =IF('DF raw data'!L35="","",'DF raw data'!L35) -> 
A36: =IF('DF raw data'!I36="","",'DF raw data'!I36) -> Probe Current Supply | B36: =IF('DF raw data'!J36="","",'DF raw data'!J36) -> 1825-D | C36: =IF('DF raw data'!K36="","",'DF raw data'!K36) ->  | D36: =IF('DF raw data'!L36="","",'DF raw data'!L36) -> 
A37: =IF('DF raw data'!I37="","",'DF raw data'!I37) -> Probe Gain Correction | B37: =IF('DF raw data'!J37="","",'DF raw data'!J37) -> 1 | C37: =IF('DF raw data'!K37="","",'DF raw data'!K37) ->  | D37: =IF('DF raw data'!L37="","",'DF raw data'!L37) -> 
A38: =IF('DF raw data'!I38="","",'DF raw data'!I38) -> Probe Offset Correction | B38: =IF('DF raw data'!J38="","",'DF raw data'!J38) -> -0.17567 | C38: =IF('DF raw data'!K38="","",'DF raw data'!K38) ->  | D38: =IF('DF raw data'!L38="","",'DF raw data'!L38) -> 
A39: =IF('DF raw data'!I39="","",'DF raw data'!I39) -> DVM Number | B39: =IF('DF raw data'!J39="","",'DF raw data'!J39) -> 3 | C39: =IF('DF raw data'!K39="","",'DF raw data'!K39) ->  | D39: =IF('DF raw data'!L39="","",'DF raw data'!L39) -> 
A40: =IF('DF raw data'!I40="","",'DF raw data'!I40) -> DVM Type | B40: =IF('DF raw data'!J40="","",'DF raw data'!J40) -> K2701 | C40: =IF('DF raw data'!K40="","",'DF raw data'!K40) ->  | D40: =IF('DF raw data'!L40="","",'DF raw data'!L40) -> 
A41: =IF('DF raw data'!I41="","",'DF raw data'!I41) -> DVM Danfysik Reg. Number | B41: =IF('DF raw data'!J41="","",'DF raw data'!J41) -> 1744-D | C41: =IF('DF raw data'!K41="","",'DF raw data'!K41) ->  | D41: =IF('DF raw data'!L41="","",'DF raw data'!L41) -> 
A42: =IF('DF raw data'!I42="","",'DF raw data'!I42) -> Probe Name | B42: =IF('DF raw data'!J42="","",'DF raw data'!J42) -> ID12_Bz | C42: =IF('DF raw data'!K42="","",'DF raw data'!K42) ->  | D42: =IF('DF raw data'!L42="","",'DF raw data'!L42) -> 
A43: =IF('DF raw data'!I43="","",'DF raw data'!I43) -> Probe Type | B43: =IF('DF raw data'!J43="","",'DF raw data'!J43) -> DF_ID_3D_Bxyz | C43: =IF('DF raw data'!K43="","",'DF raw data'!K43) ->  | D43: =IF('DF raw data'!L43="","",'DF raw data'!L43) -> 
A44: =IF('DF raw data'!I44="","",'DF raw data'!I44) -> Probe Danfysik Reg. Number | B44: =IF('DF raw data'!J44="","",'DF raw data'!J44) -> 2277 | C44: =IF('DF raw data'!K44="","",'DF raw data'!K44) ->  | D44: =IF('DF raw data'!L44="","",'DF raw data'!L44) -> 
A45: =IF('DF raw data'!I45="","",'DF raw data'!I45) -> Probe Axis | B45: =IF('DF raw data'!J45="","",'DF raw data'!J45) -> Bz | C45: =IF('DF raw data'!K45="","",'DF raw data'!K45) ->  | D45: =IF('DF raw data'!L45="","",'DF raw data'!L45) -> 
A46: =IF('DF raw data'!I46="","",'DF raw data'!I46) -> Probe Current Supply | B46: =IF('DF raw data'!J46="","",'DF raw data'!J46) -> 1825-D | C46: =IF('DF raw data'!K46="","",'DF raw data'!K46) ->  | D46: =IF('DF raw data'!L46="","",'DF raw data'!L46) -> 
A47: =IF('DF raw data'!I47="","",'DF raw data'!I47) -> Probe Gain Correction | B47: =IF('DF raw data'!J47="","",'DF raw data'!J47) -> 1 | C47: =IF('DF raw data'!K47="","",'DF raw data'!K47) ->  | D47: =IF('DF raw data'!L47="","",'DF raw data'!L47) -> 
A48: =IF('DF raw data'!I53="","",'DF raw data'!I53) -> PS-Gap: | B48: =IF('DF raw data'!J53="","",'DF raw data'!J53) -> 10 | C48: =IF('DF raw data'!K53="","",'DF raw data'!K53) ->  | D48: =IF('DF raw data'!L53="","",'DF raw data'!L53) -> 
A49: =IF('DF raw data'!I54="","",'DF raw data'!I54) -> PS-Temperature: | B49: =IF('DF raw data'!J54="","",'DF raw data'!J54) -> 25.5 | C49: =IF('DF raw data'!K54="","",'DF raw data'!K54) ->  | D49: =IF('DF raw data'!L54="","",'DF raw data'!L54) -> 
A50: =IF('DF raw data'!I55="","",'DF raw data'!I55) -> PS-Encoder: | B50: =IF('DF raw data'!J55="","",'DF raw data'!J55) -> 19.434 | C50: =IF('DF raw data'!K55="","",'DF raw data'!K55) ->  | D50: =IF('DF raw data'!L55="","",'DF raw data'!L55) -> 
A51: =IF('DF raw data'!I56="","",'DF raw data'!I56) ->  | B51: =IF('DF raw data'!J56="","",'DF raw data'!J56) ->  | C51: =IF('DF raw data'!K56="","",'DF raw data'!K56) ->  | D51: =IF('DF raw data'!L56="","",'DF raw data'!L56) -> 
A52: =IF('DF raw data'!I57="","",'DF raw data'!I57) -> Monitor-Index | B52: =IF('DF raw data'!J57="","",'DF raw data'!J57) -> [1,1,4] | C52: =IF('DF raw data'!K57="","",'DF raw data'!K57) ->  | D52: =IF('DF raw data'!L57="","",'DF raw data'!L57) -> 
A53: =IF('DF raw data'!I58="","",'DF raw data'!I58) ->  | B53: =IF('DF raw data'!J58="","",'DF raw data'!J58) ->  | C53: =IF('DF raw data'!K58="","",'DF raw data'!K58) ->  | D53: =IF('DF raw data'!L58="","",'DF raw data'!L58) -> 
A54: =IF('DF raw data'!I59="","",'DF raw data'!I59) -> Time [s] | B54: =IF('DF raw data'!J59="","",'DF raw data'!J59) -> Y [mm] | C54: =IF('DF raw data'!K59="","",'DF raw data'!K59) -> X [mm] | D54: =IF('DF raw data'!L59="","",'DF raw data'!L59) -> Nominal current [A]
A55: =IF('DF raw data'!I60="","",'DF raw data'!I60) ->  | B55: =IF('DF raw data'!J60="","",'DF raw data'!J60) ->  | C55: =IF('DF raw data'!K60="","",'DF raw data'!K60) ->  | D55: =IF('DF raw data'!L60="","",'DF raw data'!L60) -> 
A56: =IF('DF raw data'!I61="","",'DF raw data'!I61) -> 207.1 | B56: =IF('DF raw data'!J61="","",'DF raw data'!J61) -> 31.36 | C56: =IF('DF raw data'!K61="","",'DF raw data'!K61) -> 301.8 | D56: =IF('DF raw data'!L61="","",'DF raw data'!L61) -> 0
A57: =IF('DF raw data'!I62="","",'DF raw data'!I62) ->  | B57: =IF('DF raw data'!J62="","",'DF raw data'!J62) ->  | C57: =IF('DF raw data'!K62="","",'DF raw data'!K62) ->  | D57: =IF('DF raw data'!L62="","",'DF raw data'!L62) -> 
A58: =IF('DF raw data'!I63="","",'DF raw data'!I63) -> Measurement-Index | B58: =IF('DF raw data'!J63="","",'DF raw data'!J63) -> [1,1,1201,2] | C58: =IF('DF raw data'!K63="","",'DF raw data'!K63) ->  | D58: =IF('DF raw data'!L63="","",'DF raw data'!L63) -> 
A59: =IF('DF raw data'!I64="","",'DF raw data'!I64) ->  | B59: =IF('DF raw data'!J64="","",'DF raw data'!J64) ->  | C59: =IF('DF raw data'!K64="","",'DF raw data'!K64) ->  | D59: =IF('DF raw data'!L64="","",'DF raw data'!L64) -> 
A60: =IF('DF raw data'!I65="","",'DF raw data'!I65) -> Z [mm] | B60: By [T] | C60: Bx [T] | D60: Bz [T] | F60: By_corr | G60: Bx_corr | H60: Bz_corr | J60: Iy | K60: Jy | L60: Ix | M60: Jx | N60: PI
A62: =IF('DF raw data'!I67="","",'DF raw data'!I67) -> -300 | B62: =IF('DF raw data'!J67="","",'DF raw data'!J67) -> -2.32844e-05 | C62: =IF('DF raw data'!K67="","",'DF raw data'!K67) -> 2.25338e-05 | D62: =IF('DF raw data'!L67="","",'DF raw data'!L67) -> -4.48986e-05 | F62: =(1-$G$1*($B$49))*B62 -> -2.371783911e-05 | G62: =(1-$G$1*($B$49-$G$2))*C62 -> 2.262427321e-05 | H62: =(1-$G$1*($B$49-$G$2))*D62 -> -4.507886788e-05 | J62: =F62*$G$3 -> -1.185891955e-05 | K62: =J62*$G$3 -> -5.929459777e-06 | L62: =G62*$G$3 -> 1.13121366e-05 | M62: =L62*$G$3 -> 5.656068302e-06 | N62: =(J62^2+L62^2)*$G$3 -> 1.342992038e-10
A63: =IF('DF raw data'!I68="","",'DF raw data'!I68) -> -299.5 | B63: =IF('DF raw data'!J68="","",'DF raw data'!J68) -> -1.15497e-05 | C63: =IF('DF raw data'!K68="","",'DF raw data'!K68) -> 2.32415e-05 | D63: =IF('DF raw data'!L68="","",'DF raw data'!L68) -> -4.58247e-05 | F63: =(1-$G$1*($B$49-$G$2))*B63 -> -1.159607205e-05 | G63: =(1-$G$1*($B$49-$G$2))*C63 -> 2.333481462e-05 | H63: -4.600868617e-05 | J63: =F63*$G$3+J62 -> -1.765695558e-05 | K63: =J63*$G$3+K62 -> -1.475793756e-05 | L63: =G63*$G$3+L62 -> 2.297954391e-05 | M63: =L63*$G$3+M62 -> 1.714584026e-05 | N63: =(J63^2+L63^2)*$G$3+N62 -> 5.542129631e-10
A64: =IF('DF raw data'!I69="","",'DF raw data'!I69) -> -299 | B64: =IF('DF raw data'!J69="","",'DF raw data'!J69) -> -1.70632e-05 | C64: =IF('DF raw data'!K69="","",'DF raw data'!K69) -> 1.96406e-05 | D64: =IF('DF raw data'!L69="","",'DF raw data'!L69) -> -4.70448e-05 | F64: =(1-$G$1*($B$49-$G$2))*B64 -> -1.713170875e-05 | G64: 1.971945701e-05 | H64: -4.723368487e-05 | J64: =F64*$G$3+J63 -> -2.622280995e-05 | K64: =J64*$G$3+K63 -> -2.786934254e-05 | L64: =G64*$G$3+L63 -> 3.283927242e-05 | M64: =L64*$G$3+M63 -> 3.356547647e-05 | N64: =(J64^2+L64^2)*$G$3+N63 -> 1.43723975e-09
A65: =IF('DF raw data'!I70="","",'DF raw data'!I70) -> -298.5 | B65: =IF('DF raw data'!J70="","",'DF raw data'!J70) -> -2.73228e-05 | C65: =IF('DF raw data'!K70="","",'DF raw data'!K70) -> 2.31618e-05 | D65: =IF('DF raw data'!L70="","",'DF raw data'!L70) -> -4.69328e-05 | F65: -2.743250104e-05 | G65: 2.325479463e-05 | H65: -4.712123519e-05 | J65: -3.993906047e-05 | K65: -4.783887277e-05 | L65: 4.446666973e-05 | M65: 5.579881134e-05 | N65: 3.223446385e-09
A66: =IF('DF raw data'!I71="","",'DF raw data'!I71) -> -298 | B66: =IF('DF raw data'!J71="","",'DF raw data'!J71) -> -2.07827e-05 | C66: =IF('DF raw data'!K71="","",'DF raw data'!K71) -> 2.5103e-05 | D66: =IF('DF raw data'!L71="","",'DF raw data'!L71) -> -4.63591e-05 | F66: -2.086614254e-05 | G66: 2.520378855e-05 | H66: -4.654523179e-05 | J66: -5.037213174e-05 | K66: -7.302493865e-05 | L66: 5.706856401e-05 | M66: 8.433309334e-05 | N66: 6.120532712e-09
A67: =IF('DF raw data'!I72="","",'DF raw data'!I72) -> -297.5 | B67: =IF('DF raw data'!J72="","",'DF raw data'!J72) -> -1.85386e-05 | C67: =IF('DF raw data'!K72="","",'DF raw data'!K72) -> 1.20008e-05 | D67: =IF('DF raw data'!L72="","",'DF raw data'!L72) -> -4.64061e-05 | F67: -1.861303248e-05 | G67: 1.204898321e-05 | H67: -4.659242049e-05 | J67: -5.967864798e-05 | K67: -0.0001028642626 | L67: 6.309305561e-05 | M67: 0.0001158796211 | N67: 9.891670057e-09
A68: =IF('DF raw data'!I73="","",'DF raw data'!I73) -> -297 | B68: =IF('DF raw data'!J73="","",'DF raw data'!J73) -> -2.11673e-05 | C68: =IF('DF raw data'!K73="","",'DF raw data'!K73) -> 1.74268e-05 | D68: =IF('DF raw data'!L73="","",'DF raw data'!L73) -> -4.64688e-05 | F68: -2.125228671e-05 | G68: 1.74967686e-05 | H68: -4.665537223e-05 | J68: -7.030479134e-05 | K68: -0.0001380166583 | L68: 7.184143991e-05 | M68: 0.0001518003411 | N68: 1.494364814e-08
A69: =IF('DF raw data'!I74="","",'DF raw data'!I74) -> -296.5 | B69: =IF('DF raw data'!J74="","",'DF raw data'!J74) -> -2.44378e-05 | C69: =IF('DF raw data'!K74="","",'DF raw data'!K74) -> 2.56458e-05 | D69: =IF('DF raw data'!L74="","",'DF raw data'!L74) -> -4.60722e-05 | F69: -2.453591777e-05 | G69: 2.574876789e-05 | H69: -4.625717988e-05 | J69: -8.257275022e-05 | K69: -0.0001793030334 | L69: 8.471582386e-05 | M69: 0.000194158253 | N69: 2.194116309e-08
A70: =IF('DF raw data'!I75="","",'DF raw data'!I75) -> -296 | B70: =IF('DF raw data'!J75="","",'DF raw data'!J75) -> -1.60379e-05 | C70: =IF('DF raw data'!K75="","",'DF raw data'!K75) -> 1.87095e-05 | D70: =IF('DF raw data'!L75="","",'DF raw data'!L75) -> -4.62126e-05 | F70: -1.610229217e-05 | G70: 1.878461864e-05 | H70: -4.639814359e-05 | J70: -9.06238963e-05 | K70: -0.0002246149816 | L70: 9.410813318e-05 | M70: 0.0002412123196 | N70: 3.047567874e-08
A71: =IF('DF raw data'!I76="","",'DF raw data'!I76) -> -295.5 | B71: =IF('DF raw data'!J76="","",'DF raw data'!J76) -> -1.3216e-05 | C71: =IF('DF raw data'!K76="","",'DF raw data'!K76) -> 1.61561e-05 | D71: =IF('DF raw data'!L76="","",'DF raw data'!L76) -> -4.70981e-05 | F71: -1.326906224e-05 | G71: 1.622096674e-05 | H71: -4.728719887e-05 | J71: -9.725842742e-05 | K71: -0.0002732441953 | L71: 0.0001022186165 | M71: 0.0002923216279 | N71: 4.042960238e-08
A72: =IF('DF raw data'!I77="","",'DF raw data'!I77) -> -295 | B72: =IF('DF raw data'!J77="","",'DF raw data'!J77) -> -2.57193e-05 | C72: =IF('DF raw data'!K77="","",'DF raw data'!K77) -> 1.80571e-05 | D72: =IF('DF raw data'!L77="","",'DF raw data'!L77) -> -4.74545e-05 | F72: -2.582256299e-05 | G72: 1.812959926e-05 | H72: -4.764502982e-05 | J72: -0.0001101697089 | K72: -0.0003283290497 | L72: 0.0001112834162 | M72: 0.000347963336 | N72: 5.269028412e-08
A73: =IF('DF raw data'!I78="","",'DF raw data'!I78) -> -294.5 | B73: =IF('DF raw data'!J78="","",'DF raw data'!J78) -> -2.5784e-05 | C73: =IF('DF raw data'!K78="","",'DF raw data'!K78) -> 2.28905e-05 | D73: =IF('DF raw data'!L78="","",'DF raw data'!L78) -> -4.68447e-05 | F73: -2.588752276e-05 | G73: 2.298240536e-05 | H73: -4.703278147e-05 | J73: -0.0001231134703 | K73: -0.0003898857849 | L73: 0.0001227746189 | M73: 0.0004093506454 | N73: 6.780555092e-08
A74: =IF('DF raw data'!I79="","",'DF raw data'!I79) -> -294 | B74: =IF('DF raw data'!J79="","",'DF raw data'!J79) -> -2.3861e-05 | C74: =IF('DF raw data'!K79="","",'DF raw data'!K79) -> 3.10756e-05 | D74: =IF('DF raw data'!L79="","",'DF raw data'!L79) -> -4.58315e-05 | F74: -2.395680192e-05 | G74: 3.120036853e-05 | H74: -4.601551347e-05 | J74: -0.0001350918713 | K74: -0.0004574317205 | L74: 0.0001383748031 | M74: 0.000478538047 | N74: 8.650425083e-08
A75: =IF('DF raw data'!I80="","",'DF raw data'!I80) -> -293.5 | B75: =IF('DF raw data'!J80="","",'DF raw data'!J80) -> -2.61056e-05 | C75: =IF('DF raw data'!K80="","",'DF raw data'!K80) -> 2.24504e-05 | D75: =IF('DF raw data'!L80="","",'DF raw data'!L80) -> -4.50491e-05 | F75: -2.621041398e-05 | G75: 2.254053836e-05 | H75: -4.522997214e-05 | J75: -0.0001481970782 | K75: -0.0005315302596 | L75: 0.0001496450723 | M75: 0.0005533605831 | N75: 1.086822617e-07
A76: =IF('DF raw data'!I81="","",'DF raw data'!I81) -> -293 | B76: =IF('DF raw data'!J81="","",'DF raw data'!J81) -> -8.9853e-06 | C76: =IF('DF raw data'!K81="","",'DF raw data'!K81) -> 2.33746e-05 | D76: =IF('DF raw data'!L81="","",'DF raw data'!L81) -> -4.5225e-05 | F76: -9.02137598e-06 | G76: 2.346844902e-05 | H76: -4.540657838e-05 | J76: -0.0001527077662 | K76: -0.0006078841428 | L76: 0.0001613792968 | M76: 0.0006340502315 | N76: 1.333637313e-07
A77: =IF('DF raw data'!I82="","",'DF raw data'!I82) -> -292.5 | B77: =IF('DF raw data'!J82="","",'DF raw data'!J82) -> -1.24472e-05 | C77: =IF('DF raw data'!K82="","",'DF raw data'!K82) -> 2.17252e-05 | D77: =IF('DF raw data'!L82="","",'DF raw data'!L82) -> -4.61419e-05 | F77: -1.249717551e-05 | G77: 2.181242668e-05 | H77: -4.632715973e-05 | J77: -0.000158956354 | K77: -0.0006873623197 | L77: 0.0001722855101 | M77: 0.0007201929866 | N77: 1.608384411e-07
A78: =IF('DF raw data'!I83="","",'DF raw data'!I83) -> -292 | B78: =IF('DF raw data'!J83="","",'DF raw data'!J83) -> -1.02667e-05 | C78: =IF('DF raw data'!K83="","",'DF raw data'!K83) -> 2.44892e-05 | D78: =IF('DF raw data'!L83="","",'DF raw data'!L83) -> -4.68034e-05 | F78: -1.03079208e-05 | G78: 2.458752414e-05 | H78: -4.699131565e-05 | J78: -0.0001641103144 | K78: -0.0007694174769 | L78: 0.0001845792722 | M78: 0.0008124826227 | N78: 1.913392926e-07
A79: =IF('DF raw data'!I84="","",'DF raw data'!I84) -> -291.5 | B79: =IF('DF raw data'!J84="","",'DF raw data'!J84) -> -1.74555e-05 | C79: =IF('DF raw data'!K84="","",'DF raw data'!K84) -> 2.42776e-05 | D79: =IF('DF raw data'!L84="","",'DF raw data'!L84) -> -3.54629e-05 | F79: -1.752558383e-05 | G79: 2.437507456e-05 | H79: -3.560528354e-05 | J79: -0.0001728731063 | K79: -0.0008558540301 | L79: 0.0001967668095 | M79: 0.0009108660275 | N79: 2.256404367e-07
A80: =IF('DF raw data'!I85="","",'DF raw data'!I85) -> -291 | B80: =IF('DF raw data'!J85="","",'DF raw data'!J85) -> -1.32874e-05 | C80: =IF('DF raw data'!K85="","",'DF raw data'!K85) -> 2.19321e-05 | D80: =IF('DF raw data'!L85="","",'DF raw data'!L85) -> -3.56703e-05 | F80: -1.334074891e-05 | G80: 2.202015738e-05 | H80: -3.581351625e-05 | J80: -0.0001795434808 | K80: -0.0009456257705 | L80: 0.0002077768882 | M80: 0.001014754472 | N80: 2.63343985e-07
A81: =IF('DF raw data'!I86="","",'DF raw data'!I86) -> -290.5 | B81: =IF('DF raw data'!J86="","",'DF raw data'!J86) -> -1.0214e-05 | C81: =IF('DF raw data'!K86="","",'DF raw data'!K86) -> 2.80369e-05 | D81: =IF('DF raw data'!L86="","",'DF raw data'!L86) -> -2.89981e-05 | F81: -1.025500921e-05 | G81: 2.814946815e-05 | H81: -2.911452737e-05 | J81: -0.0001846709854 | K81: -0.001037961263 | L81: 0.0002218516223 | M81: 0.001125680283 | N81: 3.050047426e-07
A82: =IF('DF raw data'!I87="","",'DF raw data'!I87) -> -290 | B82: =IF('DF raw data'!J87="","",'DF raw data'!J87) -> -2.5405e-05 | C82: =IF('DF raw data'!K87="","",'DF raw data'!K87) -> 3.61866e-05 | D82: =IF('DF raw data'!L87="","",'DF raw data'!L87) -> -3.80754e-05 | F82: -2.550700108e-05 | G82: 3.63318892e-05 | H82: -3.822827273e-05 | J82: -0.0001974244859 | K82: -0.001136673506 | L82: 0.0002400175669 | M82: 0.001245689066 | N82: 3.532971726e-07
A83: =IF('DF raw data'!I88="","",'DF raw data'!I88) -> -289.5 | B83: =IF('DF raw data'!J88="","",'DF raw data'!J88) -> -1.36771e-05 | C83: =IF('DF raw data'!K88="","",'DF raw data'!K88) -> 2.89876e-05 | D83: =IF('DF raw data'!L88="","",'DF raw data'!L88) -> -2.8442e-05 | F83: -1.373201356e-05 | G83: 2.910398521e-05 | H83: -2.855619463e-05 | J83: -0.0002042904927 | K83: -0.001238818752 | L83: 0.0002545695595 | M83: 0.001372973846 | N83: 4.065673056e-07
A84: =IF('DF raw data'!I89="","",'DF raw data'!I89) -> -289 | B84: =IF('DF raw data'!J89="","",'DF raw data'!J89) -> -1.69447e-05 | C84: =IF('DF raw data'!K89="","",'DF raw data'!K89) -> 2.59789e-05 | D84: =IF('DF raw data'!L89="","",'DF raw data'!L89) -> -3.21777e-05 | F84: -1.701273297e-05 | G84: 2.608320528e-05 | H84: -3.230689347e-05 | J84: -0.0002127968592 | K84: -0.001345217182 | L84: 0.0002676111621 | M84: 0.001506779427 | N84: 4.650164243e-07
A85: =IF('DF raw data'!I90="","",'DF raw data'!I90) -> -288.5 | B85: =IF('DF raw data'!J90="","",'DF raw data'!J90) -> -2.21337e-05 | C85: =IF('DF raw data'!K90="","",'DF raw data'!K90) -> 1.77951e-05 | D85: =IF('DF raw data'!L90="","",'DF raw data'!L90) -> -3.96292e-05 | F85: -2.222256681e-05 | G85: 1.786654733e-05 | H85: -3.978831124e-05 | J85: -0.0002239081426 | K85: -0.001457171253 | L85: 0.0002765444358 | M85: 0.001645051645 | N85: 5.28322265e-07
A86: =IF('DF raw data'!I91="","",'DF raw data'!I91) -> -288 | B86: =IF('DF raw data'!J91="","",'DF raw data'!J91) -> -2.20063e-05 | C86: =IF('DF raw data'!K91="","",'DF raw data'!K91) -> 1.39868e-05 | D86: =IF('DF raw data'!L91="","",'DF raw data'!L91) -> -3.83289e-05 | F86: -2.209465529e-05 | G86: 1.4042957e-05 | H86: -3.848279053e-05 | J86: -0.0002349554702 | K86: -0.001574648988 | L86: 0.0002835659143 | M86: 0.001786834602 | N86: 5.961291153e-07
A87: =IF('DF raw data'!I92="","",'DF raw data'!I92) -> -287.5 | B87: =IF('DF raw data'!J92="","",'DF raw data'!J92) -> -3.00267e-05 | C87: =IF('DF raw data'!K92="","",'DF raw data'!K92) -> 1.12566e-05 | D87: =IF('DF raw data'!L92="","",'DF raw data'!L92) -> -3.03078e-05 | F87: -3.01472572e-05 | G87: 1.130179525e-05 | H87: -3.042948582e-05 | J87: -0.0002500290988 | K87: -0.001699663538 | L87: 0.0002892168119 | M87: 0.001931443008 | N87: 6.692095726e-07
A88: =IF('DF raw data'!I93="","",'DF raw data'!I93) -> -287 | B88: =IF('DF raw data'!J93="","",'DF raw data'!J93) -> -3.54066e-05 | C88: =IF('DF raw data'!K93="","",'DF raw data'!K93) -> 1.49601e-05 | D88: =IF('DF raw data'!L93="","",'DF raw data'!L93) -> -3.98237e-05 | F88: -3.55487575e-05 | G88: 1.50201648e-05 | H88: -3.998359216e-05 | J88: -0.0002678034776 | K88: -0.001833565277 | L88: 0.0002967268943 | M88: 0.002079806455 | N88: 7.490923488e-07
A89: =IF('DF raw data'!I94="","",'DF raw data'!I94) -> -286.5 | B89: =IF('DF raw data'!J94="","",'DF raw data'!J94) -> -2.4073e-05 | C89: =IF('DF raw data'!K94="","",'DF raw data'!K94) -> 2.13203e-05 | D89: =IF('DF raw data'!L94="","",'DF raw data'!L94) -> -1.54354e-05 | F89: -2.41696531e-05 | G89: 2.1405901e-05 | H89: -1.549737313e-05 | J89: -0.0002798883041 | K89: -0.001973509429 | L89: 0.0003074298448 | M89: 0.002233521377 | N89: 8.355176349e-07
A90: =IF('DF raw data'!I95="","",'DF raw data'!I95) -> -286 | B90: =IF('DF raw data'!J95="","",'DF raw data'!J95) -> -1.66253e-05 | C90: =IF('DF raw data'!K95="","",'DF raw data'!K95) -> 2.40862e-05 | D90: =IF('DF raw data'!L95="","",'DF raw data'!L95) -> -3.04116e-05 | F90: -1.669205058e-05 | G90: 2.418290609e-05 | H90: -3.053370257e-05 | J90: -0.0002882343294 | K90: -0.002117626593 | L90: 0.0003195212979 | M90: 0.002393282026 | N90: 9.281040791e-07
A91: =IF('DF raw data'!I96="","",'DF raw data'!I96) -> -285.5 | B91: =IF('DF raw data'!J96="","",'DF raw data'!J96) -> -1.84214e-05 | C91: =IF('DF raw data'!K96="","",'DF raw data'!K96) -> 2.5294e-05 | D91: =IF('DF raw data'!L96="","",'DF raw data'!L96) -> -2.94119e-05 | F91: -1.849536192e-05 | G91: 2.539555541e-05 | H91: -2.952998878e-05 | J91: -0.0002974820104 | K91: -0.002266367599 | L91: 0.0003322190756 | M91: 0.002559391564 | N91: 1.027536609e-06
A92: =IF('DF raw data'!I97="","",'DF raw data'!I97) -> -285 | B92: =IF('DF raw data'!J97="","",'DF raw data'!J97) -> -1.92603e-05 | C92: =IF('DF raw data'!K97="","",'DF raw data'!K97) -> 2.45721e-05 | D92: =IF('DF raw data'!L97="","",'DF raw data'!L97) -> -2.09568e-05 | F92: -1.93376301e-05 | G92: 2.467075698e-05 | H92: -2.104094155e-05 | J92: -0.0003071508254 | K92: -0.002419943011 | L92: 0.000344554454 | M92: 0.002731668791 | N92: 1.13406631e-06
A93: =IF('DF raw data'!I98="","",'DF raw data'!I98) -> -284.5 | B93: =IF('DF raw data'!J98="","",'DF raw data'!J98) -> -2.21411e-05 | C93: =IF('DF raw data'!K98="","",'DF raw data'!K98) -> 2.94499e-05 | D93: =IF('DF raw data'!L98="","",'DF raw data'!L98) -> -2.81846e-05 | F93: -2.222999652e-05 | G93: 2.956814135e-05 | H93: -2.829776117e-05 | J93: -0.0003182658237 | K93: -0.002579075923 | L93: 0.0003593385247 | M93: 0.002911338054 | N93: 1.249274965e-06
A94: =IF('DF raw data'!I99="","",'DF raw data'!I99) -> -284 | B94: =IF('DF raw data'!J99="","",'DF raw data'!J99) -> -1.08575e-05 | C94: =IF('DF raw data'!K99="","",'DF raw data'!K99) -> 2.37207e-05 | D94: =IF('DF raw data'!L99="","",'DF raw data'!L99) -> -2.54074e-05 | F94: -1.090109286e-05 | G94: 2.381593861e-05 | H94: -2.550941071e-05 | J94: -0.0003237163701 | K94: -0.002740934108 | L94: 0.000371246494 | M94: 0.003096961301 | N94: 1.370583089e-06
A95: =IF('DF raw data'!I100="","",'DF raw data'!I100) -> -283.5 | B95: =IF('DF raw data'!J100="","",'DF raw data'!J100) -> -2.56696e-05 | C95: =IF('DF raw data'!K100="","",'DF raw data'!K100) -> 2.74367e-05 | D95: =IF('DF raw data'!L100="","",'DF raw data'!L100) -> -2.55193e-05 | F95: -2.577266344e-05 | G95: 2.754685835e-05 | H95: -2.562175999e-05 | J95: -0.0003366027018 | K95: -0.002909235459 | L95: 0.0003850199232 | M95: 0.003289471262 | N95: 1.501353949e-06
A96: =IF('DF raw data'!I101="","",'DF raw data'!I101) -> -283 | B96: =IF('DF raw data'!J101="","",'DF raw data'!J101) -> -2.48368e-05 | C96: =IF('DF raw data'!K101="","",'DF raw data'!K101) -> 3.69931e-05 | D96: =IF('DF raw data'!L101="","",'DF raw data'!L101) -> -2.40882e-05 | F96: -2.493651975e-05 | G96: 3.71416273e-05 | H96: -2.418491412e-05 | J96: -0.0003490709617 | K96: -0.00308377094 | L96: 0.0004035907369 | M96: 0.003491266631 | N96: 1.643721959e-06
A97: =IF('DF raw data'!I102="","",'DF raw data'!I102) -> -282.5 | B97: =IF('DF raw data'!J102="","",'DF raw data'!J102) -> -3.00872e-05 | C97: =IF('DF raw data'!K102="","",'DF raw data'!K102) -> 3.85097e-05 | D97: =IF('DF raw data'!L102="","",'DF raw data'!L102) -> -3.56789e-05 | F97: -3.020800011e-05 | G97: 3.866431645e-05 | H97: -3.582215078e-05 | J97: -0.0003641749618 | K97: -0.003265858421 | L97: 0.0004229228951 | M97: 0.003702728078 | N97: 1.799465548e-06
A98: =IF('DF raw data'!I103="","",'DF raw data'!I103) -> -282 | B98: =IF('DF raw data'!J103="","",'DF raw data'!J103) -> -1.1499e-05 | C98: =IF('DF raw data'!K103="","",'DF raw data'!K103) -> 3.37285e-05 | D98: =IF('DF raw data'!L103="","",'DF raw data'!L103) -> -2.49201e-05 | F98: -1.154516848e-05 | G98: 3.386391993e-05 | H98: -2.50201542e-05 | J98: -0.000369947546 | K98: -0.003450832194 | L98: 0.000439854855 | M98: 0.003922655506 | N98: 1.964632288e-06
A99: =IF('DF raw data'!I104="","",'DF raw data'!I104) -> -281.5 | B99: =IF('DF raw data'!J104="","",'DF raw data'!J104) -> -2.44468e-05 | C99: =IF('DF raw data'!K104="","",'DF raw data'!K104) -> 2.55474e-05 | D99: =IF('DF raw data'!L104="","",'DF raw data'!L104) -> -3.23748e-05 | F99: -2.45449539e-05 | G99: 2.564997281e-05 | H99: -3.250478482e-05 | J99: -0.000382220023 | K99: -0.003641942205 | L99: 0.0004526798414 | M99: 0.004148995426 | N99: 2.14013788e-06
A100: =IF('DF raw data'!I105="","",'DF raw data'!I105) -> -281 | B100: =IF('DF raw data'!J105="","",'DF raw data'!J105) -> -2.50873e-05 | C100: =IF('DF raw data'!K105="","",'DF raw data'!K105) -> 2.31625e-05 | D100: =IF('DF raw data'!L105="","",'DF raw data'!L105) -> -3.34256e-05 | F100: -2.518802551e-05 | G100: 2.325549744e-05 | H100: -3.355980378e-05 | J100: -0.0003948140357 | K100: -0.003839349223 | L100: 0.0004643075902 | M100: 0.004381149221 | N100: 2.325867711e-06
A101: =IF('DF raw data'!I106="","",'DF raw data'!I106) -> -280.5 | B101: =IF('DF raw data'!J106="","",'DF raw data'!J106) -> -2.04684e-05 | C101: =IF('DF raw data'!K106="","",'DF raw data'!K106) -> 3.88611e-05 | D101: =IF('DF raw data'!L106="","",'DF raw data'!L106) -> -3.69276e-05 | F101: -2.055058063e-05 | G101: 3.901712732e-05 | H101: -3.707586431e-05 | J101: -0.000405089326 | K101: -0.004041893886 | L101: 0.0004838161538 | M101: 0.004623057298 | N101: 2.524955427e-06
A102: =IF('DF raw data'!I107="","",'DF raw data'!I107) -> -280 | B102: =IF('DF raw data'!J107="","",'DF raw data'!J107) -> -1.63054e-05 | C102: =IF('DF raw data'!K107="","",'DF raw data'!K107) -> 4.98763e-05 | D102: =IF('DF raw data'!L107="","",'DF raw data'!L107) -> -2.9238e-05 | F102: -1.637086618e-05 | G102: 5.007655334e-05 | H102: -2.935539057e-05 | J102: -0.0004132747591 | K102: -0.004248531266 | L102: 0.0005088544305 | M102: 0.004877484514 | N102: 2.739819856e-06
A103: =IF('DF raw data'!I108="","",'DF raw data'!I108) -> -279.5 | B103: =IF('DF raw data'!J108="","",'DF raw data'!J108) -> -2.22045e-05 | C103: =IF('DF raw data'!K108="","",'DF raw data'!K108) -> 3.82554e-05 | D103: =IF('DF raw data'!L108="","",'DF raw data'!L108) -> -2.91683e-05 | F103: -2.229365107e-05 | G103: 3.840899543e-05 | H103: -2.928541072e-05 | J103: -0.0004244215846 | K103: -0.004460742058 | L103: 0.0005280589282 | M103: 0.005141513978 | N103: 2.969309813e-06
A104: =IF('DF raw data'!I109="","",'DF raw data'!I109) -> -279 | B104: =IF('DF raw data'!J109="","",'DF raw data'!J109) -> -1.93743e-05 | C104: =IF('DF raw data'!K109="","",'DF raw data'!K109) -> 4.14833e-05 | D104: =IF('DF raw data'!L109="","",'DF raw data'!L109) -> -4.29376e-05 | F104: -1.945208781e-05 | G104: 4.164985545e-05 | H104: -4.310999446e-05 | J104: -0.0004341476286 | K104: -0.004677815872 | L104: 0.0005488838559 | M104: 0.005415955906 | N104: 3.214188638e-06
A105: =IF('DF raw data'!I110="","",'DF raw data'!I110) -> -278.5 | B105: =IF('DF raw data'!J110="","",'DF raw data'!J110) -> -2.70762e-05 | C105: =IF('DF raw data'!K110="","",'DF raw data'!K110) -> 3.63497e-05 | D105: =IF('DF raw data'!L110="","",'DF raw data'!L110) -> -3.17614e-05 | F105: -2.718491094e-05 | G105: 3.649564405e-05 | H105: -3.188892202e-05 | J105: -0.000447740084 | K105: -0.004901685914 | L105: 0.000567131678 | M105: 0.005699521745 | N105: 3.475243399e-06
A106: =IF('DF raw data'!I111="","",'DF raw data'!I111) -> -278 | B106: =IF('DF raw data'!J111="","",'DF raw data'!J111) -> -2.30329e-05 | C106: =IF('DF raw data'!K111="","",'DF raw data'!K111) -> 3.95621e-05 | D106: =IF('DF raw data'!L111="","",'DF raw data'!L111) -> -3.73873e-05 | F106: -2.312537709e-05 | G106: 3.972094183e-05 | H106: -3.753741001e-05 | J106: -0.0004593027726 | K106: -0.005131337301 | L106: 0.0005869921489 | M106: 0.005993017819 | N106: 3.753002809e-06
A107: =IF('DF raw data'!I112="","",'DF raw data'!I112) -> -277.5 | B107: =IF('DF raw data'!J112="","",'DF raw data'!J112) -> -2.31022e-05 | C107: =IF('DF raw data'!K112="","",'DF raw data'!K112) -> 3.79914e-05 | D107: =IF('DF raw data'!L112="","",'DF raw data'!L112) -> -2.96316e-05 | F107: -2.319495533e-05 | G107: 3.814393547e-05 | H107: -2.975057087e-05 | J107: -0.0004709002502 | K107: -0.005366787426 | L107: 0.0006060641166 | M107: 0.006296049877 | N107: 4.047533189e-06
A108: =IF('DF raw data'!I113="","",'DF raw data'!I113) -> -277 | B108: =IF('DF raw data'!J113="","",'DF raw data'!J113) -> -9.18585e-06 | C108: =IF('DF raw data'!K113="","",'DF raw data'!K113) -> 2.82024e-05 | D108: =IF('DF raw data'!L113="","",'DF raw data'!L113) -> -3.24191e-05 | F108: -9.222731188e-06 | G108: 2.831563264e-05 | H108: -3.254926269e-05 | J108: -0.0004755116158 | K108: -0.005604543234 | L108: 0.0006202219329 | M108: 0.006606160844 | N108: 4.35292646e-06
A109: =IF('DF raw data'!I114="","",'DF raw data'!I114) -> -276.5 | B109: =IF('DF raw data'!J114="","",'DF raw data'!J114) -> -1.464e-05 | C109: =IF('DF raw data'!K114="","",'DF raw data'!K114) -> 2.18587e-05 | D109: =IF('DF raw data'!L114="","",'DF raw data'!L114) -> -2.65355e-05 | F109: -1.46987796e-05 | G109: 2.194646268e-05 | H109: -2.664204003e-05 | J109: -0.0004828610056 | K109: -0.005845973736 | L109: 0.0006311951643 | M109: 0.006921758426 | N109: 4.668707503e-06
A110: =IF('DF raw data'!I115="","",'DF raw data'!I115) -> -276 | B110: =IF('DF raw data'!J115="","",'DF raw data'!J115) -> -1.10414e-05 | C110: =IF('DF raw data'!K115="","",'DF raw data'!K115) -> 2.53992e-05 | D110: =IF('DF raw data'!L115="","",'DF raw data'!L115) -> -3.86614e-05 | F110: -1.108573122e-05 | G110: 2.550117779e-05 | H110: -3.881662552e-05 | J110: -0.0004884038712 | K110: -0.006090175672 | L110: 0.0006439457532 | M110: 0.007243731303 | N110: 4.995309741e-06
A111: =IF('DF raw data'!I116="","",'DF raw data'!I116) -> -275.5 | B111: =IF('DF raw data'!J116="","",'DF raw data'!J116) -> -1.85457e-05 | C111: =IF('DF raw data'!K116="","",'DF raw data'!K116) -> 3.25917e-05 | D111: =IF('DF raw data'!L116="","",'DF raw data'!L116) -> -3.55318e-05 | F111: -1.862016099e-05 | G111: 3.272255568e-05 | H111: -3.567446018e-05 | J111: -0.0004977139517 | K111: -0.006339032648 | L111: 0.000660307031 | M111: 0.007573884818 | N111: 5.337172017e-06
A112: =IF('DF raw data'!I117="","",'DF raw data'!I117) -> -275 | B112: =IF('DF raw data'!J117="","",'DF raw data'!J117) -> -2.68941e-05 | C112: =IF('DF raw data'!K117="","",'DF raw data'!K117) -> 2.58068e-05 | D112: =IF('DF raw data'!L117="","",'DF raw data'!L117) -> -1.58751e-05 | F112: -2.700207981e-05 | G112: 2.59104143e-05 | H112: -1.593883853e-05 | J112: -0.0005112149916 | K112: -0.006594640144 | L112: 0.0006732622381 | M112: 0.007910515937 | N112: 5.694483422e-06
A113: =IF('DF raw data'!I118="","",'DF raw data'!I118) -> -274.5 | B113: =IF('DF raw data'!J118="","",'DF raw data'!J118) -> -1.76586e-05 | C113: =IF('DF raw data'!K118="","",'DF raw data'!K118) -> 1.93946e-05 | D113: =IF('DF raw data'!L118="","",'DF raw data'!L118) -> -1.91447e-05 | F113: -1.772949928e-05 | G113: 1.947246932e-05 | H113: -1.922156597e-05 | J113: -0.0005200797413 | K113: -0.006854680014 | L113: 0.0006829984728 | M113: 0.008252015174 | N113: 6.062968347e-06
A114: =IF('DF raw data'!I119="","",'DF raw data'!I119) -> -274 | B114: =IF('DF raw data'!J119="","",'DF raw data'!J119) -> -9.70193e-06 | C114: =IF('DF raw data'!K119="","",'DF raw data'!K119) -> 2.47441e-05 | D114: =IF('DF raw data'!L119="","",'DF raw data'!L119) -> -2.76178e-05 | F114: -9.740883249e-06 | G114: 2.484344756e-05 | H114: -2.772868547e-05 | J114: -0.0005249501829 | K114: -0.007117155106 | L114: 0.0006954201966 | M114: 0.008599725272 | N114: 6.442559319e-06
A115: =IF('DF raw data'!I120="","",'DF raw data'!I120) -> -273.5 | B115: =IF('DF raw data'!J120="","",'DF raw data'!J120) -> -2.19543e-05 | C115: =IF('DF raw data'!K120="","",'DF raw data'!K120) -> 3.07996e-05 | D115: =IF('DF raw data'!L120="","",'DF raw data'!L120) -> -1.95423e-05 | F115: -2.204244651e-05 | G115: 3.092326039e-05 | H115: -1.962076233e-05 | J115: -0.0005359714062 | K115: -0.007385140809 | L115: 0.0007108818268 | M115: 0.008955166185 | N115: 6.838868479e-06
A116: =IF('DF raw data'!I121="","",'DF raw data'!I121) -> -273 | B116: =IF('DF raw data'!J121="","",'DF raw data'!J121) -> -2.26481e-05 | C116: =IF('DF raw data'!K121="","",'DF raw data'!K121) -> 2.84439e-05 | D116: =IF('DF raw data'!L121="","",'DF raw data'!L121) -> -3.75078e-05 | F116: -2.273903212e-05 | G116: 2.855810226e-05 | H116: -3.765839382e-05 | J116: -0.0005473409222 | K116: -0.00765881127 | L116: 0.0007251608779 | M116: 0.009317746624 | N116: 7.251588671e-06
A117: =IF('DF raw data'!I122="","",'DF raw data'!I122) -> -272.5 | B117: =IF('DF raw data'!J122="","",'DF raw data'!J122) -> -9.05533e-06 | C117: =IF('DF raw data'!K122="","",'DF raw data'!K122) -> 2.00431e-05 | D117: =IF('DF raw data'!L122="","",'DF raw data'!L122) -> -3.59515e-05 | F117: -9.09168715e-06 | G117: 2.012357305e-05 | H117: -3.609584527e-05 | J117: -0.0005518867658 | K117: -0.007934754653 | L117: 0.0007352226644 | M117: 0.009685357956 | N117: 7.674154355e-06
A118: =IF('DF raw data'!I123="","",'DF raw data'!I123) -> -272 | B118: =IF('DF raw data'!J123="","",'DF raw data'!J123) -> -1.28433e-05 | C118: =IF('DF raw data'!K123="","",'DF raw data'!K123) -> 1.82787e-05 | D118: =IF('DF raw data'!L123="","",'DF raw data'!L123) -> -2.86865e-05 | F118: -1.289486585e-05 | G118: 1.835208898e-05 | H118: -2.88016763e-05 | J118: -0.0005583341987 | K118: -0.008213921752 | L118: 0.0007443987089 | M118: 0.01005755731 | N118: 8.107087613e-06
A119: =IF('DF raw data'!I124="","",'DF raw data'!I124) -> -271.5 | B119: =IF('DF raw data'!J124="","",'DF raw data'!J124) -> -1.43159e-05 | C119: =IF('DF raw data'!K124="","",'DF raw data'!K124) -> 2.2163e-05 | D119: =IF('DF raw data'!L124="","",'DF raw data'!L124) -> -3.21761e-05 | F119: -1.437337834e-05 | G119: 2.225198445e-05 | H119: -3.230528704e-05 | J119: -0.0005655208879 | K119: -0.008496682196 | L119: 0.0007555247012 | M119: 0.01043531966 | N119: 8.552403337e-06
A120: =IF('DF raw data'!I125="","",'DF raw data'!I125) -> -271 | B120: =IF('DF raw data'!J125="","",'DF raw data'!J125) -> -1.12951e-05 | C120: =IF('DF raw data'!K125="","",'DF raw data'!K125) -> 2.42289e-05 | D120: =IF('DF raw data'!L125="","",'DF raw data'!L125) -> -4.29838e-05 | F120: -1.134044983e-05 | G120: 2.432617903e-05 | H120: -4.315637996e-05 | J120: -0.0005711911128 | K120: -0.008782277753 | L120: 0.0007676877907 | M120: 0.01081916356 | N120: 9.010205253e-06
A121: =IF('DF raw data'!I126="","",'DF raw data'!I126) -> -270.5 | B121: =IF('DF raw data'!J126="","",'DF raw data'!J126) -> -3.30384e-05 | C121: =IF('DF raw data'!K126="","",'DF raw data'!K126) -> 2.35798e-05 | D121: =IF('DF raw data'!L126="","",'DF raw data'!L126) -> -3.35728e-05 | F121: -3.317104918e-05 | G121: 2.36744729e-05 | H121: -3.370759479e-05 | J121: -0.0005877766374 | K121: -0.009076166071 | L121: 0.0007795250271 | M121: 0.01120892607 | N121: 9.486775575e-06
A122: =IF('DF raw data'!I127="","",'DF raw data'!I127) -> -270 | B122: =IF('DF raw data'!J127="","",'DF raw data'!J127) -> -3.02836e-05 | C122: =IF('DF raw data'!K127="","",'DF raw data'!K127) -> 2.76448e-05 | D122: =IF('DF raw data'!L127="","",'DF raw data'!L127) -> -2.97466e-05 | F122: -3.040518865e-05 | G122: 2.775579387e-05 | H122: -2.98660326e-05 | J122: -0.0006029792317 | K122: -0.009377655687 | L122: 0.0007934029241 | M122: 0.01160562753 | N122: 9.983311652e-06
A123: =IF('DF raw data'!I128="","",'DF raw data'!I128) -> -269.5 | B123: =IF('DF raw data'!J128="","",'DF raw data'!J128) -> -2.4446e-05 | C123: =IF('DF raw data'!K128="","",'DF raw data'!K128) -> 2.48352e-05 | D123: =IF('DF raw data'!L128="","",'DF raw data'!L128) -> -3.35953e-05 | F123: -2.454415069e-05 | G123: 2.493491333e-05 | H123: -3.373018513e-05 | J123: -0.0006152513071 | K123: -0.009685281341 | L123: 0.0008058703807 | M123: 0.01200856272 | N123: 1.049729227e-05
A124: =IF('DF raw data'!I129="","",'DF raw data'!I129) -> -269 | B124: =IF('DF raw data'!J129="","",'DF raw data'!J129) -> -1.97072e-05 | C124: =IF('DF raw data'!K129="","",'DF raw data'!K129) -> 2.64341e-05 | D124: =IF('DF raw data'!L129="","",'DF raw data'!L129) -> -2.4168e-05 | F124: -1.978632441e-05 | G124: 2.654023291e-05 | H124: -2.426503452e-05 | J124: -0.0006251444693 | K124: -0.009997853575 | L124: 0.0008191404972 | M124: 0.01241813297 | N124: 1.102819065e-05
A125: =IF('DF raw data'!I130="","",'DF raw data'!I130) -> -268.5 | B125: =IF('DF raw data'!J130="","",'DF raw data'!J130) -> -3.62468e-05 | C125: =IF('DF raw data'!K130="","",'DF raw data'!K130) -> 2.23081e-05 | D125: =IF('DF raw data'!L130="","",'DF raw data'!L130) -> -2.99913e-05 | F125: -3.63923309e-05 | G125: 2.239766702e-05 | H125: -3.011171507e-05 | J125: -0.0006433406347 | K125: -0.01031952389 | L125: 0.0008303393307 | M125: 0.01283330264 | N125: 1.157986594e-05
A126: =IF('DF raw data'!I131="","",'DF raw data'!I131) -> -268 | B126: =IF('DF raw data'!J131="","",'DF raw data'!J131) -> -2.16827e-05 | C126: =IF('DF raw data'!K131="","",'DF raw data'!K131) -> 1.69931e-05 | D126: =IF('DF raw data'!L131="","",'DF raw data'!L131) -> -4.2803e-05 | F126: -2.176975604e-05 | G126: 1.70613273e-05 | H126: -4.297485405e-05 | J126: -0.0006542255127 | K126: -0.01064663665 | L126: 0.0008388699943 | M126: 0.01325273763 | N126: 1.214572289e-05
A127: =IF('DF raw data'!I132="","",'DF raw data'!I132) -> -267.5 | B127: =IF('DF raw data'!J132="","",'DF raw data'!J132) -> -3.28479e-05 | C127: =IF('DF raw data'!K132="","",'DF raw data'!K132) -> 1.44594e-05 | D127: =IF('DF raw data'!L132="","",'DF raw data'!L132) -> -3.05834e-05 | F127: -3.297978432e-05 | G127: 1.451745449e-05 | H127: -3.070619235e-05 | J127: -0.0006707154049 | K127: -0.01098199435 | L127: 0.0008461287216 | M127: 0.01367580199 | N127: 1.272861937e-05
A128: =IF('DF raw data'!I133="","",'DF raw data'!I133) -> -267 | B128: =IF('DF raw data'!J133="","",'DF raw data'!J133) -> -2.59854e-05 | C128: =IF('DF raw data'!K133="","",'DF raw data'!K133) -> 1.86872e-05 | D128: =IF('DF raw data'!L133="","",'DF raw data'!L133) -> -3.28408e-05 | F128: =(1-$G$1*($B$49-$G$2))*B128 -> -2.608973138e-05 | G128: 1.876222911e-05 | H128: -3.297265581e-05 | J128: =F128*$G$3+J127 -> -0.0006837602706 | K128: =J128*$G$3+K127 -> -0.01132387449 | L128: =G128*$G$3+L127 -> 0.0008555098361 | M128: =L128*$G$3+M127 -> 0.01410355691 | N128: =(J128^2+L128^2)*$G$3+N127 -> 1.332833196e-05
A129: =IF('DF raw data'!I134="","",'DF raw data'!I134) -> -266.5 | B129: =IF('DF raw data'!J134="","",'DF raw data'!J134) -> -2.59845e-05 | C129: =IF('DF raw data'!K134="","",'DF raw data'!K134) -> 2.44486e-05 | D129: =IF('DF raw data'!L134="","",'DF raw data'!L134) -> -3.41771e-05 | F129: -2.608882777e-05 | G129: 2.454676113e-05 | H129: -3.431432106e-05 | J129: -0.0006968046845 | K129: -0.01167227683 | L129: 0.0008677832167 | M129: 0.01453744852 | N129: 1.39476242e-05
A130: =IF('DF raw data'!I135="","",'DF raw data'!I135) -> -266 | B130: =IF('DF raw data'!J135="","",'DF raw data'!J135) -> -1.84138e-05 | C130: =IF('DF raw data'!K135="","",'DF raw data'!K135) -> 3.18079e-05 | D130: =IF('DF raw data'!L135="","",'DF raw data'!L135) -> -4.11386e-05 | F130: -1.848773141e-05 | G130: 3.193560872e-05 | H130: -4.130377148e-05 | J130: -0.0007060485502 | K130: -0.0120253011 | L130: 0.0008837510211 | M130: 0.01497932403 | N130: 1.458738441e-05
A131: =IF('DF raw data'!I136="","",'DF raw data'!I136) -> -265.5 | B131: =IF('DF raw data'!J136="","",'DF raw data'!J136) -> -2.31044e-05 | C131: =IF('DF raw data'!K136="","",'DF raw data'!K136) -> 2.64094e-05 | D131: =IF('DF raw data'!L136="","",'DF raw data'!L136) -> -2.62602e-05 | F131: -2.319716417e-05 | G131: 2.651543374e-05 | H131: -2.63656347e-05 | J131: -0.0007176471323 | K131: -0.01238412467 | L131: 0.0008970087379 | M131: 0.0154278284 | N131: 1.524720546e-05
A132: =IF('DF raw data'!I137="","",'DF raw data'!I137) -> -265 | B132: =IF('DF raw data'!J137="","",'DF raw data'!J137) -> -1.91931e-05 | C132: =IF('DF raw data'!K137="","",'DF raw data'!K137) -> 2.92818e-05 | D132: =IF('DF raw data'!L137="","",'DF raw data'!L137) -> -2.59181e-05 | F132: -1.92701603e-05 | G132: 2.939936643e-05 | H132: -2.602216117e-05 | J132: -0.0007272822124 | K132: -0.01274776578 | L132: 0.0009117084211 | M132: 0.01588368261 | N132: 1.592728129e-05
A133: =IF('DF raw data'!I138="","",'DF raw data'!I138) -> -264.5 | B133: =IF('DF raw data'!J138="","",'DF raw data'!J138) -> -1.37435e-05 | C133: =IF('DF raw data'!K138="","",'DF raw data'!K138) -> 3.45966e-05 | D133: =IF('DF raw data'!L138="","",'DF raw data'!L138) -> -2.486e-05 | F133: -1.379868015e-05 | G133: 3.473550535e-05 | H133: -2.49598129e-05 | J133: -0.0007341815525 | K133: -0.01311485655 | L133: 0.0009290761738 | M133: 0.0163482207 | N133: 1.662838383e-05
A134: =IF('DF raw data'!I139="","",'DF raw data'!I139) -> -264 | B134: =IF('DF raw data'!J139="","",'DF raw data'!J139) -> -1.55378e-05 | C134: =IF('DF raw data'!K139="","",'DF raw data'!K139) -> 3.07571e-05 | D134: =IF('DF raw data'!L139="","",'DF raw data'!L139) -> -2.64272e-05 | F134: -1.560018427e-05 | G134: 3.088058976e-05 | H134: -2.653330521e-05 | J134: -0.0007419816446 | K134: -0.01348584738 | L134: 0.0009445164687 | M134: 0.01682047893 | N134: 1.734970789e-05
A135: =IF('DF raw data'!I140="","",'DF raw data'!I140) -> -263.5 | B135: =IF('DF raw data'!J140="","",'DF raw data'!J140) -> -1.66899e-05 | C135: =IF('DF raw data'!K140="","",'DF raw data'!K140) -> 3.06848e-05 | D135: =IF('DF raw data'!L140="","",'DF raw data'!L140) -> -2.95684e-05 | F135: -1.675690995e-05 | G135: 3.080799947e-05 | H135: -2.968711713e-05 | J135: -0.0007503600996 | K135: -0.01386102742 | L135: 0.0009599204684 | M135: 0.01730043917 | N135: 1.809195168e-05
A136: =IF('DF raw data'!I141="","",'DF raw data'!I141) -> -263 | B136: =IF('DF raw data'!J141="","",'DF raw data'!J141) -> -1.58549e-05 | C136: =IF('DF raw data'!K141="","",'DF raw data'!K141) -> 2.33696e-05 | D136: =IF('DF raw data'!L141="","",'DF raw data'!L141) -> -3.19842e-05 | F136: -1.591855742e-05 | G136: 2.346342894e-05 | H136: -3.211261656e-05 | J136: -0.0007583193783 | K136: -0.01424018711 | L136: 0.0009716521829 | M136: 0.01778626526 | N136: 1.885152981e-05
A137: =IF('DF raw data'!I142="","",'DF raw data'!I142) -> -262.5 | B137: =IF('DF raw data'!J142="","",'DF raw data'!J142) -> -2.45155e-05 | C137: =IF('DF raw data'!K142="","",'DF raw data'!K142) -> 1.69007e-05 | D137: =IF('DF raw data'!L142="","",'DF raw data'!L142) -> -2.55459e-05 | F137: -2.461392973e-05 | G137: 1.696855631e-05 | H137: -2.564846679e-05 | J137: -0.0007706263432 | K137: -0.01462550029 | L137: 0.0009801364611 | M137: 0.01827633349 | N137: 1.962879603e-05
A138: =IF('DF raw data'!I143="","",'DF raw data'!I143) -> -262 | B138: =IF('DF raw data'!J143="","",'DF raw data'!J143) -> -2.05438e-05 | C138: =IF('DF raw data'!K143="","",'DF raw data'!K143) -> 1.9155e-05 | D138: =IF('DF raw data'!L143="","",'DF raw data'!L143) -> -1.92893e-05 | F138: -2.062628336e-05 | G138: 1.923190732e-05 | H138: -1.936674654e-05 | J138: -0.0007809394848 | K138: -0.01501597003 | L138: 0.0009897524147 | M138: 0.0187712097 | N138: 2.042353419e-05
A139: =IF('DF raw data'!I144="","",'DF raw data'!I144) -> -261.5 | B139: =IF('DF raw data'!J144="","",'DF raw data'!J144) -> -1.93179e-05 | C139: =IF('DF raw data'!K144="","",'DF raw data'!K144) -> 2.36578e-05 | D139: =IF('DF raw data'!L144="","",'DF raw data'!L144) -> -3.1323e-05 | F139: -1.939546137e-05 | G139: 2.375278607e-05 | H139: -3.144876185e-05 | J139: -0.0007906372155 | K139: -0.01541128864 | L139: 0.001001628808 | M139: 0.0192720241 | N139: 2.123771793e-05
A140: =IF('DF raw data'!I145="","",'DF raw data'!I145) -> -261 | B140: =IF('DF raw data'!J145="","",'DF raw data'!J145) -> -2.25218e-05 | C140: =IF('DF raw data'!K145="","",'DF raw data'!K145) -> 2.52851e-05 | D140: =IF('DF raw data'!L145="","",'DF raw data'!L145) -> -3.45756e-05 | F140: -2.261222503e-05 | G140: 2.538661968e-05 | H140: -3.471442103e-05 | J140: -0.000801943328 | K140: -0.0158122603 | L140: 0.001014322118 | M140: 0.01977918516 | N140: 2.207369916e-05
A141: =IF('DF raw data'!I146="","",'DF raw data'!I146) -> -260.5 | B141: =IF('DF raw data'!J146="","",'DF raw data'!J146) -> -2.27816e-05 | C141: =IF('DF raw data'!K146="","",'DF raw data'!K146) -> 1.88073e-05 | D141: =IF('DF raw data'!L146="","",'DF raw data'!L146) -> -2.9415e-05 | F141: -2.287306812e-05 | G141: 1.888281131e-05 | H141: -2.953310123e-05 | J141: -0.0008133798621 | K141: -0.01621895023 | L141: 0.001023763523 | M141: 0.02029106692 | N141: 2.292853843e-05
A142: =IF('DF raw data'!I147="","",'DF raw data'!I147) -> -260 | B142: =IF('DF raw data'!J147="","",'DF raw data'!J147) -> -1.53391e-05 | C142: =IF('DF raw data'!K147="","",'DF raw data'!K147) -> 1.76126e-05 | D142: =IF('DF raw data'!L147="","",'DF raw data'!L147) -> -3.64221e-05 | F142: -1.540068649e-05 | G142: 1.768331459e-05 | H142: -3.656833473e-05 | J142: -0.0008210802054 | K142: -0.01662949033 | L142: 0.001032605181 | M142: 0.02080736951 | N142: 2.379876151e-05
A143: =IF('DF raw data'!I148="","",'DF raw data'!I148) -> -259.5 | B143: =IF('DF raw data'!J148="","",'DF raw data'!J148) -> -8.73634e-06 | C143: =IF('DF raw data'!K148="","",'DF raw data'!K148) -> 2.33075e-05 | D143: =IF('DF raw data'!L148="","",'DF raw data'!L148) -> -3.36979e-05 | F143: -8.771416405e-06 | G143: 2.340107961e-05 | H143: -3.383319707e-05 | J143: -0.0008254659136 | K143: -0.01704222329 | L143: 0.00104430572 | M143: 0.02132952237 | N143: 2.468474572e-05
A144: =IF('DF raw data'!I149="","",'DF raw data'!I149) -> -259 | B144: =IF('DF raw data'!J149="","",'DF raw data'!J149) -> -1.34831e-05 | C144: =IF('DF raw data'!K149="","",'DF raw data'!K149) -> 1.39343e-05 | D144: =IF('DF raw data'!L149="","",'DF raw data'!L149) -> -3.08058e-05 | F144: -1.353723465e-05 | G144: 1.399024621e-05 | H144: -3.092948529e-05 | J144: -0.0008322345309 | K144: -0.01745834056 | L144: 0.001051300843 | M144: 0.02185517279 | N144: 2.558366961e-05
A145: =IF('DF raw data'!I150="","",'DF raw data'!I150) -> -258.5 | B145: =IF('DF raw data'!J150="","",'DF raw data'!J150) -> -2.27862e-05 | C145: =IF('DF raw data'!K150="","",'DF raw data'!K150) -> 1.54635e-05 | D145: =IF('DF raw data'!L150="","",'DF raw data'!L150) -> -2.2329e-05 | F145: -2.287768659e-05 | G145: 1.552558595e-05 | H145: -2.241865094e-05 | J145: -0.0008436733742 | K145: -0.01788017724 | L145: 0.001059063636 | M145: 0.02238470461 | N145: 2.650036988e-05
A146: =IF('DF raw data'!I151="","",'DF raw data'!I151) -> -258 | B146: =IF('DF raw data'!J151="","",'DF raw data'!J151) -> -1.77109e-05 | C146: =IF('DF raw data'!K151="","",'DF raw data'!K151) -> 1.76334e-05 | D146: =IF('DF raw data'!L151="","",'DF raw data'!L151) -> -3.73208e-05 | F146: -1.778200926e-05 | G146: 1.77041981e-05 | H146: -3.747064301e-05 | J146: -0.0008525643788 | K146: -0.01830645943 | L146: 0.001067915735 | M146: 0.02291866248 | N146: 2.74340249e-05
A147: =IF('DF raw data'!I152="","",'DF raw data'!I152) -> -257.5 | B147: =IF('DF raw data'!J152="","",'DF raw data'!J152) -> -1.97643e-05 | C147: =IF('DF raw data'!K152="","",'DF raw data'!K152) -> 1.28929e-05 | D147: =IF('DF raw data'!L152="","",'DF raw data'!L152) -> -3.48503e-05 | F147: -1.984365366e-05 | G147: 1.294466499e-05 | H147: -3.499022395e-05 | J147: -0.0008624862056 | K147: -0.01873770254 | L147: 0.001074388068 | M147: 0.02345585651 | N147: 2.838312099e-05
A148: =IF('DF raw data'!I153="","",'DF raw data'!I153) -> -257 | B148: =IF('DF raw data'!J153="","",'DF raw data'!J153) -> -2.41906e-05 | C148: =IF('DF raw data'!K153="","",'DF raw data'!K153) -> 1.28537e-05 | D148: =IF('DF raw data'!L153="","",'DF raw data'!L153) -> -3.19672e-05 | F148: -2.428772526e-05 | G148: 1.290530761e-05 | H148: -3.209554831e-05 | J148: -0.0008746300683 | K148: -0.01917501757 | L148: 0.001080840722 | M148: 0.02399627687 | N148: 2.93497182e-05
A149: =IF('DF raw data'!I154="","",'DF raw data'!I154) -> -256.5 | B149: =IF('DF raw data'!J154="","",'DF raw data'!J154) -> -1.91258e-05 | C149: =IF('DF raw data'!K154="","",'DF raw data'!K154) -> 1.82454e-05 | D149: =IF('DF raw data'!L154="","",'DF raw data'!L154) -> -3.07298e-05 | F149: -1.920259009e-05 | G149: 1.831865528e-05 | H149: -3.085318015e-05 | J149: -0.0008842313633 | K149: -0.01961713325 | L149: 0.001090000049 | M149: 0.0245412769 | N149: 3.03347008e-05
A150: =IF('DF raw data'!I155="","",'DF raw data'!I155) -> -256 | B150: =IF('DF raw data'!J155="","",'DF raw data'!J155) -> -2.36763e-05 | C150: =IF('DF raw data'!K155="","",'DF raw data'!K155) -> 2.36555e-05 | D150: =IF('DF raw data'!L155="","",'DF raw data'!L155) -> -3.414e-05 | F150: -2.377136034e-05 | G150: 2.375047683e-05 | H150: -3.42770721e-05 | J150: -0.0008961170435 | K150: -0.02006519177 | L150: 0.001101875288 | M150: 0.02509221454 | N150: 3.134327826e-05
A151: =IF('DF raw data'!I156="","",'DF raw data'!I156) -> -255.5 | B151: =IF('DF raw data'!J156="","",'DF raw data'!J156) -> -2.39412e-05 | C151: =IF('DF raw data'!K156="","",'DF raw data'!K156) -> 2.75533e-05 | D151: =IF('DF raw data'!L156="","",'DF raw data'!L156) -> -2.11629e-05 | F151: -2.403732392e-05 | G151: 2.76639265e-05 | H151: -2.124786904e-05 | J151: -0.0009081357054 | K151: -0.02051925963 | L151: 0.001115707251 | M151: 0.02565006817 | N151: 3.237803482e-05
A152: =IF('DF raw data'!I157="","",'DF raw data'!I157) -> -255 | B152: =IF('DF raw data'!J157="","",'DF raw data'!J157) -> -2.86798e-05 | C152: =IF('DF raw data'!K157="","",'DF raw data'!K157) -> 2.15063e-05 | D152: =IF('DF raw data'!L157="","",'DF raw data'!L157) -> -3.08774e-05 | F152: -2.87949494e-05 | G152: 2.159264779e-05 | H152: -3.100137276e-05 | J152: -0.0009225331801 | K152: -0.02098052622 | L152: 0.001126503575 | M152: 0.02621331995 | N152: 3.343807371e-05
A153: =IF('DF raw data'!I158="","",'DF raw data'!I158) -> -254.5 | B153: =IF('DF raw data'!J158="","",'DF raw data'!J158) -> -1.96385e-05 | C153: =IF('DF raw data'!K158="","",'DF raw data'!K158) -> 2.20695e-05 | D153: =IF('DF raw data'!L158="","",'DF raw data'!L158) -> -3.10844e-05 | F153: -1.971734858e-05 | G153: 2.215810904e-05 | H153: -3.120920387e-05 | J153: -0.0009323918544 | K153: -0.02144672214 | L153: 0.00113758263 | M153: 0.02678211127 | N153: 3.451979811e-05
A154: =IF('DF raw data'!I159="","",'DF raw data'!I159) -> -254 | B154: =IF('DF raw data'!J159="","",'DF raw data'!J159) -> -1.04032e-05 | C154: =IF('DF raw data'!K159="","",'DF raw data'!K159) -> 1.97001e-05 | D154: =IF('DF raw data'!L159="","",'DF raw data'!L159) -> -3.41387e-05 | F154: -1.044496885e-05 | G154: 1.97791959e-05 | H154: -3.427576688e-05 | J154: -0.0009376143389 | K154: -0.02191552931 | L154: 0.001147472227 | M154: 0.02735584738 | N154: 3.561770469e-05
A155: =IF('DF raw data'!I160="","",'DF raw data'!I160) -> -253.5 | B155: =IF('DF raw data'!J160="","",'DF raw data'!J160) -> -2.32273e-05 | C155: =IF('DF raw data'!K160="","",'DF raw data'!K160) -> 2.0892e-05 | D155: =IF('DF raw data'!L160="","",'DF raw data'!L160) -> -3.45418e-05 | F155: -2.332055761e-05 | G155: 2.097588138e-05 | H155: -3.468048533e-05 | J155: -0.0009492746177 | K155: -0.02239016662 | L155: 0.001157960168 | M155: 0.02793482747 | N155: 3.673870172e-05
A156: =IF('DF raw data'!I161="","",'DF raw data'!I161) -> -253 | B156: =IF('DF raw data'!J161="","",'DF raw data'!J161) -> -2.79821e-05 | C156: =IF('DF raw data'!K161="","",'DF raw data'!K161) -> 2.25015e-05 | D156: =IF('DF raw data'!L161="","",'DF raw data'!L161) -> -1.93844e-05 | F156: -2.809444813e-05 | G156: 2.259184352e-05 | H156: -1.946222837e-05 | J156: -0.0009633218417 | K156: -0.02287182754 | L156: 0.00116925609 | M156: 0.02851945551 | N156: 3.788627611e-05
A157: =IF('DF raw data'!I162="","",'DF raw data'!I162) -> -252.5 | B157: =IF('DF raw data'!J162="","",'DF raw data'!J162) -> -3.65072e-05 | C157: =IF('DF raw data'!K162="","",'DF raw data'!K162) -> 1.83018e-05 | D157: =IF('DF raw data'!L162="","",'DF raw data'!L162) -> -2.40194e-05 | F157: -3.665377641e-05 | G157: 1.837528173e-05 | H157: -2.411583789e-05 | J157: -0.0009816487299 | K157: -0.02336265191 | L157: 0.001178443731 | M157: 0.02910867738 | N157: 3.906245803e-05
A158: =IF('DF raw data'!I163="","",'DF raw data'!I163) -> -252 | B158: =IF('DF raw data'!J163="","",'DF raw data'!J163) -> -2.53506e-05 | C158: =IF('DF raw data'!K163="","",'DF raw data'!K163) -> 1.68212e-05 | D158: =IF('DF raw data'!L163="","",'DF raw data'!L163) -> -2.30573e-05 | F158: -2.545238266e-05 | G158: 1.688873712e-05 | H158: -2.314987506e-05 | J158: -0.0009943749213 | K158: -0.02385983937 | L158: 0.001186888099 | M158: 0.02970212143 | N158: 4.026120046e-05
A159: =IF('DF raw data'!I164="","",'DF raw data'!I164) -> -251.5 | B159: =IF('DF raw data'!J164="","",'DF raw data'!J164) -> -2.22696e-05 | C159: =IF('DF raw data'!K164="","",'DF raw data'!K164) -> 2.02966e-05 | D159: =IF('DF raw data'!L164="","",'DF raw data'!L164) -> -2.80414e-05 | F159: -2.235901244e-05 | G159: 2.037809085e-05 | H159: -2.815398622e-05 | J159: -0.001005554427 | K159: -0.02436261658 | L159: 0.001197077145 | M159: 0.03030066 | N159: 4.148326716e-05
A160: =IF('DF raw data'!I165="","",'DF raw data'!I165) -> -251 | B160: =IF('DF raw data'!J165="","",'DF raw data'!J165) -> -1.74612e-05 | C160: =IF('DF raw data'!K165="","",'DF raw data'!K165) -> 2.78352e-05 | D160: =IF('DF raw data'!L165="","",'DF raw data'!L165) -> -2.68538e-05 | F160: -1.753130672e-05 | G160: 2.794695833e-05 | H160: -2.696161801e-05 | J160: -0.001014320081 | K160: -0.02486977662 | L160: 0.001211050624 | M160: 0.03090618531 | N160: 4.273101158e-05
A161: =IF('DF raw data'!I166="","",'DF raw data'!I166) -> -250.5 | B161: =IF('DF raw data'!J166="","",'DF raw data'!J166) -> -3.1699e-05 | C161: =IF('DF raw data'!K166="","",'DF raw data'!K166) -> 2.9085e-05 | D161: =IF('DF raw data'!L166="","",'DF raw data'!L166) -> -2.2522e-05 | F161: -3.182627149e-05 | G161: 2.920177628e-05 | H161: -2.261242583e-05 | J161: -0.001030233217 | K161: -0.02538489323 | L161: 0.001225651512 | M161: 0.03151901107 | N161: 4.401281263e-05
A162: =IF('DF raw data'!I167="","",'DF raw data'!I167) -> -250 | B162: =IF('DF raw data'!J167="","",'DF raw data'!J167) -> -1.51496e-05 | C162: =IF('DF raw data'!K167="","",'DF raw data'!K167) -> 2.97678e-05 | D162: =IF('DF raw data'!L167="","",'DF raw data'!L167) -> -3.18458e-05 | F162: -1.521042564e-05 | G162: 2.988731772e-05 | H162: -3.197366089e-05 | J162: -0.001037838429 | K162: -0.02590381244 | L162: 0.001240595171 | M162: 0.03213930865 | N162: 4.532090512e-05
A163: =IF('DF raw data'!I168="","",'DF raw data'!I168) -> -249.5 | B163: =IF('DF raw data'!J168="","",'DF raw data'!J168) -> -2.81086e-05 | C163: =IF('DF raw data'!K168="","",'DF raw data'!K168) -> 3.92347e-05 | D163: =IF('DF raw data'!L168="","",'DF raw data'!L168) -> -2.20806e-05 | F163: -2.822145603e-05 | G163: 3.939222732e-05 | H163: -2.216925361e-05 | J163: -0.001051949157 | K163: -0.02642978702 | L163: 0.001260291285 | M163: 0.0327694543 | N163: 4.66683707e-05
A164: =IF('DF raw data'!I169="","",'DF raw data'!I169) -> -249 | B164: =IF('DF raw data'!J169="","",'DF raw data'!J169) -> -1.86834e-05 | C164: =IF('DF raw data'!K169="","",'DF raw data'!K169) -> 4.03428e-05 | D164: =IF('DF raw data'!L169="","",'DF raw data'!L169) -> -2.10128e-05 | F164: -1.875841385e-05 | G164: 4.050477634e-05 | H164: -2.109716639e-05 | J164: -0.001061328364 | K164: -0.02696045121 | L164: 0.001280543673 | M164: 0.03340972613 | N164: 4.80514757e-05
A165: =IF('DF raw data'!I170="","",'DF raw data'!I170) -> -248.5 | B165: =IF('DF raw data'!J170="","",'DF raw data'!J170) -> -8.93233e-06 | C165: =IF('DF raw data'!K170="","",'DF raw data'!K170) -> 3.7211e-05 | D165: =IF('DF raw data'!L170="","",'DF raw data'!L170) -> -2.79252e-05 | F165: -8.968193305e-06 | G165: 3.736040217e-05 | H165: -2.803731968e-05 | J165: -0.001065812461 | K165: -0.02749335744 | L165: 0.001299223874 | M165: 0.03405933807 | N165: 4.946344513e-05
A166: =IF('DF raw data'!I171="","",'DF raw data'!I171) -> -248 | B166: =IF('DF raw data'!J171="","",'DF raw data'!J171) -> -1.82827e-05 | C166: =IF('DF raw data'!K171="","",'DF raw data'!K171) -> 2.94265e-05 | D166: =IF('DF raw data'!L171="","",'DF raw data'!L171) -> -4.5704e-05 | F166: -1.835610504e-05 | G166: 2.95446474e-05 | H166: -4.588750156e-05 | J166: -0.001074990514 | K166: -0.02803085269 | L166: 0.001313996198 | M166: 0.03471633617 | N166: 5.090454044e-05
A167: =IF('DF raw data'!I172="","",'DF raw data'!I172) -> -247.5 | B167: =IF('DF raw data'!J172="","",'DF raw data'!J172) -> -1.82886e-05 | C167: =IF('DF raw data'!K172="","",'DF raw data'!K172) -> 2.7123e-05 | D167: =IF('DF raw data'!L172="","",'DF raw data'!L172) -> -3.65795e-05 | F167: -1.836202873e-05 | G167: 2.723189885e-05 | H167: -3.672636669e-05 | J167: -0.001084171528 | K167: -0.02857293846 | L167: 0.001327612147 | M167: 0.03538014224 | N167: 5.23735314e-05
A168: =IF('DF raw data'!I173="","",'DF raw data'!I173) -> -247 | B168: =IF('DF raw data'!J173="","",'DF raw data'!J173) -> -2.32976e-05 | C168: =IF('DF raw data'!K173="","",'DF raw data'!K173) -> 2.07809e-05 | D168: =IF('DF raw data'!L173="","",'DF raw data'!L173) -> -2.48139e-05 | F168: -2.339113986e-05 | G168: 2.086433531e-05 | H168: -2.491352781e-05 | J168: -0.001095867098 | K168: -0.02912087201 | L168: 0.001338044315 | M168: 0.0360491644 | N168: 5.386917504e-05
A169: =IF('DF raw data'!I174="","",'DF raw data'!I174) -> -246.5 | B169: =IF('DF raw data'!J174="","",'DF raw data'!J174) -> -1.91185e-05 | C169: =IF('DF raw data'!K174="","",'DF raw data'!K174) -> 1.48179e-05 | D169: =IF('DF raw data'!L174="","",'DF raw data'!L174) -> -4.20189e-05 | F169: -1.919526078e-05 | G169: 1.487739387e-05 | H169: -4.218760588e-05 | J169: -0.001105464728 | K169: -0.02967360437 | L169: 0.001345483012 | M169: 0.0367219059 | N169: 5.538536344e-05
A170: =IF('DF raw data'!I175="","",'DF raw data'!I175) -> -246 | B170: =IF('DF raw data'!J175="","",'DF raw data'!J175) -> -2.43176e-05 | C170: =IF('DF raw data'!K175="","",'DF raw data'!K175) -> 1.98845e-05 | D170: =IF('DF raw data'!L175="","",'DF raw data'!L175) -> -3.40804e-05 | F170: -2.441523516e-05 | G170: 1.996433627e-05 | H170: -3.421723281e-05 | J170: -0.001117672346 | K170: -0.03023244054 | L170: 0.00135546518 | M170: 0.03739963849 | N170: 5.69286021e-05
A171: =IF('DF raw data'!I176="","",'DF raw data'!I176) -> -245.5 | B171: =IF('DF raw data'!J176="","",'DF raw data'!J176) -> -1.79728e-05 | C171: =IF('DF raw data'!K176="","",'DF raw data'!K176) -> 2.75015e-05 | D171: =IF('DF raw data'!L176="","",'DF raw data'!L176) -> -2.90231e-05 | F171: -1.804496079e-05 | G171: 2.761191852e-05 | H171: -2.913962775e-05 | J171: -0.001126694826 | K171: -0.03079578796 | L171: 0.001369271139 | M171: 0.03808427406 | N171: 5.850077444e-05
A172: =IF('DF raw data'!I177="","",'DF raw data'!I177) -> -245 | B172: =IF('DF raw data'!J177="","",'DF raw data'!J177) -> -9.123e-06 | C172: =IF('DF raw data'!K177="","",'DF raw data'!K177) -> 2.79607e-05 | D172: =IF('DF raw data'!L177="","",'DF raw data'!L177) -> -3.07469e-05 | F172: -9.159628845e-06 | G172: 2.807296221e-05 | H172: -3.08703488e-05 | J172: -0.001131274641 | K172: -0.03136142528 | L172: 0.00138330762 | M172: 0.03877592787 | N172: 6.009743558e-05
A173: =IF('DF raw data'!I178="","",'DF raw data'!I178) -> -244.5 | B173: =IF('DF raw data'!J178="","",'DF raw data'!J178) -> -1.14314e-05 | C173: =IF('DF raw data'!K178="","",'DF raw data'!K178) -> 2.68096e-05 | D173: =IF('DF raw data'!L178="","",'DF raw data'!L178) -> -3.05938e-05 | F173: -1.147729707e-05 | G173: 2.691724054e-05 | H173: -3.071663411e-05 | J173: -0.001137013289 | K173: -0.03192993192 | L173: 0.00139676624 | M173: 0.03947431099 | N173: 6.171931316e-05
A174: =IF('DF raw data'!I179="","",'DF raw data'!I179) -> -244 | B174: =IF('DF raw data'!J179="","",'DF raw data'!J179) -> -2.65607e-05 | C174: =IF('DF raw data'!K179="","",'DF raw data'!K179) -> 2.56743e-05 | D174: =IF('DF raw data'!L179="","",'DF raw data'!L179) -> -3.60301e-05 | F174: -2.666734121e-05 | G174: 2.577738231e-05 | H174: -3.617476085e-05 | J174: -0.00115034696 | K174: -0.0325051054 | L174: 0.001409654931 | M174: 0.04017913846 | N174: 6.337452574e-05
A175: =IF('DF raw data'!I180="","",'DF raw data'!I180) -> -243.5 | B175: =IF('DF raw data'!J180="","",'DF raw data'!J180) -> -3.1571e-05 | C175: =IF('DF raw data'!K180="","",'DF raw data'!K180) -> 2.8136e-05 | D175: =IF('DF raw data'!L180="","",'DF raw data'!L180) -> -2.23391e-05 | F175: -3.169775757e-05 | G175: 2.824896604e-05 | H175: -2.242879149e-05 | J175: -0.001166195839 | K175: -0.03308820332 | L175: 0.001423779414 | M175: 0.04089102817 | N175: 6.506810601e-05
A176: =IF('DF raw data'!I181="","",'DF raw data'!I181) -> -243 | B176: =IF('DF raw data'!J181="","",'DF raw data'!J181) -> -1.82885e-05 | C176: =IF('DF raw data'!K181="","",'DF raw data'!K181) -> 3.38148e-05 | D176: =IF('DF raw data'!L181="","",'DF raw data'!L181) -> -3.67248e-05 | F176: -1.836192833e-05 | G176: 3.395056642e-05 | H176: -3.687225007e-05 | J176: -0.001175376803 | K176: -0.03367589172 | L176: 0.001440754698 | M176: 0.04161140552 | N176: 6.679674838e-05
A177: =IF('DF raw data'!I182="","",'DF raw data'!I182) -> -242.5 | B177: =IF('DF raw data'!J182="","",'DF raw data'!J182) -> -9.25204e-06 | C177: =IF('DF raw data'!K182="","",'DF raw data'!K182) -> 2.63533e-05 | D177: =IF('DF raw data'!L182="","",'DF raw data'!L182) -> -2.95176e-05 | F177: -9.289186941e-06 | G177: 2.64591085e-05 | H177: -2.963611316e-05 | J177: -0.001180021396 | K177: -0.03426590242 | L177: 0.001453984252 | M177: 0.04233839764 | N177: 6.855000873e-05
A178: =IF('DF raw data'!I183="","",'DF raw data'!I183) -> -242 | B178: =IF('DF raw data'!J183="","",'DF raw data'!J183) -> -2.73326e-05 | C178: =IF('DF raw data'!K183="","",'DF raw data'!K183) -> 1.97931e-05 | D178: =IF('DF raw data'!L183="","",'DF raw data'!L183) -> -3.2246e-05 | F178: -2.744234039e-05 | G178: 1.98725693e-05 | H178: -3.237546769e-05 | J178: -0.001193742566 | K178: -0.0348627737 | L178: 0.001463920537 | M178: 0.04307035791 | N178: 7.033405105e-05
A179: =IF('DF raw data'!I184="","",'DF raw data'!I184) -> -241.5 | B179: =IF('DF raw data'!J184="","",'DF raw data'!J184) -> -1.25251e-05 | C179: =IF('DF raw data'!K184="","",'DF raw data'!K184) -> 1.57885e-05 | D179: =IF('DF raw data'!L184="","",'DF raw data'!L184) -> -2.49032e-05 | F179: -1.257538828e-05 | G179: 1.585189083e-05 | H179: -2.500318635e-05 | J179: -0.00120003026 | K179: -0.03546278883 | L179: 0.001471846482 | M179: 0.04380628115 | N179: 7.21372534e-05
A180: =IF('DF raw data'!I185="","",'DF raw data'!I185) -> -241 | B180: =IF('DF raw data'!J185="","",'DF raw data'!J185) -> -2.29649e-05 | C180: =IF('DF raw data'!K185="","",'DF raw data'!K185) -> 2.18067e-05 | D180: =IF('DF raw data'!L185="","",'DF raw data'!L185) -> -4.36883e-05 | F180: -2.305710407e-05 | G180: 2.18942539e-05 | H180: -4.386370852e-05 | J180: -0.001211558813 | K180: -0.03606856824 | L180: 0.001482793609 | M180: 0.04454767796 | N180: 7.397052922e-05
A181: =IF('DF raw data'!I186="","",'DF raw data'!I186) -> -240.5 | B181: =IF('DF raw data'!J186="","",'DF raw data'!J186) -> -2.72642e-05 | C181: =IF('DF raw data'!K186="","",'DF raw data'!K186) -> 2.15547e-05 | D181: =IF('DF raw data'!L186="","",'DF raw data'!L186) -> -3.85497e-05 | F181: -2.737366576e-05 | G181: 2.164124212e-05 | H181: -3.870447705e-05 | J181: -0.001225245645 | K181: -0.03668119106 | L181: 0.00149361423 | M181: 0.04529448507 | N181: 7.58365844e-05
A182: =IF('DF raw data'!I187="","",'DF raw data'!I187) -> -240 | B182: =IF('DF raw data'!J187="","",'DF raw data'!J187) -> -2.41263e-05 | C182: =IF('DF raw data'!K187="","",'DF raw data'!K187) -> 1.9436e-05 | D182: =IF('DF raw data'!L187="","",'DF raw data'!L187) -> -3.25936e-05 | F182: -2.422316709e-05 | G182: 1.951403554e-05 | H182: -3.27244633e-05 | J182: -0.001237357229 | K182: -0.03729986968 | L182: 0.001503371248 | M182: 0.04604617069 | N182: 7.773217341e-05
A183: =IF('DF raw data'!I188="","",'DF raw data'!I188) -> -239.5 | B183: =IF('DF raw data'!J188="","",'DF raw data'!J188) -> -1.68168e-05 | C183: =IF('DF raw data'!K188="","",'DF raw data'!K188) -> 1.64372e-05 | D183: =IF('DF raw data'!L188="","",'DF raw data'!L188) -> -3.17832e-05 | F183: -1.688431945e-05 | G183: 1.650319536e-05 | H183: -3.191080955e-05 | J183: -0.001245799389 | K183: -0.03792276937 | L183: 0.001511622845 | M183: 0.04680198212 | N183: 7.965068328e-05
A184: =IF('DF raw data'!I189="","",'DF raw data'!I189) -> -239 | B184: =IF('DF raw data'!J189="","",'DF raw data'!J189) -> -7.84445e-06 | C184: =IF('DF raw data'!K189="","",'DF raw data'!K189) -> 2.89872e-05 | D184: =IF('DF raw data'!L189="","",'DF raw data'!L189) -> -2.47979e-05 | F184: -7.875945467e-06 | G184: 2.910358361e-05 | H184: -2.489746357e-05 | J184: -0.001249737361 | K184: -0.03854763805 | L184: 0.001526174637 | M184: 0.04756506944 | N184: 8.159620953e-05
A185: =IF('DF raw data'!I190="","",'DF raw data'!I190) -> -238.5 | B185: =IF('DF raw data'!J190="","",'DF raw data'!J190) -> -1.66305e-05 | C185: =IF('DF raw data'!K190="","",'DF raw data'!K190) -> 3.65324e-05 | D185: =IF('DF raw data'!L190="","",'DF raw data'!L190) -> -2.26704e-05 | F185: -1.669727146e-05 | G185: 3.667907759e-05 | H185: -2.276142166e-05 | J185: -0.001258085997 | K185: -0.03917668105 | L185: 0.001544514176 | M185: 0.04833732652 | N185: 8.358036174e-05
A186: =IF('DF raw data'!I191="","",'DF raw data'!I191) -> -238 | B186: =IF('DF raw data'!J191="","",'DF raw data'!J191) -> -3.09643e-06 | C186: =IF('DF raw data'!K191="","",'DF raw data'!K191) -> 3.38754e-05 | D186: =IF('DF raw data'!L191="","",'DF raw data'!L191) -> -2.91501e-05 | F186: -3.108862166e-06 | G186: 3.401140973e-05 | H186: -2.926713765e-05 | J186: -0.001259640428 | K186: -0.03980650126 | L186: 0.001561519881 | M186: 0.04911808646 | N186: 8.559288091e-05
A187: =IF('DF raw data'!I192="","",'DF raw data'!I192) -> -237.5 | B187: =IF('DF raw data'!J192="","",'DF raw data'!J192) -> -1.03495e-05 | C187: =IF('DF raw data'!K192="","",'DF raw data'!K192) -> 3.35141e-05 | D187: =IF('DF raw data'!L192="","",'DF raw data'!L192) -> -1.78838e-05 | F187: -1.039105324e-05 | G187: 3.364865911e-05 | H187: -1.795560346e-05 | J187: -0.001264835955 | K187: -0.04043891924 | L187: 0.00157834421 | M187: 0.04990725857 | N187: 8.763837113e-05
A188: =IF('DF raw data'!I193="","",'DF raw data'!I193) -> -237 | B188: =IF('DF raw data'!J193="","",'DF raw data'!J193) -> -2.25925e-05 | C188: =IF('DF raw data'!K193="","",'DF raw data'!K193) -> 3.14101e-05 | D188: =IF('DF raw data'!L193="","",'DF raw data'!L193) -> -2.47991e-05 | F188: -2.268320889e-05 | G188: 3.153621155e-05 | H188: -2.489866839e-05 | J188: -0.001276177559 | K188: -0.04107700802 | L188: 0.001594112316 | M188: 0.05070431473 | N188: 8.972328275e-05
A189: =IF('DF raw data'!I194="","",'DF raw data'!I194) -> -236.5 | B189: =IF('DF raw data'!J194="","",'DF raw data'!J194) -> -1.71396e-05 | C189: =IF('DF raw data'!K194="","",'DF raw data'!K194) -> 3.14343e-05 | D189: =IF('DF raw data'!L194="","",'DF raw data'!L194) -> -2.85814e-05 | F189: -1.720841549e-05 | G189: 3.156050871e-05 | H189: -2.869615432e-05 | J189: -0.001284781767 | K189: -0.0417193989 | L189: 0.001609892571 | M189: 0.05150926101 | N189: 9.184449189e-05
A190: =IF('DF raw data'!I195="","",'DF raw data'!I195) -> -236 | B190: =IF('DF raw data'!J195="","",'DF raw data'!J195) -> -1.66894e-05 | C190: =IF('DF raw data'!K195="","",'DF raw data'!K195) -> 2.6905e-05 | D190: =IF('DF raw data'!L195="","",'DF raw data'!L195) -> -3.05038e-05 | F190: -1.675640794e-05 | G190: 2.701302358e-05 | H190: -3.062627276e-05 | J190: -0.001293159971 | K190: -0.04236597889 | L190: 0.001623399082 | M190: 0.05232096055 | N190: 9.399833554e-05
A191: =IF('DF raw data'!I196="","",'DF raw data'!I196) -> -235.5 | B191: =IF('DF raw data'!J196="","",'DF raw data'!J196) -> -2.23346e-05 | C191: =IF('DF raw data'!K196="","",'DF raw data'!K196) -> 1.80445e-05 | D191: =IF('DF raw data'!L196="","",'DF raw data'!L196) -> -2.70417e-05 | F191: -2.242427342e-05 | G191: 1.811694867e-05 | H191: -2.715027243e-05 | J191: -0.001304372108 | K191: -0.04301816494 | L191: 0.001632457557 | M191: 0.05313718933 | N191: 9.618148767e-05
A192: =IF('DF raw data'!I197="","",'DF raw data'!I197) -> -235 | B192: =IF('DF raw data'!J197="","",'DF raw data'!J197) -> -2.13135e-05 | C192: =IF('DF raw data'!K197="","",'DF raw data'!K197) -> 1.8278e-05 | D192: =IF('DF raw data'!L197="","",'DF raw data'!L197) -> -1.90734e-05 | F192: =(1-$G$1*($B$49-$G$2))*B192 -> -2.13990737e-05 | G192: 1.835138617e-05 | H192: -1.91499797e-05 | J192: =F192*$G$3+J191 -> -0.001315071645 | K192: =J192*$G$3+K191 -> -0.04367570077 | L192: =G192*$G$3+L191 -> 0.00164163325 | M192: =L192*$G$3+M191 -> 0.05395800596 | N192: =(J192^2+L192^2)*$G$3+N191 -> 9.839367425e-05
A193: =IF('DF raw data'!I198="","",'DF raw data'!I198) -> -234.5 | B193: =IF('DF raw data'!J198="","",'DF raw data'!J198) -> -1.70192e-05 | C193: =IF('DF raw data'!K198="","",'DF raw data'!K198) -> 2.12385e-05 | D193: =IF('DF raw data'!L198="","",'DF raw data'!L198) -> -1.66235e-05 | F193: -1.708753209e-05 | G193: 2.132377258e-05 | H193: -1.669024335e-05 | J193: -0.001323615411 | K193: -0.04433750847 | L193: 0.001652295136 | M193: 0.05478415353 | N193: 0.0001006346927
A194: =IF('DF raw data'!I199="","",'DF raw data'!I199) -> -234 | B194: =IF('DF raw data'!J199="","",'DF raw data'!J199) -> -2.18205e-05 | C194: =IF('DF raw data'!K199="","",'DF raw data'!K199) -> 2.5649e-05 | D194: =IF('DF raw data'!L199="","",'DF raw data'!L199) -> -2.8293e-05 | F194: -2.190810931e-05 | G194: 2.575198074e-05 | H194: -2.84065964e-05 | J194: -0.001334569465 | K194: -0.0450047932 | L194: 0.001665171126 | M194: 0.05561673909 | N194: 0.000102911628
A195: =IF('DF raw data'!I200="","",'DF raw data'!I200) -> -233.5 | B195: =IF('DF raw data'!J200="","",'DF raw data'!J200) -> -2.59255e-05 | C195: =IF('DF raw data'!K200="","",'DF raw data'!K200) -> 2.23212e-05 | D195: =IF('DF raw data'!L200="","",'DF raw data'!L200) -> -2.67531e-05 | F195: -2.602959088e-05 | G195: 2.241081962e-05 | H195: -2.68605137e-05 | J195: -0.001347584261 | K195: -0.04567858533 | L195: 0.001676376536 | M195: 0.05645492736 | N195: 0.0001052247388
A196: =IF('DF raw data'!I201="","",'DF raw data'!I201) -> -233 | B196: =IF('DF raw data'!J201="","",'DF raw data'!J201) -> -2.38101e-05 | C196: =IF('DF raw data'!K201="","",'DF raw data'!K201) -> 1.83354e-05 | D196: =IF('DF raw data'!L201="","",'DF raw data'!L201) -> -2.56788e-05 | F196: -2.390569755e-05 | G196: 1.840901663e-05 | H196: -2.578190038e-05 | J196: -0.001359537109 | K196: -0.04635835389 | L196: 0.001685581045 | M196: 0.05729771788 | N196: 0.0001075695011
A197: =IF('DF raw data'!I202="","",'DF raw data'!I202) -> -232.5 | B197: =IF('DF raw data'!J202="","",'DF raw data'!J202) -> -1.76575e-05 | C197: =IF('DF raw data'!K202="","",'DF raw data'!K202) -> 1.39849e-05 | D197: =IF('DF raw data'!L202="","",'DF raw data'!L202) -> -2.11e-05 | F197: -1.772839486e-05 | G197: 1.404104937e-05 | H197: -2.11847165e-05 | J197: -0.001368401307 | K197: -0.04704255454 | L197: 0.001692601569 | M197: 0.05814401866 | N197: 0.0001099382122
A198: =IF('DF raw data'!I203="","",'DF raw data'!I203) -> -232 | B198: =IF('DF raw data'!J203="","",'DF raw data'!J203) -> -1.99663e-05 | C198: =IF('DF raw data'!K203="","",'DF raw data'!K203) -> 1.55016e-05 | D198: =IF('DF raw data'!L203="","",'DF raw data'!L203) -> -2.04148e-05 | F198: -2.004646469e-05 | G198: 1.556383892e-05 | H198: -2.049676542e-05 | J198: -0.001378424539 | K198: -0.04773176681 | L198: 0.001700383489 | M198: 0.05899421041 | N198: 0.0001123338913
A199: =IF('DF raw data'!I204="","",'DF raw data'!I204) -> -231.5 | B199: =IF('DF raw data'!J204="","",'DF raw data'!J204) -> -2.32995e-05 | C199: =IF('DF raw data'!K204="","",'DF raw data'!K204) -> 2.57541e-05 | D199: =IF('DF raw data'!L204="","",'DF raw data'!L204) -> -2.1997e-05 | F199: -2.339304749e-05 | G199: 2.585750271e-05 | H199: -2.208531796e-05 | J199: -0.001390121063 | K199: -0.04842682734 | L199: 0.00171331224 | M199: 0.05985086653 | N199: 0.000114767829
A200: =IF('DF raw data'!I205="","",'DF raw data'!I205) -> -231 | B200: =IF('DF raw data'!J205="","",'DF raw data'!J205) -> -3.11812e-05 | C200: =IF('DF raw data'!K205="","",'DF raw data'!K205) -> 2.74606e-05 | D200: =IF('DF raw data'!L205="","",'DF raw data'!L205) -> -3.02698e-05 | F200: -3.130639252e-05 | G200: 2.757085431e-05 | H200: -3.039133325e-05 | J200: -0.001405774259 | K200: -0.04912971447 | L200: 0.001727097667 | M200: 0.06071441536 | N200: 0.0001172473629
A201: =IF('DF raw data'!I206="","",'DF raw data'!I206) -> -230.5 | B201: =IF('DF raw data'!J206="","",'DF raw data'!J206) -> -2.33566e-05 | C201: =IF('DF raw data'!K206="","",'DF raw data'!K206) -> 2.41468e-05 | D201: =IF('DF raw data'!L206="","",'DF raw data'!L206) -> -3.30403e-05 | F201: -2.345037675e-05 | G201: 2.42437494e-05 | H201: -3.31729568e-05 | J201: -0.001417499448 | K201: -0.0498384642 | L201: 0.001739219542 | M201: 0.06158402513 | N201: 0.0001197644575
... 1061 more rows

Sheet 10 y=0.1
A1: =IF('DF raw data'!M1="","",'DF raw data'!M1) -> Number of header lines | B1: =IF('DF raw data'!N1="","",'DF raw data'!N1) -> 54 | C1: =IF('DF raw data'!O1="","",'DF raw data'!O1) ->  | D1: =IF('DF raw data'!P1="","",'DF raw data'!P1) ->  | F1: T_coeff | G1: -0.00073 | H1: /degC | J1: ='10 y=-0.2'!J1 -> IBy total | K1: ='10 y=-0.2'!K1 -> -6.130521986 | L1: ='10 y=-0.2'!L1 -> muTm | R1: ='10 y=-0.2'!R1 -> DF ref | S1: ='10 y=-0.2'!S1 -> 1
A2: =IF('DF raw data'!M2="","",'DF raw data'!M2) -> Measured by | B2: =IF('DF raw data'!N2="","",'DF raw data'!N2) -> Danfysik | C2: =IF('DF raw data'!O2="","",'DF raw data'!O2) ->  | D2: =IF('DF raw data'!P2="","",'DF raw data'!P2) ->  | F2: Tcorr | G2: 20 | H2: degC | J2: JBy total | K2: =K1262 -> -10.30531701 | L2: muTm^2 | M2: =M1262 -> -0.9756324644
A3: =IF('DF raw data'!M3="","",'DF raw data'!M3) -> Operator | B3: =IF('DF raw data'!N3="","",'DF raw data'!N3) -> PMHA | C3: =IF('DF raw data'!O3="","",'DF raw data'!O3) ->  | D3: =IF('DF raw data'!P3="","",'DF raw data'!P3) ->  | F3: Step | G3: =A63-A62 -> 0.5 | H3: mm | J3: PI total | K3: =N1262 -> 10668.33442 | L3: T^2mm^3
A4: =IF('DF raw data'!M4="","",'DF raw data'!M4) -> Data-time | B4: =IF('DF raw data'!N4="","",'DF raw data'!N4) -> 24-07-2024, 13:08:55 | C4: =IF('DF raw data'!O4="","",'DF raw data'!O4) ->  | D4: =IF('DF raw data'!P4="","",'DF raw data'!P4) -> 
A5: =IF('DF raw data'!M5="","",'DF raw data'!M5) -> Project | B5: =IF('DF raw data'!N5="","",'DF raw data'!N5) -> 504314 | C5: =IF('DF raw data'!O5="","",'DF raw data'!O5) ->  | D5: =IF('DF raw data'!P5="","",'DF raw data'!P5) -> 
A6: =IF('DF raw data'!M6="","",'DF raw data'!M6) -> Magnet type | B6: =IF('DF raw data'!N6="","",'DF raw data'!N6) -> Dipole | C6: =IF('DF raw data'!O6="","",'DF raw data'!O6) ->  | D6: =IF('DF raw data'!P6="","",'DF raw data'!P6) -> 
A7: =IF('DF raw data'!M7="","",'DF raw data'!M7) -> Magnet nr. | B7: =IF('DF raw data'!N7="","",'DF raw data'!N7) -> 2410084 | C7: =IF('DF raw data'!O7="","",'DF raw data'!O7) ->  | D7: =IF('DF raw data'!P7="","",'DF raw data'!P7) -> 
A8: =IF('DF raw data'!M8="","",'DF raw data'!M8) -> Meas. number | B8: =IF('DF raw data'!N8="","",'DF raw data'!N8) -> 114 | C8: =IF('DF raw data'!O8="","",'DF raw data'!O8) ->  | D8: =IF('DF raw data'!P8="","",'DF raw data'!P8) -> 
A9: =IF('DF raw data'!M9="","",'DF raw data'!M9) -> Add. info | B9: =IF('DF raw data'!N9="","",'DF raw data'!N9) -> Y-alignment scan 4) | C9: =IF('DF raw data'!O9="","",'DF raw data'!O9) ->  | D9: =IF('DF raw data'!P9="","",'DF raw data'!P9) -> 
A10: =IF('DF raw data'!M10="","",'DF raw data'!M10) -> Device | B10: =IF('DF raw data'!N10="","",'DF raw data'!N10) -> (HAL) HALL-PROBE | C10: =IF('DF raw data'!O10="","",'DF raw data'!O10) ->  | D10: =IF('DF raw data'!P10="","",'DF raw data'!P10) -> 
A11: =IF('DF raw data'!M11="","",'DF raw data'!M11) -> Goal | B11: =IF('DF raw data'!N11="","",'DF raw data'!N11) -> (AXI) AXis Integral (Line, EFB) | C11: =IF('DF raw data'!O11="","",'DF raw data'!O11) ->  | D11: =IF('DF raw data'!P11="","",'DF raw data'!P11) -> 
A12: =IF('DF raw data'!M12="","",'DF raw data'!M12) -> Power supply mode | B12: =IF('DF raw data'!N12="","",'DF raw data'!N12) -> (PM) Permanent Magnet (no MPS in use) | C12: =IF('DF raw data'!O12="","",'DF raw data'!O12) ->  | D12: =IF('DF raw data'!P12="","",'DF raw data'!P12) -> 
A13: =IF('DF raw data'!M13="","",'DF raw data'!M13) -> Data format | B13: =IF('DF raw data'!N13="","",'DF raw data'!N13) -> Raw data text file | C13: =IF('DF raw data'!O13="","",'DF raw data'!O13) ->  | D13: =IF('DF raw data'!P13="","",'DF raw data'!P13) -> 
A14: =IF('DF raw data'!M14="","",'DF raw data'!M14) -> Direction of the pos. x-axis | B14: =IF('DF raw data'!N14="","",'DF raw data'!N14) -> See test program | C14: =IF('DF raw data'!O14="","",'DF raw data'!O14) ->  | D14: =IF('DF raw data'!P14="","",'DF raw data'!P14) -> 
A15: =IF('DF raw data'!M15="","",'DF raw data'!M15) -> Direction of the pos. y-axis | B15: =IF('DF raw data'!N15="","",'DF raw data'!N15) -> Vertical up | C15: =IF('DF raw data'!O15="","",'DF raw data'!O15) ->  | D15: =IF('DF raw data'!P15="","",'DF raw data'!P15) -> 
A16: =IF('DF raw data'!M16="","",'DF raw data'!M16) -> Direction of the pos. z-axis | B16: =IF('DF raw data'!N16="","",'DF raw data'!N16) -> See test program | C16: =IF('DF raw data'!O16="","",'DF raw data'!O16) ->  | D16: =IF('DF raw data'!P16="","",'DF raw data'!P16) -> 
A17: =IF('DF raw data'!M17="","",'DF raw data'!M17) -> Mapper type | B17: =IF('DF raw data'!N17="","",'DF raw data'!N17) -> Precision Hall Mapper | C17: =IF('DF raw data'!O17="","",'DF raw data'!O17) ->  | D17: =IF('DF raw data'!P17="","",'DF raw data'!P17) -> 
A18: =IF('DF raw data'!M18="","",'DF raw data'!M18) -> Mapper Danfysik Reg. Number | B18: =IF('DF raw data'!N18="","",'DF raw data'!N18) -> 2033-D (mapper 1) | C18: =IF('DF raw data'!O18="","",'DF raw data'!O18) ->  | D18: =IF('DF raw data'!P18="","",'DF raw data'!P18) -> 
A19: =IF('DF raw data'!M19="","",'DF raw data'!M19) -> Measurement consept | B19: =IF('DF raw data'!N19="","",'DF raw data'!N19) -> Square line grid | C19: =IF('DF raw data'!O19="","",'DF raw data'!O19) ->  | D19: =IF('DF raw data'!P19="","",'DF raw data'!P19) -> 
A20: =IF('DF raw data'!M20="","",'DF raw data'!M20) -> Mode | B20: =IF('DF raw data'!N20="","",'DF raw data'!N20) -> On-the-fly measurement | C20: =IF('DF raw data'!O20="","",'DF raw data'!O20) ->  | D20: =IF('DF raw data'!P20="","",'DF raw data'!P20) -> 
A21: =IF('DF raw data'!M21="","",'DF raw data'!M21) ->  | B21: =IF('DF raw data'!N21="","",'DF raw data'!N21) ->  | C21: =IF('DF raw data'!O21="","",'DF raw data'!O21) ->  | D21: =IF('DF raw data'!P21="","",'DF raw data'!P21) -> 
A22: =IF('DF raw data'!M22="","",'DF raw data'!M22) -> Probe Name | B22: =IF('DF raw data'!N22="","",'DF raw data'!N22) -> ID12_By | C22: =IF('DF raw data'!O22="","",'DF raw data'!O22) ->  | D22: =IF('DF raw data'!P22="","",'DF raw data'!P22) -> 
A23: =IF('DF raw data'!M23="","",'DF raw data'!M23) -> Probe Type | B23: =IF('DF raw data'!N23="","",'DF raw data'!N23) -> DF_ID_3D_Bxyz | C23: =IF('DF raw data'!O23="","",'DF raw data'!O23) ->  | D23: =IF('DF raw data'!P23="","",'DF raw data'!P23) -> 
A24: =IF('DF raw data'!M24="","",'DF raw data'!M24) -> Probe Danfysik Reg. Number | B24: =IF('DF raw data'!N24="","",'DF raw data'!N24) -> 2277 | C24: =IF('DF raw data'!O24="","",'DF raw data'!O24) ->  | D24: =IF('DF raw data'!P24="","",'DF raw data'!P24) -> 
A25: =IF('DF raw data'!M25="","",'DF raw data'!M25) -> Probe Axis | B25: =IF('DF raw data'!N25="","",'DF raw data'!N25) -> By | C25: =IF('DF raw data'!O25="","",'DF raw data'!O25) ->  | D25: =IF('DF raw data'!P25="","",'DF raw data'!P25) -> 
A26: =IF('DF raw data'!M26="","",'DF raw data'!M26) -> Probe Current Supply | B26: =IF('DF raw data'!N26="","",'DF raw data'!N26) -> 1825-D | C26: =IF('DF raw data'!O26="","",'DF raw data'!O26) ->  | D26: =IF('DF raw data'!P26="","",'DF raw data'!P26) -> 
A27: =IF('DF raw data'!M27="","",'DF raw data'!M27) -> Probe Gain Correction | B27: =IF('DF raw data'!N27="","",'DF raw data'!N27) -> 0.99612 | C27: =IF('DF raw data'!O27="","",'DF raw data'!O27) ->  | D27: =IF('DF raw data'!P27="","",'DF raw data'!P27) -> 
A28: =IF('DF raw data'!M28="","",'DF raw data'!M28) -> Probe Offset Correction | B28: =IF('DF raw data'!N28="","",'DF raw data'!N28) -> 0.0027559 | C28: =IF('DF raw data'!O28="","",'DF raw data'!O28) ->  | D28: =IF('DF raw data'!P28="","",'DF raw data'!P28) -> 
A29: =IF('DF raw data'!M29="","",'DF raw data'!M29) -> DVM Number | B29: =IF('DF raw data'!N29="","",'DF raw data'!N29) -> 2 | C29: =IF('DF raw data'!O29="","",'DF raw data'!O29) ->  | D29: =IF('DF raw data'!P29="","",'DF raw data'!P29) -> 
A30: =IF('DF raw data'!M30="","",'DF raw data'!M30) -> DVM Type | B30: =IF('DF raw data'!N30="","",'DF raw data'!N30) -> K2701 | C30: =IF('DF raw data'!O30="","",'DF raw data'!O30) ->  | D30: =IF('DF raw data'!P30="","",'DF raw data'!P30) -> 
A31: =IF('DF raw data'!M31="","",'DF raw data'!M31) -> DVM Danfysik Reg. Number | B31: =IF('DF raw data'!N31="","",'DF raw data'!N31) -> 1743-D | C31: =IF('DF raw data'!O31="","",'DF raw data'!O31) ->  | D31: =IF('DF raw data'!P31="","",'DF raw data'!P31) -> 
A32: =IF('DF raw data'!M32="","",'DF raw data'!M32) -> Probe Name | B32: =IF('DF raw data'!N32="","",'DF raw data'!N32) -> ID12_Bx | C32: =IF('DF raw data'!O32="","",'DF raw data'!O32) ->  | D32: =IF('DF raw data'!P32="","",'DF raw data'!P32) -> 
A33: =IF('DF raw data'!M33="","",'DF raw data'!M33) -> Probe Type | B33: =IF('DF raw data'!N33="","",'DF raw data'!N33) -> DF_ID_3D_Bxyz | C33: =IF('DF raw data'!O33="","",'DF raw data'!O33) ->  | D33: =IF('DF raw data'!P33="","",'DF raw data'!P33) -> 
A34: =IF('DF raw data'!M34="","",'DF raw data'!M34) -> Probe Danfysik Reg. Number | B34: =IF('DF raw data'!N34="","",'DF raw data'!N34) -> 2277 | C34: =IF('DF raw data'!O34="","",'DF raw data'!O34) ->  | D34: =IF('DF raw data'!P34="","",'DF raw data'!P34) -> 
A35: =IF('DF raw data'!M35="","",'DF raw data'!M35) -> Probe Axis | B35: =IF('DF raw data'!N35="","",'DF raw data'!N35) -> Bx | C35: =IF('DF raw data'!O35="","",'DF raw data'!O35) ->  | D35: =IF('DF raw data'!P35="","",'DF raw data'!P35) -> 
A36: =IF('DF raw data'!M36="","",'DF raw data'!M36) -> Probe Current Supply | B36: =IF('DF raw data'!N36="","",'DF raw data'!N36) -> 1825-D | C36: =IF('DF raw data'!O36="","",'DF raw data'!O36) ->  | D36: =IF('DF raw data'!P36="","",'DF raw data'!P36) -> 
A37: =IF('DF raw data'!M37="","",'DF raw data'!M37) -> Probe Gain Correction | B37: =IF('DF raw data'!N37="","",'DF raw data'!N37) -> 1 | C37: =IF('DF raw data'!O37="","",'DF raw data'!O37) ->  | D37: =IF('DF raw data'!P37="","",'DF raw data'!P37) -> 
A38: =IF('DF raw data'!M38="","",'DF raw data'!M38) -> Probe Offset Correction | B38: =IF('DF raw data'!N38="","",'DF raw data'!N38) -> -0.17567 | C38: =IF('DF raw data'!O38="","",'DF raw data'!O38) ->  | D38: =IF('DF raw data'!P38="","",'DF raw data'!P38) -> 
A39: =IF('DF raw data'!M39="","",'DF raw data'!M39) -> DVM Number | B39: =IF('DF raw data'!N39="","",'DF raw data'!N39) -> 3 | C39: =IF('DF raw data'!O39="","",'DF raw data'!O39) ->  | D39: =IF('DF raw data'!P39="","",'DF raw data'!P39) -> 
A40: =IF('DF raw data'!M40="","",'DF raw data'!M40) -> DVM Type | B40: =IF('DF raw data'!N40="","",'DF raw data'!N40) -> K2701 | C40: =IF('DF raw data'!O40="","",'DF raw data'!O40) ->  | D40: =IF('DF raw data'!P40="","",'DF raw data'!P40) -> 
A41: =IF('DF raw data'!M41="","",'DF raw data'!M41) -> DVM Danfysik Reg. Number | B41: =IF('DF raw data'!N41="","",'DF raw data'!N41) -> 1744-D | C41: =IF('DF raw data'!O41="","",'DF raw data'!O41) ->  | D41: =IF('DF raw data'!P41="","",'DF raw data'!P41) -> 
A42: =IF('DF raw data'!M42="","",'DF raw data'!M42) -> Probe Name | B42: =IF('DF raw data'!N42="","",'DF raw data'!N42) -> ID12_Bz | C42: =IF('DF raw data'!O42="","",'DF raw data'!O42) ->  | D42: =IF('DF raw data'!P42="","",'DF raw data'!P42) -> 
A43: =IF('DF raw data'!M43="","",'DF raw data'!M43) -> Probe Type | B43: =IF('DF raw data'!N43="","",'DF raw data'!N43) -> DF_ID_3D_Bxyz | C43: =IF('DF raw data'!O43="","",'DF raw data'!O43) ->  | D43: =IF('DF raw data'!P43="","",'DF raw data'!P43) -> 
A44: =IF('DF raw data'!M44="","",'DF raw data'!M44) -> Probe Danfysik Reg. Number | B44: =IF('DF raw data'!N44="","",'DF raw data'!N44) -> 2277 | C44: =IF('DF raw data'!O44="","",'DF raw data'!O44) ->  | D44: =IF('DF raw data'!P44="","",'DF raw data'!P44) -> 
A45: =IF('DF raw data'!M45="","",'DF raw data'!M45) -> Probe Axis | B45: =IF('DF raw data'!N45="","",'DF raw data'!N45) -> Bz | C45: =IF('DF raw data'!O45="","",'DF raw data'!O45) ->  | D45: =IF('DF raw data'!P45="","",'DF raw data'!P45) -> 
A46: =IF('DF raw data'!M46="","",'DF raw data'!M46) -> Probe Current Supply | B46: =IF('DF raw data'!N46="","",'DF raw data'!N46) -> 1825-D | C46: =IF('DF raw data'!O46="","",'DF raw data'!O46) ->  | D46: =IF('DF raw data'!P46="","",'DF raw data'!P46) -> 
A47: =IF('DF raw data'!M47="","",'DF raw data'!M47) -> Probe Gain Correction | B47: =IF('DF raw data'!N47="","",'DF raw data'!N47) -> 1 | C47: =IF('DF raw data'!O47="","",'DF raw data'!O47) ->  | D47: =IF('DF raw data'!P47="","",'DF raw data'!P47) -> 
A48: =IF('DF raw data'!M53="","",'DF raw data'!M53) -> PS-Gap: | B48: =IF('DF raw data'!N53="","",'DF raw data'!N53) -> 10 | C48: =IF('DF raw data'!O53="","",'DF raw data'!O53) ->  | D48: =IF('DF raw data'!P53="","",'DF raw data'!P53) -> 
A49: =IF('DF raw data'!M54="","",'DF raw data'!M54) -> PS-Temperature: | B49: =IF('DF raw data'!N54="","",'DF raw data'!N54) -> 25.5 | C49: =IF('DF raw data'!O54="","",'DF raw data'!O54) ->  | D49: =IF('DF raw data'!P54="","",'DF raw data'!P54) -> 
A50: =IF('DF raw data'!M55="","",'DF raw data'!M55) -> PS-Encoder: | B50: =IF('DF raw data'!N55="","",'DF raw data'!N55) -> 19.434 | C50: =IF('DF raw data'!O55="","",'DF raw data'!O55) ->  | D50: =IF('DF raw data'!P55="","",'DF raw data'!P55) -> 
A51: =IF('DF raw data'!M56="","",'DF raw data'!M56) ->  | B51: =IF('DF raw data'!N56="","",'DF raw data'!N56) ->  | C51: =IF('DF raw data'!O56="","",'DF raw data'!O56) ->  | D51: =IF('DF raw data'!P56="","",'DF raw data'!P56) -> 
A52: =IF('DF raw data'!M57="","",'DF raw data'!M57) -> Monitor-Index | B52: =IF('DF raw data'!N57="","",'DF raw data'!N57) -> [1,1,4] | C52: =IF('DF raw data'!O57="","",'DF raw data'!O57) ->  | D52: =IF('DF raw data'!P57="","",'DF raw data'!P57) -> 
A53: =IF('DF raw data'!M58="","",'DF raw data'!M58) ->  | B53: =IF('DF raw data'!N58="","",'DF raw data'!N58) ->  | C53: =IF('DF raw data'!O58="","",'DF raw data'!O58) ->  | D53: =IF('DF raw data'!P58="","",'DF raw data'!P58) -> 
A54: =IF('DF raw data'!M59="","",'DF raw data'!M59) -> Time [s] | B54: =IF('DF raw data'!N59="","",'DF raw data'!N59) -> Y [mm] | C54: =IF('DF raw data'!O59="","",'DF raw data'!O59) -> X [mm] | D54: =IF('DF raw data'!P59="","",'DF raw data'!P59) -> Nominal current [A]
A55: =IF('DF raw data'!M60="","",'DF raw data'!M60) ->  | B55: =IF('DF raw data'!N60="","",'DF raw data'!N60) ->  | C55: =IF('DF raw data'!O60="","",'DF raw data'!O60) ->  | D55: =IF('DF raw data'!P60="","",'DF raw data'!P60) -> 
A56: =IF('DF raw data'!M61="","",'DF raw data'!M61) -> 207.1 | B56: =IF('DF raw data'!N61="","",'DF raw data'!N61) -> 31.46 | C56: =IF('DF raw data'!O61="","",'DF raw data'!O61) -> 301.8 | D56: =IF('DF raw data'!P61="","",'DF raw data'!P61) -> 0
A57: =IF('DF raw data'!M62="","",'DF raw data'!M62) ->  | B57: =IF('DF raw data'!N62="","",'DF raw data'!N62) ->  | C57: =IF('DF raw data'!O62="","",'DF raw data'!O62) ->  | D57: =IF('DF raw data'!P62="","",'DF raw data'!P62) -> 
A58: =IF('DF raw data'!M63="","",'DF raw data'!M63) -> Measurement-Index | B58: =IF('DF raw data'!N63="","",'DF raw data'!N63) -> [1,1,1201,2] | C58: =IF('DF raw data'!O63="","",'DF raw data'!O63) ->  | D58: =IF('DF raw data'!P63="","",'DF raw data'!P63) -> 
A59: =IF('DF raw data'!M64="","",'DF raw data'!M64) ->  | B59: =IF('DF raw data'!N64="","",'DF raw data'!N64) ->  | C59: =IF('DF raw data'!O64="","",'DF raw data'!O64) ->  | D59: =IF('DF raw data'!P64="","",'DF raw data'!P64) -> 
A60: =IF('DF raw data'!M65="","",'DF raw data'!M65) -> Z [mm] | B60: By [T] | C60: Bx [T] | D60: Bz [T] | F60: By_corr | G60: Bx_corr | H60: Bz_corr | J60: Iy | K60: Jy | L60: Ix | M60: Jx | N60: PI
A62: =IF('DF raw data'!M67="","",'DF raw data'!M67) -> -300 | B62: =IF('DF raw data'!N67="","",'DF raw data'!N67) -> -2.11787e-05 | C62: =IF('DF raw data'!O67="","",'DF raw data'!O67) -> 5.63245e-05 | D62: =IF('DF raw data'!P67="","",'DF raw data'!P67) -> -3.73e-05 | F62: =(1-$G$1*($B$49))*B62 -> -2.15729415e-05 | G62: =(1-$G$1*($B$49-$G$2))*C62 -> 5.655064287e-05 | H62: =(1-$G$1*($B$49-$G$2))*D62 -> -3.74497595e-05 | J62: =F62*$G$3 -> -1.078647075e-05 | K62: =J62*$G$3 -> -5.393235375e-06 | L62: =G62*$G$3 -> 2.827532143e-05 | M62: =L62*$G$3 -> 1.413766072e-05 | N62: =(J62^2+L62^2)*$G$3 -> 4.579208767e-10
A63: =IF('DF raw data'!M68="","",'DF raw data'!M68) -> -299.5 | B63: =IF('DF raw data'!N68="","",'DF raw data'!N68) -> -1.72669e-05 | C63: =IF('DF raw data'!O68="","",'DF raw data'!O68) -> 5.54923e-05 | D63: =IF('DF raw data'!P68="","",'DF raw data'!P68) -> -3.75361e-05 | F63: =(1-$G$1*($B$49-$G$2))*B63 -> -1.73362266e-05 | G63: =(1-$G$1*($B$49-$G$2))*C63 -> 5.571510158e-05 | H63: -3.768680744e-05 | J63: =F63*$G$3+J62 -> -1.945458405e-05 | K63: =J63*$G$3+K62 -> -1.51205274e-05 | L63: =G63*$G$3+L62 -> 5.613287223e-05 | M63: =L63*$G$3+M62 -> 4.220409683e-05 | N63: =(J63^2+L63^2)*$G$3+N62 -> 2.222610969e-09
A64: =IF('DF raw data'!M69="","",'DF raw data'!M69) -> -299 | B64: =IF('DF raw data'!N69="","",'DF raw data'!N69) -> -1.37396e-05 | C64: =IF('DF raw data'!O69="","",'DF raw data'!O69) -> 5.55252e-05 | D64: =IF('DF raw data'!P69="","",'DF raw data'!P69) -> -3.81141e-05 | F64: =(1-$G$1*($B$49-$G$2))*B64 -> -1.379476449e-05 | G64: 5.574813368e-05 | H64: -3.826712811e-05 | J64: =F64*$G$3+J63 -> -2.63519663e-05 | K64: =J64*$G$3+K63 -> -2.829651055e-05 | L64: =G64*$G$3+L63 -> 8.400693907e-05 | M64: =L64*$G$3+M63 -> 8.420756636e-05 | N64: =(J64^2+L64^2)*$G$3+N63 -> 6.098406939e-09
A65: =IF('DF raw data'!M70="","",'DF raw data'!M70) -> -298.5 | B65: =IF('DF raw data'!N70="","",'DF raw data'!N70) -> -1.47655e-05 | C65: =IF('DF raw data'!O70="","",'DF raw data'!O70) -> 4.69705e-05 | D65: =IF('DF raw data'!P70="","",'DF raw data'!P70) -> -3.85612e-05 | F65: -1.482478348e-05 | G65: 4.715908656e-05 | H65: -3.871602322e-05 | J65: -3.376435804e-05 | K65: -4.517868957e-05 | L65: 0.0001075864823 | M65: 0.0001380008075 | N65: 1.245584847e-08
A66: =IF('DF raw data'!M71="","",'DF raw data'!M71) -> -298 | B66: =IF('DF raw data'!N71="","",'DF raw data'!N71) -> -1.79075e-05 | C66: =IF('DF raw data'!O71="","",'DF raw data'!O71) -> 4.97242e-05 | D66: =IF('DF raw data'!P71="","",'DF raw data'!P71) -> -3.85101e-05 | F66: -1.797939861e-05 | G66: 4.992384266e-05 | H66: -3.866471805e-05 | J66: -4.275405735e-05 | K66: -6.655571824e-05 | L66: 0.0001325484037 | M66: 0.0002042750094 | N66: 2.215434284e-08
A67: =IF('DF raw data'!M72="","",'DF raw data'!M72) -> -297.5 | B67: =IF('DF raw data'!N72="","",'DF raw data'!N72) -> -1.78435e-05 | C67: =IF('DF raw data'!O72="","",'DF raw data'!O72) -> 4.90566e-05 | D67: =IF('DF raw data'!P72="","",'DF raw data'!P72) -> -3.85394e-05 | F67: -1.791514165e-05 | G67: 4.925356225e-05 | H67: -3.869413569e-05 | J67: -5.171162817e-05 | K67: -9.241153233e-05 | L67: 0.0001571751848 | M67: 0.0002828626018 | N67: 3.584340844e-08
A68: =IF('DF raw data'!M73="","",'DF raw data'!M73) -> -297 | B68: =IF('DF raw data'!N73="","",'DF raw data'!N73) -> -9.95578e-06 | C68: =IF('DF raw data'!O73="","",'DF raw data'!O73) -> 4.06557e-05 | D68: =IF('DF raw data'!P73="","",'DF raw data'!P73) -> -3.90639e-05 | F68: -9.995752457e-06 | G68: 4.081893264e-05 | H68: -3.922074156e-05 | J68: -5.67095044e-05 | K68: -0.0001207662845 | L68: 0.0001775846511 | M68: 0.0003716549273 | N68: 5.321954654e-08
A69: =IF('DF raw data'!M74="","",'DF raw data'!M74) -> -296.5 | B69: =IF('DF raw data'!N74="","",'DF raw data'!N74) -> -2.48327e-05 | C69: =IF('DF raw data'!O74="","",'DF raw data'!O74) -> 3.1879e-05 | D69: =IF('DF raw data'!P74="","",'DF raw data'!P74) -> -3.91375e-05 | F69: -2.493240329e-05 | G69: 3.200699419e-05 | H69: -3.929463706e-05 | J69: -6.917570605e-05 | K69: -0.0001553541376 | L69: 0.0001935881482 | M69: 0.0004684490014 | N69: 7.435037126e-08
A70: =IF('DF raw data'!M75="","",'DF raw data'!M75) -> -296 | B70: =IF('DF raw data'!N75="","",'DF raw data'!N75) -> -2.3935e-05 | C70: =IF('DF raw data'!O75="","",'DF raw data'!O75) -> 3.56855e-05 | D70: =IF('DF raw data'!P75="","",'DF raw data'!P75) -> -3.87358e-05 | F70: -2.403109903e-05 | G70: 3.582877728e-05 | H70: -3.889132424e-05 | J70: -8.119125556e-05 | K70: -0.0001959497653 | L70: 0.0002115025369 | M70: 0.0005742002699 | N70: 1.000130428e-07
A71: =IF('DF raw data'!M76="","",'DF raw data'!M76) -> -295.5 | B71: =IF('DF raw data'!N76="","",'DF raw data'!N76) -> -1.61119e-05 | C71: =IF('DF raw data'!O76="","",'DF raw data'!O76) -> 4.52328e-05 | D71: =IF('DF raw data'!P76="","",'DF raw data'!P76) -> -3.8668e-05 | F71: -1.617658928e-05 | G71: 4.541440969e-05 | H71: -3.882325202e-05 | J71: -8.92795502e-05 | K71: -0.0002405895404 | L71: 0.0002342097417 | M71: 0.0006913051407 | N71: 1.314255634e-07
A72: =IF('DF raw data'!M77="","",'DF raw data'!M77) -> -295 | B72: =IF('DF raw data'!N77="","",'DF raw data'!N77) -> -2.72698e-05 | C72: =IF('DF raw data'!O77="","",'DF raw data'!O77) -> 4.0706e-05 | D72: =IF('DF raw data'!P77="","",'DF raw data'!P77) -> -3.85997e-05 | F72: -2.737928825e-05 | G72: 4.086943459e-05 | H72: -3.87546778e-05 | J72: -0.0001029691943 | K72: -0.0002920741376 | L72: 0.000254644459 | M72: 0.0008186273702 | N72: 1.691487911e-07
A73: =IF('DF raw data'!M78="","",'DF raw data'!M78) -> -294.5 | B73: =IF('DF raw data'!N78="","",'DF raw data'!N78) -> -2.43203e-05 | C73: =IF('DF raw data'!O78="","",'DF raw data'!O78) -> 4.0974e-05 | D73: =IF('DF raw data'!P78="","",'DF raw data'!P78) -> -3.82392e-05 | F73: -2.4417946e-05 | G73: 4.113851061e-05 | H73: -3.839273039e-05 | J73: -0.0001151781673 | K73: -0.0003496632213 | L73: 0.0002752137143 | M73: 0.0009562342274 | N73: 2.136530905e-07
A74: =IF('DF raw data'!M79="","",'DF raw data'!M79) -> -294 | B74: =IF('DF raw data'!N79="","",'DF raw data'!N79) -> -1.82926e-05 | C74: =IF('DF raw data'!O79="","",'DF raw data'!O79) -> 4.65525e-05 | D74: =IF('DF raw data'!P79="","",'DF raw data'!P79) -> -3.79477e-05 | F74: -1.836604479e-05 | G74: 4.673940829e-05 | H74: -3.810006002e-05 | J74: -0.0001243611897 | K74: -0.0004118438161 | L74: 0.0002985834184 | M74: 0.001105525937 | N74: 2.659619721e-07
A75: =IF('DF raw data'!M80="","",'DF raw data'!M80) -> -293.5 | B75: =IF('DF raw data'!N80="","",'DF raw data'!N80) -> -2.59878e-05 | C75: =IF('DF raw data'!O80="","",'DF raw data'!O80) -> 4.8422e-05 | D75: =IF('DF raw data'!P80="","",'DF raw data'!P80) -> -3.79172e-05 | F75: -2.609214102e-05 | G75: 4.861641433e-05 | H75: -3.806943756e-05 | J75: -0.0001374072602 | K75: -0.0004805474462 | L75: 0.0003228916256 | M75: 0.001266971749 | N75: 3.275318507e-07
A76: =IF('DF raw data'!M81="","",'DF raw data'!M81) -> -293 | B76: =IF('DF raw data'!N81="","",'DF raw data'!N81) -> -1.22004e-05 | C76: =IF('DF raw data'!O81="","",'DF raw data'!O81) -> 4.45357e-05 | D76: =IF('DF raw data'!P81="","",'DF raw data'!P81) -> -3.84596e-05 | F76: -1.224938461e-05 | G76: 4.471451084e-05 | H76: -3.861401529e-05 | J76: -0.0001435319525 | K76: -0.0005523134225 | L76: 0.000345248881 | M76: 0.00143959619 | N76: 3.974309563e-07
A77: =IF('DF raw data'!M82="","",'DF raw data'!M82) -> -292.5 | B77: =IF('DF raw data'!N82="","",'DF raw data'!N82) -> -2.00874e-05 | C77: =IF('DF raw data'!O82="","",'DF raw data'!O82) -> 4.15481e-05 | D77: =IF('DF raw data'!P82="","",'DF raw data'!P82) -> -3.90156e-05 | F77: -2.016805091e-05 | G77: 4.171491562e-05 | H77: -3.917224763e-05 | J77: -0.000153615978 | K77: -0.0006291214115 | L77: 0.0003661063388 | M77: 0.001622649359 | N77: 4.762468163e-07
A78: =IF('DF raw data'!M83="","",'DF raw data'!M83) -> -292 | B78: =IF('DF raw data'!N83="","",'DF raw data'!N83) -> -2.60513e-05 | C78: =IF('DF raw data'!O83="","",'DF raw data'!O83) -> 3.71439e-05 | D78: =IF('DF raw data'!P83="","",'DF raw data'!P83) -> -3.87009e-05 | F78: -2.615589597e-05 | G78: 3.729303276e-05 | H78: -3.885628411e-05 | J78: -0.000166693926 | K78: -0.0007124683745 | L78: 0.0003847528552 | M78: 0.001815025787 | N78: 5.641576286e-07
A79: =IF('DF raw data'!M84="","",'DF raw data'!M84) -> -291.5 | B79: =IF('DF raw data'!N84="","",'DF raw data'!N84) -> -2.38068e-05 | C79: =IF('DF raw data'!O84="","",'DF raw data'!O84) -> 4.7657e-05 | D79: =IF('DF raw data'!P84="","",'DF raw data'!P84) -> -3.87526e-05 | F79: -2.39023843e-05 | G79: 4.784834286e-05 | H79: -3.890819169e-05 | J79: -0.0001786451181 | K79: -0.0008017909335 | L79: 0.0004086770266 | M79: 0.0020193643 | N79: 6.636231237e-07
A80: =IF('DF raw data'!M85="","",'DF raw data'!M85) -> -291 | B80: =IF('DF raw data'!N85="","",'DF raw data'!N85) -> -1.64924e-05 | C80: =IF('DF raw data'!O85="","",'DF raw data'!O85) -> 4.46432e-05 | D80: =IF('DF raw data'!P85="","",'DF raw data'!P85) -> -4.5248e-05 | F80: -1.655861699e-05 | G80: 4.482244245e-05 | H80: -4.542967072e-05 | J80: -0.0001869244266 | K80: -0.0008952531468 | L80: 0.0004310882479 | M80: 0.002234908424 | N80: 7.740120331e-07
A81: =IF('DF raw data'!M86="","",'DF raw data'!M86) -> -290.5 | B81: =IF('DF raw data'!N86="","",'DF raw data'!N86) -> -1.95184e-05 | C81: =IF('DF raw data'!O86="","",'DF raw data'!O86) -> 3.35358e-05 | D81: =IF('DF raw data'!P86="","",'DF raw data'!P86) -> -2.67175e-05 | F81: -1.959676638e-05 | G81: 3.367044624e-05 | H81: -2.682477076e-05 | J81: -0.0001967228098 | K81: -0.0009936145517 | L81: 0.000447923471 | M81: 0.00245887016 | N81: 8.93679683e-07
A82: =IF('DF raw data'!M87="","",'DF raw data'!M87) -> -290 | B82: =IF('DF raw data'!N87="","",'DF raw data'!N87) -> -2.04741e-05 | C82: =IF('DF raw data'!O87="","",'DF raw data'!O87) -> 3.79648e-05 | D82: =IF('DF raw data'!P87="","",'DF raw data'!P87) -> -3.59787e-05 | F82: -2.055630351e-05 | G82: 3.811722867e-05 | H82: -3.612315448e-05 | J82: -0.0002070009616 | K82: -0.001097115033 | L82: 0.0004669820853 | M82: 0.002692361202 | N82: 1.024140516e-06
A83: =IF('DF raw data'!M88="","",'DF raw data'!M88) -> -289.5 | B83: =IF('DF raw data'!N88="","",'DF raw data'!N88) -> -2.12407e-05 | C83: =IF('DF raw data'!O88="","",'DF raw data'!O88) -> 4.2218e-05 | D83: =IF('DF raw data'!P88="","",'DF raw data'!P88) -> -4.04144e-05 | F83: -2.132598141e-05 | G83: 4.238750527e-05 | H83: -4.057666382e-05 | J83: -0.0002176639523 | K83: -0.001205947009 | L83: 0.000488175838 | M83: 0.002936449121 | N83: 1.166987138e-06
A84: =IF('DF raw data'!M89="","",'DF raw data'!M89) -> -289 | B84: =IF('DF raw data'!N89="","",'DF raw data'!N89) -> -1.21376e-05 | C84: =IF('DF raw data'!O89="","",'DF raw data'!O89) -> 4.86335e-05 | D84: =IF('DF raw data'!P89="","",'DF raw data'!P89) -> -3.65602e-05 | F84: -1.218633246e-05 | G84: 4.88287635e-05 | H84: -3.67069892e-05 | J84: -0.0002237571185 | K84: -0.001317825568 | L84: 0.0005125902197 | M84: 0.003192744231 | N84: 1.323395129e-06
A85: =IF('DF raw data'!M90="","",'DF raw data'!M90) -> -288.5 | B85: =IF('DF raw data'!N90="","",'DF raw data'!N90) -> -1.16268e-05 | C85: =IF('DF raw data'!O90="","",'DF raw data'!O90) -> 5.06962e-05 | D85: =IF('DF raw data'!P90="","",'DF raw data'!P90) -> -3.31484e-05 | F85: -1.16734816e-05 | G85: 5.089974524e-05 | H85: -3.328149083e-05 | J85: -0.0002295938593 | K85: -0.001432622498 | L85: 0.0005380400923 | M85: 0.003461764277 | N85: 1.49449537e-06
A86: =IF('DF raw data'!M91="","",'DF raw data'!M91) -> -288 | B86: =IF('DF raw data'!N91="","",'DF raw data'!N91) -> -1.84813e-05 | C86: =IF('DF raw data'!O91="","",'DF raw data'!O91) -> 4.82401e-05 | D86: =IF('DF raw data'!P91="","",'DF raw data'!P91) -> -4.38573e-05 | F86: -1.855550242e-05 | G86: 4.8433784e-05 | H86: -4.403338706e-05 | J86: -0.0002388716105 | K86: -0.001552058303 | L86: 0.0005622569843 | M86: 0.003742892769 | N86: 1.681091651e-06
A87: =IF('DF raw data'!M92="","",'DF raw data'!M92) -> -287.5 | B87: =IF('DF raw data'!N92="","",'DF raw data'!N92) -> -8.08826e-06 | C87: =IF('DF raw data'!O92="","",'DF raw data'!O92) -> 3.96861e-05 | D87: =IF('DF raw data'!P92="","",'DF raw data'!P92) -> -5.10863e-05 | F87: -8.120734364e-06 | G87: 3.984543969e-05 | H87: -5.129141149e-05 | J87: -0.0002429319777 | K87: -0.001673524292 | L87: 0.0005821797042 | M87: 0.004033982622 | N87: 1.880066228e-06
A88: =IF('DF raw data'!M93="","",'DF raw data'!M93) -> -287 | B88: =IF('DF raw data'!N93="","",'DF raw data'!N93) -> -1.75828e-05 | C88: =IF('DF raw data'!O93="","",'DF raw data'!O93) -> 4.61364e-05 | D88: =IF('DF raw data'!P93="","",'DF raw data'!P93) -> -4.51091e-05 | F88: -1.765339494e-05 | G88: 4.632163765e-05 | H88: -4.529021304e-05 | J88: -0.0002517586752 | K88: -0.001799403629 | L88: 0.000605340523 | M88: 0.004336652883 | N88: 2.094976018e-06
A89: =IF('DF raw data'!M94="","",'DF raw data'!M94) -> -286.5 | B89: =IF('DF raw data'!N94="","",'DF raw data'!N94) -> -1.51527e-05 | C89: =IF('DF raw data'!O94="","",'DF raw data'!O94) -> 4.79364e-05 | D89: =IF('DF raw data'!P94="","",'DF raw data'!P94) -> -3.49056e-05 | F89: -1.521353809e-05 | G89: 4.812886465e-05 | H89: -3.504574598e-05 | J89: -0.0002593654442 | K89: -0.001929086351 | L89: 0.0006294049553 | M89: 0.004651355361 | N89: 2.326686533e-06
A90: =IF('DF raw data'!M95="","",'DF raw data'!M95) -> -286 | B90: =IF('DF raw data'!N95="","",'DF raw data'!N95) -> -1.54109e-05 | C90: =IF('DF raw data'!O95="","",'DF raw data'!O95) -> 4.1884e-05 | D90: =IF('DF raw data'!P95="","",'DF raw data'!P95) -> -3.21941e-05 | F90: -1.547277476e-05 | G90: 4.205216426e-05 | H90: -3.232335931e-05 | J90: -0.0002671018316 | K90: -0.002062637267 | L90: 0.0006504310375 | M90: 0.004976570879 | N90: 2.573888495e-06
A91: =IF('DF raw data'!M96="","",'DF raw data'!M96) -> -285.5 | B91: =IF('DF raw data'!N96="","",'DF raw data'!N96) -> -2.39301e-05 | C91: =IF('DF raw data'!O96="","",'DF raw data'!O96) -> 4.25898e-05 | D91: =IF('DF raw data'!P96="","",'DF raw data'!P96) -> -4.63384e-05 | F91: -2.402617935e-05 | G91: 4.276079805e-05 | H91: -4.652444868e-05 | J91: -0.0002791149213 | K91: -0.002202194728 | L91: 0.0006718114365 | M91: 0.005312476598 | N91: 2.838506368e-06
A92: =IF('DF raw data'!M97="","",'DF raw data'!M97) -> -285 | B92: =IF('DF raw data'!N97="","",'DF raw data'!N97) -> -1.88714e-05 | C92: =IF('DF raw data'!O97="","",'DF raw data'!O97) -> 4.48908e-05 | D92: =IF('DF raw data'!P97="","",'DF raw data'!P97) -> -3.56656e-05 | F92: -1.894716867e-05 | G92: 4.507103656e-05 | H92: -3.580879738e-05 | J92: -0.0002885885056 | K92: -0.002346488981 | L92: 0.0006943469548 | M92: 0.005659650075 | N92: 3.121206877e-06
A93: =IF('DF raw data'!M98="","",'DF raw data'!M98) -> -284.5 | B93: =IF('DF raw data'!N98="","",'DF raw data'!N98) -> -1.9132e-05 | C93: =IF('DF raw data'!O98="","",'DF raw data'!O98) -> 4.84435e-05 | D93: =IF('DF raw data'!P98="","",'DF raw data'!P98) -> -2.92338e-05 | F93: -1.920881498e-05 | G93: 4.863800065e-05 | H93: -2.935117371e-05 | J93: -0.0002981929131 | K93: -0.002495585437 | L93: 0.0007186659551 | M93: 0.006018983053 | N93: 3.423906761e-06
A94: =IF('DF raw data'!M99="","",'DF raw data'!M99) -> -284 | B94: =IF('DF raw data'!N99="","",'DF raw data'!N99) -> -1.48949e-05 | C94: =IF('DF raw data'!O99="","",'DF raw data'!O99) -> 4.90042e-05 | D94: =IF('DF raw data'!P99="","",'DF raw data'!P99) -> -3.69373e-05 | F94: -1.495470302e-05 | G94: 4.920095186e-05 | H94: -3.708560326e-05 | J94: -0.0003056702646 | K94: -0.002648420569 | L94: 0.000743266431 | M94: 0.006390616268 | N94: 3.74684641e-06
A95: =IF('DF raw data'!M100="","",'DF raw data'!M100) -> -283.5 | B95: =IF('DF raw data'!N100="","",'DF raw data'!N100) -> -1.97001e-05 | C95: =IF('DF raw data'!O100="","",'DF raw data'!O100) -> 4.21349e-05 | D95: =IF('DF raw data'!P100="","",'DF raw data'!P100) -> -4.29765e-05 | F95: -1.97791959e-05 | G95: 4.230407162e-05 | H95: -4.314905065e-05 | J95: -0.0003155598625 | K95: -0.002806200501 | L95: 0.0007644184668 | M95: 0.006772825502 | N95: 4.08880322e-06
A96: =IF('DF raw data'!M101="","",'DF raw data'!M101) -> -283 | B96: =IF('DF raw data'!N101="","",'DF raw data'!N101) -> -2.50262e-05 | C96: =IF('DF raw data'!O101="","",'DF raw data'!O101) -> 3.7748e-05 | D96: =IF('DF raw data'!P101="","",'DF raw data'!P101) -> -3.72477e-05 | F96: -2.512668019e-05 | G96: 3.789955822e-05 | H96: -3.739724952e-05 | J96: -0.0003281232026 | K96: -0.002970262102 | L96: 0.0007833682459 | M96: 0.007164509624 | N96: 4.449468542e-06
A97: =IF('DF raw data'!M102="","",'DF raw data'!M102) -> -282.5 | B97: =IF('DF raw data'!N102="","",'DF raw data'!N102) -> -2.23364e-05 | C97: =IF('DF raw data'!O102="","",'DF raw data'!O102) -> 4.80684e-05 | D97: =IF('DF raw data'!P102="","",'DF raw data'!P102) -> -3.21153e-05 | F97: -2.242608065e-05 | G97: 4.826139463e-05 | H97: -3.224424293e-05 | J97: -0.000339336243 | K97: -0.003139930223 | L97: 0.0008074989432 | M97: 0.007568259096 | N97: 4.833070357e-06
A98: =IF('DF raw data'!M103="","",'DF raw data'!M103) -> -282 | B98: =IF('DF raw data'!N103="","",'DF raw data'!N103) -> -1.47666e-05 | C98: =IF('DF raw data'!O103="","",'DF raw data'!O103) -> 4.71721e-05 | D98: =IF('DF raw data'!P103="","",'DF raw data'!P103) -> -3.69668e-05 | F98: -1.48258879e-05 | G98: 4.736149598e-05 | H98: -3.71152217e-05 | J98: -0.0003467491869 | K98: -0.003313304817 | L98: 0.0008311796912 | M98: 0.007983848942 | N98: 5.238617696e-06
A99: =IF('DF raw data'!M104="","",'DF raw data'!M104) -> -281.5 | B99: =IF('DF raw data'!N104="","",'DF raw data'!N104) -> -3.03651e-06 | C99: =IF('DF raw data'!O104="","",'DF raw data'!O104) -> 4.50561e-05 | D99: =IF('DF raw data'!P104="","",'DF raw data'!P104) -> -2.92355e-05 | F99: -3.048701588e-06 | G99: 4.523700024e-05 | H99: -2.935288053e-05 | J99: -0.0003482735377 | K99: -0.003487441586 | L99: 0.0008537981914 | M99: 0.008410748037 | N99: 5.6637506e-06
A100: =IF('DF raw data'!M105="","",'DF raw data'!M105) -> -281 | B100: =IF('DF raw data'!N105="","",'DF raw data'!N105) -> -1.55991e-05 | C100: =IF('DF raw data'!O105="","",'DF raw data'!O105) -> 4.09497e-05 | D100: =IF('DF raw data'!P105="","",'DF raw data'!P105) -> -3.84303e-05 | F100: -1.566173039e-05 | G100: 4.111411305e-05 | H100: -3.858459765e-05 | J100: -0.0003561044029 | K100: -0.003665493787 | L100: 0.0008743552479 | M100: 0.008847925661 | N100: 6.109404323e-06
A101: =IF('DF raw data'!M106="","",'DF raw data'!M106) -> -280.5 | B101: =IF('DF raw data'!N106="","",'DF raw data'!N106) -> -2.98986e-05 | C101: =IF('DF raw data'!O106="","",'DF raw data'!O106) -> 4.18515e-05 | D101: =IF('DF raw data'!P106="","",'DF raw data'!P106) -> -3.88971e-05 | F101: -3.001864288e-05 | G101: 4.201953377e-05 | H101: -3.905327186e-05 | J101: -0.0003711137243 | K101: -0.003851050649 | L101: 0.0008953650148 | M101: 0.009295608169 | N101: 6.579106276e-06
A102: =IF('DF raw data'!M107="","",'DF raw data'!M107) -> -280 | B102: =IF('DF raw data'!N107="","",'DF raw data'!N107) -> -2.38724e-05 | C102: =IF('DF raw data'!O107="","",'DF raw data'!O107) -> 4.35418e-05 | D102: =IF('DF raw data'!P107="","",'DF raw data'!P107) -> -3.67287e-05 | F102: -2.396824769e-05 | G102: 4.371662033e-05 | H102: -3.687616573e-05 | J102: -0.0003830978482 | K102: -0.004042599574 | L102: 0.0009172233249 | M102: 0.009754219831 | N102: 7.07313757e-06
A103: =IF('DF raw data'!M108="","",'DF raw data'!M108) -> -279.5 | B103: =IF('DF raw data'!N108="","",'DF raw data'!N108) -> -2.62448e-05 | C103: =IF('DF raw data'!O108="","",'DF raw data'!O108) -> 4.33266e-05 | D103: =IF('DF raw data'!P108="","",'DF raw data'!P108) -> -3.71101e-05 | F103: -2.635017287e-05 | G103: 4.35005563e-05 | H103: -3.725909705e-05 | J103: -0.0003962729346 | K103: -0.004240736041 | L103: 0.0009389736031 | M103: 0.01022370663 | N103: 7.592489403e-06
A104: =IF('DF raw data'!M109="","",'DF raw data'!M109) -> -279 | B104: =IF('DF raw data'!N109="","",'DF raw data'!N109) -> -1.36135e-05 | C104: =IF('DF raw data'!O109="","",'DF raw data'!O109) -> 5.19894e-05 | D104: =IF('DF raw data'!P109="","",'DF raw data'!P109) -> -3.48572e-05 | F104: -1.36681582e-05 | G104: 5.219813744e-05 | H104: -3.499715166e-05 | J104: -0.0004031070137 | K104: -0.004442289548 | L104: 0.0009650726718 | M104: 0.01070624297 | N104: 8.139419667e-06
A105: =IF('DF raw data'!M110="","",'DF raw data'!M110) -> -278.5 | B105: =IF('DF raw data'!N110="","",'DF raw data'!N110) -> -1.80342e-05 | C105: =IF('DF raw data'!O110="","",'DF raw data'!O110) -> 4.71178e-05 | D105: =IF('DF raw data'!P110="","",'DF raw data'!P110) -> -4.09022e-05 | F105: -1.810660731e-05 | G105: 4.730697797e-05 | H105: -4.106642233e-05 | J105: -0.0004121603174 | K105: -0.004648369706 | L105: 0.0009887261608 | M105: 0.01120060605 | N105: 8.713147441e-06
A106: =IF('DF raw data'!M111="","",'DF raw data'!M111) -> -278 | B106: =IF('DF raw data'!N111="","",'DF raw data'!N111) -> -2.49693e-05 | C106: =IF('DF raw data'!O111="","",'DF raw data'!O111) -> 3.98985e-05 | D106: =IF('DF raw data'!P111="","",'DF raw data'!P111) -> -2.64737e-05 | F106: -2.506955174e-05 | G106: 4.005869248e-05 | H106: -2.657999191e-05 | J106: -0.0004246950933 | K106: -0.004860717253 | L106: 0.001008755507 | M106: 0.0117049838 | N106: 9.312124238e-06
A107: =IF('DF raw data'!M112="","",'DF raw data'!M112) -> -277.5 | B107: =IF('DF raw data'!N112="","",'DF raw data'!N112) -> -2.56792e-05 | C107: =IF('DF raw data'!O112="","",'DF raw data'!O112) -> 3.88411e-05 | D107: =IF('DF raw data'!P112="","",'DF raw data'!P112) -> -1.92229e-05 | F107: -2.578230199e-05 | G107: 3.899704702e-05 | H107: -1.930007994e-05 | J107: -0.0004375862442 | K107: -0.005079510375 | L107: 0.001028254031 | M107: 0.01221911082 | N107: 9.936518275e-06
A108: =IF('DF raw data'!M113="","",'DF raw data'!M113) -> -277 | B108: =IF('DF raw data'!N113="","",'DF raw data'!N113) -> -1.57243e-05 | C108: =IF('DF raw data'!O113="","",'DF raw data'!O113) -> 3.82901e-05 | D108: =IF('DF raw data'!P113="","",'DF raw data'!P113) -> -4.31946e-05 | F108: -1.578743306e-05 | G108: 3.844383475e-05 | H108: -4.336802632e-05 | J108: -0.0004454799608 | K108: -0.005302250356 | L108: 0.001047475948 | M108: 0.01274284879 | N108: 1.05843474e-05
A109: =IF('DF raw data'!M114="","",'DF raw data'!M114) -> -276.5 | B109: =IF('DF raw data'!N114="","",'DF raw data'!N114) -> -2.72079e-05 | C109: =IF('DF raw data'!O114="","",'DF raw data'!O114) -> 4.38603e-05 | D109: =IF('DF raw data'!P114="","",'DF raw data'!P114) -> -3.49709e-05 | F109: -2.731713972e-05 | G109: 4.40363991e-05 | H109: -3.511130816e-05 | J109: -0.0004591385306 | K109: -0.005531819621 | L109: 0.001069494147 | M109: 0.01327759587 | N109: 1.126166036e-05
A110: =IF('DF raw data'!M115="","",'DF raw data'!M115) -> -276 | B110: =IF('DF raw data'!N115="","",'DF raw data'!N115) -> -2.00353e-05 | C110: =IF('DF raw data'!O115="","",'DF raw data'!O115) -> 4.3072e-05 | D110: =IF('DF raw data'!P115="","",'DF raw data'!P115) -> -2.07927e-05 | F110: -2.011574173e-05 | G110: 4.324493408e-05 | H110: -2.087618269e-05 | J110: -0.0004691964015 | K110: -0.005766417822 | L110: 0.001091116614 | M110: 0.01382315417 | N110: 1.196700073e-05
A111: =IF('DF raw data'!M116="","",'DF raw data'!M116) -> -275.5 | B111: =IF('DF raw data'!N116="","",'DF raw data'!N116) -> -5.53387e-06 | C111: =IF('DF raw data'!O116="","",'DF raw data'!O116) -> 4.84721e-05 | D111: =IF('DF raw data'!P116="","",'DF raw data'!P116) -> -3.48008e-05 | F111: -5.556088488e-06 | G111: 4.866671548e-05 | H111: -3.494052521e-05 | J111: -0.0004719744457 | K111: -0.006002405044 | L111: 0.001115449972 | M111: 0.01438087916 | N111: 1.270049499e-05
A112: =IF('DF raw data'!M117="","",'DF raw data'!M117) -> -275 | B112: =IF('DF raw data'!N117="","",'DF raw data'!N117) -> -1.41272e-05 | C112: =IF('DF raw data'!O117="","",'DF raw data'!O117) -> 5.30819e-05 | D112: =IF('DF raw data'!P117="","",'DF raw data'!P117) -> -3.36409e-05 | F112: -1.418392071e-05 | G112: 5.329502383e-05 | H112: -3.377596821e-05 | J112: -0.0004790664061 | K112: -0.006241938248 | L112: 0.001142097484 | M112: 0.0149519279 | N112: 1.346744063e-05
A113: =IF('DF raw data'!M118="","",'DF raw data'!M118) -> -274.5 | B113: =IF('DF raw data'!N118="","",'DF raw data'!N118) -> -1.85554e-05 | C113: =IF('DF raw data'!O118="","",'DF raw data'!O118) -> 4.67782e-05 | D113: =IF('DF raw data'!P118="","",'DF raw data'!P118) -> -2.82969e-05 | F113: -1.862989993e-05 | G113: 4.696601447e-05 | H113: -2.841051205e-05 | J113: -0.0004883813561 | K113: -0.006486128926 | L113: 0.001165580491 | M113: 0.01553471815 | N113: 1.426598775e-05
A114: =IF('DF raw data'!M119="","",'DF raw data'!M119) -> -274 | B114: =IF('DF raw data'!N119="","",'DF raw data'!N119) -> -2.26519e-05 | C114: =IF('DF raw data'!O119="","",'DF raw data'!O119) -> 3.68366e-05 | D114: =IF('DF raw data'!P119="","",'DF raw data'!P119) -> -3.97857e-05 | F114: -2.274284738e-05 | G114: 3.698449895e-05 | H114: -3.994543959e-05 | J114: -0.0004997527798 | K114: -0.006736005315 | L114: 0.001184072741 | M114: 0.01612675452 | N114: 1.509187829e-05
A115: =IF('DF raw data'!M120="","",'DF raw data'!M120) -> -273.5 | B115: =IF('DF raw data'!N120="","",'DF raw data'!N120) -> -1.64379e-05 | C115: =IF('DF raw data'!O120="","",'DF raw data'!O120) -> 4.40916e-05 | D115: =IF('DF raw data'!P120="","",'DF raw data'!P120) -> -3.07262e-05 | F115: -1.650389817e-05 | G115: 4.426862777e-05 | H115: -3.084956569e-05 | J115: -0.0005080047288 | K115: -0.00699000768 | L115: 0.001206207055 | M115: 0.01672985804 | N115: 1.594838043e-05
A116: =IF('DF raw data'!M121="","",'DF raw data'!M121) -> -273 | B116: =IF('DF raw data'!N121="","",'DF raw data'!N121) -> -2.59305e-05 | C116: =IF('DF raw data'!O121="","",'DF raw data'!O121) -> 4.50892e-05 | D116: =IF('DF raw data'!P121="","",'DF raw data'!P121) -> -2.72505e-05 | F116: -2.603461096e-05 | G116: 4.527023314e-05 | H116: -2.735991076e-05 | J116: -0.0005210220343 | K116: -0.007250518697 | L116: 0.001228842171 | M116: 0.01734427913 | N116: 1.683913895e-05
A117: =IF('DF raw data'!M122="","",'DF raw data'!M122) -> -272.5 | B117: =IF('DF raw data'!N122="","",'DF raw data'!N122) -> -9.18259e-06 | C117: =IF('DF raw data'!O122="","",'DF raw data'!O122) -> 4.94432e-05 | D117: =IF('DF raw data'!P122="","",'DF raw data'!P122) -> -4.48031e-05 | F117: -9.219458099e-06 | G117: 4.964171445e-05 | H117: -4.498298445e-05 | J117: -0.0005256317634 | K117: -0.007513334579 | L117: 0.001253663029 | M117: 0.01797111064 | N117: 1.776311882e-05
A118: =IF('DF raw data'!M123="","",'DF raw data'!M123) -> -272 | B118: =IF('DF raw data'!N123="","",'DF raw data'!N123) -> -3.00232e-05 | C118: =IF('DF raw data'!O123="","",'DF raw data'!O123) -> 5.48764e-05 | D118: =IF('DF raw data'!P123="","",'DF raw data'!P123) -> -4.45718e-05 | F118: -3.014374315e-05 | G118: 5.509672875e-05 | H118: -4.475075578e-05 | J118: -0.0005407036349 | K118: -0.007783686396 | L118: 0.001281211393 | M118: 0.01861171634 | N118: 1.873005034e-05
A119: =IF('DF raw data'!M124="","",'DF raw data'!M124) -> -271.5 | B119: =IF('DF raw data'!N124="","",'DF raw data'!N124) -> -1.49557e-05 | C119: =IF('DF raw data'!O124="","",'DF raw data'!O124) -> 4.72673e-05 | D119: =IF('DF raw data'!P124="","",'DF raw data'!P124) -> -4.18296e-05 | F119: -1.501574714e-05 | G119: 4.745707821e-05 | H119: -4.199754584e-05 | J119: -0.0005482115085 | K119: -0.00805779215 | L119: 0.001304939932 | M119: 0.01926418631 | N119: 1.973175239e-05
A120: =IF('DF raw data'!M125="","",'DF raw data'!M125) -> -271 | B120: =IF('DF raw data'!N125="","",'DF raw data'!N125) -> -3.04125e-05 | C120: =IF('DF raw data'!O125="","",'DF raw data'!O125) -> 4.33861e-05 | D120: =IF('DF raw data'!P125="","",'DF raw data'!P125) -> -3.74959e-05 | F120: -3.053460619e-05 | G120: 4.356029519e-05 | H120: -3.764644604e-05 | J120: -0.0005634788116 | K120: -0.008339531556 | L120: 0.00132672008 | M120: 0.01992754635 | N120: 2.077059966e-05
A121: =IF('DF raw data'!M126="","",'DF raw data'!M126) -> -270.5 | B121: =IF('DF raw data'!N126="","",'DF raw data'!N126) -> -1.43121e-05 | C121: =IF('DF raw data'!O126="","",'DF raw data'!O126) -> 4.45354e-05 | D121: =IF('DF raw data'!P126="","",'DF raw data'!P126) -> -4.53888e-05 | F121: -1.436956308e-05 | G121: 4.471420963e-05 | H121: -4.557103603e-05 | J121: -0.0005706635931 | K121: -0.008624863353 | L121: 0.001349077184 | M121: 0.02060208494 | N121: 2.184343275e-05
A122: =IF('DF raw data'!M127="","",'DF raw data'!M127) -> -270 | B122: =IF('DF raw data'!N127="","",'DF raw data'!N127) -> -2.56716e-05 | C122: =IF('DF raw data'!O127="","",'DF raw data'!O127) -> 4.46192e-05 | D122: =IF('DF raw data'!P127="","",'DF raw data'!P127) -> -3.09216e-05 | F122: -2.577467147e-05 | G122: 4.479834609e-05 | H122: -3.104575022e-05 | J122: -0.0005835509289 | K122: -0.008916638817 | L122: 0.001371476357 | M122: 0.02128782312 | N122: 2.295417229e-05
A123: =IF('DF raw data'!M128="","",'DF raw data'!M128) -> -269.5 | B123: =IF('DF raw data'!N128="","",'DF raw data'!N128) -> -1.45792e-05 | C123: =IF('DF raw data'!O128="","",'DF raw data'!O128) -> 6.017e-05 | D123: =IF('DF raw data'!P128="","",'DF raw data'!P128) -> -2.90835e-05 | F123: -1.463773549e-05 | G123: 6.041158255e-05 | H123: -2.920027025e-05 | J123: -0.0005908697966 | K123: -0.009212073716 | L123: 0.001401682149 | M123: 0.02198866419 | N123: 2.411109227e-05
A124: =IF('DF raw data'!M129="","",'DF raw data'!M129) -> -269 | B124: =IF('DF raw data'!N129="","",'DF raw data'!N129) -> -2.58346e-06 | C124: =IF('DF raw data'!O129="","",'DF raw data'!O129) -> 5.76272e-05 | D124: =IF('DF raw data'!P129="","",'DF raw data'!P129) -> -3.58836e-05 | F124: -2.593832592e-06 | G124: 5.785857321e-05 | H124: -3.602767265e-05 | J124: -0.0005921667129 | K124: -0.009508157072 | L124: 0.001430611435 | M124: 0.02270396991 | N124: 2.530974752e-05
A125: =IF('DF raw data'!M130="","",'DF raw data'!M130) -> -268.5 | B125: =IF('DF raw data'!N130="","",'DF raw data'!N130) -> -9.38779e-06 | C125: =IF('DF raw data'!O130="","",'DF raw data'!O130) -> 5.43794e-05 | D125: =IF('DF raw data'!P130="","",'DF raw data'!P130) -> -2.48121e-05 | F125: -9.425481977e-06 | G125: 5.459773329e-05 | H125: -2.491172058e-05 | J125: -0.0005968794539 | K125: -0.009806596799 | L125: 0.001457910302 | M125: 0.02343292506 | N125: 2.655063129e-05
A126: =IF('DF raw data'!M131="","",'DF raw data'!M131) -> -268 | B126: =IF('DF raw data'!N131="","",'DF raw data'!N131) -> -1.38723e-05 | C126: =IF('DF raw data'!O131="","",'DF raw data'!O131) -> 5.35513e-05 | D126: =IF('DF raw data'!P131="","",'DF raw data'!P131) -> -3.1241e-05 | F126: -1.392799728e-05 | G126: 5.376630847e-05 | H126: -3.136643262e-05 | J126: -0.0006038434526 | K126: -0.01010851853 | L126: 0.001484793456 | M126: 0.02417532179 | N126: 2.783525055e-05
A127: =IF('DF raw data'!M132="","",'DF raw data'!M132) -> -267.5 | B127: =IF('DF raw data'!N132="","",'DF raw data'!N132) -> -1.8933e-05 | C127: =IF('DF raw data'!O132="","",'DF raw data'!O132) -> 4.41931e-05 | D127: =IF('DF raw data'!P132="","",'DF raw data'!P132) -> -3.93359e-05 | F127: -1.9009016e-05 | G127: 4.43705353e-05 | H127: -3.949383364e-05 | J127: -0.0006133479605 | K127: -0.01041519251 | L127: 0.001506978724 | M127: 0.02492881115 | N127: 2.915884085e-05
A128: =IF('DF raw data'!M133="","",'DF raw data'!M133) -> -267 | B128: =IF('DF raw data'!N133="","",'DF raw data'!N133) -> -2.24679e-05 | C128: =IF('DF raw data'!O133="","",'DF raw data'!O133) -> 5.55177e-05 | D128: =IF('DF raw data'!P133="","",'DF raw data'!P133) -> -2.70509e-05 | F128: =(1-$G$1*($B$49-$G$2))*B128 -> -2.255810862e-05 | G128: 5.574060357e-05 | H128: -2.715950936e-05 | J128: =F128*$G$3+J127 -> -0.0006246270149 | K128: =J128*$G$3+K127 -> -0.01072750601 | L128: =G128*$G$3+L127 -> 0.001534849026 | M128: =L128*$G$3+M127 -> 0.02569623566 | N128: =(J128^2+L128^2)*$G$3+N127 -> 3.053180106e-05
A129: =IF('DF raw data'!M134="","",'DF raw data'!M134) -> -266.5 | B129: =IF('DF raw data'!N134="","",'DF raw data'!N134) -> -2.3489e-05 | C129: =IF('DF raw data'!O134="","",'DF raw data'!O134) -> 5.6701e-05 | D129: =IF('DF raw data'!P134="","",'DF raw data'!P134) -> -3.45664e-05 | F129: -2.358330834e-05 | G129: 5.692865452e-05 | H129: -3.47051841e-05 | J129: -0.000636418669 | K129: -0.01104571535 | L129: 0.001563313353 | M129: 0.02647789234 | N129: 3.195628975e-05
A130: =IF('DF raw data'!M135="","",'DF raw data'!M135) -> -266 | B130: =IF('DF raw data'!N135="","",'DF raw data'!N135) -> -2.17572e-05 | C130: =IF('DF raw data'!O135="","",'DF raw data'!O135) -> 5.46812e-05 | D130: =IF('DF raw data'!P135="","",'DF raw data'!P135) -> -3.51018e-05 | F130: -2.184455516e-05 | G130: 5.490074502e-05 | H130: -3.524273373e-05 | J130: -0.0006473409466 | K130: -0.01136938582 | L130: 0.001590763725 | M130: 0.0272732742 | N130: 3.343107951e-05
A131: =IF('DF raw data'!M136="","",'DF raw data'!M136) -> -265.5 | B131: =IF('DF raw data'!N136="","",'DF raw data'!N136) -> -8.80648e-06 | C131: =IF('DF raw data'!O136="","",'DF raw data'!O136) -> 5.98605e-05 | D131: =IF('DF raw data'!P136="","",'DF raw data'!P136) -> -3.14902e-05 | F131: -8.841838017e-06 | G131: 6.010083991e-05 | H131: -3.161663315e-05 | J131: -0.0006517618656 | K131: -0.01169526675 | L131: 0.001620814145 | M131: 0.02808368128 | N131: 3.495699552e-05
A132: =IF('DF raw data'!M137="","",'DF raw data'!M137) -> -265 | B132: =IF('DF raw data'!N137="","",'DF raw data'!N137) -> -2.37434e-05 | C132: =IF('DF raw data'!O137="","",'DF raw data'!O137) -> 5.6978e-05 | D132: =IF('DF raw data'!P137="","",'DF raw data'!P137) -> -3.78012e-05 | F132: -2.383872975e-05 | G132: 5.720676667e-05 | H132: -3.795297182e-05 | J132: -0.0006636812305 | K132: -0.01202710737 | L132: 0.001649417529 | M132: 0.02890839004 | N132: 3.6537521e-05
A133: =IF('DF raw data'!M138="","",'DF raw data'!M138) -> -264.5 | B133: =IF('DF raw data'!N138="","",'DF raw data'!N138) -> -2.55396e-05 | C133: =IF('DF raw data'!O138="","",'DF raw data'!O138) -> 6.03987e-05 | D133: =IF('DF raw data'!P138="","",'DF raw data'!P138) -> -3.67749e-05 | F133: -2.564214149e-05 | G133: 6.064120078e-05 | H133: -3.692255122e-05 | J133: -0.0006765023012 | K133: -0.01236535852 | L133: 0.001679738129 | M133: 0.0297482591 | N133: 3.817710878e-05
A134: =IF('DF raw data'!M139="","",'DF raw data'!M139) -> -264 | B134: =IF('DF raw data'!N139="","",'DF raw data'!N139) -> -1.41267e-05 | C134: =IF('DF raw data'!O139="","",'DF raw data'!O139) -> 6.09987e-05 | D134: =IF('DF raw data'!P139="","",'DF raw data'!P139) -> -3.44598e-05 | F134: -1.41834187e-05 | G134: 6.124360978e-05 | H134: -3.45981561e-05 | J134: -0.0006835940106 | K134: -0.01270715552 | L134: 0.001710359934 | M134: 0.03060343907 | N134: 3.987342471e-05
A135: =IF('DF raw data'!M140="","",'DF raw data'!M140) -> -263.5 | B135: =IF('DF raw data'!N140="","",'DF raw data'!N140) -> -1.4452e-05 | C135: =IF('DF raw data'!O140="","",'DF raw data'!O140) -> 6.80295e-05 | D135: =IF('DF raw data'!P140="","",'DF raw data'!P140) -> -2.74765e-05 | F135: -1.451002478e-05 | G135: 6.830263844e-05 | H135: -2.758681815e-05 | J135: -0.000690849023 | K135: -0.01305258004 | L135: 0.001744511253 | M135: 0.0314756947 | N135: 4.163372066e-05
A136: =IF('DF raw data'!M141="","",'DF raw data'!M141) -> -263 | B136: =IF('DF raw data'!N141="","",'DF raw data'!N141) -> 6.81905e-07 | C136: =IF('DF raw data'!O141="","",'DF raw data'!O141) -> 6.02949e-05 | D136: =IF('DF raw data'!P141="","",'DF raw data'!P141) -> -2.80342e-05 | F136: 6.846428486e-07 | G136: 6.053698402e-05 | H136: -2.814675731e-05 | J136: -0.0006905067016 | K136: -0.01339783339 | L136: 0.001774779745 | M136: 0.03236308457 | N136: 4.344704198e-05
A137: =IF('DF raw data'!M142="","",'DF raw data'!M142) -> -262.5 | B137: =IF('DF raw data'!N142="","",'DF raw data'!N142) -> -1.7594e-05 | C137: =IF('DF raw data'!O142="","",'DF raw data'!O142) -> 5.48558e-05 | D137: =IF('DF raw data'!P142="","",'DF raw data'!P142) -> -2.78337e-05 | F137: -1.766463991e-05 | G137: 5.507604604e-05 | H137: -2.794545231e-05 | J137: -0.0006993390215 | K137: -0.0137475029 | L137: 0.001802317768 | M137: 0.03326424345 | N137: 4.531575418e-05
A138: =IF('DF raw data'!M143="","",'DF raw data'!M143) -> -262 | B138: =IF('DF raw data'!N143="","",'DF raw data'!N143) -> -9.05827e-06 | C138: =IF('DF raw data'!O143="","",'DF raw data'!O143) -> 5.14386e-05 | D138: =IF('DF raw data'!P143="","",'DF raw data'!P143) -> -3.87502e-05 | F138: -9.094638954e-06 | G138: 5.164512598e-05 | H138: -3.890578205e-05 | J138: -0.000703886341 | K138: -0.01409944607 | L138: 0.001828140331 | M138: 0.03417831362 | N138: 4.723453071e-05
A139: =IF('DF raw data'!M144="","",'DF raw data'!M144) -> -261.5 | B139: =IF('DF raw data'!N144="","",'DF raw data'!N144) -> -8.73572e-06 | C139: =IF('DF raw data'!O144="","",'DF raw data'!O144) -> 4.93418e-05 | D139: =IF('DF raw data'!P144="","",'DF raw data'!P144) -> -4.15171e-05 | F139: -8.770793916e-06 | G139: 4.953990733e-05 | H139: -4.168379116e-05 | J139: -0.0007082717379 | K139: -0.01445358194 | L139: 0.001852910285 | M139: 0.03510476876 | N139: 4.92019934e-05
A140: =IF('DF raw data'!M145="","",'DF raw data'!M145) -> -261 | B140: =IF('DF raw data'!N145="","",'DF raw data'!N145) -> -2.81687e-05 | C140: =IF('DF raw data'!O145="","",'DF raw data'!O145) -> 4.73445e-05 | D140: =IF('DF raw data'!P145="","",'DF raw data'!P145) -> -3.69073e-05 | F140: -2.828179733e-05 | G140: 4.753458817e-05 | H140: -3.705548281e-05 | J140: -0.0007224126366 | K140: -0.01481478826 | L140: 0.001876677579 | M140: 0.03604310755 | N140: 5.122389277e-05
A141: =IF('DF raw data'!M146="","",'DF raw data'!M146) -> -260.5 | B141: =IF('DF raw data'!N146="","",'DF raw data'!N146) -> -1.34221e-05 | C141: =IF('DF raw data'!O146="","",'DF raw data'!O146) -> 4.59609e-05 | D141: =IF('DF raw data'!P146="","",'DF raw data'!P146) -> -3.35639e-05 | F141: -1.347598973e-05 | G141: 4.614543301e-05 | H141: -3.369865906e-05 | J141: -0.0007291506315 | K141: -0.01517936357 | L141: 0.001899750295 | M141: 0.0369929827 | N141: 5.329424869e-05
